Workbook

Sheet Sheet1 (hidden)
A1: Etiquetas de fila | B1: SECTOR | C1: N/T
A2: ATLANTICO - GRAN CENTRAL DE ABASTOS DEL CARIBE S.A. | B2: AGRICULTURA Y DESARROLLO RURAL | C2: NACIONAL
A3: AUTORIDAD NACIONAL DE ACUICULTURA Y PESCA (AUNAP) | B3: AGRICULTURA Y DESARROLLO RURAL | C3: NACIONAL
A4: BANCO AGRARIO | B4: AGRICULTURA Y DESARROLLO RURAL | C4: NACIONAL
A5: FINAGRO - FONDO PARA EL FINANCIAMIENTO DEL SECTOR AGROPECUARIO | B5: AGRICULTURA Y DESARROLLO RURAL | C5: NACIONAL
A6: INSTITUTO COLOMBIANO AGROPECUARIO (ICA) | B6: AGRICULTURA Y DESARROLLO RURAL | C6: NACIONAL
A7: INSTITUTO COLOMBIANO DE DESARROLLO RURAL (INCODER) | B7: AGRICULTURA Y DESARROLLO RURAL | C7: NACIONAL
A8: MINISTERIO DE AGRICULTURA Y DESARROLLO RURAL (MINAGRICULTURA) | B8: AGRICULTURA Y DESARROLLO RURAL | C8: NACIONAL
A9: UNIDAD DE PLANIFICACION DE TIERRAS RURALES ADECUACION DE TIERRAS Y USOS AGROPECUARIOS - UPRA | B9: AGRICULTURA Y DESARROLLO RURAL | C9: NACIONAL
A10: UNIDAD DE RESTITUCION DE TIERRAS (URT) | B10: AGRICULTURA Y DESARROLLO RURAL | C10: NACIONAL
A11: CORMAGDALENA - CORPORACION AUTONOMA REGIONAL DEL RIO GRANDE DE LA MAGDALENA | B11: AMBIENTE Y DESARROLLO SOSTENIBLE | C11: NACIONAL
A12: AUTORIDAD NACIONAL DE LICENCIAS AMBIENTALES (ANLA) | B12: AMBIENTE Y DESARROLLO SOSTENIBLE | C12: NACIONAL
A13: BOGOTA D.C. - INSTITUTO AMAZONICO DE INVESTIGACIONES CIENTIFICAS SINCHI | B13: AMBIENTE Y DESARROLLO SOSTENIBLE | C13: NACIONAL
A14: COMISION DE REGULACION DE AGUA POTABLE Y SANEAMIENTO BASICO (CRA) | B14: AMBIENTE Y DESARROLLO SOSTENIBLE | C14: NACIONAL
A15: INSTITUTO DE HIDROLOGIA, METEOROLOGIA Y ESTUDIOS AMBIENTALES (IDEAM) | B15: AMBIENTE Y DESARROLLO SOSTENIBLE | C15: NACIONAL
A16: MINISTERIO DE AMBIENTE Y DESARROLLO SOSTENIBLE (MINAMBIENTE) | B16: AMBIENTE Y DESARROLLO SOSTENIBLE | C16: NACIONAL
A17: UNIDAD ADMINISTRATIVA ESPECIAL DEL SISTEMA DE PARQUES NACIONALES NATURALES | B17: AMBIENTE Y DESARROLLO SOSTENIBLE | C17: NACIONAL
A18: BANCO DE LA REPUBLICA | B18: BANCO DE LA REPUBLICA | C18: NACIONAL
A19: DEPARTAMENTO ADMINISTRATIVO DE LA CIENCIA, TECNOLOGIA E INNOVACION (COLCIENCIAS) | B19: CIENCIA, TECNOLOGIA E INNOVACION | C19: NACIONAL
A20: COMISION PROFESIONAL COLOMBIANA DE DISEÑO INDUSTRIAL | B20: COMERCIO, INDUSTRIA Y TURISMO | C20: NACIONAL
A21: CONSEJO PROFESIONAL DE ADMINISTRACION DE EMPRESAS | B21: COMERCIO, INDUSTRIA Y TURISMO | C21: NACIONAL
A22: FNG - FONDO NACIONAL DE GARANTIAS | B22: COMERCIO, INDUSTRIA Y TURISMO | C22: NACIONAL
A23: JUNTA CENTRAL DE CONTADORES (JCC) | B23: COMERCIO, INDUSTRIA Y TURISMO | C23: NACIONAL
A24: ARTESANIAS DE COLOMBIA | B24: COMERCIO, INDUSTRIA Y TURISMO | C24: NACIONAL
A25: BANCOLDEX - BANCO DE COMERCIO EXTERIOR DE COLOMBIA S.A. | B25: COMERCIO, INDUSTRIA Y TURISMO | C25: NACIONAL
A26: INSTITUTO NACIONAL DE METROLOGIA (INM) | B26: COMERCIO, INDUSTRIA Y TURISMO | C26: NACIONAL
A27: MINISTERIO DE COMERCIO, INDUSTRIA Y TURISMO (MINCIT) | B27: COMERCIO, INDUSTRIA Y TURISMO | C27: NACIONAL
A28: SUPERINTENDENCIA DE INDUSTRIA Y COMERCIO (SUPERINDUSTRIA) | B28: COMERCIO, INDUSTRIA Y TURISMO | C28: NACIONAL
A29: SUPERINTENDENCIA DE SOCIEDADES (SUPERSOCIEDADES) | B29: COMERCIO, INDUSTRIA Y TURISMO | C29: NACIONAL
A30: AUDITORIA GENERAL DE LA REPUBLICA (AGR) | B30: CONTROL | C30: NACIONAL
A31: CONTRALORIA GENERAL DE LA REPUBLICA (CGR) | B31: CONTROL | C31: NACIONAL
A32: DEFENSORIA DEL PUEBLO (DEFENSORIA) | B32: CONTROL | C32: NACIONAL
A33: FONDO DE BIENESTAR SOCIAL DE LA CONTRALORIA GENERAL DE LA REPUBLICA | B33: CONTROL | C33: NACIONAL
A34: PROCURADURIA GENERAL DE LA NACION (PGN) | B34: CONTROL | C34: NACIONAL
A35: INSTITUTO CARO Y CUERVO (ICC) | B35: CULTURA | C35: NACIONAL
A36: INSTITUTO COLOMBIANO DE ANTROPOLOGIA E HISTORIA (ICANH) | B36: CULTURA | C36: NACIONAL
A37: MINISTERIO DE CULTURA (MINCULTURA) | B37: CULTURA | C37: NACIONAL
A38: VALLE DEL CAUCA - INSTITUTO COLOMBIANO DE BALLET CLASICO INCOLBALLET | B38: CULTURA | C38: NACIONAL
A39: DIRECCION NACIONAL DE ESTUPEFACIENTES (DNE) | B39: DEFENSA NACIONAL | C39: NACIONAL
A40: AGENCIA LOGISTICA DE LAS FUERZAS MILITARES (ALFM) | B40: DEFENSA NACIONAL | C40: NACIONAL
A41: ARMADA NACIONAL DE LA REPUBLICA DE COLOMBIA | B41: DEFENSA NACIONAL | C41: NACIONAL
A42: CAJA DE RETIRO DE LAS FUERZAS MILITARES (CREMIL) | B42: DEFENSA NACIONAL | C42: NACIONAL
A43: CAJA DE SUELDOS DE RETIRO DE LA POLICIA NACIONAL (CASUR) | B43: DEFENSA NACIONAL | C43: NACIONAL
A44: CLUB MILITAR (CLUB MILITAR) | B44: DEFENSA NACIONAL | C44: NACIONAL
A45: COMANDO GENERAL DE LAS FUERZAS MILITARES | B45: DEFENSA NACIONAL | C45: NACIONAL
A46: COMISION COLOMBIANA DEL OCEANO - SECRETARIA EJECUTIVA DE LA COMISION COLOMBIANA DEL OCEANO | B46: DEFENSA NACIONAL | C46: NACIONAL
A47: CORPORACION DE ALTA TECNOLOGIA PARA LA DEFENSA - CODALTEC | B47: DEFENSA NACIONAL | C47: NACIONAL
A48: DIRECCION DE SANIDAD DE LA FUERZA AEREA COLOMBIANA | B48: DEFENSA NACIONAL | C48: NACIONAL
A49: DIRECCION GENERAL DE LA POLICIA NACIONAL (PONAL) | B49: DEFENSA NACIONAL | C49: NACIONAL
A50: DIRECCION GENERAL DE SANIDAD MILITAR | B50: DEFENSA NACIONAL | C50: NACIONAL
A51: DIRECCION GENERAL MARITIMA | B51: DEFENSA NACIONAL | C51: NACIONAL
A52: DIVISION DE SANIDAD DE LA POLICIA NACIONAL | B52: DEFENSA NACIONAL | C52: NACIONAL
A53: EJERCITO NACIONAL | B53: DEFENSA NACIONAL | C53: NACIONAL
A54: ESCUELA SUPERIOR DE GUERRA | B54: DEFENSA NACIONAL | C54: NACIONAL
A55: FONDO ROTATORIO DE LA POLICIA NACIONAL (FORPO) | B55: DEFENSA NACIONAL | C55: NACIONAL
A56: FUERZA AEREA COLOMBIANA | B56: DEFENSA NACIONAL | C56: NACIONAL
A57: HOSPITAL MILITAR CENTRAL (HOMIC) | B57: DEFENSA NACIONAL | C57: NACIONAL
A58: INDUMIL - INDUSTRIA MILITAR | B58: DEFENSA NACIONAL | C58: NACIONAL
A59: INSTITUTO DE CASAS FISCALES DEL EJERCITO (ICFE) | B59: DEFENSA NACIONAL | C59: NACIONAL
A60: MINISTERIO DE DEFENSA NACIONAL (MINDEFENSA) | B60: DEFENSA NACIONAL | C60: NACIONAL
A61: SUPERINTENDENCIA DE VIGILANCIA Y SEGURIDAD PRIVADA (SUPERVIGILANCIA) | B61: DEFENSA NACIONAL | C61: NACIONAL
A62: DEPARTAMENTO ADMINISTRATIVO DEL DEPORTE, LA RECREACION, LA ACTIVIDAD FISICA Y EL APROVECHAMIENTO DEL TIEMPO LIBRE (COLDEPORTES) | B62: DEPORTE Y RECREACION | C62: NACIONAL
A63: ESCUELA TECNOLOGICA INSTITUTO TECNICO CENTRAL (ITC) | B63: EDUCACION | C63: NACIONAL
A64: INSTITUTO COLOMBIANO PARA EL FOMENTO DE LA EDUCACION SUPERIOR (ICFES) | B64: EDUCACION | C64: NACIONAL
A65: INSTITUTO NACIONAL DE FORMACION TECNICA PROFESIONAL DE SAN JUAN DEL CESAR (INFOTEP CESAR) | B65: EDUCACION | C65: NACIONAL
A66: INSTITUTO NACIONAL DE FORMACION TECNICA PROFESIONAL DEL DEPARTAMENTO DE SAN ANDRES, PROVIDENCIA Y SANTA CATALINA (INFOTEP SAN ANDRES) | B66: EDUCACION | C66: NACIONAL
A67: INSTITUTO NACIONAL PARA CIEGOS (INCI) | B67: EDUCACION | C67: NACIONAL
A68: INSTITUTO NACIONAL PARA SORDOS (INSOR) | B68: EDUCACION | C68: NACIONAL
A69: INSTITUTO TECNICO NACIONAL DE COMERCIO SIMON RODRIGUEZ (INTENALCO) | B69: EDUCACION | C69: NACIONAL
A70: INSTITUTO TOLIMENSE DE FORMACION TECNICA PROFESIONAL (ITFIP) | B70: EDUCACION | C70: NACIONAL
A71: MAGDALENA - INSTITUTO NACIONAL DE FORMACION TECNICA PROFESIONAL "HUMBERTO VELASQUEZ GARCIA" - INFOTEP - CIENAGA | B71: EDUCACION | C71: NACIONAL
A72: META - UNIVERSIDAD DE LOS LLANOS - VILLAVICENCIO | B72: EDUCACION | C72: NACIONAL
A73: MINISTERIO DE EDUCACION NACIONAL (MEN) | B73: EDUCACION | C73: NACIONAL
A74: TOLIMA - UNIVERSIDAD DEL TOLIMA | B74: EDUCACION | C74: NACIONAL
A75: UNIVERSIDAD MILITAR NUEVA GRANADA | B75: EDUCACION | C75: NACIONAL
A76: ESCUELA NACIONAL DEL DEPORTE | B76: EDUCACION | C76: NACIONAL
A77: DEPARTAMENTO ADMINISTRATIVO NACIONAL DE ESTADISTICA (DANE) | B77: ESTADISTICA | C77: NACIONAL
A78: FONDO ROTATORIO DEL DANE | B78: ESTADISTICA | C78: NACIONAL
A79: INSTITUTO GEOGRAFICO AGUSTIN CODAZZI (IGAC) | B79: ESTADISTICA | C79: NACIONAL
A80: FISCALIA GENERAL DE LA NACION (FGN) | B80: FISCALIA | C80: NACIONAL
A81: INSTITUTO NACIONAL DE MEDICINA LEGAL Y CIENCIAS FORENSES | B81: FISCALIA | C81: NACIONAL
A82: CNSC - COMISION NACIONAL DEL SERVICIO CIVIL | B82: FUNCION PUBLICA | C82: NACIONAL
A83: DEPARTAMENTO ADMINISTRATIVO DE LA FUNCION PUBLICA (DAFP) | B83: FUNCION PUBLICA | C83: NACIONAL
A84: ESCUELA SUPERIOR DE ADMINISTRACION PUBLICA (ESAP) | B84: FUNCION PUBLICA | C84: NACIONAL
A85: ADMINISTRADORA COLOMBIANA DE PENSIONES (COLPENSIONES) | B85: HACIENDA Y CREDITO PUBLICO | C85: NACIONAL
A86: AGENCIA DEL INSPECTOR GENERAL DE TRIBUTOS, RENTAS Y CONTRIBUCIONES PARAFISCALES (ITRC) | B86: HACIENDA Y CREDITO PUBLICO | C86: NACIONAL
A87: BOGOTA D.C. - FIDEICOMISOS PATRIMONIOS AUTONOMOS FIDUCIARIA LA PREVISORA S.A. | B87: HACIENDA Y CREDITO PUBLICO | C87: NACIONAL
A88: COLJUEGOS - EMPRESA INDUSTRIAL Y COMERCIAL DEL ESTADO ADMINISTRADORA DEL MONOPOLIO RENTISTICO DE LOS JUEGOS DE SUERTE Y AZAR | B88: HACIENDA Y CREDITO PUBLICO | C88: NACIONAL
A89: CONTADURIA GENERAL DE LA NACION (CGN) | B89: HACIENDA Y CREDITO PUBLICO | C89: NACIONAL
A90: DIRECCION DE IMPUESTOS Y ADUANAS NACIONALES (DIAN) | B90: HACIENDA Y CREDITO PUBLICO | C90: NACIONAL
A91: FINDETER - FINANCIERA DE DESARROLLO TERRITORIAL | B91: HACIENDA Y CREDITO PUBLICO | C91: NACIONAL
A92: FOGACOOP - FONDO DE GARANTIAS DE ENTIDADES COOPERATIVAS | B92: HACIENDA Y CREDITO PUBLICO | C92: NACIONAL
A93: FONDO ADAPTACION (FA) | B93: HACIENDA Y CREDITO PUBLICO | C93: NACIONAL
A94: LA PREVISORA COMPAÑIA DE SEGUROS | B94: HACIENDA Y CREDITO PUBLICO | C94: NACIONAL
A95: MINISTERIO DE HACIENDA Y CREDITO PUBLICO (MINHACIENDA) | B95: HACIENDA Y CREDITO PUBLICO | C95: NACIONAL
A96: POSITIVA COMPAÑIA DE SEGUROS S.A | B96: HACIENDA Y CREDITO PUBLICO | C96: NACIONAL
A97: SUPERINTENDENCIA DE LA ECONOMIA SOLIDARIA (SUPERSOLIDARIA) | B97: HACIENDA Y CREDITO PUBLICO | C97: NACIONAL
A98: SUPERINTENDENCIA FINANCIERA DE COLOMBIA (SUPERFINANCIERA) | B98: HACIENDA Y CREDITO PUBLICO | C98: NACIONAL
A99: UNIDAD ADMINISTRATIVA ESPECIAL, UNIDAD DE PROYECCION NORMATIVA Y ESTUDIOS DE REGULACION FINANCIERA | B99: HACIENDA Y CREDITO PUBLICO | C99: NACIONAL
A100: UNIDAD DE GESTION PENSIONAL Y PARAFISCALES (UGPP) | B100: HACIENDA Y CREDITO PUBLICO | C100: NACIONAL
A101: UNIDAD DE INFORMACION Y ANALISIS FINANCIERO (UIAF) | B101: HACIENDA Y CREDITO PUBLICO | C101: NACIONAL
A102: AGENCIA NACIONAL PARA LA SUPERACION DE LA POBREZA EXTREMA (ANSPE) | B102: INCLUSION SOCIAL Y RECONCILIACION | C102: NACIONAL
A103: CENTRO DE MEMORIA HISTORICA (CNMH) | B103: INCLUSION SOCIAL Y RECONCILIACION | C103: NACIONAL
A104: DEPARTAMENTO ADMINISTRATIVO PARA LA PROSPERIDAD SOCIAL (DPS) | B104: INCLUSION SOCIAL Y RECONCILIACION | C104: NACIONAL
A105: FONDO DE INVERSION PARA LA PAZ | B105: INCLUSION SOCIAL Y RECONCILIACION | C105: NACIONAL
A106: INSTITUTO COLOMBIANO DE BIENESTAR FAMILIAR (ICBF) | B106: INCLUSION SOCIAL Y RECONCILIACION | C106: NACIONAL
A107: UNIDAD ADMINISTRATIVA PARA LA CONSOLIDACION TERRITORIAL (UACT) | B107: INCLUSION SOCIAL Y RECONCILIACION | C107: NACIONAL
A108: UNIDAD PARA LA ATENCION Y REPARACION INTEGRAL A LAS VICTIMAS | B108: INCLUSION SOCIAL Y RECONCILIACION | C108: NACIONAL
A109: DAS - DEPARTAMENTO ADMINISTRATIVO DE SEGURIDAD | B109: INTELIGENCIA | C109: NACIONAL
A110: DIRECCION NACIONAL DE INTELIGENCIA (DNI) | B110: INTELIGENCIA | C110: NACIONAL
A111: FONDO ROTATORIO DEL DAS | B111: INTELIGENCIA | C111: NACIONAL
A112: ARCHIVO GENERAL DE LA NACION (AGN) | B112: INTERIOR | C112: NACIONAL
A113: CORPORACION NASA KIWE (NASA KIWE) | B113: INTERIOR | C113: NACIONAL
A114: DEFENSA CIVIL COLOMBIANA (DCC) | B114: INTERIOR | C114: NACIONAL
A115: DIRECCION NACIONAL DE BOMBEROS | B115: INTERIOR | C115: NACIONAL
A116: DIRECCION NACIONAL DEL DERECHO DE AUTOR (DNDA) | B116: INTERIOR | C116: NACIONAL
A117: IMPRENTA NACIONAL DE COLOMBIA (INC) | B117: INTERIOR | C117: NACIONAL
A118: MINISTERIO DEL INTERIOR (MININTERIOR) | B118: INTERIOR | C118: NACIONAL
A119: UNIDAD NACIONAL DE PROTECCION (UNP) | B119: INTERIOR | C119: NACIONAL
A120: AGENCIA NACIONAL DE DEFENSA JURIDICA DEL ESTADO (ANDJE) | B120: JUSTICIA Y DEL DERECHO | C120: NACIONAL
A121: INSTITUTO NACIONAL PENITENCIARIO Y CARCELARIO (INPEC) | B121: JUSTICIA Y DEL DERECHO | C121: NACIONAL
A122: MINISTERIO DE JUSTICIA Y DEL DERECHO (MINJUSTICIA) | B122: JUSTICIA Y DEL DERECHO | C122: NACIONAL
A123: NARIÑO - ESTABLECIMIENTO DE MEDIANA SEGURIDAD Y CARCELARIO - LA UNION | B123: JUSTICIA Y DEL DERECHO | C123: NACIONAL
A124: SUPERINTENDENCIA DE NOTARIADO Y REGISTRO (SUPERNOTARIADO) | B124: JUSTICIA Y DEL DERECHO | C124: NACIONAL
A125: UNIDAD DE SERVICIOS PENITENCIARIOS Y CARCELARIOS (UPSEC) | B125: JUSTICIA Y DEL DERECHO | C125: NACIONAL
A126: AGENCIA NACIONAL DE HIDROCARBUROS (ANH) | B126: MINAS Y ENERGIA | C126: NACIONAL
A127: AGENCIA NACIONAL DE MINERIA (ANM) | B127: MINAS Y ENERGIA | C127: NACIONAL
A128: BOGOTA D.C. - INTERNEXA S.A. E.S.P. | B128: MINAS Y ENERGIA | C128: NACIONAL
A129: BOGOTA D.C. - ISAGEN - EMPRESA COLOMBIANA DE GENERACION S.A. E.S.P. | B129: MINAS Y ENERGIA | C129: NACIONAL
A130: BOGOTA D.C. - OLEODUCTO CENTRAL S.A. - OCENSA | B130: MINAS Y ENERGIA | C130: NACIONAL
A131: BOGOTA D.C. - TRANSELCA S.A. E.S.P. | B131: MINAS Y ENERGIA | C131: NACIONAL
A132: BOLIVAR - REFINERIA DE CARTAGENA S.A | B132: MINAS Y ENERGIA | C132: NACIONAL
A133: CREG - COMISION DE REGULACION DE ENERGIA Y GAS | B133: MINAS Y ENERGIA | C133: NACIONAL
A134: ECOPETROL - EMPRESA COLOMBIANA DE PETROLEOS | B134: MINAS Y ENERGIA | C134: NACIONAL
A135: INSTITUTO DE PLANIFICACION Y PROMOCION DE SOLUCIONES ENERGETICAS PARA LAS ZONAS NO INTERCONECTADAS (IPSE) | B135: MINAS Y ENERGIA | C135: NACIONAL
A136: MINISTERIO DE MINAS Y ENERGIA (MINMINAS) | B136: MINAS Y ENERGIA | C136: NACIONAL
A137: SERVICIO GEOLOGICO COLOMBIANO (SGC) | B137: MINAS Y ENERGIA | C137: NACIONAL
A138: UNIDAD DE PLANEACION MINERO ENERGETICA (UPME) | B138: MINAS Y ENERGIA | C138: NACIONAL
A139: CONSEJO PROFESIONAL NACIONAL DE ARQUITECTURA Y SUS PROFESIONES AUXILIARES | B139: TERRITORIAL | C139: NACIONAL
A140: CONSEJO PROFESIONAL NACIONAL DE INGENIERIA - COPNIA | B140: TERRITORIAL | C140: NACIONAL
A141: FONPRECON - FONDO DE PREVISION SOCIAL DEL CONGRESO DE LA REPUBLICA | B141: TERRITORIAL | C141: NACIONAL
A142: INSTITUTO DE ESTUDIOS DEL MINISTERIO PUBLICO | B142: TERRITORIAL | C142: NACIONAL
A143: AGENCIA NACIONAL DE CONTRATACION PUBLICA (COLOMBIA COMPRA EFICIENTE) | B143: PLANEACION | C143: NACIONAL
A144: DEPARTAMENTO NACIONAL DE PLANEACION (DNP) | B144: PLANEACION | C144: NACIONAL
A145: FONDO FINANCIERO DE PROYECTOS DE DESARROLLO (FONADE) | B145: PLANEACION | C145: NACIONAL
A146: FONDO NACIONAL DE REGALIAS | B146: PLANEACION | C146: NACIONAL
A147: SUPERINTENDENCIA DE SERVICIOS PUBLICOS DOMICILIARIOS (SSPD) | B147: PLANEACION | C147: NACIONAL
A148: AGENCIA COLOMBIANA PARA LA REINTEGRACION DE PERSONAS Y GRUPOS ALZADOS EN ARMAS (ACR) | B148: PRESIDENCIA DE LA REPUBLICA | C148: NACIONAL
A149: AGENCIA PRESIDENCIAL DE COOPERACION INTERNACIONAL DE COLOMBIA (APC) | B149: PRESIDENCIA DE LA REPUBLICA | C149: NACIONAL
A150: BOGOTA D.C. - EMPRESA NACIONAL DE RENOVACION Y DESARROLLO URBANO VIRGILIO BARCO VARGAS SAS | B150: PRESIDENCIA DE LA REPUBLICA | C150: NACIONAL
A151: DEPARTAMENTO ADMINISTRATIVO DE LA PRESIDENCIA DE LA REPUBLICA (DAPRE) | B151: PRESIDENCIA DE LA REPUBLICA | C151: NACIONAL
A152: FINANCIERA DE DESARROLLO NACIONAL S.A. | B152: PRESIDENCIA DE LA REPUBLICA | C152: NACIONAL
A153: ONAC - ORGANISMO NACIONAL DE ACREDITACION DECOLOMBIA | B153: PRESIDENCIA DE LA REPUBLICA | C153: NACIONAL
A154: UNIDAD NACIONAL PARA LA GESTION DEL RIESGO DE DESASTRES (UNGRD) | B154: PRESIDENCIA DE LA REPUBLICA | C154: NACIONAL
A155: CONSEJO SUPERIOR DE LA JUDICATURA | B155: RAMA JUDICIAL | C155: NACIONAL
A156: RAMA JUDICIAL | B156: RAMA JUDICIAL | C156: NACIONAL
A157: CAMARA DE REPRESENTANTES | B157: RAMA LEGISLATIVA | C157: NACIONAL
A158: CONGRESO DE LA REPUBLICA (SENADO) | B158: RAMA LEGISLATIVA | C158: NACIONAL
A159: REGISTRADURIA NACIONAL DEL ESTADO CIVIL (RNEC) | B159: REGISTRADURIA | C159: NACIONAL
A160: FONDO ROTATORIO DEL MINISTERIO DE RELACIONES EXTERIORES | B160: RELACIONES EXTERIORES | C160: NACIONAL
A161: MIGRACION COLOMBIA (MC) | B161: RELACIONES EXTERIORES | C161: NACIONAL
A162: MINISTERIO DE RELACIONES EXTERIORES (CANCILLERIA) | B162: RELACIONES EXTERIORES | C162: NACIONAL
A163: FONDO NACIONAL DE ESTUPEFACIENTES | B163: SALUD Y PROTECCION SOCIAL | C163: NACIONAL
A164: FONDO PASIVO SOCIAL DE FERROCARRILES NACIONALES DE COLOMBIA (FPS) | B164: SALUD Y PROTECCION SOCIAL | C164: NACIONAL
A165: INSTITUTO DE EVALUACION TECNOLOGICA EN SALUD IETS | B165: SALUD Y PROTECCION SOCIAL | C165: NACIONAL
A166: INSTITUTO NACIONAL DE CANCEROLOGIA | B166: SALUD Y PROTECCION SOCIAL | C166: NACIONAL
A167: INSTITUTO NACIONAL DE SALUD (INS) | B167: SALUD Y PROTECCION SOCIAL | C167: NACIONAL
A168: INSTITUTO NACIONAL DE VIGILANCIA DE MEDICAMENTOS Y ALIMENTOS (INVIMA) | B168: SALUD Y PROTECCION SOCIAL | C168: NACIONAL
A169: MINISTERIO DE SALUD Y PROTECCION SOCIAL (MINSALUD) | B169: SALUD Y PROTECCION SOCIAL | C169: NACIONAL
A170: SUPERINTENDENCIA NACIONAL DE SALUD (SUPERSALUD) | B170: SALUD Y PROTECCION SOCIAL | C170: NACIONAL
A171: AGENCIA NACIONAL DEL ESPECTRO (ANE) | B171: TECNOLOGIAS DE LA INFORMACION Y LAS COMUNICACIONES | C171: NACIONAL
A172: AUTORIDAD NACIONAL DE TELEVISION (ANTV) | B172: TECNOLOGIAS DE LA INFORMACION Y LAS COMUNICACIONES | C172: NACIONAL
A173: CAPRECOM - CAJA DE PREVISION SOCIAL DE COMUNICACIONES | B173: TECNOLOGIAS DE LA INFORMACION Y LAS COMUNICACIONES | C173: NACIONAL
A174: CINTEL - CENTRO DE INVESTIGACION DE LAS TELECOMUNICACIONES | B174: TECNOLOGIAS DE LA INFORMACION Y LAS COMUNICACIONES | C174: NACIONAL
A175: COMPUTADORES PARA EDUCAR | B175: TECNOLOGIAS DE LA INFORMACION Y LAS COMUNICACIONES | C175: NACIONAL
A176: CRC - COMISION DE REGULACION DE COMUNICACIONES | B176: TECNOLOGIAS DE LA INFORMACION Y LAS COMUNICACIONES | C176: NACIONAL
A177: FONDO DE LAS TECNOLOGIAS DE LA INFORMACION Y LAS COMUNICACIONES | B177: TECNOLOGIAS DE LA INFORMACION Y LAS COMUNICACIONES | C177: NACIONAL
A178: MINISTERIO DE TECNOLOGIAS DE LA INFORMACON Y LAS COMUNICACIONES (MINTIC) | B178: TECNOLOGIAS DE LA INFORMACION Y LAS COMUNICACIONES | C178: NACIONAL
A179: RTVC - RADIO TELEVISION NACIONAL DE COLOMBIA | B179: TECNOLOGIAS DE LA INFORMACION Y LAS COMUNICACIONES | C179: NACIONAL
A180: SERVICIOS POSTALES NACIONALES | B180: TECNOLOGIAS DE LA INFORMACION Y LAS COMUNICACIONES | C180: NACIONAL
A181: SOCIEDAD TELEVISION DE CALDAS, RISARALDA Y QUINDIO LTDA. - TELECAFE | B181: TECNOLOGIAS DE LA INFORMACION Y LAS COMUNICACIONES | C181: NACIONAL
A182: SOCIEDAD TELEVISION DEL PACIFICO LTDA. - TELEPACIFICO | B182: TECNOLOGIAS DE LA INFORMACION Y LAS COMUNICACIONES | C182: NACIONAL
A183: TEVEANDINA LTDA | B183: TECNOLOGIAS DE LA INFORMACION Y LAS COMUNICACIONES | C183: NACIONAL
A184: MINISTERIO DEL TRABAJO (MINTRABAJO) | B184: TRABAJO | C184: NACIONAL
A185: ORGANIZACIONES SOLIDARIAS (OS) | B185: TRABAJO | C185: NACIONAL
A186: SERVICIO NACIONAL DE APRENDIZAJE (SENA) | B186: TRABAJO | C186: NACIONAL
A187: SERVICIO PUBLICO DE EMPLEO (REDEMPLEO) | B187: TRABAJO | C187: NACIONAL
A188: SUPERINTENDENCIA DEL SUBSIDIO FAMILIAR | B188: TRABAJO | C188: NACIONAL
A189: AERONAUTICA CIVIL (AEROCIVIL) | B189: TRANSPORTE | C189: NACIONAL
A190: AGENCIA NACIONAL DE INFRAESTRUCTURA (ANI) | B190: TRANSPORTE | C190: NACIONAL
A191: INSTITUTO NACIONAL DE VIAS (INVIAS) | B191: TRANSPORTE | C191: NACIONAL
A192: MINISTERIO DE TRANSPORTE (MINTRANSPORTE) | B192: TRANSPORTE | C192: NACIONAL
A193: RISARALDA - AEROPUERTO INTERNACIONAL MATECAÑA DE PEREIRA | B193: TRANSPORTE | C193: NACIONAL
A194: SATENA - SERVICIO AEREO A TERRITORIOS NACIONALES | B194: TRANSPORTE | C194: NACIONAL
A195: SUPERINTENDENCIA DE PUERTOS Y TRANSPORTE | B195: TRANSPORTE | C195: NACIONAL
A196: FONDO NACIONAL DE AHORRO | B196: VIVIENDA, CIUDAD Y TERRITORIO | C196: NACIONAL
A197: MINISTERIO DE VIVIENDA, CIUDAD Y TERRITORIO (MINVIVIENDA) | B197: VIVIENDA, CIUDAD Y TERRITORIO | C197: NACIONAL
A198: ANTIOQUIA - AREA METROPOLITANA DEL VALLE DE ABURRA - MEDELLIN | B198: TERRITORIAL | C198: TERRITORIAL
A199: ATLANTICO - AREA METROPOLITANA DE BARRANQUILLA | B199: TERRITORIAL | C199: TERRITORIAL
A200: CESAR - AREA METROPOLITANA DEL VALLE DEL CACIQUE UPAR - METROPOLIUPAR | B200: TERRITORIAL | C200: TERRITORIAL
... 4244 more rows

Sheet Dashboard General
E2: INDICADORES DEL SISTEMA DE COMPRA PÚBLICA COLOMBIANO | O2: Versión 1.0
O3: =+TODAY() -> 2017-02-09
B10: Tablero General
B16: VALOR POR DINERO
B19: Indicador 1 | H19: Indicador 2
B20: Oportunidad de la contratación | H20: Modificaciones sobre el valor del contrato según los pliegos
H21: 7
H22: =+INDEX('Indicador 2'!J5:J16,$H$21) -> 9905.4283
B36: Indicador 6 | K36: Indicador 7
B37: Tiempo promedio de selección por modalidad de contratación | K37: Nivel de apropiación de AMP
B58: Indicador 8
B59: Ahorro promedio por AMP
B60: 4
B61: =+INDEX('Indicador 8'!H5:H16,$B$60) -> 4481441856
B74: =+INDEX('Indicador 8'!G5:G15,$B$60) -> Combustible (Bogotá) I
B76: INTEGRIDAD Y TRANSPARENCIA EN LA COMPETENCIA
B79: Indicador 11
B80: Concentración de la contratación por valor de contratos
B101: Indicador 13
B102: Porcentaje de adjudicación a proponentes temporales y consorcios
B120: Porcentaje por número de contratos | J120: Porcentaje por valor de contratos
B123: Indicador 16
B124: Porcentaje de contratos que se adjudicaron mediante un proceso competitivo
B144: RENDICION DE CUENTAS
B147: Indicador 17 | G147: Indicador 18
B148: Porcentaje de entidades usuarias activas SECOP II | G148: Porcentaje de entidades que publican su PAA
B149: 7 | G149: 7
B150: =+INDEX('[1]Indicador 8'!B115:B139,$B$60) -> 0 | G150: =+INDEX('[1]Indicador 8'!G115:G139,$B$60) -> 0

Sheet Indicador 1
A1: https://www.dnp.gov.co/programas/inversiones-y-finanzas-publicas/Datos-y-Estadisticas/Paginas/presupuesto-de-inversi%C3%B3n.aspx
B2: Total PGN | D2: Gastos Personal + Transferencias + Deuda | F2: Diferencia | H2: Cociente (Indicador)
B3: (1) | C3: (2) | D3: (3) | E3: (4) | F3: (5) = (1) - (3) | G3: (6) = (2) - (4) | H3: (6)/(5)
J4: PROMEDIO DE ENTIDADES | K4: 0.9608
B5: Apropiacion Vigente | C5: Compromisos | D5: Apropiacion Vigente | E5: Compromisos | F5: Apropiacion Vigente | G5: Compromisos | H5: INDICADOR
A6: Etiquetas de fila | B6: Suma de Vigente | C6: Suma de Compromisos | K6: Real | L6: En gráfico
A7: AGRICULTURA Y DESARROLLO RURAL | B7: 3461803003399 | C7: 3.274401503e+12 | D7: 330803351140 | E7: 2.864518649e+11 | F7: 3130999652259 | G7: 2.987949638e+12 | H7: =+G7/F7 -> 0.9543117119 | J7: Porcentaje alcanzado: | K7: =+K4 -> 0.9608 | L7: =MIN(K7/2, 50%) -> 0.4804
A8: AUTORIDAD NACIONAL DE ACUICULTURA Y PESCA - AUNAP | B8: 41348333334 | C8: 4.008842959e+10 | D8: 7969600000 | E8: 7296177805 | F8: 33378733334 | G8: 3.279225178e+10 | H8: =+G8/F8 -> 0.9824294845 | J8: Porcentaje restante: | K8: =IF(K7<=100%, 100%-K7, 0%) -> 0.0392 | L8: =K8/2 -> 0.0196
A9: INSTITUTO COLOMBIANO AGROPECUARIO (ICA) | B9: 255447492680 | C9: 2.271849517e+11 | D9: 91997142166 | E9: 7.416711211e+10 | F9: 163450350514 | G9: 1.530178396e+11 | H9: =+G9/F9 -> 0.9361732116 | J9: Porcentaje Total: | K9: =K7+K8 -> 1 | L9: =L7+L8 -> 0.5
A10: INSTITUTO COLOMBIANO DE DESARROLLO RURAL - INCODER | B10: 427546234707 | C10: 4.181128815e+11 | D10: 44151608974 | E10: 3.865136613e+10 | F10: 383394625733 | G10: 3.794615153e+11 | H10: 0.9897413523
A11: MINAGRICULTURA - GESTION GENERAL | B11: 2561116992200 | C11: 2.421347144e+12 | D11: 150226600000 | E11: 1.333085135e+11 | F11: 2410890392200 | G11: 2.28803863e+12 | H11: 0.9490429916
A12: UNIDAD ADMINISTRATIVA ESPECIAL DE GESTION DE RESTITUCION DE TIERRAS DESPOJADAS | B12: 162021850478 | C12: 1.543833553e+11 | D12: 30218700000 | E12: 27710472047 | F12: 131803150478 | G12: 1.266728833e+11 | H12: 0.9610762932
A13: UNIDAD DE PLANIFICACION DE TIERRAS RURALES, ADECUACION DE TIERRAS Y USOS AGROPECUARIOS UPRA | B13: 14322100000 | C13: 13284741267 | D13: 6239700000 | E13: 5318223283 | F13: 8082400000 | G13: 7966517984 | H13: 0.985662425
A14: AMBIENTE Y DESARROLLO SOSTENIBLE | B14: =SUM(B15:B19) -> 391926491299 | C14: 3.653938557e+11 | D14: 1.659444799e+11 | E14: 1.547839469e+11 | F14: 2.259820114e+11 | G14: 2.106099088e+11 | H14: 0.9319764322
A15: AUTORIDAD NACIONAL DE LICENCIAS AMBIENTALES ANLA | B15: 27011626000 | C15: 2.344070288e+10 | D15: 1.635585201e+10 | E15: 1.571422646e+10 | F15: 1.065577399e+10 | G15: 7726476420 | H15: 0.7250976257
A16: FONAM - GESTION GENERAL | B16: 61108757000 | C16: 5.156915034e+10 | D16: 27090957000 | E16: 1.899466468e+10 | F16: 34017800000 | G16: 3.257448565e+10 | H16: 0.9575717904
A17: INSTITUTO DE HIDROLOGIA, METEOROLOGIA Y ESTUDIOS AMBIENTALES- IDEAM | B17: 67684967860 | C17: 6.351944753e+10 | D17: 26127904849 | E17: 2.547057343e+10 | F17: 41557063011 | G17: 3.80488741e+10 | H17: 0.915581404
A18: MINISTERIO DE AMBIENTE Y DESARROLLO SOSTENIBLE - GESTION GENERAL | B18: 169285894439 | C18: 1.621222356e+11 | D18: 70618813000 | E18: 6.945111385e+10 | F18: 98667081439 | G18: 9.26711217e+10 | H18: 0.9392303933
A19: PARQUES NACIONALES NATURALES DE COLOMBIA | B19: 66835246000 | C19: 6.474231936e+10 | D19: 25750953000 | E19: 25153368476 | F19: 41084293000 | G19: 3.958895088e+10 | H19: 0.9636030704
A20: CORPORACIONES AUTONOMAS REGIONALES - CAR | B20: 589780342128 | C20: 5.506301662e+11 | D20: 2.303911919e+11 | E20: 218185895176 | F20: 3.593891503e+11 | G20: 3.32444271e+11 | H20: 0.9250258968
A21: CORPORACION PARA EL DESARROLLO SOSTENIBLE DE LA MOJANA Y EL SAN JORGE - CORPOMOJANA | B21: 6656279257 | C21: 6506165268 | D21: 2201666272 | E21: 2145943371 | F21: 4454612985 | G21: 4360221897 | H21: 0.9788104851
A22: CORPORACION PARA EL DESARROLLO SOSTENIBLE DEL NORTE Y ORIENTE DE LA AMAZONIA - CDA | B22: 7516495319 | C22: 7273344055 | D22: 2891931887 | E22: 2682242592 | F22: 4624563432 | G22: 4591101463 | H22: 0.9927642967
A23: CORPORACION AUTONOMA REGIONAL DE BOYACA (CORPOBOYACA) | B23: 4519271000 | C23: 4507631760 | D23: 1640858000 | E23: 1640071519 | F23: 2878413000 | G23: 2867560241 | H23: 0.9962296033
A24: CORPORACION AUTONOMA REGIONAL DE CALDAS (CORPOCALDAS) | B24: 2812963000 | C24: 2812963000 | D24: 2812963000 | E24: 2812963000 | F24: 0 | G24: 0
A25: CORPORACION AUTONOMA REGIONAL DE CHIVOR (CORPOCHIVOR) | B25: 5184026704 | C25: 5104197990 | D25: 1698888521 | E25: 1634837615 | F25: 3485138183 | G25: 3469360375 | H25: 0.9954728314
A26: CORPORACION AUTONOMA REGIONAL DE CUNDINAMARCA - CAR | B26: 18000000000 | C26: 18000000000 | D26: 0 | E26: 0 | F26: 18000000000 | G26: 18000000000 | H26: 1
A27: CORPORACION AUTONOMA REGIONAL DE LA FRONTERA NORORIENTAL (CORPONOR) | B27: 2769396000 | C27: 2769396000 | D27: 2769396000 | E27: 2769396000 | F27: 0 | G27: 0
A28: CORPORACION AUTONOMA REGIONAL DE LA GUAJIRA (CORPOGUAJIRA) | B28: 7836972740 | C28: 7523951181 | D28: 2624691191 | E28: 2621851433 | F28: 5212281549 | G28: 4902099748 | H28: 0.9404902061
A29: CORPORACION AUTONOMA REGIONAL DE LA ORINOQUIA (CORPORINOQUIA) | B29: 7880183293 | C29: 1638497000 | D29: 1547477000 | E29: 1547477000 | F29: 6332706293 | G29: 91020000 | H29: 0.01437300197
A30: CORPORACION AUTONOMA REGIONAL DE LOS VALLES DEL SINU Y SAN JORGE (CVS) | B30: 22525337811 | C30: 22391436814 | D30: 1646126000 | E30: 1630422981 | F30: 20879211811 | G30: 20761013833 | H30: 0.9943389636
A31: CORPORACION AUTONOMA REGIONAL DE NARINO (CORPONARINO) | B31: 4144813652 | C31: 4064463251 | D31: 1954332772 | E31: 1899642081 | F31: 2190480880 | G31: 2164821170 | H31: 0.9882858098
A32: CORPORACION AUTONOMA REGIONAL DE RISARALDA (CARDER) | B32: 2018472000 | C32: 2017443999 | D32: 1870154000 | E32: 1869126000 | F32: 148318000 | G32: 148317999 | H32: 0.9999999933
A33: CORPORACION AUTONOMA REGIONAL DE SANTANDER (CAS) | B33: 4393687439 | C33: 4388814131 | D33: 3029850775 | E33: 3025291089 | F33: 1363836664 | G33: 1363523042 | H33: 0.9997700443
A34: CORPORACION AUTONOMA REGIONAL DE SUCRE (CARSUCRE) | B34: 6326110633 | C34: 6277319585 | D34: 1967439963 | E34: 1965879003 | F34: 4358670670 | G34: 4311440582 | H34: 0.9891641072
A35: CORPORACION AUTONOMA REGIONAL DEL ALTO MAGDALENA (CAM) | B35: 3698748000 | C35: 3355059474 | D35: 1771892000 | E35: 1732819690 | F35: 1926856000 | G35: 1622239784 | H35: 0.841910233
A36: CORPORACION AUTONOMA REGIONAL DEL ATLANTICO - CRA | B36: 11616662239 | C36: 1.095531666e+10 | D36: 1632807000 | E36: 1624611000 | F36: 9983855239 | G36: 9330705662 | H36: 0.9345794223
A37: CORPORACION AUTONOMA REGIONAL DEL CANAL DEL DIQUE (CARDIQUE) | B37: 1843394000 | C37: 1777394000 | D37: 1793589000 | E37: 1727589000 | F37: 49805000 | G37: 49805000 | H37: 1
A38: CORPORACION AUTONOMA REGIONAL DEL CAUCA (CRC) | B38: 4206182000 | C38: 4206182000 | D38: 4206182000 | E38: 4206182000 | F38: 0 | G38: 0
A39: CORPORACION AUTONOMA REGIONAL DEL CENTRO DE ANTIOQUIA (CORANTIOQUIA) | B39: 1858625000 | C39: 1857051051 | D39: 1858625000 | E39: 1857051051 | F39: 0 | G39: 0
A40: CORPORACION AUTONOMA REGIONAL DEL CESAR (CORPOCESAR) | B40: 4132856627 | C40: 4132856627 | D40: 2119936483 | E40: 2119936483 | F40: 2012920144 | G40: 2012920144 | H40: 1
A41: CORPORACION AUTONOMA REGIONAL DEL GUAVIO (CORPOGUAVIO) | B41: 2805251921 | C41: 2789611366 | D41: 381185872 | E41: 381185872 | F41: 2424066049 | G41: 2408425494 | H41: 0.9935478016
A42: CORPORACION AUTONOMA REGIONAL DEL MAGDALENA (CORPAMAG) | B42: 23878871656 | C42: 2.366692703e+10 | D42: 3492236000 | E42: 3417993860 | F42: 20386635656 | G42: 2.024893317e+10 | H42: 0.9932454529
A43: CORPORACION AUTONOMA REGIONAL DEL QUINDIO (CRQ) | B43: 4288113000 | C43: 3870330698 | D43: 3980715000 | E43: 3625858198 | F43: 307398000 | G43: 244472500 | H43: 0.7952963259
A44: CORPORACION AUTONOMA REGIONAL DEL SUR DE BOLIVAR (CSB) | B44: 1974650000 | C44: 1973572511 | D44: 1920170000 | E44: 1919092511 | F44: 54480000 | G44: 54480000 | H44: 1
A45: CORPORACION AUTONOMA REGIONAL DEL TOLIMA (CORTOLIMA) | B45: 1589297000 | C45: 1558297000 | D45: 1476137000 | E45: 1445137000 | F45: 113160000 | G45: 113160000 | H45: 1
A46: CORPORACION AUTONOMA REGIONAL PARA EL DESARROLLO SOSTENIBLE DEL CHOCO - CODECHOCO | B46: 6407469951 | C46: 6185432488 | D46: 2253213414 | E46: 2252922141 | F46: 4154256537 | G46: 3932510347 | H46: 0.9466219315
A47: CORPORACION AUTONOMA REGIONAL PARA LA DEFENSA DE LA MESETA DE BUCARAMANGA CDMB | B47: 2846936137 | C47: 2846827393 | D47: 0 | E47: 0 | F47: 2846936137 | G47: 2846827393 | H47: 0.9999618031
A48: CORPORACION PARA EL DESARROLLO SOSTENIBLE DEL ARCHIPIELAGO DE SAN ANDRES, PROVIDENCIA Y SANTA CATALINA - CORALINA | B48: 6401737173 | C48: 4892428910 | D48: 1871287950 | E48: 1815535212 | F48: 4530449223 | G48: 3076893698 | H48: 0.6791586324
A49: CORPORACION PARA EL DESARROLLO SOSTENIBLE DEL AREA DE MANEJO ESPECIAL LA MACARENA - CORMACARENA | B49: 4921163979 | C49: 4917882179 | D49: 2224129675 | E49: 2224129675 | F49: 2697034304 | G49: 2693752504 | H49: 0.998783182
A50: CORPORACION PARA EL DESARROLLO SOSTENIBLE DEL SUR DE LA AMAZONIA - CORPOAMAZONIA | B50: 4249637923 | C50: 2425271747 | D50: 1623355783 | E50: 1621286455 | F50: 2626282140 | G50: 803985292 | H50: 0.3061305866
A51: CORPORACION PARA EL DESARROLLO SOSTENIBLE DEL URABA - CORPOURABA | B51: 8550245375 | C51: 8550245375 | D51: 3185474442 | E51: 3185474442 | F51: 5364770933 | G51: 5364770933 | H51: 1
A52: CIENCIA, TECNOLOGIA E INNOVACION | B52: 376768072066 | C52: 3.731242158e+11 | D52: 19656000000 | E52: 18128102769 | F52: 357112072066 | G52: 3.54996113e+11 | H52: 0.994074804
A53: DEPARTAMENTO ADMINISTRATIVO DE LA CIENCIA, TECNOLOGIA E INNOVACION - GESTION GENERAL | B53: 376768072066 | C53: 3.731242158e+11 | D53: 19656000000 | E53: 18128102769 | F53: 357112072066 | G53: 3.54996113e+11 | H53: 0.994074804
A54: COMERCIO, INDUSTRIA Y TURISMO | B54: 902572983982 | C54: 8.448233571e+11 | D54: 335980222177 | E54: 2.857284008e+11 | F54: 566592761805 | G54: 5.590949563e+11 | H54: 0.9867668526
A55: INSTITUTO NACIONAL DE METROLOGIA - INM | B55: 21197500000 | C55: 1.951862776e+10 | D55: 8943434900 | E55: 7746835488 | F55: 12254065100 | G55: 1.177179228e+10 | H55: 0.9606438499
A56: MINCOMERCIO INDUSTRIA TURISMO - ARTESANIAS DE COLOMBIA S.A. | B56: 27621800000 | C56: 2.744168098e+10 | D56: 7047500000 | E56: 6958594558 | F56: 20574300000 | G56: 2.048308642e+10 | H56: 0.9955666255
A57: MINCOMERCIO INDUSTRIA TURISMO - DIRECCION GENERAL DE COMERCIO EXTERIOR | B57: 17071204000 | C57: 1.360370923e+10 | D57: 11598591000 | E57: 8820809653 | F57: 5472613000 | G57: 4782899577 | H57: 0.8739699988
A58: MINCOMERCIO INDUSTRIA TURISMO - GESTION GENERAL | B58: 605369642678 | C58: 5.612069806e+11 | D58: 157429957412 | E58: 1.172049262e+11 | F58: 447939685266 | G58: 4.440020543e+11 | H58: 0.9912094618
A59: SUPERINTENDENCIA DE INDUSTRIA Y COMERCIO | B59: 105779105362 | C59: 1.022689515e+11 | D59: 47826160000 | E59: 4.513089685e+10 | F59: 57952945362 | G59: 5.713805462e+10 | H59: 0.9859387518
A60: SUPERINTENDENCIA DE SOCIEDADES | B60: 119064231942 | C60: 1.144403953e+11 | D60: 98113530000 | E60: 9.491184918e+10 | F60: 20950701942 | G60: 1.952854616e+10 | H60: 0.9321189433
A61: UNIDAD ADMINISTRATIVA ESPECIAL JUNTA CENTRAL CONTADORES | B61: 6469500000 | C61: 6343011775 | D61: 5021048865 | E61: 4954488897 | F61: 1448451135 | G61: 1388522878 | H61: 0.9586259726
A62: TECNOLOGIAS DE LA INFORMACION Y LAS COMUNICACIONES | B62: 2040420543842 | C62: 1.858279713e+12 | D62: 523712330537 | E62: 3.925413654e+11 | F62: 1516708213305 | G62: 1.465738348e+12 | H62: 0.9663944159
A63: AGENCIA NACIONAL DEL ESPECTRO - ANE | B63: 25644823149 | C63: 2.506122059e+10 | D63: 7779102552 | E63: 7701492999 | F63: 17865720597 | G63: 1.735972759e+10 | H63: 0.9716779962
A64: AUTORIDAD NACIONAL DE TELEVISION ANTV | B64: 244648000000 | C64: 1.791659933e+11 | D64: 58852847593 | E64: 11110990496 | F64: 185795152407 | G64: 1.680550028e+11 | H64: 0.9045176937
A65: FONDO DE TECNOLOGIAS DE LA INFORMACION Y LAS COMUNICACIONES | B65: 1648301320608 | C65: 1.588901976e+12 | D65: 347777855307 | E65: 3.206454339e+11 | F65: 1300523465301 | G65: 1.268256542e+12 | H65: 0.9751892799
A66: MINISTERIO DE TECNOLOGIAS DE LA INFORMACION Y LAS COMUNICACIONES - GESTION GENERAL | B66: 102050700085 | C66: 4.621958178e+10 | D66: 100280325085 | E66: 4.444920678e+10 | F66: 1770375000 | G66: 1770375000 | H66: 1
A67: MINISTERIO DE TECNOLOGIAS DE LA INFORMACION Y LAS COMUNICACIONES - UNIDAD ADMINISTRATIVA ESPECIAL COMISION DE REGULACION DE COMUNICACIONES | B67: 19775700000 | C67: 1.89309421e+10 | D67: 9022200000 | E67: 8634241296 | F67: 10753500000 | G67: 1.02967008e+10 | H67: 0.9575208818
A68: CONGRESO DE LA REPUBLICA | B68: 471858594278 | C68: 4.549028597e+11 | D68: 351677500000 | E68: 3.443301161e+11 | F68: 120181094278 | G68: 1.105727436e+11 | H68: 0.9200510635
A69: CONGRESO DE LA REPUBLICA - CAMARA DE REPRESENTANTES - GESTION GENERAL | B69: 260860504000 | C69: 2.526301118e+11 | D69: 207879000000 | E69: 2.047256379e+11 | F69: 52981504000 | G69: 4.790447391e+10 | H69: 0.9041735377
A70: CONGRESO DE LA REPUBLICA SENADO GESTION GENERAL | B70: 210998090278 | C70: 2.022727478e+11 | D70: 143798500000 | E70: 1.396044781e+11 | F70: 67199590278 | G70: 6.26682697e+10 | H70: 0.9325692231
A71: CULTURA | B71: 393155245506 | C71: 3.907334323e+11 | D71: 176412916341 | E71: 1.750600275e+11 | F71: 216742329165 | G71: 2.156734048e+11 | H71: 0.9950682252
A72: ARCHIVO GENERAL DE LA NACION | B72: 19310586712 | C72: 1.8322875e+10 | D72: 7576098632 | E72: 6908520613 | F72: 11734488080 | G72: 1.141435439e+10 | H72: 0.9727185636
A73: INSTITUTO CARO Y CUERVO | B73: 9246655596 | C73: 8967588178 | D73: 4515924947 | E73: 4293135669 | F73: 4730730649 | G73: 4674452508 | H73: =+G73/F73 -> 0.9881037106
A74: INSTITUTO COLOMBIANO DE ANTROPOLOGIA E HISTORIA | B74: 9726336829 | C74: 9207985049 | D74: 4012001779 | E74: 3681550514 | F74: 5714335050 | G74: 5526434535 | H74: 0.9671176937
A75: MINISTERIO DE CULTURA - GESTION GENERAL | B75: 354871666369 | C75: 3.542349841e+11 | D75: 160308890983 | E75: 1.601768207e+11 | F75: 194562775386 | G75: 1.940581634e+11 | H75: 0.9974064308
A76: DEFENSA NACIONAL | B76: 2.70399698e+13 | C76: 2.675772212e+13 | D76: 1.855882204e+13 | E76: 1.844035575e+13 | F76: 8.481147762e+12 | G76: 8.317366367e+12 | H76: 0.9806887701
A77: AGENCIA LOGISTICA DE LAS FUERZAS MILITARES | B77: 939967000000 | C77: 8.580396273e+11 | D77: 50436000000 | E77: 4.269084646e+10 | F77: 889531000000 | G77: 8.153487808e+11 | H77: 0.9166052457
A78: CAJA DE RETIRO DE LAS FUERZAS MILITARES | B78: 1959819500000 | C78: 1.933354823e+12 | D78: 1946011000000 | E78: 1919680235312 | F78: 13808500000 | G78: 1.367458749e+10 | H78: 0.9903021679
A79: CAJA DE SUELDOS DE RETIRO DE LA POLICIA NACIONAL | B79: 2241021000000 | C79: 2.229828572e+12 | D79: 2231431000000 | E79: 2.221499721e+12 | F79: 9590000000 | G79: 8328850210 | H79: 0.868493244
A80: CLUB MILITAR DE OFICIALES | B80: 40179000000 | C80: 3.836929217e+10 | D80: 9936000000 | E80: 8375851057 | F80: 30243000000 | G80: 2.999344111e+10 | H80: 0.9917482098
A81: DEFENSA CIVIL COLOMBIANA, GUILLERMO LEON VALENCIA | B81: 24639000000 | C81: 2.217512806e+10 | D81: 21522000000 | E81: 1.910791352e+10 | F81: 3117000000 | G81: 3067214533 | H81: 0.9840277616
A82: FONPOLICIA - GESTION GENERAL | B82: 386385986890 | C82: 3.575594516e+11 | D82: 9234513242 | E82: 7937109736 | F82: 3.771514736e+11 | G82: 3.496223418e+11 | H82: 0.9270077575
A83: HOSPITAL MILITAR | B83: 232984900000 | C83: 2.032910778e+11 | D83: 78385000000 | E83: 66982336390 | F83: 154599900000 | G83: 1.363087414e+11 | H83: 0.8816871251
A84: INSTITUTO CASAS FISCALES DEL EJERCITO | B84: 71170000000 | C84: 6.868632725e+10 | D84: 4544419000 | E84: 3617478810 | F84: 66625581000 | G84: 6.506884844e+10 | H84: 0.9766346119
A85: MINISTERIO DE DEFENSA NACIONAL - ARMADA | B85: 1848222086515 | C85: 1.842324753e+12 | D85: 916334200000 | E85: 9.149295898e+11 | F85: 931887886515 | G85: 9.273951636e+11 | H85: 0.9951789019
A86: MINISTERIO DE DEFENSA NACIONAL - COMANDO GENERAL | B86: 105446376442 | C86: 1.052173482e+11 | D86: 17406661322 | E86: 1.73079069e+10 | F86: 88039715120 | G86: 8.790944126e+10 | H86: 0.998520283
A87: MINISTERIO DE DEFENSA NACIONAL - DIRECCION GENERAL MARITIMA - DIMAR | B87: 104736822391 | C87: 1.030084557e+11 | D87: 20048669138 | E87: 1.92896291e+10 | F87: 84688153253 | G87: 8.371882662e+10 | H87: 0.9885541649
A88: MINISTERIO DE DEFENSA NACIONAL - EJERCITO | B88: 7093700025449 | C88: 7.062887327e+12 | D88: 5159883000000 | E88: 5.149152857e+12 | F88: 1933817025449 | G88: 1.91373447e+12 | H88: 0.9896150697
A89: MINISTERIO DE DEFENSA NACIONAL - FUERZA AEREA | B89: 1738823240556 | C89: 1.729946577e+12 | D89: 493996200281 | E89: 4.930333217e+11 | F89: 1244827040275 | G89: 1.236913255e+12 | H89: 0.993642663
A90: MINISTERIO DE DEFENSA NACIONAL - GESTION GENERAL | B90: 1.413795846e+12 | C90: 1.399321297e+12 | D90: 1.326066028e+12 | E90: 1.317974647e+12 | F90: 87729818222 | G90: 8.134664982e+10 | H90: 0.9272406061
A91: MINISTERIO DE DEFENSA NACIONAL - SALUD | B91: 871711000000 | C91: 8.375725556e+11 | D91: 384096864416 | E91: 3.501275302e+11 | F91: 487614135584 | G91: 4.874450254e+11 | H91: 0.9996531884
A92: POLICIA NACIONAL - GESTION GENERAL | B92: 7182525213485 | C92: 7.182404082e+12 | D92: 5.759112674e+12 | E92: 5.759009735e+12 | F92: 1.423412539e+12 | G92: 1.423394347e+12 | H92: 0.9999872197
A93: POLICIA NACIONAL - SALUD | B93: 771904000000 | C93: 7.716287302e+11 | D93: 121280786741 | E93: 1.211942509e+11 | F93: 650623213259 | G93: 6.504344793e+11 | H93: 0.9997099182
A94: SUPERINTENDENCIA DE VIGILANCIA Y SEGURIDAD PRIVADA | B94: 12938806000 | C94: 1.210669271e+10 | D94: 9097025400 | E94: 8444790005 | F94: 3841780600 | G94: 3661902704 | H94: 0.953178509
A95: DEPORTE Y RECREACION | B95: 352960951687 | C95: 3.375235676e+11 | D95: 22812400050 | E95: 22184222039 | F95: 330148551637 | G95: 3.153393456e+11 | H95: 0.9551438102
A96: DEPARTAMENTO ADMINISTRATIVO DEL DEPORTE, LA RECREACION, LA ACTIVIDAD FISICA Y EL APROVECHAMIENTO DEL TIEMPO LIBRE – COLDEPORTES - GESTION GENERAL | B96: 352960951687 | C96: 3.375235676e+11 | D96: 22812400050 | E96: 22184222039 | F96: 330148551637 | G96: 3.153393456e+11 | H96: 0.9551438102
A97: EDUCACION | B97: 26933831212576 | C97: 2.691780169e+13 | D97: 25014922386587 | E97: 2.500864933e+13 | F97: 1918908825989 | G97: 1.909152354e+12 | H97: 0.9949156146
A98: ESCUELA TECNOLOGICA INSTITUTO TECNICO CENTRAL | B98: 22187667424 | C98: 2.084027229e+10 | D98: 13414563238 | E98: 12840351603 | F98: 8773104186 | G98: 7999920682 | H98: 0.9118688793
A99: INSTITUTO NACIONAL DE FORMACION TECNICA PROFESIONAL DE SAN ANDRES Y PROVIDENCIA | B99: 7245606522 | C99: 4302035622 | D99: 2500160405 | E99: 2110614912 | F99: 4745446117 | G99: 2191420710 | H99: 0.4617944565
A100: INSTITUTO NACIONAL DE FORMACION TECNICA PROFESIONAL DE SAN JUAN DEL CESAR | B100: 8946610605 | C100: 8938255038 | D100: 3279598618 | E100: 3272069328 | F100: 5667011987 | G100: 5666185710 | H100: 0.9998541953
A101: INSTITUTO NACIONAL PARA CIEGOS (INCI) | B101: 5419807047 | C101: 5227796296 | D101: 3506187104 | E101: 3369396246 | F101: 1913619943 | G101: 1858400050 | H101: 0.9711437513
A102: INSTITUTO NACIONAL PARA SORDOS (INSOR) | B102: 5051412907 | C102: 4773728623 | D102: 3399762019 | E102: 3190968558 | F102: 1651650888 | G102: 1582760065 | H102: 0.9582897191
A103: INSTITUTO TECNICO NACIONAL DE COMERCIO SIMON RODRIGUEZ DE CALI | B103: 9975978223 | C103: 9767970577 | D103: 3764777753 | E103: 3634562835 | F103: 6211200470 | G103: 6133407742 | H103: 0.9874754118
A104: INSTITUTO TOLIMENSE DE FORMACION TECNICA PROFESIONAL | B104: 13849685403 | C104: 1.322921208e+10 | D104: 8033226581 | E104: 7536892372 | F104: 5816458822 | G104: 5692319712 | H104: 0.9786572701
A105: MINISTERIO EDUCACION NACIONAL - GESTION GENERAL | B105: 26861154444445 | C105: 2.685072242e+13 | D105: 24977024110869 | E105: 2.497269448e+13 | F105: 1884130333576 | G105: 1.878027939e+12 | H105: 0.9967611613
A106: FUNCION PUBLICA | B106: 237491982593 | C106: 1.715422931e+11 | D106: 79960690837 | E106: 4.615301894e+10 | F106: 157531291756 | G106: 1.253892742e+11 | H106: 0.7959642353
A107: COMISION NACIONAL DEL SERVICIO CIVIL | B107: 55730130000 | C107: 3.182184716e+10 | D107: 11583818713 | E107: 7796530043 | F107: 44146311287 | G107: 2.402531712e+10 | H107: 0.5442202625
A108: DEPARTAMENTO FUNCION PUBLICA - GESTION GENERAL | B108: 25309115093 | C108: 2.336261395e+10 | D108: 14074460000 | E108: 1.326779757e+10 | F108: 11234655093 | G108: 1.009481638e+10 | H108: 0.8985426165
A109: ESCUELA SUPERIOR DE ADMINISTRACION PUBLICA (ESAP) | B109: 156452737500 | C109: 1.16357832e+11 | D109: 54302412124 | E109: 2.508869133e+10 | F109: 102150325376 | G109: 9.126914067e+10 | H109: 0.8934787074
A110: EMPRESAS | B110: 69962000000 | C110: 67891269524 | D110: 69962000000 | E110: 67891269524 | F110: 0 | G110: 0
A111: INSTITUTO DE SEGUROS SOCIALES EN LIQUIDACION | B111: 69962000000 | C111: 67891269524 | D111: 69962000000 | E111: 67891269524 | F111: 0 | G111: 0
A112: FISCALIA | B112: 2696673361660 | C112: 2.525338172e+12 | D112: 2179373738101 | E112: 2.024973777e+12 | F112: 517299623559 | G112: 5.003643956e+11 | H112: 0.9672622457
A113: FISCALIA GENERAL DE LA NACION - GESTION GENERAL | B113: 2513268592321 | C113: 2.347616134e+12 | D113: 2055075029160 | E113: 1.905103075e+12 | F113: 458193563161 | G113: 4.425130593e+11 | H113: 0.9657775554
A114: INSTITUTO NACIONAL DE MEDICINA LEGAL Y CIENCIAS FORENSES | B114: 183404769339 | C114: 1.777220385e+11 | D114: 124298708941 | E114: 1.198707023e+11 | F114: 59106060398 | G114: 5.785133627e+10 | H114: 0.9787716501
A115: HACIENDA Y CREDITO PUBLICO | B115: 1.746921069e+13 | C115: 1.32307859e+13 | D115: 1.354699543e+13 | E115: 1.024390734e+13 | F115: 3922215264450 | G115: 2.986878562e+12 | H115: 0.7615284631
A116: COLJUEGOS | B116: 23455000000 | C116: 2.111391824e+10 | D116: 16575000000 | E116: 15341114169 | F116: 6880000000 | G116: 5772804069 | H116: 0.8390703589
A117: FONDO ADAPTACION | B117: 1026356000000 | C117: 1.022700792e+12 | D117: 22776000000 | E117: 1.980426863e+10 | F117: 1003580000000 | G117: 1.002896524e+12 | H117: 0.9993189618
A118: MINISTERIO DE HACIENDA Y CREDITO PUBLICO - GESTION GENERAL | B118: 1.468645382e+13 | C118: 1.079643601e+13 | D118: 1.230362008e+13 | E118: 9.31007758e+12 | F118: 2382833740610 | G118: 1.486358434e+12 | H118: 0.6237776513
A119: SUPERINTENDENCIA DE LA ECONOMIA SOLIDARIA | B119: 17954000000 | C119: 1.167928535e+10 | D119: 10388391334 | E119: 5541299291 | F119: 7565608666 | G119: 6137986061 | H119: 0.8113010244
A120: SUPERINTENDENCIA FINANCIERA DE COLOMBIA | B120: 189726562500 | C120: 1.46801336e+11 | D120: 159847793321 | E120: 1.174759661e+11 | F120: 29878769179 | G120: 2.93253699e+10 | H120: 0.9814785115
A121: UGPPP - GESTION GENERAL | B121: 159700000000 | C121: 1.547102868e+11 | D121: 97206554000 | E121: 9.282340532e+10 | F121: 62493446000 | G121: 6.188688149e+10 | H121: 0.99029395
A122: UNIDAD ADMINISTRATIVA ESPECIAL AGENCIA DEL INSPECTOR GENERAL DE TRIBUTOS, RENTAS Y CONTRIBUCIONES PARAFISCALES – ITRC | B122: 16238000000 | C122: 1.518707092e+10 | D122: 11113000000 | E122: 10517751210 | F122: 5125000000 | G122: 4669319710 | H122: 0.9110867727
A123: UNIDAD ADMINISTRATIVA ESPECIAL CONTADURIA GENERAL DE LA NACION | B123: 19530770168 | C123: 1.912218494e+10 | D123: 8530000000 | E123: 8334710864 | F123: 11000770168 | G123: 1.078747408e+10 | H123: 0.9806108041
A124: UNIDAD ADMINISTRATIVA ESPECIAL DIRECCION DE IMPUESTOS Y ADUANAS NACIONALES | B124: 1316319537005 | C124: 1.030853385e+12 | D124: 905956607178 | E124: 6.540616101e+11 | F124: 410362929827 | G124: 3.767917744e+11 | H124: 0.9181915496
A125: UNIDAD ADMINISTRATIVA ESPECIAL UNIDAD DE PROYECCION NORMATIVA Y ESTUDIOS DE REGULACION FINANCIERA – URF | B125: 5467000000 | C125: 4332200008 | D125: 4967000000 | E125: 3991106459 | F125: 500000000 | G125: 341093548.5 | H125: 0.6821870969
A126: UNIDAD DE INFORMACION Y ANALISIS FINANCIERO | B126: 8010000000 | C126: 7849429314 | D126: 6015000000 | E126: 5938528260 | F126: 1995000000 | G126: 1910901054 | H126: 0.95784514
A127: INCLUSION SOCIAL Y RECONCILIACION | B127: 9906983800907 | C127: 9.664299578e+12 | D127: 1124704931229 | E127: 1.051076721e+12 | F127: 8782278869678 | G127: 8.613222857e+12 | H127: 0.9807503251
A128: AGENCIA NACIONAL PARA LA SUPERACION DE LA POBREZA EXTREMA | B128: 231865700000 | C128: 2.261749286e+11 | D128: 20247512733 | E128: 1.960592372e+10 | F128: 211618187267 | G128: 2.065690049e+11 | H128: 0.9761401305
A129: CENTRO DE MEMORIA HISTORICA | B129: 40965000000 | C129: 3.762762758e+10 | D129: 7442000000 | E129: 6908928942 | F129: 33523000000 | G129: 3.071869863e+10 | H129: 0.9163469449
A130: DEPARTAMENTO ADMINISTRATIVO PARA LA PROSPERIDAD SOCIAL - GESTION GENERAL | B130: 3289508847081 | C130: 3.213847107e+12 | D130: 95687138444 | E130: 8.628828154e+10 | F130: 3193821708637 | G130: 3.127558825e+12 | H130: 0.9792527919
A131: INSTITUTO COLOMBIANO DE BIENESTAR FAMILIAR (ICBF) | B131: 4627122948409 | C131: 4.538960723e+12 | D131: 286024000000 | E131: 2.761401072e+11 | F131: 4341098948409 | G131: 4.262820616e+12 | H131: 0.9819680837
A132: UNIDAD ADMINISTRATIVA ESPECIAL PARA LA CONSOLIDACION TERRITORIAL | B132: 210746000000 | C132: 2.064778414e+11 | D132: 28002932469 | E132: 2.677598709e+10 | F132: 182743067531 | G132: 1.797018543e+11 | H132: 0.9833579832
A133: UNIDAD DE ATENCION Y REPARACION INTEGRAL A LAS VICTIMAS | B133: 1506775305417 | C133: 1.441211351e+12 | D133: 687301347583 | E133: 6.353574928e+11 | F133: 819473957834 | G133: 8.058538583e+11 | H133: 0.9833794602
A134: ESTADISTICA | B134: 596003968751 | C134: 5.763741619e+11 | D134: 115492000000 | E134: 1.039280137e+11 | F134: 480511968751 | G134: 4.724461482e+11 | H134: 0.9832141111
A135: DEPARTAMENTO ADMINISTRATIVO NACIONAL DE ESTADISTICA (DANE) - GESTION GENERAL | B135: 415138507676 | C135: 4.066898865e+11 | D135: 69966000000 | E135: 6.245535438e+10 | F135: 345172507676 | G135: 3.442345322e+11 | H135: 0.9972825892
A136: FONDO ROTATORIO DEL DANE | B136: 13221000000 | C136: 1.212468786e+10 | D136: 111000000 | E136: 18697718 | F136: 13110000000 | G136: 1.210599014e+10 | H136: 0.9234164869
A137: INSTITUTO GEOGRAFICO AGUSTIN CODAZZI - IGAC | B137: 167644461075 | C137: 1.575595875e+11 | D137: 45415000000 | E137: 4.145396156e+10 | F137: 122229461075 | G137: 1.161056259e+11 | H137: =+G137/F137 -> 0.9498988617
A138: INTELIGENCIA | B138: 165418545000 | C138: 1.407659869e+11 | D138: 100962714486 | E138: 8.702517909e+10 | F138: 64455830514 | G138: 5.374080779e+10 | H138: 0.833761777
A139: DAS - GESTION GENERAL | B139: 24573000000 | C139: 2.045498974e+10 | D139: 24045769486 | E139: 2.033653733e+10 | F139: 527230514 | G139: 118452410 | H139: 0.2246691093
A140: DEPARTAMENTO ADMINISTRATIVO DIRECCION NACIONAL DE INTELIGENCIA - GESTION GENERAL | B140: 86815445000 | C140: 7.636195657e+10 | D140: 43365445000 | E140: 36319276153 | F140: 43450000000 | G140: 4.004268041e+10 | H140: 0.921580677
A141: FONDO ROTATORIO DEL DEPARTAMENTO ADMINISTRATIVO DE SEGURIDAD | B141: 54030100000 | C141: 4.394904057e+10 | D141: 33551500000 | E141: 30369365608 | F141: 20478600000 | G141: 1.357967496e+10 | H141: 0.6631153967
A142: INTERIOR | B142: 1.016941273e+12 | C142: 9.751559253e+11 | D142: 4.445160569e+11 | E142: 4.190216195e+11 | F142: 5.724252164e+11 | G142: 5.561343058e+11 | H142: 0.9715405434
A143: CORPORACION NACIONAL PARA LA RECONSTRUCCION DE LA CUENCA DEL RIO PAEZ Y ZONAS ALEDANAS NASA KI WE | B143: 18517113250 | C143: 1.847419204e+10 | D143: 2257546676 | E143: 2215980302 | F143: 16259566574 | G143: 1.625821174e+10 | H143: 0.9999166745
A144: DIRECCION NACIONAL DE BOMBEROS | B144: 14676021612 | C144: 1.305806474e+10 | D144: 2919107885 | E144: 2414281757 | F144: 11756913727 | G144: 1.064378298e+10 | H144: 0.9053211776
A145: DIRECCION NACIONAL DEL DERECHO DE AUTOR | B145: 3671171266 | C145: 3656359207 | D145: 2302982744 | E145: 2293922697 | F145: 1368188522 | G145: 1362436510 | H145: 0.9957958925
A146: FONDO PARA LA PARTICIPACION Y EL FORTALECIMIENTO DE LA DEMOCRACIA | B146: 7971532917 | C146: 7841509142 | D146: 7971532917 | E146: 7841509142 | F146: 0 | G146: 0
A147: MINISTERIO DEL INTERIOR - GESTION GENERAL | B147: 493281023673 | C147: 4.705938397e+11 | D147: 391510547669 | E147: 3.708638927e+11 | F147: 101770476004 | G147: 9.972994698e+10 | H147: 0.9799496956
A148: UNIDAD NACIONAL DE PROTECCION - UNP | B148: 4.788244106e+11 | C148: 4.615319605e+11 | D148: 37554339046 | E148: 33392032893 | F148: 4.412700716e+11 | G148: 4.281399276e+11 | H148: 0.9702446533
A149: JUSTICIA Y DEL DERECHO | B149: 2597119618270 | C149: 2.358019663e+12 | D149: 1611883188462 | E149: 1.474244608e+12 | F149: 985236429808 | G149: 8.837750557e+11 | H149: 0.8970182475
A150: DIRECCION NACIONAL DE ESTUPEFACIENTES EN LIQUIDACION | B150: 173781332461 | C150: 1.545273767e+11 | D150: 167840636603 | E150: 1.540331743e+11 | F150: 5940695858 | G150: 494202384 | H150: 0.0831893091
A151: INSTITUTO NACIONAL PENITENCIARIO Y CARCELARIO - INPEC | B151: 922995115725 | C151: 8.613210441e+11 | D151: 671043615113 | E151: 6.513798667e+11 | F151: 251951500612 | G151: 2.099411773e+11 | H151: 0.8332602776
A152: MINISTERIO DE JUSTICIA Y DEL DERECHO - GESTION GENERAL | B152: 107841821741 | C152: 9.088587167e+10 | D152: 70753677574 | E152: 5.862547326e+10 | F152: 37088144167 | G152: 3.226039841e+10 | H152: 0.8698304846
A153: SUPERINTENDENCIA DE NOTARIADO Y REGISTRO | B153: 727747064440 | C153: 6.091511862e+11 | D153: 320173568029 | E153: 2.449349876e+11 | F153: 407573496411 | G153: 3.642161986e+11 | H153: 0.8936209096
A154: UNIDAD ADMINISTRATIVA ESPECIAL AGENCIA NACIONAL DE DEFENSA JURIDICA DEL ESTADO | B154: 45027609976 | C154: 3.654116687e+10 | D154: 33858247049 | E154: 2.565497882e+10 | F154: 11169362927 | G154: 1.088618805e+10 | H154: 0.9746471771
A155: UNIDAD DE SERVICIOS PENITENCIARIOS Y CARCELARIOS - USPEC | B155: 619726673927 | C155: 6.055930178e+11 | D155: 348213444094 | E155: 3.396161269e+11 | F155: 271513229833 | G155: 2.659768909e+11 | H155: 0.9796093216
A156: MINAS Y ENERGIA | B156: 3.046677549e+12 | C156: 2.972549688e+12 | D156: 3.830498596e+11 | E156: 3.490818076e+11 | F156: 2663627689179 | G156: 2.62346788e+12 | H156: 0.9849228894
A157: AGENCIA NACIONAL DE HIDROCARBUROS - ANH | B157: 505598333299 | C157: 4.957292816e+11 | D157: 199580431906 | E157: 194689302448 | F157: 306017901393 | G157: 3.010399792e+11 | H157: 0.9837332319
A158: AGENCIA NACIONAL DE MINERIA - ANM | B158: 80846746128 | C158: 6.798463276e+10 | D158: 49334588000 | E158: 41256498835 | F158: 31512158128 | G158: 2.672813392e+10 | H158: 0.8481848121
A159: INSTITUTO DE PLANIFICACION Y PROMOCION DE SOLUCIONES ENERGETICAS PARA LAS ZONAS NO INTERCONECTADAS -IPSE- | B159: 44866099022 | C159: 3.551799098e+10 | D159: 8881472578 | E159: 7030926354 | F159: 35984626444 | G159: 2.848706463e+10 | H159: 0.7916454176
A160: MINISTERIO DE MINAS Y ENERGIA - COMISION DE REGULACION DE ENERGIA Y GAS - CREG - | B160: 33872877000 | C160: 2.596393262e+10 | D160: 23254558000 | E160: 1.844890085e+10 | F160: 10618319000 | G160: 7515031767 | H160: 0.7077421357
A161: MINISTERIO DE MINAS Y ENERGIA - GESTION GENERAL | B161: 2.271469955e+12 | C161: 2.248755016e+12 | D161: 6.36307871e+10 | E161: 5.603808758e+10 | F161: 2207839168214 | G161: 2.192716929e+12 | H161: 0.9931506608
A162: SERVICIO GEOLOGICO COLOMBIANO | B162: 74893225000 | C162: 6.61010109e+10 | D162: 26886290000 | E162: 2.13067328e+10 | F162: 48006935000 | G162: 4.479427809e+10 | H162: 0.9330793164
A163: UNIDAD DE PLANEACION MINERO ENERGETICA - UPME | B163: 35130313000 | C163: 32497822175 | D163: 11481732000 | E163: 10311358677 | F163: 23648581000 | G163: 22186463498 | H163: 0.9381731402
A164: ORGANISMOS DE CONTROL | B164: 1408792842327 | C164: 1.329029432e+12 | D164: 1166141881033 | E164: 1.103054663e+12 | F164: 242650961294 | G164: 2.259747689e+11 | H164: 0.9312749792
A165: AUDITORIA GENERAL DE LA REPUBLICA - GESTION GENERAL | B165: 32123000000 | C165: 2.922184259e+10 | D165: 19766429756 | E165: 1.857124246e+10 | F165: 12356570244 | G165: 1.065060013e+10 | H165: 0.8619382174
A166: CONTRALORIA GRAL. REPUBLICA - GESTION GENERAL | B166: 445340887102 | C166: 4.27459756e+11 | D166: 344321500000 | E166: 3.299444102e+11 | F166: 101019387102 | G166: 9.751534581e+10 | H166: 0.96531318
A167: DEFENSORIA DEL PUEBLO | B167: 381167000000 | C167: 3.43337116e+11 | D167: 325666000000 | E167: 291414632828 | F167: 55501000000 | G167: 5.192248318e+10 | H167: 0.9355233812
A168: FONDO DE BIENESTAR SOCIAL DE LA CONTRALORIA GENERAL DE LA REPUBLICA | B168: 61034000000 | C168: 5.831591435e+10 | D168: 36560400000 | E168: 3.575364751e+10 | F168: 24473600000 | G168: 2.256226685e+10 | H168: 0.9219022476
A169: MINISTERIO PUBLICO - INSTITUTO DE ESTUDIOS DEL MINISTERIO PUBLICO | B169: 4298000000 | C169: 2771286266 | D169: 450703000 | E169: 188549157.9 | F169: 3847297000 | G169: 2582737108 | H169: 0.6713121208
A170: PROCURADURIA GENERAL DE LA NACION - GESTION GENERAL | B170: 484829955225 | C170: 4.679235167e+11 | D170: 439376848277 | E170: 4.271821808e+11 | F170: 45453106948 | G170: 4.074133587e+10 | H170: 0.8963377556
A171: PLANEACION | B171: 507902211443 | C171: 4.375787618e+11 | D171: 155230000000 | E171: 1.343747456e+11 | F171: 352672211443 | G171: 3.032040161e+11 | H171: 0.8597332205
A172: DEPARTAMENTO DE PLANEACION - GESTION GENERAL | B172: 164986622986 | C172: 1.206280854e+11 | D172: 60200000000 | E172: 5.170829449e+10 | F172: 104786622986 | G172: 6.891979093e+10 | H172: 0.6577155458
A173: FONDO NACIONAL DE REGALIAS | B173: 202936588457 | C173: 1.914236367e+11 | D173: 2680000000 | E173: 790257879.5 | F173: 200256588457 | G173: 190633378788 | H173: 0.9519456027
A174: SUPERINTENDENCIA DE SERVICIOS PUBLICOS DOMICILIARIOS | B174: 115691000000 | C174: 1.028429442e+11 | D174: 86876000000 | E174: 7.678080022e+10 | F174: 28815000000 | G174: 2.606214402e+10 | H174: 0.9044644809
A175: UNIDAD ADMINISTRATIVA ESPECIAL - AGENCIA NACIONAL DE CONTRATACION PUBLICA - COLOMBIA COMPRA EFICIENTE. | B175: 24288000000 | C175: 2.268409543e+10 | D175: 5474000000 | E175: 5095393053 | F175: 18814000000 | G175: 1.758870237e+10 | H175: 0.9348730931
A176: PRESIDENCIA DE LA REPUBLICA | B176: 707207942463 | C176: 6.646448793e+11 | D176: 499982501787 | E176: 4.722842755e+11 | F176: 207225440676 | G176: 1.923606038e+11 | H176: 0.9282673168
A177: AGENCIA COLOMBIANA PARA LA REINTEGRACION DE PERSONAS Y GRUPOS ALZADOS EN ARMAS | B177: 145511000000 | C177: 139287576902 | D177: 132802000000 | E177: 127703807176 | F177: 12709000000 | G177: 11583769726 | H177: 0.9114619345
A178: AGENCIA PRESIDENCIAL DE COOPERACION INTERNACIONAL DE COLOMBIA, APC - COLOMBIA | B178: 47759437585 | C178: 4.458909687e+10 | D178: 19887888658 | E178: 1.923819292e+10 | F178: 27871548927 | G178: 2.535090395e+10 | H178: 0.9095620778
A179: PRESIDENCIA DE LA REPUBLICA - GESTION GENERAL | B179: 277046640816 | C179: 2.549549362e+11 | D179: 116753621000 | E179: 1.054664783e+11 | F179: 160293019816 | G179: 1.494884579e+11 | H179: 0.9325949316
A180: UNIDAD NACIONAL PARA LA GESTION DEL RIESGO DE DESASTRES | B180: 236890864062 | C180: 2.258132693e+11 | D180: 230538992129 | E180: 2.198757971e+11 | F180: 6351871933 | G180: 5937472244 | H180: 0.934759439
A181: RAMA JUDICIAL | B181: 3025926286400 | C181: 3.002926876e+12 | D181: 2526625251122 | E181: 2.523521906e+12 | F181: 499301035278 | G181: 4.794049703e+11 | H181: 0.9601521656
A182: RAMA JUDICIAL - CONSEJO DE ESTADO | B182: 98271092929 | C182: 9.789251566e+10 | D182: 93233160539 | E182: 93130947738 | F182: 5037932390 | G182: 4761567922 | H182: 0.9451432756
A183: RAMA JUDICIAL - CONSEJO SUPERIOR DE LA JUDICATURA | B183: 484168239642 | C183: 4.654956576e+11 | D183: 189439641422 | E183: 1.891292582e+11 | F183: 294728598220 | G183: 2.763663994e+11 | H183: 0.9376979399
A184: RAMA JUDICIAL - CORTE CONSTITUCIONAL | B184: 33138278693 | C184: 3.293977594e+10 | D184: 29986031372 | E184: 29907897026 | F184: 3152247321 | G184: 3031878915 | H184: 0.9618150501
A185: RAMA JUDICIAL - CORTE SUPREMA DE JUSTICIA | B185: 74292277955 | C185: 7.377468327e+10 | D185: 68978840477 | E185: 68780440653 | F185: 5313437478 | G185: 4994242614 | H185: 0.9399268618
A186: RAMA JUDICIAL - TRIBUNALES Y JUZGADOS | B186: 2336056397181 | C186: 2.332824244e+12 | D186: 2144987577312 | E186: 2.142573362e+12 | F186: 191068819869 | G186: 1.902508815e+11 | H186: 0.9957191424
A187: REGISTRADURIA | B187: 1197477943088 | C187: 1.127732456e+12 | D187: 803888631089 | E187: 7.562287491e+11 | F187: 393589311999 | G187: 3.715037065e+11 | H187: 0.9438866736
A188: FONDO ROTATORIO DE LA REGISTRADURIA | B188: 54961943088 | C188: 4.70413326e+10 | D188: 218221864 | E188: 112644174.3 | F188: 54743721224 | G188: 4.692868843e+10 | H188: 0.8572433035
A189: FONDO SOCIAL DE VIVIENDA DE LA REGISTRADURIA NACIONAL DEL ESTADO CIVIL | B189: 9797000000 | C189: 9698848068 | D189: 16000000 | E189: 13886768 | F189: 9781000000 | G189: 9684961300 | H189: 0.990181096
A190: REGISTRADURIA NACIONAL DEL ESTADO CIVIL - CONSEJO NACIONAL ELECTORAL | B190: 23652796436 | C190: 21859313829 | D190: 17542643234 | E190: 16582909811 | F190: 6110153202 | G190: 5276404018 | H190: 0.8635469265
A191: REGISTRADURIA NACIONAL DEL ESTADO CIVIL - GESTION GENERAL | B191: 1109066203564 | C191: 1.049132961e+12 | D191: 786111765991 | E191: 7.395193083e+11 | F191: 322954437573 | G191: 3.096136527e+11 | H191: 0.9586914335
A192: RELACIONES EXTERIORES | B192: 665587063376 | C192: 6.529886024e+11 | D192: 385927112848 | E192: 3.786140021e+11 | F192: 279659950528 | G192: 2.743746003e+11 | H192: 0.9811007969
A193: FONDO ROTATORIO DEL MINISTERIO DE RELACIONES EXTERIORES | B193: 300426663376 | C193: 2.951669312e+11 | D193: 57240564848 | E193: 5.684523418e+10 | F193: 243186098528 | G193: 2.38321697e+11 | H193: 0.9799972057
A194: MINIRELACIONES EXTERIORES - GESTION GENERAL | B194: 268566000000 | C194: 2.619135068e+11 | D194: 268410000000 | E194: 2.618062853e+11 | F194: 156000000 | G194: 107221487 | H194: 0.6873172247
A195: UNIDAD ADMINISTRATIVA ESPECIAL MIGRACION COLOMBIA | B195: 96594400000 | C195: 9.590816435e+10 | D195: 60276548000 | E195: 5.996248255e+10 | F195: 36317852000 | G195: 3.594568181e+10 | H195: 0.9897524173
A196: SALUD Y PROTECCION SOCIAL | B196: 1.247246168e+13 | C196: 1.227776834e+13 | D196: 8.078655703e+12 | E196: 7.966248889e+12 | F196: 4393805975998 | G196: 4.311519454e+12 | H196: 0.981272154
A197: DIRECCION DE ADMINISTRACION DE FONDOS DE LA PROTECCION SOCIAL | B197: 10486924884871 | C197: 1.047922976e+13 | D197: 6676635876493 | E197: 6676635876493 | F197: 3810289008378 | G197: 3.802593882e+12 | H197: 0.9979804349
A198: FONDO DE PREVISION SOCIAL DEL CONGRESO - CESANTIAS Y VIVIENDA | B198: 15444237000 | C198: 11127859589 | D198: 15444237000 | E198: 11127859589 | F198: 0 | G198: 0
A199: FONDO DE PREVISION SOCIAL DEL CONGRESO - PENSIONES | B199: 243264239000 | C199: 228095302430 | D199: 241792713000 | E199: 2.268478247e+11 | F199: 1471526000 | G199: 1247477696 | H199: 0.8477442437
A200: FONDO PASIVO SOCIAL DE FERROCARRILES NACIONALES DE COLOMBIA - SALUD | B200: 163017870000 | C200: 1.551435978e+11 | D200: 160492410100 | E200: 153062794034 | F200: 2525459900 | G200: 2080803799 | H200: 0.8239306429
... 65 more rows

Sheet Indicador 2
C1: Valor Adjudicado Pesos | D1: (Varios elementos)
I2: Valor Adjudicado Pesos | J2: (Varios elementos)
A3: N/T | B3: SECTOR | C3: ENTIDAD | D3: VARIACION | E3: NUMERO DE CONTRATOS | F3: INDICADOR
A4: TERRITORIAL | B4: TERRITORIAL | C4: SANTANDER - CONCEJO MUNICIPIO DE LEBRIJA | D4: 3499998.856 | E4: 5 | F4: 699999.7713 | I4: Etiquetas de fila | J4: INDICADOR | K4: Suma de Cambio % | L4: Cuenta de Numero de Identificación Unica del Contrato | P4: Row Labels | Q4: Average of INDICADOR | S4: Row Labels | T4: Average of INDICADOR | V4: Etiquetas de fila | W4: Suma de Cambio % | X4: Cuenta de Numero de Identificación Unica del Contrato
A5: TERRITORIAL | B5: TERRITORIAL | C5: ANTIOQUIA - ALCALDIA MUNICIPIO DE EL RETIRO | D5: 78777994.08 | E5: 304 | F5: 259138.1384 | I5: Asociación Público Privada | J5: 0.005565279442 | K5: 0.07234863275 | L5: 13 | P5: AGRICULTURA Y DESARROLLO RURAL | Q5: 0.7481977644 | S5: AGRICULTURA Y DESARROLLO RURAL | T5: 0.7481977644 | V5: ADMINISTRADORA COLOMBIANA DE PENSIONES (COLPENSIONES) | W5: 8.307952756 | X5: 623
A6: TERRITORIAL | B6: TERRITORIAL | C6: BOGOTA D.C. - IED. VILLA RICA | D6: 10208999 | E6: 46 | F6: 221934.7609 | I6: Concurso de Méritos Abierto | J6: 16279.81333 | K6: 78778016.68 | L6: 4839 | P6: AMBIENTE Y DESARROLLO SOSTENIBLE | Q6: 2.800899159 | S6: AMBIENTE Y DESARROLLO SOSTENIBLE | T6: 2.800899159 | V6: AERONÁUTICA CIVIL (AEROCIVIL) | W6: -24.97694028 | X6: 765
A7: TERRITORIAL | B7: TERRITORIAL | C7: ANTIOQUIA - ALCALDIA MUNICIPIO DE SAN CARLOS | D7: 69000010.34 | E7: 500 | F7: 138000.0207 | I7: Concurso de Méritos con Lista Corta | J7: 0.2881707207 | K7: 22.18914549 | L7: 77 | P7: BANCO DE LA REPUBLICA | Q7: 0 | S7: BANCO DE LA REPUBLICA | T7: 0 | V7: AGENCIA COLOMBIANA PARA LA REINTEGRACIÓN DE PERSONAS Y GRUPOS ALZADOS EN ARMAS (ACR) | W7: 1.800902329 | X7: 1234
A8: TERRITORIAL | B8: TERRITORIAL | C8: META - ALCALDIA MUNICIPIO DE CABUYARO | D8: 20108002.71 | E8: 178 | F8: 112966.3074 | I8: Concurso de Méritos con Lista Multiusos | J8: 0.1282809561 | K8: 0.8979666925 | L8: 7 | P8: CIENCIA, TECNOLOGIA E INNOVACION | Q8: 0.06287838292 | S8: CIENCIA, TECNOLOGIA E INNOVACION | T8: 0.06287838292 | V8: AGENCIA DEL INSPECTOR GENERAL DE TRIBUTOS, RENTAS Y CONTRIBUCIONES PARAFISCALES (ITRC) | W8: -4.760930895 | X8: 62
A9: TERRITORIAL | B9: TERRITORIAL | C9: ANTIOQUIA - E.S.E. HOSPITAL SAN RAFAEL - GIRARDOTA | D9: 45229998.85 | E9: 403 | F9: 112233.2478 | I9: Contratación Directa (Ley 1150 de 2007) | J9: 211.1309735 | K9: 89515521.29 | L9: 423981 | P9: COMERCIO, INDUSTRIA Y TURISMO | Q9: 0.05222229296 | S9: COMERCIO, INDUSTRIA Y TURISMO | T9: 0.05222229296 | V9: AGENCIA LOGÍSTICA DE LAS FUERZAS MILITARES (ALFM) | W9: -19.27593536 | X9: 1809
A10: TERRITORIAL | B10: TERRITORIAL | C10: PUTUMAYO - E.S.E. HOSPITAL LOCAL DE PUERTO ASIS | D10: 13486649.49 | E10: 126 | F10: 107036.9007 | I10: Contratación Mínima Cuantía | J10: 206.3450556 | K10: 28294653.06 | L10: 137123 | P10: CONTROL | Q10: 1.836674908 | S10: CONTROL | T10: 1.836674908 | V10: AGENCIA NACIONAL DE CONTRATACIÓN PÚBLICA (COLOMBIA COMPRA EFICIENTE) | W10: -2.986098677 | X10: 78
A11: TERRITORIAL | B11: TERRITORIAL | C11: NARIÑO - ALCALDIA MUNICIPIO DE SAN ANDRES DE TUMACO | D11: 27733274.09 | E11: 352 | F11: 78787.71047 | I11: Licitación Pública | J11: 9905.4283 | K11: 85533373.37 | L11: 8635 | P11: CULTURA | Q11: 0.1785291 | S11: CULTURA | T11: 0.1785291 | V11: AGENCIA NACIONAL DE DEFENSA JURÍDICA DEL ESTADO (ANDJE) | W11: -1.084173258 | X11: 220
A12: TERRITORIAL | B12: TERRITORIAL | C12: SANTANDER - ALCALDIA MUNICIPIO DE PIEDECUESTA | D12: 83222620.25 | E12: 1153 | F12: 72179.2023 | I12: Régimen Especial | J12: 1127.502913 | K12: 179713816.8 | L12: 159391 | P12: DEFENSA NACIONAL | Q12: 0.233990251 | S12: DEFENSA NACIONAL | T12: 0.233990251 | V12: AGENCIA NACIONAL DE HIDROCARBUROS (ANH) | W12: 14.96155813 | X12: 254
A13: TERRITORIAL | B13: TERRITORIAL | C13: SUCRE - E.S.E. HOSPITAL UNIVERSITARIO DE - SINCELEJO | D13: 5215044.421 | E13: 87 | F13: 59943.03933 | I13: Selección Abreviada de Menor Cuantía (Ley 1150 de 2007) | J13: 4640.884064 | K13: 69200222.27 | L13: 14911 | P13: DEPORTE Y RECREACION | Q13: 2.023924775 | S13: DEPORTE Y RECREACION | T13: 2.023924775 | V13: AGENCIA NACIONAL DE INFRAESTRUCTURA (ANI) | W13: 103.4777794 | X13: 426
A14: TERRITORIAL | B14: TERRITORIAL | C14: CALDAS - CONCEJO MUNICIPIO DE CHINCHINA | D14: 1063635.412 | E14: 19 | F14: 55980.81114 | I14: Selección Abreviada del literal h del numeral 2 del artículo 2 de la Ley 1150 de 2007 | J14: -0.07206787886 | K14: -10.2336388 | L14: 142 | P14: EDUCACION | Q14: 38.05594554 | S14: EDUCACION | T14: 38.05594554 | V14: AGENCIA NACIONAL DE MINERÍA (ANM) | W14: -9.031531285 | X14: 413
A15: TERRITORIAL | B15: TERRITORIAL | C15: VALLE DEL CAUCA - INDUSTRIA DE LICORES DEL VALLE DEL CAUCA | D15: 9999995.398 | E15: 208 | F15: 48076.90095 | I15: Selección Abreviada servicios de Salud | J15: -0.2712969075 | K15: -121.8123115 | L15: 449 | P15: ESTADISTICA | Q15: 0.1171185498 | S15: ESTADISTICA | T15: 0.1171185498 | V15: AGENCIA NACIONAL DEL ESPECTRO (ANE) | W15: -5.347696798 | X15: 82
A16: NACIONAL | B16: MINAS Y ENERGIA | C16: ECOPETROL - EMPRESA COLOMBIANA DE PETROLEOS | D16: 126626561.2 | E16: 2845 | F16: 44508.45738 | I16: Subasta | J16: 154.8053736 | K16: 1154693.282 | L16: 7459 | P16: FISCALIA | Q16: 0.4646579074 | S16: FISCALIA | T16: 0.4646579074 | V16: AGENCIA NACIONAL PARA LA SUPERACIÓN DE LA POBREZA EXTREMA (ANSPE) | W16: 9.531962793 | X16: 557
A17: TERRITORIAL | B17: TERRITORIAL | C17: NARIÑO - INSTITUTO DE SERVICIOS VARIOS DE IPIALES ISERVI E.S.P. | D17: 2606160.571 | E17: 73 | F17: 35700.82974 | I17: Total general | K17: 532190187.9 | L17: 757027 | P17: FUNCION PUBLICA | Q17: 0.1753365176 | S17: FUNCION PUBLICA | T17: 0.1753365176 | V17: AGENCIA PARA LA INFRAESTRUCTURA DEL META - AIM | W17: 19.69084123 | X17: 198
A18: TERRITORIAL | B18: TERRITORIAL | C18: ATLANTICO - CONTRALORIA DISTRITAL DE BARRANQUILLA | D18: 719995.7255 | E18: 36 | F18: 19999.88126 | P18: HACIENDA Y CREDITO PUBLICO | Q18: 3.575845034 | S18: HACIENDA Y CREDITO PUBLICO | T18: 3.575845034 | V18: AGENCIA PRESIDENCIAL DE COOPERACIÓN INTERNACIONAL DE COLOMBIA (APC) | W18: -5.127564657 | X18: 120
A19: TERRITORIAL | B19: TERRITORIAL | C19: SANTANDER - E.S.E. CLINICA GUANE Y SU RED INTEGRAL DE SALUD - FLORIDABLANCA | D19: 2851749.92 | E19: 156 | F19: 18280.44821 | P19: INCLUSION SOCIAL Y RECONCILIACION | Q19: 61.71408098 | S19: INCLUSION SOCIAL Y RECONCILIACION | T19: 61.71408098 | V19: AMAZONAS - ALCALDÍA MUNICIPIO DE LETICIA | W19: 110291.8176 | X19: 248
A20: TERRITORIAL | B20: TERRITORIAL | C20: BOLIVAR - E.S.E. HOSPITAL LOCAL CARTAGENA DE INDIAS | D20: 3056881.422 | E20: 200 | F20: 15284.40711 | I20: Etiquetas de fila | J20: Suma de Cambio % | K20: Cuenta de Numero de Identificación Unica del Contrato | L20: INDICADOR | P20: INTELIGENCIA | Q20: -0.05824734243 | S20: INTELIGENCIA | T20: -0.05824734243 | V20: AMAZONAS - ALCALDÍA MUNICIPIO DE PUERTO NARIÑO | W20: 8.159550298 | X20: 310
A21: TERRITORIAL | B21: TERRITORIAL | C21: ANTIOQUIA - E.S.E. HOSPITAL LA MISERICORDIA DE YALI | D21: 1711243.429 | E21: 189 | F21: 9054.198039 | I21: Asociación Público Privada | J21: 0.07234863275 | K21: 13 | L21: =+J21/K21 -> 0.005565279442 | P21: INTERIOR | Q21: 1.277710701 | S21: INTERIOR | T21: 1.277710701 | V21: AMAZONAS - ASAMBLEA DEPARTAMENTAL DEL AMAZONAS | W21: -0.1761366322 | X21: 23
A22: TERRITORIAL | B22: TERRITORIAL | C22: SANTANDER - ALCALDIA MUNICIPIO DE ARATOCA | D22: 1143862.452 | E22: 168 | F22: 6808.705073 | I22: Concurso de Méritos Abierto | J22: 78778016.68 | K22: 4839 | L22: =+J22/K22 -> 16279.81333 | P22: JUSTICIA Y DEL DERECHO | Q22: 1.181218147 | S22: JUSTICIA Y DEL DERECHO | T22: 1.181218147 | V22: AMAZONAS - CONTRALORÍA DEPARTAMENTAL DEL AMAZONAS | W22: -0.1097930855 | X22: 21
A23: TERRITORIAL | B23: TERRITORIAL | C23: CALDAS - HOSPITAL SAN JOSE DE SAMANA | D23: 2835006.429 | E23: 423 | F23: 6702.142859 | I23: Concurso de Méritos con Lista Corta | J23: 22.18914549 | K23: 77 | L23: 0.2881707207 | P23: MINAS Y ENERGIA | Q23: 3463.715614 | S23: MINAS Y ENERGIA | T23: 3463.715614 | V23: AMAZONAS - E.S.E. HOSPITAL SAN RAFAEL DE LETICIA | W23: 0 | X23: 1
A24: TERRITORIAL | B24: TERRITORIAL | C24: SUCRE - E.S.E. UNIDAD DE SALUD SAN FRANCISCO DE ASIS - SINCELEJO | D24: 1071277.771 | E24: 165 | F24: 6492.592551 | I24: Concurso de Méritos con Lista Multiusos | J24: 0.8979666925 | K24: 7 | L24: 0.1282809561 | P24: PLANEACION | Q24: -0.02665255022 | S24: PLANEACION | T24: -0.02665255022 | V24: AMAZONAS - ESCUELA NORMAL SUPERIOR MONSEÑOR MARCELIANO EDUARDO CANYES DE LETICIA | W24: -0.4885730858 | X24: 1
A25: TERRITORIAL | B25: TERRITORIAL | C25: TOLIMA - INSTITUCION EDUCATIVA SIMON BOLIVAR - COELLO | D25: 76922.0248 | E25: 12 | F25: 6410.168733 | I25: Contratación Directa (Ley 1150 de 2007) | J25: 89515521.29 | K25: 423981 | L25: 211.1309735 | P25: PRESIDENCIA DE LA REPUBLICA | Q25: -0.01632230149 | S25: PRESIDENCIA DE LA REPUBLICA | T25: -0.01632230149 | V25: AMAZONAS - GOBERNACIÓN | W25: 1024.183067 | X25: 844
A26: TERRITORIAL | B26: TERRITORIAL | C26: META - ALCALDIA MUNICIPIO DE ACACIAS | D26: 2325033.857 | E26: 435 | F26: 5344.905418 | I26: Contratación Mínima Cuantía | J26: 28294653.06 | K26: 137123 | L26: 206.3450556 | P26: RAMA JUDICIAL | Q26: 0.2747201203 | S26: RAMA JUDICIAL | T26: 0.2747201203 | V26: AMAZONAS - INSTITUCIÓN EDUCATIVA FRANCISCO DEL ROSARIO VELA GONZÁLEZ - LETICIA | W26: -0.1200788779 | X26: 1
A27: TERRITORIAL | B27: TERRITORIAL | C27: CASANARE - ALCALDIA MUNICIPIO DE TAURAMENA | D27: 2306346.532 | E27: 435 | F27: 5301.946051 | I27: Licitación Pública | J27: 85533373.37 | K27: 8635 | L27: 9905.4283 | P27: RAMA LEGISLATIVA | Q27: 0.05750610853 | S27: RAMA LEGISLATIVA | T27: 0.05750610853 | V27: AMAZONAS - INSTITUCIÓN EDUCATIVA SAN FRANCISCO DE LORETOYACO - PUERTO NARIÑO | W27: -0.07445965628 | X27: 1
A28: TERRITORIAL | B28: TERRITORIAL | C28: RISARALDA - ALCALDIA MUNICIPIO DE QUINCHIA | D28: 753387.8423 | E28: 143 | F28: 5268.44645 | I28: Régimen Especial | J28: 179713816.8 | K28: 159391 | L28: 1127.502913 | P28: REGISTRADURIA | Q28: 0.1408893066 | S28: REGISTRADURIA | T28: 0.1408893066 | V28: AMAZONAS - INSTITUCIÓN EDUCATIVA SAN JUAN BOSCO - LETICIA | W28: -0.002906976744 | X28: 1
A29: TERRITORIAL | B29: TERRITORIAL | C29: QUINDIO - ALCALDIA MUNICIPIO DE PIJAO | D29: 692309.0178 | E29: 132 | F29: 5244.765287 | I29: Selección Abreviada de Menor Cuantía (Ley 1150 de 2007) | J29: 69200222.27 | K29: 14911 | L29: 4640.884064 | P29: RELACIONES EXTERIORES | Q29: 0.02556629921 | S29: RELACIONES EXTERIORES | T29: 0.02556629921 | V29: AMAZONAS - INSTITUCIÓN EDUCATIVA VILLA CARMEN - TARAPACÁ | W29: -0.0008668400347 | X29: 1
A30: TERRITORIAL | B30: TERRITORIAL | C30: SANTANDER - INSTITUTO PARA LA RECREACION Y EL DEPORTE DE FLORIDABLANCA | D30: 423535.5995 | E30: 93 | F30: 4554.146231 | I30: Selección Abreviada del literal h del numeral 2 del artículo 2 de la Ley 1150 de 2007 | J30: -10.2336388 | K30: 142 | L30: -0.07206787886 | P30: SALUD Y PROTECCION SOCIAL | Q30: 5.210739393 | S30: SALUD Y PROTECCION SOCIAL | T30: 5.210739393 | V30: AMAZONAS - INSTITUTO DEPARTAMENTAL DEL DEPORTE Y RECREACIÓN DEL AMAZONAS - LETICIA | W30: -1.128234854 | X30: 41
A31: TERRITORIAL | B31: TERRITORIAL | C31: BOGOTA D.C. - SECRETARIA DISTRITAL DEL HABITAT | D31: 1135101.928 | E31: 313 | F31: 3626.52373 | I31: Selección Abreviada servicios de Salud | J31: -121.8123115 | K31: 449 | L31: -0.2712969075 | P31: TECNOLOGIAS DE LA INFORMACION Y LAS COMUNICACIONES | Q31: 174.5996289 | S31: TECNOLOGIAS DE LA INFORMACION Y LAS COMUNICACIONES | T31: 174.5996289 | V31: ANTIOQUIA - ADMINISTRADOR DEL PATRIMONIO ESCINDIDO DE EMPRESAS VARIAS DE MEDELLÍN E.S.P. APEV | W31: 0 | X31: 2
A32: TERRITORIAL | B32: TERRITORIAL | C32: CALDAS - ALCALDIA MUNICIPIO DE PALESTINA | D32: 771429.4696 | E32: 242 | F32: 3187.725081 | I32: Subasta | J32: 1154693.282 | K32: 7459 | L32: 154.8053736 | P32: TERRITORIAL | Q32: 509.3600983 | S32: TERRITORIAL | T32: 509.3600983 | V32: ANTIOQUIA - AEROPUERTO OLAYA HERRERA DE MEDELLÍN | W32: -2.231652788 | X32: 50
A33: TERRITORIAL | B33: TERRITORIAL | C33: SANTANDER - DIRECCION DE TRANSITO DE BUCARAMANGA | D33: 768695.6639 | E33: 242 | F33: 3176.428363 | I33: Total general | J33: 532190187.9 | K33: 757027 | P33: TRABAJO | Q33: 1.115103287 | S33: TRABAJO | T33: 1.115103287 | V33: ANTIOQUIA - AGENCIA DE COOPERACIÓN E INVERSIÓN DE MEDELLÍN Y EL ÁREA METROPOLITANA | W33: 3.970746147 | X33: 93
A34: TERRITORIAL | B34: TERRITORIAL | C34: ANTIOQUIA - EMPRESA DE SERVICIOS PUBLICOS DOMICILIARIOS DE ACUEDUCTO, ALCANTARILLADO Y ASEO DE YONDO E.S.P. | D34: 465491.9707 | E34: 147 | F34: 3166.612045 | P34: TRANSPORTE | Q34: 1.586215914 | S34: TRANSPORTE | T34: 1.586215914 | V34: ANTIOQUIA - AGENCIA DE EDUCACIÓN SUPERIOR DE MEDELLÍN SAPIENCIA | W34: 6.56843261 | X34: 76
A35: TERRITORIAL | B35: TERRITORIAL | C35: BOGOTA D.C. - IED. MARCO TULIO FERNANDEZ | D35: 81368.40922 | E35: 27 | F35: 3013.644786 | P35: VIVIENDA, CIUDAD Y TERRITORIO | Q35: 0.8178397192 | S35: VIVIENDA, CIUDAD Y TERRITORIO | T35: 0.8178397192 | V35: ANTIOQUIA - AGENCIA PARA LA GESTIÓN DEL PAISAJE, EL PATRIMONIO Y LAS ALIANZAS PÚBLICO - PRIVADAS - MEDELLIN | W35: -4.258068235 | X35: 37
A36: TERRITORIAL | B36: TERRITORIAL | C36: CUNDINAMARCA - ALCALDIA MUNICIPIO DE ZIPACON | D36: 126132.6297 | E36: 42 | F36: 3003.157849 | P36: Grand Total | Q36: 498.2528138 | S36: Grand Total | T36: 498.2528138 | V36: ANTIOQUIA - AGUAS DE BAJO CAUCA S.A. E.S.P. - CAUCASIA | W36: 0 | X36: 3
A37: TERRITORIAL | B37: TERRITORIAL | C37: NARIÑO - ALCALDIA MUNICIPIO DE RICAURTE | D37: 990091.6674 | E37: 387 | F37: 2558.376401 | P37: Grand Total | Q37: 0.02111577202 | V37: ANTIOQUIA - AGUAS DE EL BAGRE S.A. E.S.P. - EL BAGRE | W37: 0 | X37: 69
A38: TERRITORIAL | B38: TERRITORIAL | C38: ARAUCA - EMPRESA DE ENERGIA DE ARAUCA ENELAR E.S.P. | D38: 714716.3345 | E38: 282 | F38: 2534.455087 | V38: ANTIOQUIA - AGUAS DE URABA S.A. E.S. - APARTADÓ | W38: -10.96436766 | X38: 25
A39: NACIONAL | B39: TECNOLOGIAS DE LA INFORMACION Y LAS COMUNICACIONES | C39: SERVICIOS POSTALES NACIONALES | D39: 1130227.461 | E39: 499 | F39: 2264.984892 | P39: Row Labels | Q39: Average of INDICADOR | S39: Row Labels | T39: Average of INDICADOR | V39: ANTIOQUIA - AGUAS DEL NORTE ANTIOQUEÑO S.A. E.S.P. - YARUMAL | W39: 0.4465547655 | X39: 21
A40: TERRITORIAL | B40: TERRITORIAL | C40: BOGOTA D.C. - IED. COLEGIO ALFONSO LOPEZ MICHELSEN | D40: 184809.9591 | E40: 87 | F40: 2124.252403 | P40: NACIONAL | Q40: 247.1811441 | S40: NACIONAL | T40: 247.1811441 | V40: ANTIOQUIA - AGUAS DEL PÁRAMO S.A.S E.S.P - SONSÓN | W40: 8.731450012 | X40: 42
A41: TERRITORIAL | B41: TERRITORIAL | C41: RISARALDA - ALCALDIA MUNICIPIO DE LA VIRGINIA | D41: 365705.1046 | E41: 181 | F41: 2020.470191 | P41: TERRITORIAL | Q41: 509.8398275 | S41: TERRITORIAL | T41: 509.8398275 | V41: ANTIOQUIA - AGUAS DEL PUERTO S.A. E.S.P. - PUERTO BERRÍO | W41: 0 | X41: 15
A42: TERRITORIAL | B42: TERRITORIAL | C42: VALLE DEL CAUCA - ALCALDIA MUNICIPIO DE EL CERRITO | D42: 457245.6041 | E42: 236 | F42: 1937.481373 | P42: Grand Total | Q42: 498.2528138 | S42: Grand Total | T42: 498.2528138 | V42: ANTIOQUIA - AGUAS Y ASEO DE EL PEÑOL E.S.P. - EL PEÑOL | W42: 7.898888889 | X42: 57
A43: TERRITORIAL | B43: TERRITORIAL | C43: GUAVIARE - ALCALDIA MUNICIPIO DE CALAMAR | D43: 310360.7182 | E43: 164 | F43: 1892.443404 | V43: ANTIOQUIA - ALCALDÍA MUNICIPIO DE ABEJORRAL | W43: 2.605528228 | X43: 249
A44: TERRITORIAL | B44: TERRITORIAL | C44: NORTE DE SANTANDER - ALCALDIA MUNICIPIO DE LA PLAYA | D44: 303855.7346 | E44: 182 | F44: 1669.537003 | V44: ANTIOQUIA - ALCALDÍA MUNICIPIO DE ABRIAQUI | W44: 0.1700959874 | X44: 67
A45: TERRITORIAL | B45: TERRITORIAL | C45: ANTIOQUIA - INSTITUCION EDUCATIVA TOMAS CARRASQUILLA N° 2 - SANTA ROSA DE OSOS | D45: 45708.30094 | E45: 28 | F45: 1632.439319 | V45: ANTIOQUIA - ALCALDÍA MUNICIPIO DE ALEJANDRÍA | W45: 1.740915568 | X45: 232
A46: TERRITORIAL | B46: TERRITORIAL | C46: ANTIOQUIA - BIBLIOTECA PUBLICA PILOTO DE MEDELLIN PARA AMERICA LATINA - MEDELLIN | D46: 1208242.904 | E46: 887 | F46: 1362.167874 | V46: ANTIOQUIA - ALCALDÍA MUNICIPIO DE AMAGÁ | W46: 19.68495038 | X46: 183
A47: TERRITORIAL | B47: TERRITORIAL | C47: RISARALDA - E.S.E. SALUD PEREIRA | D47: 199590.0433 | E47: 195 | F47: 1023.538684 | V47: ANTIOQUIA - ALCALDÍA MUNICIPIO DE AMALFI | W47: 30.80543835 | X47: 479
A48: TERRITORIAL | B48: TERRITORIAL | C48: NORTE DE SANTANDER - UNIDAD DE SERVICIOS PUBLICOS DE CONVENCION | D48: 15007.40349 | E48: 15 | F48: 1000.493566 | V48: ANTIOQUIA - ALCALDÍA MUNICIPIO DE ANDES | W48: -0.1895700253 | X48: 389
A49: TERRITORIAL | B49: TERRITORIAL | C49: BOGOTA D.C. - IED. GUSTAVO RESTREPO | D49: 90485.13213 | E49: 138 | F49: 655.6893632 | V49: ANTIOQUIA - ALCALDÍA MUNICIPIO DE ANGELÓPOLIS | W49: -1.520521095 | X49: 166
A50: TERRITORIAL | B50: TERRITORIAL | C50: NORTE DE SANTANDER - ALCALDIA MUNICIPIO DE SAN CALIXTO | D50: 101837.1752 | E50: 191 | F50: 533.1789276 | V50: ANTIOQUIA - ALCALDÍA MUNICIPIO DE ANGOSTURA | W50: 18.10241684 | X50: 317
A51: NACIONAL | B51: MINAS Y ENERGIA | C51: BOGOTA D.C. - INTERNEXA S.A. E.S.P. | D51: 998.9997201 | E51: 2 | F51: 499.49986 | V51: ANTIOQUIA - ALCALDÍA MUNICIPIO DE ANORI | W51: -0.06057672394 | X51: 122
A52: TERRITORIAL | B52: TERRITORIAL | C52: BOLIVAR - CONCEJO DISTRITAL DE CARTAGENA DE INDIAS | D52: 141193.7665 | E52: 305 | F52: 462.9303821 | V52: ANTIOQUIA - ALCALDÍA MUNICIPIO DE ANZA | W52: 2.048409682 | X52: 212
A53: TERRITORIAL | B53: TERRITORIAL | C53: VALLE DEL CAUCA - CONTRALORIA DISTRITAL DE BUENAVENTURA | D53: 65797.61529 | E53: 145 | F53: 453.7766571 | V53: ANTIOQUIA - ALCALDÍA MUNICIPIO DE APARTADÓ | W53: 22.53148805 | X53: 304
A54: TERRITORIAL | B54: TERRITORIAL | C54: AMAZONAS - ALCALDIA MUNICIPIO DE LETICIA | D54: 110291.8176 | E54: 248 | F54: 444.7250712 | V54: ANTIOQUIA - ALCALDÍA MUNICIPIO DE ARBOLETES | W54: 5.343464693 | X54: 204
A55: TERRITORIAL | B55: TERRITORIAL | C55: ANTIOQUIA - INSTITUTO DE DEPORTES Y RECREACION DE MEDELLIN - INDER MEDELLIN | D55: 1045035.818 | E55: 2740 | F55: 381.3999336 | V55: ANTIOQUIA - ALCALDÍA MUNICIPIO DE ARGELIA | W55: 0 | X55: 24
A56: NACIONAL | B56: EDUCACION | C56: TOLIMA - UNIVERSIDAD DEL TOLIMA | D56: 402379.9455 | E56: 1081 | F56: 372.2293668 | V56: ANTIOQUIA - ALCALDÍA MUNICIPIO DE ARMENIA | W56: -1.581152314 | X56: 65
A57: TERRITORIAL | B57: TERRITORIAL | C57: TOLIMA - E.S.E. HOSPITAL REGIONAL - EL LIBANO | D57: 123721.9076 | E57: 333 | F57: 371.53726 | V57: ANTIOQUIA - ALCALDÍA MUNICIPIO DE BARBOSA | W57: 8.33824533 | X57: 327
A58: TERRITORIAL | B58: TERRITORIAL | C58: BOYACA - E.S.E. SALUD SOGAMOSO | D58: 56884.0888 | E58: 154 | F58: 369.3772 | V58: ANTIOQUIA - ALCALDÍA MUNICIPIO DE BELLO | W58: 150.1071742 | X58: 865
A59: TERRITORIAL | B59: TERRITORIAL | C59: META - E.S.E. HOSPITAL LOCAL FUENTEDEORO | D59: 28867.37716 | E59: 87 | F59: 331.8089329 | V59: ANTIOQUIA - ALCALDÍA MUNICIPIO DE BELMIRA | W59: -3.465268468 | X59: 177
A60: NACIONAL | B60: INCLUSION SOCIAL Y RECONCILIACION | C60: UNIDAD ADMINISTRATIVA PARA LA CONSOLIDACION TERRITORIAL (UACT) | D60: 47204.32848 | E60: 145 | F60: 325.547093 | V60: ANTIOQUIA - ALCALDÍA MUNICIPIO DE BETANIA | W60: 996.8994473 | X60: 165
A61: TERRITORIAL | B61: TERRITORIAL | C61: ANTIOQUIA - ALCALDIA MUNICIPIO DE YOLOMBO | D61: 100653.0132 | E61: 326 | F61: 308.7515743 | V61: ANTIOQUIA - ALCALDÍA MUNICIPIO DE BETULIA | W61: 0.2556995576 | X61: 229
A62: TERRITORIAL | B62: TERRITORIAL | C62: CALDAS - ALCALDIA MUNICIPIO DE AGUADAS | D62: 124663.8151 | E62: 408 | F62: 305.5485664 | V62: ANTIOQUIA - ALCALDÍA MUNICIPIO DE BRICEÑO | W62: -3.880599884 | X62: 298
A63: TERRITORIAL | B63: TERRITORIAL | C63: META - INSTITUTO DE CULTURA DEL META | D63: 94171.28465 | E63: 330 | F63: 285.3675292 | V63: ANTIOQUIA - ALCALDÍA MUNICIPIO DE BURITICÁ | W63: 25.25050066 | X63: 186
A64: TERRITORIAL | B64: TERRITORIAL | C64: ARAUCA - E.S.E. MORENO Y CLAVIJO - ARAUCA | D64: 14890.07094 | E64: 55 | F64: 270.7285626 | V64: ANTIOQUIA - ALCALDÍA MUNICIPIO DE CÁCERES | W64: -0.8768653797 | X64: 147
A65: TERRITORIAL | B65: TERRITORIAL | C65: SANTANDER - ASOCIACION DE MUNICIPIOS AGROPECUARIO DE LA SUBREGION DE LOS YARIGUIES | D65: 999 | E65: 5 | F65: 199.8 | V65: ANTIOQUIA - ALCALDÍA MUNICIPIO DE CAICEDO | W65: 4.571040013 | X65: 281
A66: TERRITORIAL | B66: TERRITORIAL | C66: QUINDIO - INSTITUCION EDUCATIVA CIUDADELA DEL SUR | D66: 18604.60522 | E66: 97 | F66: 191.8000538 | V66: ANTIOQUIA - ALCALDÍA MUNICIPIO DE CALDAS | W66: 20.75346003 | X66: 576
A67: TERRITORIAL | B67: TERRITORIAL | C67: GUAVIARE - E.S.E. RED DE SERVICIOS DE SALUD DE PRIMER NIVEL | D67: 97111.20611 | E67: 509 | F67: 190.7882242 | V67: ANTIOQUIA - ALCALDÍA MUNICIPIO DE CAMPAMENTO | W67: 11.23725657 | X67: 294
A68: TERRITORIAL | B68: TERRITORIAL | C68: VALLE DEL CAUCA - ALCALDIA MUNICIPIO DE SEVILLA | D68: 56911.48445 | E68: 309 | F68: 184.1795613 | V68: ANTIOQUIA - ALCALDÍA MUNICIPIO DE CAÑASGORDAS | W68: 12.61428627 | X68: 222
A69: TERRITORIAL | B69: TERRITORIAL | C69: VALLE DEL CAUCA - EMPRESAS MUNICIPALES DE TULUA | D69: 6566.803499 | E69: 36 | F69: 182.4112083 | V69: ANTIOQUIA - ALCALDÍA MUNICIPIO DE CARACOLÍ | W69: 0.2979726456 | X69: 137
A70: TERRITORIAL | B70: TERRITORIAL | C70: MAGDALENA - PERSONERIA MUNICIPIO DE PUEBLO VIEJO | D70: 998.9477002 | E70: 6 | F70: 166.4912834 | V70: ANTIOQUIA - ALCALDÍA MUNICIPIO DE CARAMANTA | W70: 10.54757927 | X70: 97
A71: NACIONAL | B71: EDUCACION | C71: MINISTERIO DE EDUCACION NACIONAL (MEN) | D71: 162320.0841 | E71: 1009 | F71: 160.872234 | V71: ANTIOQUIA - ALCALDÍA MUNICIPIO DE CAREPA | W71: -8.735416048 | X71: 239
A72: TERRITORIAL | B72: TERRITORIAL | C72: ANTIOQUIA - CONCEJO MUNICIPIO DE SANTAFE DE ANTIOQUIA | D72: 962.15395 | E72: 6 | F72: 160.3589917 | V72: ANTIOQUIA - ALCALDÍA MUNICIPIO DE CARMEN DE VIBORAL | W72: 3.93464282 | X72: 173
A73: TERRITORIAL | B73: TERRITORIAL | C73: BOGOTA D.C. - IED. TOM ADAMS | D73: 17974.23511 | E73: 118 | F73: 152.3240263 | V73: ANTIOQUIA - ALCALDÍA MUNICIPIO DE CAROLINA | W73: -7.088595305 | X73: 318
A74: TERRITORIAL | B74: TERRITORIAL | C74: BOYACA - ALCALDIA MUNICIPIO DE PACHAVITA | D74: 21284.59126 | E74: 149 | F74: 142.8496058 | V74: ANTIOQUIA - ALCALDÍA MUNICIPIO DE CAUCASIA | W74: 97.15881285 | X74: 296
A75: TERRITORIAL | B75: TERRITORIAL | C75: SAN ANDRES, PROVIDENCIA Y SANTA CATALINA - ALCALDIA MUNICIPIO DE PROVIDENCIA Y SANTA CATALINA | D75: 104114.0155 | E75: 731 | F75: 142.4268338 | V75: ANTIOQUIA - ALCALDÍA MUNICIPIO DE CHIGORODÓ | W75: -2.309769757 | X75: 190
A76: TERRITORIAL | B76: TERRITORIAL | C76: META - ALCALDIA MUNICIPIO DE BARRANCA DE UPIA | D76: 21950.89283 | E76: 158 | F76: 138.9297014 | V76: ANTIOQUIA - ALCALDÍA MUNICIPIO DE CISNEROS | W76: 3.375718397 | X76: 217
A77: TERRITORIAL | B77: TERRITORIAL | C77: ANTIOQUIA - ALCALDIA MUNICIPIO DE SANTA FE DE ANTIOQUIA | D77: 55103.55371 | E77: 424 | F77: 129.9612116 | V77: ANTIOQUIA - ALCALDÍA MUNICIPIO DE CIUDAD BOLÍVAR | W77: 10.41142976 | X77: 169
A78: TERRITORIAL | B78: TERRITORIAL | C78: HUILA - E.S.E. HOSPITAL LAURA PERDOMO DE GARCIA - YAGUARA | D78: 33300.62414 | E78: 275 | F78: 121.0931787 | V78: ANTIOQUIA - ALCALDÍA MUNICIPIO DE COCORNÁ | W78: 1004.03214 | X78: 379
A79: NACIONAL | B79: INCLUSION SOCIAL Y RECONCILIACION | C79: INSTITUTO COLOMBIANO DE BIENESTAR FAMILIAR (ICBF) | D79: 1349916.453 | E79: 12683 | F79: 106.4351063 | V79: ANTIOQUIA - ALCALDÍA MUNICIPIO DE CONCEPCIÓN | W79: 3.636596382 | X79: 305
A80: TERRITORIAL | B80: TERRITORIAL | C80: BOYACA - E.S.E. CENTRO DE SALUD BETEITIVA | D80: 99 | E80: 1 | F80: 99 | V80: ANTIOQUIA - ALCALDÍA MUNICIPIO DE CONCORDIA | W80: 9.810238359 | X80: 179
A81: TERRITORIAL | B81: TERRITORIAL | C81: NORTE DE SANTANDER - GOBERNACION | D81: 108340.9012 | E81: 1141 | F81: 94.95258651 | V81: ANTIOQUIA - ALCALDÍA MUNICIPIO DE COPACABANA | W81: 90.07966816 | X81: 410
A82: TERRITORIAL | B82: TERRITORIAL | C82: PUTUMAYO - GOBERNACION | D82: 82684.18421 | E82: 918 | F82: 90.06991744 | V82: ANTIOQUIA - ALCALDÍA MUNICIPIO DE DABEIBA | W82: -3.982007118 | X82: 450
A83: TERRITORIAL | B83: TERRITORIAL | C83: BOYACA - ALCALDIA MUNICIPIO DE CHITARAQUE | D83: 9998.199688 | E83: 117 | F83: 85.45469818 | V83: ANTIOQUIA - ALCALDÍA MUNICIPIO DE DON MATÍAS | W83: 24.47697647 | X83: 283
A84: TERRITORIAL | B84: TERRITORIAL | C84: VALLE DEL CAUCA - ALCALDIA MUNICIPIO DE JAMUNDI | D84: 29207.42735 | E84: 413 | F84: 70.72016307 | V84: ANTIOQUIA - ALCALDÍA MUNICIPIO DE EBÉJICO | W84: -2.614717208 | X84: 143
A85: TERRITORIAL | B85: TERRITORIAL | C85: TOLIMA - HOSPITAL SERAFIN MONTAÑA CUELLAR DE SAN LUIS | D85: 18179.71605 | E85: 258 | F85: 70.4640157 | V85: ANTIOQUIA - ALCALDÍA MUNICIPIO DE EL BAGRE | W85: 7.804802473 | X85: 369
A86: TERRITORIAL | B86: TERRITORIAL | C86: VALLE DEL CAUCA - ALCALDIA MUNICIPIO DE TULUA | D86: 75946.73918 | E86: 1085 | F86: 69.99699464 | V86: ANTIOQUIA - ALCALDÍA MUNICIPIO DE EL PEÑOL | W86: 18.73283104 | X86: 363
A87: TERRITORIAL | B87: TERRITORIAL | C87: HUILA - E.S.E. HOSPITAL DEL ROSARIO - CAMPOALEGRE | D87: 21746.23043 | E87: 324 | F87: 67.11799517 | V87: ANTIOQUIA - ALCALDÍA MUNICIPIO DE EL RETIRO | W87: 78777994.08 | X87: 304
A88: TERRITORIAL | B88: TERRITORIAL | C88: MAGDALENA - ALCALDIA DISTRITO TURISTICO CULTURAL E HISTORICO DE SANTA MARTA | D88: 41865.70871 | E88: 651 | F88: 64.30984441 | V88: ANTIOQUIA - ALCALDÍA MUNICIPIO DE ENTRERRIOS | W88: 5.956914354 | X88: 224
A89: TERRITORIAL | B89: TERRITORIAL | C89: CALDAS - ALCALDIA MUNICIPIO DE VILLAMARIA | D89: 28308.54052 | E89: 454 | F89: 62.35361347 | V89: ANTIOQUIA - ALCALDÍA MUNICIPIO DE ENVIGADO | W89: 1010.773967 | X89: 1125
A90: TERRITORIAL | B90: TERRITORIAL | C90: ANTIOQUIA - E.S.E. BELLO SALUD | D90: 25337.3681 | E90: 421 | F90: 60.1837722 | V90: ANTIOQUIA - ALCALDÍA MUNICIPIO DE FREDONIA | W90: -1.861664884 | X90: 177
A91: TERRITORIAL | B91: TERRITORIAL | C91: BOYACA - E.S.E. CENTRO SALUD PAYA BOYACA | D91: 999 | E91: 17 | F91: 58.76470588 | V91: ANTIOQUIA - ALCALDÍA MUNICIPIO DE FRONTINO | W91: -1.121083607 | X91: 84
A92: NACIONAL | B92: HACIENDA Y CREDITO PUBLICO | C92: CONTADURIA GENERAL DE LA NACION (CGN) | D92: 11992.12421 | E92: 205 | F92: 58.49816689 | V92: ANTIOQUIA - ALCALDÍA MUNICIPIO DE GIRALDO | W92: 2000.058353 | X92: 167
A93: TERRITORIAL | B93: TERRITORIAL | C93: BOGOTA D.C. - E.S.E. SAN CRISTOBAL | D93: 295793.7205 | E93: 5089 | F93: 58.12413451 | V93: ANTIOQUIA - ALCALDÍA MUNICIPIO DE GIRARDOTA | W93: 91.73638191 | X93: 566
A94: TERRITORIAL | B94: TERRITORIAL | C94: BOYACA - E.S.E. HOSPITAL JOSE CAYETANO VASQUEZ - PUERTO BOYACA | D94: 29760.45044 | E94: 572 | F94: 52.02875951 | V94: ANTIOQUIA - ALCALDÍA MUNICIPIO DE GÓMEZ PLATA | W94: 8.276084937 | X94: 212
A95: TERRITORIAL | B95: TERRITORIAL | C95: CUNDINAMARCA - E.S.E. HOSPITAL SALAZAR - VILLETA | D95: 6682.367558 | E95: 131 | F95: 51.01043937 | V95: ANTIOQUIA - ALCALDÍA MUNICIPIO DE GRANADA | W95: 11.42356415 | X95: 154
A96: TERRITORIAL | B96: TERRITORIAL | C96: CUNDINAMARCA - ALCALDIA MUNICIPIO DE JUNIN | D96: 7101.201429 | E96: 144 | F96: 49.31389881 | V96: ANTIOQUIA - ALCALDÍA MUNICIPIO DE GUADALUPE | W96: -2.766050632 | X96: 203
A97: TERRITORIAL | B97: TERRITORIAL | C97: CORMACARENA - CORPORACION PARA EL DESARROLLO SOSTENIBLE DE LA MACARENA | D97: 27098.26374 | E97: 555 | F97: 48.82570044 | V97: ANTIOQUIA - ALCALDÍA MUNICIPIO DE GUARNE | W97: 32.92575661 | X97: 442
A98: TERRITORIAL | B98: TERRITORIAL | C98: CUNDINAMARCA - CONCEJO MUNICIPIO DE TOCANCIPA | D98: 998.44581 | E98: 21 | F98: 47.54503857 | V98: ANTIOQUIA - ALCALDÍA MUNICIPIO DE GUATAPÉ | W98: 17.1028657 | X98: 294
A99: TERRITORIAL | B99: TERRITORIAL | C99: ANTIOQUIA - FONDO DE VIVIENDA DE INTERES SOCIAL Y REFORMA URBANA EL BAGRE | D99: 999.0339826 | E99: 24 | F99: 41.62641594 | V99: ANTIOQUIA - ALCALDÍA MUNICIPIO DE HELICONIA | W99: 15.35495247 | X99: 236
A100: NACIONAL | B100: SALUD Y PROTECCION SOCIAL | C100: FONDO NACIONAL DE ESTUPEFACIENTES | D100: 1770.637505 | E100: 45 | F100: 39.34750012 | V100: ANTIOQUIA - ALCALDÍA MUNICIPIO DE HISPANIA | W100: -4.64968464 | X100: 131
A101: TERRITORIAL | B101: TERRITORIAL | C101: CAUCA - ALCALDIA MUNICIPIO DE TIMBIO | D101: 8325.345849 | E101: 233 | F101: 35.73109806 | V101: ANTIOQUIA - ALCALDÍA MUNICIPIO DE ITAGÜÍ | W101: 25.3755994 | X101: 217
A102: TERRITORIAL | B102: TERRITORIAL | C102: ATLANTICO - CONTRALORIA MUNICIPAL DE SOLEDAD | D102: 998.6823553 | E102: 30 | F102: 33.28941184 | V102: ANTIOQUIA - ALCALDÍA MUNICIPIO DE ITUANGO | W102: 9.290923949 | X102: 423
A103: TERRITORIAL | B103: TERRITORIAL | C103: ANTIOQUIA - E.S.E. HOSPITAL LA MISERICORDIA - ANGELOPOLIS | D103: 4872.198696 | E103: 151 | F103: 32.26621653 | V103: ANTIOQUIA - ALCALDÍA MUNICIPIO DE JARDÍN | W103: 7.574229328 | X103: 194
A104: TERRITORIAL | B104: TERRITORIAL | C104: CUNDINAMARCA - INSTITUCION EDUCATIVA MUNICIPAL LA GRANJA - ZIPAQUIRA | D104: 500 | E104: 18 | F104: 27.77777778 | V104: ANTIOQUIA - ALCALDÍA MUNICIPIO DE JERICÓ | W104: 1.190676676 | X104: 258
A105: TERRITORIAL | B105: TERRITORIAL | C105: ANTIOQUIA - E.S.E. HOSPITAL MARCO A. CARDONA - MACEO | D105: 1000.190245 | E105: 37 | F105: 27.03216877 | V105: ANTIOQUIA - ALCALDÍA MUNICIPIO DE LA CEJA | W105: -6.827166688 | X105: 361
A106: TERRITORIAL | B106: TERRITORIAL | C106: CAUCA - E.S.E. HOSPITAL FRANCISCO DE PAULA SANTANDER - SANTANDER DE QUILICHAO | D106: 30814.36034 | E106: 1156 | F106: 26.65602106 | V106: ANTIOQUIA - ALCALDÍA MUNICIPIO DE LA ESTRELLA | W106: 152.3347067 | X106: 787
A107: TERRITORIAL | B107: TERRITORIAL | C107: RISARALDA - E.S.E. HOSPITAL SAN JOSE DE BELEN DE UMBRIA | D107: 999.302996 | E107: 39 | F107: 25.62315374 | V107: ANTIOQUIA - ALCALDÍA MUNICIPIO DE LA PINTADA | W107: -1.89668812 | X107: 214
A108: TERRITORIAL | B108: TERRITORIAL | C108: NORTE DE SANTANDER - CONCEJO MUNICIPIO DE CUCUTA | D108: 999 | E108: 39 | F108: 25.61538462 | V108: ANTIOQUIA - ALCALDÍA MUNICIPIO DE LA UNIÓN | W108: 1009.691777 | X108: 187
A109: TERRITORIAL | B109: TERRITORIAL | C109: SANTANDER - ALCALDIA MUNICIPIO DE BUCARAMANGA | D109: 74995.96793 | E109: 3073 | F109: 24.40480571 | V109: ANTIOQUIA - ALCALDÍA MUNICIPIO DE LIBORINA | W109: 943.0427923 | X109: 300
A110: TERRITORIAL | B110: TERRITORIAL | C110: BOYACA - INSTITUTO MUNICIPAL DEL DEPORTE LA CULTURA Y LA RECREACION DE CHIQUINQUIRA | D110: 1001.242425 | E110: 44 | F110: 22.75550966 | V110: ANTIOQUIA - ALCALDÍA MUNICIPIO DE MACEO | W110: -0.7900512801 | X110: 90
A111: TERRITORIAL | B111: TERRITORIAL | C111: ATLANTICO - ALCALDIA MUNICIPIO DE PONEDERA | D111: 992.1626817 | E111: 46 | F111: 21.56875395 | V111: ANTIOQUIA - ALCALDÍA MUNICIPIO DE MARINILLA | W111: 11.35679663 | X111: 267
A112: TERRITORIAL | B112: TERRITORIAL | C112: CUNDINAMARCA - INSTITUTO DE CULTURA TURISMO RECREACION Y DEPORTES ICTRD - APULO | D112: 1007.998429 | E112: 48 | F112: 20.99996726 | V112: ANTIOQUIA - ALCALDÍA MUNICIPIO DE MEDELLÍN | W112: 3438.05151 | X112: 2276
A113: TERRITORIAL | B113: TERRITORIAL | C113: CESAR - ALCALDIA MUNICIPIO DE BOSCONIA | D113: 991.1847218 | E113: 52 | F113: 19.06124465 | V113: ANTIOQUIA - ALCALDÍA MUNICIPIO DE MONTEBELLO | W113: 1010.201432 | X113: 296
A114: NACIONAL | B114: MINAS Y ENERGIA | C114: INSTITUTO DE PLANIFICACION Y PROMOCION DE SOLUCIONES ENERGETICAS PARA LAS ZONAS NO INTERCONECTADAS (IPSE) | D114: 2541.676138 | E114: 142 | F114: 17.89912774 | V114: ANTIOQUIA - ALCALDÍA MUNICIPIO DE MURINDÓ | W114: 9.044776119 | X114: 44
A115: TERRITORIAL | B115: TERRITORIAL | C115: SANTANDER - ALCALDIA MUNICIPIO DE PUERTO WILCHES | D115: 999.8179695 | E115: 59 | F115: 16.94606728 | V115: ANTIOQUIA - ALCALDÍA MUNICIPIO DE MUTATÁ | W115: 1.708533638 | X115: 244
A116: TERRITORIAL | B116: TERRITORIAL | C116: RISARALDA - UNIVERSIDAD TECNOLOGICA DE PEREIRA | D116: 10079.25799 | E116: 598 | F116: 16.85494647 | V116: ANTIOQUIA - ALCALDÍA MUNICIPIO DE NARIÑO | W116: 1.894480252 | X116: 168
A117: TERRITORIAL | B117: TERRITORIAL | C117: BOYACA - CONCEJO MUNICIPIO DE TUNJA | D117: 997.8844219 | E117: 62 | F117: 16.09491003 | V117: ANTIOQUIA - ALCALDÍA MUNICIPIO DE NECHÍ | W117: 1.271421878 | X117: 31
A118: TERRITORIAL | B118: TERRITORIAL | C118: TOLIMA - E.S.E. HOSPITAL SANTA LUCIA - CAJAMARCA | D118: 998.001 | E118: 64 | F118: 15.59376562 | V118: ANTIOQUIA - ALCALDÍA MUNICIPIO DE NECOCLÍ | W118: 0.01502448493 | X118: 32
A119: TERRITORIAL | B119: TERRITORIAL | C119: QUINDIO - E.S.E. RED SALUD ARMENIA - ARMENIA | D119: 9999.605707 | E119: 704 | F119: 14.20398538 | V119: ANTIOQUIA - ALCALDÍA MUNICIPIO DE OLAYA | W119: -0.04226137341 | X119: 86
A120: TERRITORIAL | B120: TERRITORIAL | C120: CAUCA - EMPRESA CAUCANA DE SERVICIOS PUBLICOS EMCASERVICIOS S.A. E.S.P. | D120: 990.2774813 | E120: 71 | F120: 13.94757016 | V120: ANTIOQUIA - ALCALDÍA MUNICIPIO DE PEQUE | W120: 5.361976778 | X120: 211
A121: TERRITORIAL | B121: TERRITORIAL | C121: ATLANTICO - E.S.E. HOSPITAL NIÑO JESUS DE BARRANQUILLA | D121: 1000.182509 | E121: 74 | F121: 13.51597985 | V121: ANTIOQUIA - ALCALDÍA MUNICIPIO DE PUEBLO RICO | W121: 13.13675541 | X121: 147
A122: TERRITORIAL | B122: TERRITORIAL | C122: BOYACA - ALCALDIA MUNICIPIO DE RONDON | D122: 999.4732362 | E122: 74 | F122: 13.50639508 | V122: ANTIOQUIA - ALCALDÍA MUNICIPIO DE PUERTO BERRÍO | W122: 155.1609471 | X122: 253
A123: TERRITORIAL | B123: TERRITORIAL | C123: SANTANDER - E.S.E. INSTITUTO DE SALUD ISABU - BUCARAMANGA | D123: 998.5889814 | E123: 75 | F123: 13.31451975 | V123: ANTIOQUIA - ALCALDÍA MUNICIPIO DE PUERTO NARE | W123: 31.70321499 | X123: 339
A124: TERRITORIAL | B124: TERRITORIAL | C124: GUAVIARE - E.S.E. HOSPITAL SAN JOSE DEL GUAVIARE | D124: 6571.551941 | E124: 499 | F124: 13.16944277 | V124: ANTIOQUIA - ALCALDÍA MUNICIPIO DE PUERTO TRIUNFO | W124: 5007.135949 | X124: 488
A125: NACIONAL | B125: AMBIENTE Y DESARROLLO SOSTENIBLE | C125: COMISION DE REGULACION DE AGUA POTABLE Y SANEAMIENTO BASICO (CRA) | D125: 1085.054411 | E125: 83 | F125: 13.07294471 | V125: ANTIOQUIA - ALCALDÍA MUNICIPIO DE REMEDIOS | W125: 97.74765251 | X125: 281
A126: TERRITORIAL | B126: TERRITORIAL | C126: SANTANDER - ALCALDIA MUNICIPIO DE GUADALUPE | D126: 1001.324286 | E126: 81 | F126: 12.36202822 | V126: ANTIOQUIA - ALCALDÍA MUNICIPIO DE RIONEGRO | W126: 41.77977564 | X126: 229
A127: TERRITORIAL | B127: TERRITORIAL | C127: CALDAS - CENTRO DE RECEPCION DE MENORES DE MANIZALES - MANIZALES | D127: 1478.854597 | E127: 120 | F127: 12.32378831 | V127: ANTIOQUIA - ALCALDÍA MUNICIPIO DE SABANALARGA | W127: 97.58811081 | X127: 268
A128: TERRITORIAL | B128: TERRITORIAL | C128: ANTIOQUIA - ALCALDIA MUNICIPIO DE GIRALDO | D128: 2000.058353 | E128: 167 | F128: 11.97639732 | V128: ANTIOQUIA - ALCALDÍA MUNICIPIO DE SABANETA | W128: 2380.471114 | X128: 1049
A129: TERRITORIAL | B129: TERRITORIAL | C129: BOYACA - ALCALDIA MUNICIPIO DE QUIPAMA | D129: 998.629979 | E129: 86 | F129: 11.6119765 | V129: ANTIOQUIA - ALCALDÍA MUNICIPIO DE SALGAR | W129: 9.287081239 | X129: 259
A130: TERRITORIAL | B130: TERRITORIAL | C130: HUILA - ALCALDIA MUNICIPIO DE TESALIA | D130: 1001.083032 | E130: 87 | F130: 11.50670151 | V130: ANTIOQUIA - ALCALDÍA MUNICIPIO DE SAN ANDRÉS DE CUERQUIA | W130: 0.402703973 | X130: 13
A131: TERRITORIAL | B131: TERRITORIAL | C131: SANTANDER - ALCALDIA MUNICIPIO DE GAMBITA | D131: 999.4857341 | E131: 87 | F131: 11.48834177 | V131: ANTIOQUIA - ALCALDÍA MUNICIPIO DE SAN CARLOS | W131: 69000010.34 | X131: 500
A132: TERRITORIAL | B132: TERRITORIAL | C132: BOGOTA D.C. - E.S.E. HOSPITAL PABLO VI BOSA I NIVEL BOGOTA D.C. | D132: 48659.69163 | E132: 4272 | F132: 11.39037725 | V132: ANTIOQUIA - ALCALDÍA MUNICIPIO DE SAN FRANCISCO | W132: 1030.763889 | X132: 309
A133: NACIONAL | B133: TRANSPORTE | C133: SATENA - SERVICIO AEREO A TERRITORIOS NACIONALES | D133: 2002.190061 | E133: 180 | F133: 11.12327811 | V133: ANTIOQUIA - ALCALDÍA MUNICIPIO DE SAN JERÓNIMO | W133: 1000.595528 | X133: 236
A134: TERRITORIAL | B134: TERRITORIAL | C134: CORDOBA - E.S.E. HOSPITAL SAN VICENTE DE PAUL DE LORICA | D134: 1001.561029 | E134: 91 | F134: 11.00616516 | V134: ANTIOQUIA - ALCALDÍA MUNICIPIO DE SAN JOSÉ LA MONTAÑA | W134: 4.296978481 | X134: 143
A135: NACIONAL | B135: INTERIOR | C135: MINISTERIO DEL INTERIOR (MININTERIOR) | D135: 14748.75749 | E135: 1411 | F135: 10.45269844 | V135: ANTIOQUIA - ALCALDÍA MUNICIPIO DE SAN JUAN DE URABÁ | W135: 7.085999958 | X135: 249
A136: TERRITORIAL | B136: TERRITORIAL | C136: SANTANDER - E.S.E. HOSPITAL SAN SEBASTIAN DE SURATA - SURATA | D136: 1009.010662 | E136: 97 | F136: 10.40217177 | V136: ANTIOQUIA - ALCALDÍA MUNICIPIO DE SAN LUIS | W136: 31.43584514 | X136: 276
A137: TERRITORIAL | B137: TERRITORIAL | C137: ANTIOQUIA - ALCALDIA MUNICIPIO DE PUERTO TRIUNFO | D137: 5007.135949 | E137: 488 | F137: 10.26052449 | V137: ANTIOQUIA - ALCALDÍA MUNICIPIO DE SAN PEDRO | W137: 3134.834525 | X137: 399
A138: TERRITORIAL | B138: TERRITORIAL | C138: ANTIOQUIA - E.S.E. HOSPITAL PEDRO NEL CARDONA - ARBOLETES | D138: 3970.160641 | E138: 415 | F138: 9.566652147 | V138: ANTIOQUIA - ALCALDÍA MUNICIPIO DE SAN PEDRO DE URABÁ | W138: 37.64956326 | X138: 266
A139: TERRITORIAL | B139: TERRITORIAL | C139: VALLE DEL CAUCA - INSTITUTO MUNICIPAL DE REFORMA URBANA Y DE VIVIENDA DE INTERES SOCIAL DE YUMBO | D139: 996.4665675 | E139: 105 | F139: 9.490157785 | V139: ANTIOQUIA - ALCALDÍA MUNICIPIO DE SAN RAFAEL | W139: 22.68283879 | X139: 276
A140: NACIONAL | B140: CONTROL | C140: DEFENSORIA DEL PUEBLO (DEFENSORIA) | D140: 40558.49499 | E140: 4342 | F140: 9.340970749 | V140: ANTIOQUIA - ALCALDÍA MUNICIPIO DE SAN ROQUE | W140: -3.125211351 | X140: 218
A141: TERRITORIAL | B141: TERRITORIAL | C141: HUILA - ALCALDIA MUNICIPIO DE TERUEL | D141: 1026.858943 | E141: 111 | F141: 9.250981469 | V141: ANTIOQUIA - ALCALDÍA MUNICIPIO DE SAN VICENTE | W141: 65.26457714 | X141: 176
A142: TERRITORIAL | B142: TERRITORIAL | C142: RISARALDA - ALCALDIA MUNICIPIO DE PEREIRA | D142: 52488.65057 | E142: 5837 | F142: 8.992402016 | V142: ANTIOQUIA - ALCALDÍA MUNICIPIO DE SANTA BÁRBARA | W142: 8.482890075 | X142: 226
A143: TERRITORIAL | B143: TERRITORIAL | C143: SANTANDER - ALCALDIA MUNICIPIO DE MOGOTES | D143: 933.8896849 | E143: 106 | F143: 8.810280046 | V143: ANTIOQUIA - ALCALDÍA MUNICIPIO DE SANTA FE DE ANTIOQUIA | W143: 55103.55371 | X143: 424
A144: TERRITORIAL | B144: TERRITORIAL | C144: ANTIOQUIA - UNIVERSIDAD DE ANTIOQUIA | D144: 1010.318487 | E144: 116 | F144: 8.709642132 | V144: ANTIOQUIA - ALCALDÍA MUNICIPIO DE SANTA ROSA DE OSOS | W144: 15.37774351 | X144: 407
A145: TERRITORIAL | B145: TERRITORIAL | C145: CRQ - CORPORACION AUTONOMA REGIONAL DEL QUINDIO | D145: 5020.162604 | E145: 577 | F145: 8.700455119 | V145: ANTIOQUIA - ALCALDÍA MUNICIPIO DE SANTO DOMINGO | W145: 15.17519296 | X145: 208
A146: TERRITORIAL | B146: TERRITORIAL | C146: BOYACA - ALCALDIA MUNICIPIO DE BOYACA | D146: 921.6029147 | E146: 108 | F146: 8.533360321 | V146: ANTIOQUIA - ALCALDÍA MUNICIPIO DE SANTUARIO | W146: 3.423117903 | X146: 290
A147: TERRITORIAL | B147: TERRITORIAL | C147: BOGOTA D.C. - ALCALDIA LOCAL LA CANDELARIA | D147: 998.7457889 | E147: 123 | F147: 8.119884463 | V147: ANTIOQUIA - ALCALDÍA MUNICIPIO DE SEGOVIA | W147: -0.5316321106 | X147: 143
A148: TERRITORIAL | B148: TERRITORIAL | C148: ANTIOQUIA - ALCALDIA MUNICIPIO DE SAN PEDRO | D148: 3134.834525 | E148: 399 | F148: 7.856728133 | V148: ANTIOQUIA - ALCALDÍA MUNICIPIO DE SONSÓN | W148: 16.13435043 | X148: 580
A149: TERRITORIAL | B149: TERRITORIAL | C149: CAUCA - ALCALDIA MUNICIPIO DE LOPEZ DE MICAY | D149: 999.4475931 | E149: 131 | F149: 7.62937094 | V149: ANTIOQUIA - ALCALDÍA MUNICIPIO DE SOPETRÁN | W149: 4.453042617 | X149: 177
A150: TERRITORIAL | B150: TERRITORIAL | C150: ANTIOQUIA - ALCALDIA MUNICIPIO DE TAMESIS | D150: 1007.351095 | E150: 136 | F150: 7.406993343 | V150: ANTIOQUIA - ALCALDÍA MUNICIPIO DE TÁMESIS | W150: 1007.351095 | X150: 136
A151: TERRITORIAL | B151: TERRITORIAL | C151: CUNDINAMARCA - ALCALDIA MUNICIPIO DE CHIPAQUE | D151: 1995.189733 | E151: 278 | F151: 7.176941486 | V151: ANTIOQUIA - ALCALDÍA MUNICIPIO DE TARAZÁ | W151: -0.3801615799 | X151: 138
A152: NACIONAL | B152: JUSTICIA Y DEL DERECHO | C152: INSTITUTO NACIONAL PENITENCIARIO Y CARCELARIO (INPEC) | D152: 62877.46609 | E152: 8801 | F152: 7.144354743 | V152: ANTIOQUIA - ALCALDÍA MUNICIPIO DE TARSO | W152: 5.696574709 | X152: 191
A153: TERRITORIAL | B153: TERRITORIAL | C153: CORDOBA - ALCALDIA MUNICIPIO DE VALENCIA | D153: 997.7898209 | E153: 140 | F153: 7.127070149 | V153: ANTIOQUIA - ALCALDÍA MUNICIPIO DE TITIRIBÍ | W153: -0.9322000458 | X153: 216
A154: TERRITORIAL | B154: TERRITORIAL | C154: ANTIOQUIA - SOCIEDAD TELEVISION DE ANTIOQUIA LTDA. - TELEANTIOQUIA | D154: 29008.5941 | E154: 4095 | F154: 7.083905763 | V154: ANTIOQUIA - ALCALDÍA MUNICIPIO DE TOLEDO | W154: -1.688798477 | X154: 192
A155: TERRITORIAL | B155: TERRITORIAL | C155: CASANARE - CAPRESOCA E.P.S. | D155: 4601.287569 | E155: 651 | F155: 7.06803006 | V155: ANTIOQUIA - ALCALDÍA MUNICIPIO DE TURBO | W155: 12.17638221 | X155: 589
A156: TERRITORIAL | B156: TERRITORIAL | C156: QUINDIO - E.S.E. HOSPITAL LA MISERICORDIA DE CALARCA | D156: 1034.928443 | E156: 148 | F156: 6.992759747 | V156: ANTIOQUIA - ALCALDÍA MUNICIPIO DE URRAO | W156: -3.470428356 | X156: 195
A157: TERRITORIAL | B157: TERRITORIAL | C157: TOLIMA - ALCALDIA MUNICIPIO DE IBAGUE | D157: 21770.39891 | E157: 3150 | F157: 6.91123775 | V157: ANTIOQUIA - ALCALDÍA MUNICIPIO DE VALDIVIA | W157: 1.030547002 | X157: 201
A158: TERRITORIAL | B158: TERRITORIAL | C158: RISARALDA - ALCALDIA MUNICIPIO DE BALBOA | D158: 994.3282381 | E158: 145 | F158: 6.857436125 | V158: ANTIOQUIA - ALCALDÍA MUNICIPIO DE VALPARAÍSO | W158: 15.34892577 | X158: 167
A159: TERRITORIAL | B159: TERRITORIAL | C159: VAUPES - ALCALDIA MUNICIPIO DE CARURU | D159: 1520.024714 | E159: 222 | F159: 6.846958172 | V159: ANTIOQUIA - ALCALDÍA MUNICIPIO DE VEGACHÍ | W159: -1.068297541 | X159: 178
A160: TERRITORIAL | B160: TERRITORIAL | C160: TOLIMA - ALCALDIA MUNICIPIO DE LERIDA | D160: 997.524968 | E160: 149 | F160: 6.694798443 | V160: ANTIOQUIA - ALCALDÍA MUNICIPIO DE VENECIA | W160: 31.91211739 | X160: 341
A161: TERRITORIAL | B161: TERRITORIAL | C161: ANTIOQUIA - INSTITUTO DEL DEPORTE, LA RECREACION Y EL APROVECHAMIENTO DEL TIEMPO LIBRE DEL MUNICIPIO DE SANTO DOMINGO - JUNDEPORTES | D161: 99 | E161: 16 | F161: 6.1875 | V161: ANTIOQUIA - ALCALDÍA MUNICIPIO DE VIGÍA DEL FUERTE | W161: 9.783304628 | X161: 115
A162: TERRITORIAL | B162: TERRITORIAL | C162: ANTIOQUIA - ALCALDIA MUNICIPIO DE BETANIA | D162: 996.8994473 | E162: 165 | F162: 6.041814832 | V162: ANTIOQUIA - ALCALDÍA MUNICIPIO DE YALI | W162: 19.29045279 | X162: 235
A163: TERRITORIAL | B163: TERRITORIAL | C163: CORDOBA - ALCALDIA MUNICIPIO DE SAHAGUN | D163: 995.1697581 | E163: 165 | F163: 6.031331867 | V163: ANTIOQUIA - ALCALDÍA MUNICIPIO DE YARUMAL | W163: 1.384701283 | X163: 180
A164: TERRITORIAL | B164: TERRITORIAL | C164: ARAUCA - ALCALDIA MUNICIPIO DE ARAUQUITA | D164: 1144.141906 | E164: 190 | F164: 6.021799504 | V164: ANTIOQUIA - ALCALDÍA MUNICIPIO DE YOLOMBÓ | W164: 100653.0132 | X164: 326
A165: TERRITORIAL | B165: TERRITORIAL | C165: CUNDINAMARCA - HOSPITAL NUESTRA SEÑORA DEL CARMEN DE TABIO | D165: 1008.247717 | E165: 171 | F165: 5.896185477 | V165: ANTIOQUIA - ALCALDÍA MUNICIPIO DE YONDÓ | W165: 22.83903524 | X165: 435
A166: TERRITORIAL | B166: TERRITORIAL | C166: BOYACA - ALCALDIA MUNICIPIO DE SANTANA | D166: 853.6821171 | E166: 150 | F166: 5.691214114 | V166: ANTIOQUIA - ALCALDÍA MUNICIPIO DE ZARAGOZA | W166: 5.592876244 | X166: 254
A167: TERRITORIAL | B167: TERRITORIAL | C167: CUNDINAMARCA - ALCALDIA MUNICIPIO DE YACOPI | D167: 1006.670463 | E167: 179 | F167: 5.623857333 | V167: ANTIOQUIA - ÁREA METROPOLITANA DEL VALLE DE ABURRÁ - MEDELLÍN | W167: 998.3790421 | X167: 691
A168: NACIONAL | B168: TRABAJO | C168: SERVICIO NACIONAL DE APRENDIZAJE (SENA) | D168: 149599.0724 | E168: 26678 | F168: 5.607581992 | V168: ANTIOQUIA - ASAMBLEA DEPARTAMENTAL DE ANTIOQUIA | W168: 1.519797489 | X168: 114
A169: NACIONAL | B169: AGRICULTURA Y DESARROLLO RURAL | C169: AUTORIDAD NACIONAL DE ACUICULTURA Y PESCA (AUNAP) | D169: 1001.114105 | E169: 181 | F169: 5.531017156 | V169: ANTIOQUIA - ASOCIACIÓN CANAL LOCAL DE TELEVISIÓN DE MEDELLÍN - TELEMEDELLIN - | W169: 256.0038305 | X169: 1080
A170: TERRITORIAL | B170: TERRITORIAL | C170: ANTIOQUIA - ALCALDIA MUNICIPIO DE LA UNION | D170: 1009.691777 | E170: 187 | F170: 5.399421269 | V170: ANTIOQUIA - ASOCIACIÓN DE ÁREAS METROPOLITANAS DE COLOMBIA - MEDELLÍN | W170: 0 | X170: 2
A171: TERRITORIAL | B171: TERRITORIAL | C171: NORTE DE SANTANDER - ALCALDIA MUNICIPIO DE PAMPLONITA | D171: 1000.3129 | E171: 190 | F171: 5.264804737 | V171: ANTIOQUIA - ASOCIACIÓN DE MUNICIPIOS CORPORACIÓN AGENCIA PARA EL DESARROLLO DE LOS MUNICIPIOS DE LA SUBREGIÓN DE BOSQUES CORPOBOSQUES - RIONEGRO | W171: 0 | X171: 1
A172: TERRITORIAL | B172: TERRITORIAL | C172: CUNDINAMARCA - ALCALDIA MUNICIPIO DE TIBACUY | D172: 1031.542361 | E172: 197 | F172: 5.236255642 | V172: ANTIOQUIA - ASOCIACIÓN DE MUNICIPIOS DEL BAJO CAUCA Y DEL BAJO NECHÍ AMBACAN - CAUCASIA | W172: 0 | X172: 2
A173: TERRITORIAL | B173: TERRITORIAL | C173: META - ALCALDIA MUNICIPIO DE GRANADA | D173: 2261.019243 | E173: 436 | F173: 5.185823951 | V173: ANTIOQUIA - ASOCIACIÓN DE MUNICIPIOS UNIDOS DEL SUR DE ANTIOQUIA MUSA - SONSÓN | W173: -0.002074074074 | X173: 10
A174: TERRITORIAL | B174: TERRITORIAL | C174: VALLE DEL CAUCA - E.S.E. HOSPITAL UNIVERSITARIO DEL VALLE EVARISTO GARCIA | D174: 1025.224034 | E174: 198 | F174: 5.177899159 | V174: ANTIOQUIA - ASOCIACIÓN PROMOTORA DE TELEVISIÓN PISISI - TURBO | W174: 0 | X174: 10
A175: NACIONAL | B175: TECNOLOGIAS DE LA INFORMACION Y LAS COMUNICACIONES | C175: AUTORIDAD NACIONAL DE TELEVISION (ANTV) | D175: 1004.683432 | E175: 198 | F175: 5.074158745 | V175: ANTIOQUIA - BENEFICENCIA DE ANTIOQUIA | W175: 0.7617480191 | X175: 137
A176: TERRITORIAL | B176: TERRITORIAL | C176: NORTE DE SANTANDER - ALCALDIA MUNICIPIO DE GRAMALOTE | D176: 1011.618249 | E176: 208 | F176: 4.863549273 | V176: ANTIOQUIA - BIBLIOTECA PÚBLICA PILOTO DE MEDELLÍN PARA AMÉRICA LATINA - MEDELLÍN | W176: 1208242.904 | X176: 887
A177: TERRITORIAL | B177: TERRITORIAL | C177: CUNDINAMARCA - INSTITUCION EDUCATIVA MUNICIPAL SANTIAGO PEREZ - ZIPAQUIRA | D177: 129.5109459 | E177: 27 | F177: 4.796701701 | V177: ANTIOQUIA - CASA MUNICIPAL DE LA CULTURA CALDAS | W177: -1.519272861 | X177: 72
A178: TERRITORIAL | B178: TERRITORIAL | C178: CUNDINAMARCA - EMPRESA DE SERVICIOS PUBLICOS DE SOPO - EMSERSOPO | D178: 344.7230197 | E178: 72 | F178: 4.787819719 | V178: ANTIOQUIA - CENTRO DE BIENESTAR DEL ANCIANO SAN ANTONIO - SONSÓN | W178: 0.1217885027 | X178: 14
A179: TERRITORIAL | B179: TERRITORIAL | C179: BOGOTA D.C. - E.S.E. HOSPITAL CENTRO ORIENTE II NIVEL | D179: 6920.502542 | E179: 1472 | F179: 4.701428358 | V179: ANTIOQUIA - CENTRO EDUCATICO EL MANZANILLO - MEDELLÍN | W179: -0.4455477561 | X179: 9
A180: NACIONAL | B180: AMBIENTE Y DESARROLLO SOSTENIBLE | C180: CORMAGDALENA - CORPORACION AUTONOMA REGIONAL DEL RIO GRANDE DE LA MAGDALENA | D180: 491.987317 | E180: 107 | F180: 4.598012309 | V180: ANTIOQUIA - CENTRO EDUCATIVO EL SALADO - MEDELLÍN | W180: -0.6255927318 | X180: 4
A181: TERRITORIAL | B181: TERRITORIAL | C181: META - PERSONERIA MUNICIPIO DE EL CASTILLO | D181: 9 | E181: 2 | F181: 4.5 | V181: ANTIOQUIA - CENTRO EDUCATIVO LAS PLAYAS - MEDELLÍN | W181: 0.5260136863 | X181: 10
A182: TERRITORIAL | B182: TERRITORIAL | C182: ANTIOQUIA - INSTITUTO DE CULTURA Y PATRIMONIO DE ANTIOQUIA - MEDELLIN | D182: 1023.275302 | E182: 229 | F182: 4.468451098 | V182: ANTIOQUIA - CENTRO EDUCATIVO MEDIA LUNA - MEDELLÍN | W182: -0.8299350338 | X182: 11
A183: TERRITORIAL | B183: TERRITORIAL | C183: META - ALCALDIA MUNICIPIO DE GUAMAL | D183: 1092.435087 | E183: 246 | F183: 4.440793036 | V183: ANTIOQUIA - CENTRO EDUCATIVO PEDREGAL ALTO - MEDELLÍN | W183: -0.07266845926 | X183: 4
A184: TERRITORIAL | B184: TERRITORIAL | C184: ANTIOQUIA - EMPRESAS PUBLICAS DE LA CEJA DEL TAMBO E.S.P. | D184: 2029.769885 | E184: 465 | F184: 4.365096527 | V184: ANTIOQUIA - CENTRO EDUCATIVO PERMANENTE MAZO - MEDELLÍN | W184: -0.1378618876 | X184: 8
A185: TERRITORIAL | B185: TERRITORIAL | C185: BOYACA - ALCALDIA MUNICIPIO DE COMBITA | D185: 1004.64433 | E185: 236 | F185: 4.256967498 | V185: ANTIOQUIA - CENTRO EDUCATIVO TRAVESIAS EL MORRO - MEDELLÍN | W185: -0.3942857143 | X185: 1
A186: TERRITORIAL | B186: TERRITORIAL | C186: ANTIOQUIA - ALCALDIA MUNICIPIO DE SAN JERONIMO | D186: 1000.595528 | E186: 236 | F186: 4.239811561 | V186: ANTIOQUIA - CENTRO PROVINCIAL DE GESTIÓN MINERO AGROEMPRESARIAL DEL ALTO NORDESTE - SEGOVIA | W186: 0.7503722002 | X186: 108
A187: TERRITORIAL | B187: TERRITORIAL | C187: HUILA - ALCALDIA MUNICIPIO DE ISNOS | D187: 665.1334176 | E187: 162 | F187: 4.105761837 | V187: ANTIOQUIA - COMERCIALIZADORA LOTTIRED S.A.S. - MEDELLÍN | W187: 0 | X187: 9
A188: TERRITORIAL | B188: TERRITORIAL | C188: BOLIVAR - FONDO DE VIVIENDA DE INTERES SOCIAL Y REFORMA URBANA DISTRITAL DE CARTAGENA DE INDIAS | D188: 831.8722197 | E188: 205 | F188: 4.057913267 | V188: ANTIOQUIA - CONCEJO MUNICIPAL CALDAS | W188: 2.8976608 | X188: 22
A189: TERRITORIAL | B189: TERRITORIAL | C189: META - ALCALDIA MUNICIPIO DE CUMARAL | D189: 1008.006326 | E189: 252 | F189: 4.000025105 | V189: ANTIOQUIA - CONCEJO MUNICIPAL DE FRONTINO | W189: 0 | X189: 1
A190: TERRITORIAL | B190: TERRITORIAL | C190: CDA - CORPORACION PARA EL DESARROLLO SOSTENIBLE DEL NORTE Y ORIENTE DE LA AMAZONIA | D190: 1012.731075 | E190: 254 | F190: 3.987130216 | V190: ANTIOQUIA - CONCEJO MUNICIPAL EL CARMEN DE VIBORAL | W190: -0.3558893281 | X190: 16
A191: TERRITORIAL | B191: TERRITORIAL | C191: BOGOTA D.C. - E.S.E. HOSPITAL SAN BLAS II NIVEL DE ATENCION | D191: 534.8640978 | E191: 137 | F191: 3.904117502 | V191: ANTIOQUIA - CONCEJO MUNICIPAL EL SANTUARIO | W191: 0.2063308884 | X191: 8
A192: TERRITORIAL | B192: TERRITORIAL | C192: HUILA - INDERHUILA - INSTITUTO DEPARTAMENTAL DEL DEPORTE, LA RECREACION, LA EDUCACION FISICA Y EL APROVECHAMIENTO DEL TIEMPO LIBRE DEL HUILA | D192: 998.9292036 | E192: 256 | F192: 3.902067202 | V192: ANTIOQUIA - CONCEJO MUNICIPIO DE ABEJORRAL | W192: 0 | X192: 2
A193: TERRITORIAL | B193: TERRITORIAL | C193: TOLIMA - HOSPITAL SAN VICENTE DE PAUL - FRESNO | D193: 550.0832528 | E193: 149 | F193: 3.691833912 | V193: ANTIOQUIA - CONCEJO MUNICIPIO DE ALEJANDRÍA | W193: 0 | X193: 3
A194: NACIONAL | B194: DEFENSA NACIONAL | C194: EJERCITO NACIONAL | D194: 20071.85001 | E194: 5498 | F194: 3.650754822 | V194: ANTIOQUIA - CONCEJO MUNICIPIO DE AMAGÁ | W194: 1.270634921 | X194: 8
A195: TERRITORIAL | B195: TERRITORIAL | C195: CASANARE - ALCALDIA MUNICIPIO DE MONTERREY | D195: 1007.734693 | E195: 286 | F195: 3.523547877 | V195: ANTIOQUIA - CONCEJO MUNICIPIO DE ANGELÓPOLIS | W195: 0 | X195: 1
A196: TERRITORIAL | B196: TERRITORIAL | C196: TOLIMA - ALCALDIA MUNICIPIO DE VILLARRICA | D196: 856.6665131 | E196: 244 | F196: 3.510928332 | V196: ANTIOQUIA - CONCEJO MUNICIPIO DE ANGOSTURA | W196: -0.04244565217 | X196: 4
A197: TERRITORIAL | B197: TERRITORIAL | C197: CUNDINAMARCA - ALCALDIA MUNICIPIO DE BOJACA | D197: 417.7869825 | E197: 119 | F197: 3.510814979 | V197: ANTIOQUIA - CONCEJO MUNICIPIO DE APARTADÓ | W197: -0.1398833794 | X197: 12
A198: TERRITORIAL | B198: TERRITORIAL | C198: ANTIOQUIA - INSTITUTO TECNOLOGICO METROPOLITANO - MEDELLIN | D198: 11129.81102 | E198: 3191 | F198: 3.487875594 | V198: ANTIOQUIA - CONCEJO MUNICIPIO DE ARMENIA | W198: -0.1410851953 | X198: 4
A199: TERRITORIAL | B199: TERRITORIAL | C199: ANTIOQUIA - ALCALDIA MUNICIPIO DE MONTEBELLO | D199: 1010.201432 | E199: 296 | F199: 3.412842674 | V199: ANTIOQUIA - CONCEJO MUNICIPIO DE BELLO | W199: 9 | X199: 22
A200: TERRITORIAL | B200: TERRITORIAL | C200: ANTIOQUIA - ALCALDIA MUNICIPIO DE SAN FRANCISCO | D200: 1030.763889 | E200: 309 | F200: 3.335805465 | V200: ANTIOQUIA - CONCEJO MUNICIPIO DE BURITICÁ | W200: -0.001967377049 | X200: 1
... 2050 more rows

Sheet Indicador 6
A4: Indicador por Modalidad
A6: Modalidad de Contratación | B6: Número de Procesos | C6: Promedio Tiempo de Procesamiento (días) | E6: Desviación Estandar | F6: Resultado Indicador | H6: Modalidad de Contratación | I6: Resultado Indicador
A7: Asociación Público Privada | B7: 67 | C7: 37.76119403 | E7: 10.69705362 | F7: 37.76119403 | H7: Asociación Público Privada | I7: 37.76119403
A8: Concurso de Méritos | B8: 4929 | C8: 38.00628931 | E8: 10.66674196 | F8: 38.00628931 | H8: Concurso de Méritos | I8: 38.00628931
A9: Contratación Directa | B9: 423295 | C9: 38.01202707 | E9: 10.68185353 | F9: 38.01202707 | H9: Contratación Directa | I9: 38.01202707
A10: Licitación Pública | B10: 8498 | C10: 59.11002589 | E10: 14.26581544 | F10: 59.11002589 | H10: Licitación Pública | I10: 59.11002589
A11: Menor Cuantía | B11: 14741 | C11: 38.17081609 | E11: 10.71379829 | F11: 38.17081609 | H11: Menor Cuantía | I11: 38.17081609
A12: Mínima Cuantía | B12: 136069 | C12: 11.50542739 | E12: 1.117962474 | F12: 11.50542739 | H12: Mínima Cuantía | I12: 11.50542739
A13: Régimen Especial | B13: 158472 | C13: 37.98219244 | E13: 10.68148978 | F13: 37.98219244 | H13: Régimen Especial | I13: 37.98219244
A14: Selección Abreviada | B14: 590 | C14: 38.30169492 | E14: 10.64046624 | F14: 38.30169492 | H14: Selección Abreviada | I14: 38.30169492
A15: Subasta Inversa | B15: 7316 | C15: 37.97881356 | E15: 10.63076769 | F15: 37.97881356 | H15: Subasta Inversa | I15: 37.97881356
A20: Asociación Público Privada | F20: Concurso de Méritos | K20: Contratación Directa | P20: Licitación Pública | U20: Menor Cuantía | Z20: Mínima Cuantía | AE20: Régimen Especial | AJ20: Selección Abreviada | AO20: Subasta Inversa | AT20: TOTAL
A21: NIVEL ENTIDAD | B21: SECTOR | C21: NOMBRE ENTIDAD | D21: INDICADOR | F21: NIVEL ENTIDAD | G21: SECTOR | H21: NOMBRE ENTIDAD | I21: INDICADOR | K21: NIVEL ENTIDAD | L21: SECTOR | M21: NOMBRE ENTIDAD | N21: INDICADOR | P21: NIVEL ENTIDAD | Q21: SECTOR | R21: NOMBRE ENTIDAD | S21: INDICADOR | U21: NIVEL ENTIDAD | V21: SECTOR | W21: NOMBRE ENTIDAD | X21: INDICADOR | Z21: NIVEL ENTIDAD | AA21: SECTOR | AB21: NOMBRE ENTIDAD | AC21: INDICADOR | AE21: NIVEL ENTIDAD | AF21: SECTOR | AG21: NOMBRE ENTIDAD | AH21: INDICADOR | AJ21: NIVEL ENTIDAD | AK21: SECTOR | AL21: NOMBRE ENTIDAD | AM21: INDICADOR | AO21: NIVEL ENTIDAD | AP21: SECTOR | AQ21: NOMBRE ENTIDAD | AR21: INDICADOR | AT21: NIVEL ENTIDAD | AU21: SECTOR | AV21: NOMBRE ENTIDAD | AW21: INDICADOR
A22: TERRITORIAL | B22: TERRITORIAL | C22: AMAZONAS - GOBERNACION | D22: 20 | F22: NACIONAL | G22: TRANSPORTE | H22: AERONAUTICA CIVIL (AEROCIVIL) | I22: 36.64285714 | K22: NACIONAL | L22: HACIENDA Y CREDITO PUBLICO | M22: ADMINISTRADORA COLOMBIANA DE PENSIONES (COLPENSIONES) | N22: 35.16666667 | P22: NACIONAL | Q22: TRANSPORTE | R22: AERONAUTICA CIVIL (AEROCIVIL) | S22: 54.79166667 | U22: NACIONAL | V22: TRANSPORTE | W22: AERONAUTICA CIVIL (AEROCIVIL) | X22: 35.6625 | Z22: NACIONAL | AA22: TRANSPORTE | AB22: AERONAUTICA CIVIL (AEROCIVIL) | AC22: 11.40210526 | AE22: NACIONAL | AF22: HACIENDA Y CREDITO PUBLICO | AG22: ADMINISTRADORA COLOMBIANA DE PENSIONES (COLPENSIONES) | AH22: 37.82580645 | AJ22: NACIONAL | AK22: PRESIDENCIA DE LA REPUBLICA | AL22: AGENCIA COLOMBIANA PARA LA REINTEGRACION DE PERSONAS Y GRUPOS ALZADOS EN ARMAS (ACR) | AM22: 42 | AO22: NACIONAL | AP22: TRANSPORTE | AQ22: AERONAUTICA CIVIL (AEROCIVIL) | AR22: 42 | AT22: NACIONAL | AU22: HACIENDA Y CREDITO PUBLICO | AV22: ADMINISTRADORA COLOMBIANA DE PENSIONES (COLPENSIONES) | AW22: 37.80031949
A23: TERRITORIAL | B23: TERRITORIAL | C23: ANTIOQUIA - ALCALDIA MUNICIPIO DE BELLO | D23: 47 | F23: NACIONAL | G23: PRESIDENCIA DE LA REPUBLICA | H23: AGENCIA COLOMBIANA PARA LA REINTEGRACION DE PERSONAS Y GRUPOS ALZADOS EN ARMAS (ACR) | I23: 33.5 | K23: NACIONAL | L23: TRANSPORTE | M23: AERONAUTICA CIVIL (AEROCIVIL) | N23: 40.64566929 | P23: NACIONAL | Q23: PRESIDENCIA DE LA REPUBLICA | R23: AGENCIA COLOMBIANA PARA LA REINTEGRACION DE PERSONAS Y GRUPOS ALZADOS EN ARMAS (ACR) | S23: 53.5 | U23: NACIONAL | V23: PRESIDENCIA DE LA REPUBLICA | W23: AGENCIA COLOMBIANA PARA LA REINTEGRACION DE PERSONAS Y GRUPOS ALZADOS EN ARMAS (ACR) | X23: 40.66666667 | Z23: NACIONAL | AA23: PRESIDENCIA DE LA REPUBLICA | AB23: AGENCIA COLOMBIANA PARA LA REINTEGRACION DE PERSONAS Y GRUPOS ALZADOS EN ARMAS (ACR) | AC23: 11.45454545 | AE23: NACIONAL | AF23: PRESIDENCIA DE LA REPUBLICA | AG23: AGENCIA COLOMBIANA PARA LA REINTEGRACION DE PERSONAS Y GRUPOS ALZADOS EN ARMAS (ACR) | AH23: 35 | AJ23: NACIONAL | AK23: DEFENSA NACIONAL | AL23: AGENCIA LOGISTICA DE LAS FUERZAS MILITARES (ALFM) | AM23: 36.5 | AO23: NACIONAL | AP23: PRESIDENCIA DE LA REPUBLICA | AQ23: AGENCIA COLOMBIANA PARA LA REINTEGRACION DE PERSONAS Y GRUPOS ALZADOS EN ARMAS (ACR) | AR23: 44.27272727 | AT23: NACIONAL | AU23: TRANSPORTE | AV23: AERONAUTICA CIVIL (AEROCIVIL) | AW23: 21.53415301
A24: TERRITORIAL | B24: TERRITORIAL | C24: ANTIOQUIA - ALCALDIA MUNICIPIO DE COCORNA | D24: 30 | F24: NACIONAL | G24: DEFENSA NACIONAL | H24: AGENCIA LOGISTICA DE LAS FUERZAS MILITARES (ALFM) | I24: 36.9 | K24: NACIONAL | L24: PRESIDENCIA DE LA REPUBLICA | M24: AGENCIA COLOMBIANA PARA LA REINTEGRACION DE PERSONAS Y GRUPOS ALZADOS EN ARMAS (ACR) | N24: 37.95375723 | P24: NACIONAL | Q24: HACIENDA Y CREDITO PUBLICO | R24: AGENCIA DEL INSPECTOR GENERAL DE TRIBUTOS, RENTAS Y CONTRIBUCIONES PARAFISCALES (ITRC) | S24: 69 | U24: NACIONAL | V24: HACIENDA Y CREDITO PUBLICO | W24: AGENCIA DEL INSPECTOR GENERAL DE TRIBUTOS, RENTAS Y CONTRIBUCIONES PARAFISCALES (ITRC) | X24: 45.75 | Z24: NACIONAL | AA24: HACIENDA Y CREDITO PUBLICO | AB24: AGENCIA DEL INSPECTOR GENERAL DE TRIBUTOS, RENTAS Y CONTRIBUCIONES PARAFISCALES (ITRC) | AC24: 11.53846154 | AE24: NACIONAL | AF24: DEFENSA NACIONAL | AG24: AGENCIA LOGISTICA DE LAS FUERZAS MILITARES (ALFM) | AH24: 47.25 | AJ24: NACIONAL | AK24: MINAS Y ENERGIA | AL24: AGENCIA NACIONAL DE MINERIA (ANM) | AM24: 51 | AO24: NACIONAL | AP24: HACIENDA Y CREDITO PUBLICO | AQ24: AGENCIA DEL INSPECTOR GENERAL DE TRIBUTOS, RENTAS Y CONTRIBUCIONES PARAFISCALES (ITRC) | AR24: 43.5 | AT24: NACIONAL | AU24: PRESIDENCIA DE LA REPUBLICA | AV24: AGENCIA COLOMBIANA PARA LA REINTEGRACION DE PERSONAS Y GRUPOS ALZADOS EN ARMAS (ACR) | AW24: 37.85737179
A25: TERRITORIAL | B25: TERRITORIAL | C25: ANTIOQUIA - ALCALDIA MUNICIPIO DE MEDELLIN | D25: 28.8 | F25: NACIONAL | G25: PLANEACION | H25: AGENCIA NACIONAL DE CONTRATACION PUBLICA (COLOMBIA COMPRA EFICIENTE) | I25: 55 | K25: NACIONAL | L25: HACIENDA Y CREDITO PUBLICO | M25: AGENCIA DEL INSPECTOR GENERAL DE TRIBUTOS, RENTAS Y CONTRIBUCIONES PARAFISCALES (ITRC) | N25: 35.97222222 | P25: NACIONAL | Q25: DEFENSA NACIONAL | R25: AGENCIA LOGISTICA DE LAS FUERZAS MILITARES (ALFM) | S25: 59.76190476 | U25: NACIONAL | V25: DEFENSA NACIONAL | W25: AGENCIA LOGISTICA DE LAS FUERZAS MILITARES (ALFM) | X25: 38.16286645 | Z25: NACIONAL | AA25: DEFENSA NACIONAL | AB25: AGENCIA LOGISTICA DE LAS FUERZAS MILITARES (ALFM) | AC25: 11.49525201 | AE25: NACIONAL | AF25: PLANEACION | AG25: AGENCIA NACIONAL DE CONTRATACION PUBLICA (COLOMBIA COMPRA EFICIENTE) | AH25: 28 | AJ25: TERRITORIAL | AK25: TERRITORIAL | AL25: AMAZONAS - GOBERNACION | AM25: 44 | AO25: NACIONAL | AP25: DEFENSA NACIONAL | AQ25: AGENCIA LOGISTICA DE LAS FUERZAS MILITARES (ALFM) | AR25: 33.71428571 | AT25: NACIONAL | AU25: HACIENDA Y CREDITO PUBLICO | AV25: AGENCIA DEL INSPECTOR GENERAL DE TRIBUTOS, RENTAS Y CONTRIBUCIONES PARAFISCALES (ITRC) | AW25: 28.02898551
A26: TERRITORIAL | B26: TERRITORIAL | C26: ANTIOQUIA - ALCALDIA MUNICIPIO DE TARAZA | D26: 41 | F26: NACIONAL | G26: MINAS Y ENERGIA | H26: AGENCIA NACIONAL DE HIDROCARBUROS (ANH) | I26: 43.33333333 | K26: NACIONAL | L26: DEFENSA NACIONAL | M26: AGENCIA LOGISTICA DE LAS FUERZAS MILITARES (ALFM) | N26: 39.34090909 | P26: NACIONAL | Q26: PLANEACION | R26: AGENCIA NACIONAL DE CONTRATACION PUBLICA (COLOMBIA COMPRA EFICIENTE) | S26: 67.57142857 | U26: NACIONAL | V26: MINAS Y ENERGIA | W26: AGENCIA NACIONAL DE HIDROCARBUROS (ANH) | X26: 39.75 | Z26: NACIONAL | AA26: PLANEACION | AB26: AGENCIA NACIONAL DE CONTRATACION PUBLICA (COLOMBIA COMPRA EFICIENTE) | AC26: 11.5625 | AE26: NACIONAL | AF26: MINAS Y ENERGIA | AG26: AGENCIA NACIONAL DE HIDROCARBUROS (ANH) | AH26: 38.10204082 | AJ26: TERRITORIAL | AK26: TERRITORIAL | AL26: ANTIOQUIA - ALCALDIA MUNICIPIO DE APARTADO | AM26: 53 | AO26: NACIONAL | AP26: PLANEACION | AQ26: AGENCIA NACIONAL DE CONTRATACION PUBLICA (COLOMBIA COMPRA EFICIENTE) | AR26: 30.5 | AT26: NACIONAL | AU26: DEFENSA NACIONAL | AV26: AGENCIA LOGISTICA DE LAS FUERZAS MILITARES (ALFM) | AW26: 18.27267699
A27: TERRITORIAL | B27: TERRITORIAL | C27: ANTIOQUIA - AREA METROPOLITANA DEL VALLE DE ABURRA - MEDELLIN | D27: 32 | F27: NACIONAL | G27: TRANSPORTE | H27: AGENCIA NACIONAL DE INFRAESTRUCTURA (ANI) | I27: 37.92857143 | K27: NACIONAL | L27: PLANEACION | M27: AGENCIA NACIONAL DE CONTRATACION PUBLICA (COLOMBIA COMPRA EFICIENTE) | N27: 38.59322034 | P27: NACIONAL | Q27: JUSTICIA Y DEL DERECHO | R27: AGENCIA NACIONAL DE DEFENSA JURIDICA DEL ESTADO (ANDJE) | S27: 46.33333333 | U27: NACIONAL | V27: TRANSPORTE | W27: AGENCIA NACIONAL DE INFRAESTRUCTURA (ANI) | X27: 36.33333333 | Z27: NACIONAL | AA27: JUSTICIA Y DEL DERECHO | AB27: AGENCIA NACIONAL DE DEFENSA JURIDICA DEL ESTADO (ANDJE) | AC27: 10.85714286 | AE27: NACIONAL | AF27: PRESIDENCIA DE LA REPUBLICA | AG27: AGENCIA PRESIDENCIAL DE COOPERACION INTERNACIONAL DE COLOMBIA (APC) | AH27: 36.77777778 | AJ27: TERRITORIAL | AK27: TERRITORIAL | AL27: ANTIOQUIA - ALCALDIA MUNICIPIO DE MEDELLIN | AM27: 33.34615385 | AO27: NACIONAL | AP27: JUSTICIA Y DEL DERECHO | AQ27: AGENCIA NACIONAL DE DEFENSA JURIDICA DEL ESTADO (ANDJE) | AR27: 43.25 | AT27: NACIONAL | AU27: PLANEACION | AV27: AGENCIA NACIONAL DE CONTRATACION PUBLICA (COLOMBIA COMPRA EFICIENTE) | AW27: 35.80232558
A28: TERRITORIAL | B28: TERRITORIAL | C28: ANTIOQUIA - GOBERNACION | D28: 53 | F28: NACIONAL | G28: MINAS Y ENERGIA | H28: AGENCIA NACIONAL DE MINERIA (ANM) | I28: 38.4 | K28: NACIONAL | L28: JUSTICIA Y DEL DERECHO | M28: AGENCIA NACIONAL DE DEFENSA JURIDICA DEL ESTADO (ANDJE) | N28: 39.29850746 | P28: NACIONAL | Q28: MINAS Y ENERGIA | R28: AGENCIA NACIONAL DE HIDROCARBUROS (ANH) | S28: 55.15384615 | U28: NACIONAL | V28: MINAS Y ENERGIA | W28: AGENCIA NACIONAL DE MINERIA (ANM) | X28: 31.8 | Z28: NACIONAL | AA28: MINAS Y ENERGIA | AB28: AGENCIA NACIONAL DE HIDROCARBUROS (ANH) | AC28: 11.60714286 | AE28: TERRITORIAL | AF28: TERRITORIAL | AG28: AMAZONAS - ALCALDIA MUNICIPIO DE LETICIA | AH28: 39.33333333 | AJ28: TERRITORIAL | AK28: TERRITORIAL | AL28: ANTIOQUIA - ALCALDIA MUNICIPIO DE PUERTO TRIUNFO | AM28: 56 | AO28: NACIONAL | AP28: MINAS Y ENERGIA | AQ28: AGENCIA NACIONAL DE HIDROCARBUROS (ANH) | AR28: 37.66666667 | AT28: NACIONAL | AU28: JUSTICIA Y DEL DERECHO | AV28: AGENCIA NACIONAL DE DEFENSA JURIDICA DEL ESTADO (ANDJE) | AW28: 38.63013699
A29: TERRITORIAL | B29: TERRITORIAL | C29: ANTIOQUIA - INSTITUTO DE CULTURA Y PATRIMONIO DE ANTIOQUIA - MEDELLIN | D29: 42 | F29: NACIONAL | G29: TECNOLOGIAS DE LA INFORMACION Y LAS COMUNICACIONES | H29: AGENCIA NACIONAL DEL ESPECTRO (ANE) | I29: 41.5 | K29: NACIONAL | L29: MINAS Y ENERGIA | M29: AGENCIA NACIONAL DE HIDROCARBUROS (ANH) | N29: 36.4556962 | P29: NACIONAL | Q29: TRANSPORTE | R29: AGENCIA NACIONAL DE INFRAESTRUCTURA (ANI) | S29: 52 | U29: NACIONAL | V29: TECNOLOGIAS DE LA INFORMACION Y LAS COMUNICACIONES | W29: AGENCIA NACIONAL DEL ESPECTRO (ANE) | X29: 37.6875 | Z29: NACIONAL | AA29: TRANSPORTE | AB29: AGENCIA NACIONAL DE INFRAESTRUCTURA (ANI) | AC29: 11.18518519 | AE29: TERRITORIAL | AF29: TERRITORIAL | AG29: AMAZONAS - E.S.E. HOSPITAL SAN RAFAEL DE LETICIA | AH29: 24 | AJ29: TERRITORIAL | AK29: TERRITORIAL | AL29: ANTIOQUIA - ALCALDIA MUNICIPIO DE SAN LUIS | AM29: 34 | AO29: NACIONAL | AP29: TRANSPORTE | AQ29: AGENCIA NACIONAL DE INFRAESTRUCTURA (ANI) | AR29: 30.66666667 | AT29: NACIONAL | AU29: MINAS Y ENERGIA | AV29: AGENCIA NACIONAL DE HIDROCARBUROS (ANH) | AW29: 35.25287356
A30: TERRITORIAL | B30: TERRITORIAL | C30: ANTIOQUIA - INSTITUTO DE DEPORTES Y RECREACION DE MEDELLIN - INDER MEDELLIN | D30: 39 | F30: TERRITORIAL | G30: TERRITORIAL | H30: AGENCIA PARA LA INFRAESTRUCTURA DEL META - AIM | I30: 36.5 | K30: NACIONAL | L30: TRANSPORTE | M30: AGENCIA NACIONAL DE INFRAESTRUCTURA (ANI) | N30: 37.31754875 | P30: NACIONAL | Q30: MINAS Y ENERGIA | R30: AGENCIA NACIONAL DE MINERIA (ANM) | S30: 57.57142857 | U30: NACIONAL | V30: INCLUSION SOCIAL Y RECONCILIACION | W30: AGENCIA NACIONAL PARA LA SUPERACION DE LA POBREZA EXTREMA (ANSPE) | X30: 38.57142857 | Z30: NACIONAL | AA30: MINAS Y ENERGIA | AB30: AGENCIA NACIONAL DE MINERIA (ANM) | AC30: 11.4 | AE30: TERRITORIAL | AF30: TERRITORIAL | AG30: ANTIOQUIA - AGENCIA DE EDUCACION SUPERIOR DE MEDELLIN SAPIENCIA | AH30: 43 | AJ30: TERRITORIAL | AK30: TERRITORIAL | AL30: ANTIOQUIA - ALCALDIA MUNICIPIO DE TOLEDO | AM30: 27 | AO30: NACIONAL | AP30: MINAS Y ENERGIA | AQ30: AGENCIA NACIONAL DE MINERIA (ANM) | AR30: 36.38888889 | AT30: NACIONAL | AU30: TRANSPORTE | AV30: AGENCIA NACIONAL DE INFRAESTRUCTURA (ANI) | AW30: 35.95093458
A31: TERRITORIAL | B31: TERRITORIAL | C31: ATLANTICO - GOBERNACION | D31: 45 | F31: NACIONAL | G31: PRESIDENCIA DE LA REPUBLICA | H31: AGENCIA PRESIDENCIAL DE COOPERACION INTERNACIONAL DE COLOMBIA (APC) | I31: 32.33333333 | K31: NACIONAL | L31: MINAS Y ENERGIA | M31: AGENCIA NACIONAL DE MINERIA (ANM) | N31: 38.04504505 | P31: NACIONAL | Q31: TECNOLOGIAS DE LA INFORMACION Y LAS COMUNICACIONES | R31: AGENCIA NACIONAL DEL ESPECTRO (ANE) | S31: 61.8 | U31: TERRITORIAL | V31: TERRITORIAL | W31: AGENCIA PARA LA INFRAESTRUCTURA DEL META - AIM | X31: 39.5 | Z31: NACIONAL | AA31: TECNOLOGIAS DE LA INFORMACION Y LAS COMUNICACIONES | AB31: AGENCIA NACIONAL DEL ESPECTRO (ANE) | AC31: 11.55555556 | AE31: TERRITORIAL | AF31: TERRITORIAL | AG31: ANTIOQUIA - AGUAS DE URABA S.A. E.S. - APARTADO | AH31: 35.64 | AJ31: TERRITORIAL | AK31: TERRITORIAL | AL31: ANTIOQUIA - INSTITUCION EDUCATIVA NORMAL SUPERIOR DE ENVIGADO | AM31: 44 | AO31: NACIONAL | AP31: TECNOLOGIAS DE LA INFORMACION Y LAS COMUNICACIONES | AQ31: AGENCIA NACIONAL DEL ESPECTRO (ANE) | AR31: 45 | AT31: NACIONAL | AU31: MINAS Y ENERGIA | AV31: AGENCIA NACIONAL DE MINERIA (ANM) | AW31: 35.69323671
A32: TERRITORIAL | B32: TERRITORIAL | C32: BOGOTA D.C. - ALCALDIA LOCAL CIUDAD BOLIVAR | D32: 36 | F32: TERRITORIAL | G32: TERRITORIAL | H32: AMAZONAS - GOBERNACION | I32: 34.6 | K32: NACIONAL | L32: TECNOLOGIAS DE LA INFORMACION Y LAS COMUNICACIONES | M32: AGENCIA NACIONAL DEL ESPECTRO (ANE) | N32: 37.69047619 | P32: NACIONAL | Q32: INCLUSION SOCIAL Y RECONCILIACION | R32: AGENCIA NACIONAL PARA LA SUPERACION DE LA POBREZA EXTREMA (ANSPE) | S32: 59 | U32: NACIONAL | V32: PRESIDENCIA DE LA REPUBLICA | W32: AGENCIA PRESIDENCIAL DE COOPERACION INTERNACIONAL DE COLOMBIA (APC) | X32: 47 | Z32: NACIONAL | AA32: INCLUSION SOCIAL Y RECONCILIACION | AB32: AGENCIA NACIONAL PARA LA SUPERACION DE LA POBREZA EXTREMA (ANSPE) | AC32: 11.21428571 | AE32: TERRITORIAL | AF32: TERRITORIAL | AG32: ANTIOQUIA - AGUAS DEL PARAMO S.A.S E.S.P - SONSON | AH32: 37.66666667 | AJ32: TERRITORIAL | AK32: TERRITORIAL | AL32: ANTIOQUIA - INSTITUTO DE DEPORTES Y RECREACION DE MEDELLIN - INDER MEDELLIN | AM32: 27 | AO32: NACIONAL | AP32: INCLUSION SOCIAL Y RECONCILIACION | AQ32: AGENCIA NACIONAL PARA LA SUPERACION DE LA POBREZA EXTREMA (ANSPE) | AR32: 51 | AT32: NACIONAL | AU32: TECNOLOGIAS DE LA INFORMACION Y LAS COMUNICACIONES | AV32: AGENCIA NACIONAL DEL ESPECTRO (ANE) | AW32: 33.70238095
A33: TERRITORIAL | B33: TERRITORIAL | C33: BOGOTA D.C. - ALCALDIA LOCAL DE BOSA | D33: 44.5 | F33: TERRITORIAL | G33: TERRITORIAL | H33: ANTIOQUIA - AGENCIA DE COOPERACION E INVERSION DE MEDELLIN Y EL AREA METROPOLITANA | I33: 29 | K33: NACIONAL | L33: INCLUSION SOCIAL Y RECONCILIACION | M33: AGENCIA NACIONAL PARA LA SUPERACION DE LA POBREZA EXTREMA (ANSPE) | N33: 38.55909944 | P33: TERRITORIAL | Q33: TERRITORIAL | R33: AGENCIA PARA LA INFRAESTRUCTURA DEL META - AIM | S33: 58.9375 | U33: TERRITORIAL | V33: TERRITORIAL | W33: AMAZONAS - GOBERNACION | X33: 42.16666667 | Z33: TERRITORIAL | AA33: TERRITORIAL | AB33: AGENCIA PARA LA INFRAESTRUCTURA DEL META - AIM | AC33: 11.5 | AE33: TERRITORIAL | AF33: TERRITORIAL | AG33: ANTIOQUIA - AGUAS DEL PUERTO S.A. E.S.P. - PUERTO BERRIO | AH33: 36.66666667 | AJ33: TERRITORIAL | AK33: TERRITORIAL | AL33: ANTIOQUIA - TECNOLOGICO DE ANTIOQUIA - MEDELLIN | AM33: 25 | AO33: NACIONAL | AP33: PRESIDENCIA DE LA REPUBLICA | AQ33: AGENCIA PRESIDENCIAL DE COOPERACION INTERNACIONAL DE COLOMBIA (APC) | AR33: 45.25 | AT33: NACIONAL | AU33: INCLUSION SOCIAL Y RECONCILIACION | AV33: AGENCIA NACIONAL PARA LA SUPERACION DE LA POBREZA EXTREMA (ANSPE) | AW33: 37.96768402
A34: TERRITORIAL | B34: TERRITORIAL | C34: BOGOTA D.C. - INSTITUTO DISTRITAL DE LAS ARTES IDARTES | D34: 24.5 | F34: TERRITORIAL | G34: TERRITORIAL | H34: ANTIOQUIA - AGENCIA DE EDUCACION SUPERIOR DE MEDELLIN SAPIENCIA | I34: 26.5 | K34: TERRITORIAL | L34: TERRITORIAL | M34: AGENCIA PARA LA INFRAESTRUCTURA DEL META - AIM | N34: 39.22222222 | P34: NACIONAL | Q34: PRESIDENCIA DE LA REPUBLICA | R34: AGENCIA PRESIDENCIAL DE COOPERACION INTERNACIONAL DE COLOMBIA (APC) | S34: 59.5 | U34: TERRITORIAL | V34: TERRITORIAL | W34: ANTIOQUIA - ALCALDIA MUNICIPIO DE ABEJORRAL | X34: 41 | Z34: NACIONAL | AA34: PRESIDENCIA DE LA REPUBLICA | AB34: AGENCIA PRESIDENCIAL DE COOPERACION INTERNACIONAL DE COLOMBIA (APC) | AC34: 11.69565217 | AE34: TERRITORIAL | AF34: TERRITORIAL | AG34: ANTIOQUIA - AGUAS Y ASEO DE EL PEÑOL E.S.P. - EL PEÑOL | AH34: 37.29411765 | AJ34: TERRITORIAL | AK34: TERRITORIAL | AL34: ARAUCA - ALCALDIA MUNICIPIO DE ARAUCA | AM34: 33 | AO34: TERRITORIAL | AP34: TERRITORIAL | AQ34: AMAZONAS - ALCALDIA MUNICIPIO DE LETICIA | AR34: 37 | AT34: TERRITORIAL | AU34: TERRITORIAL | AV34: AGENCIA PARA LA INFRAESTRUCTURA DEL META - AIM | AW34: 41.13131313
A35: TERRITORIAL | B35: TERRITORIAL | C35: BOGOTA D.C. - INSTITUTO DISTRITAL DE TURISMO | D35: 24 | F35: TERRITORIAL | G35: TERRITORIAL | H35: ANTIOQUIA - ALCALDIA MUNICIPIO DE ABEJORRAL | I35: 46 | K35: NACIONAL | L35: PRESIDENCIA DE LA REPUBLICA | M35: AGENCIA PRESIDENCIAL DE COOPERACION INTERNACIONAL DE COLOMBIA (APC) | N35: 42.08823529 | P35: TERRITORIAL | Q35: TERRITORIAL | R35: AMAZONAS - ALCALDIA MUNICIPIO DE PUERTO NARIÑO | S35: 62 | U35: TERRITORIAL | V35: TERRITORIAL | W35: ANTIOQUIA - ALCALDIA MUNICIPIO DE ALEJANDRIA | X35: 41 | Z35: TERRITORIAL | AA35: TERRITORIAL | AB35: AMAZONAS - ALCALDIA MUNICIPIO DE LETICIA | AC35: 11.73134328 | AE35: TERRITORIAL | AF35: TERRITORIAL | AG35: ANTIOQUIA - ALCALDIA MUNICIPIO DE ABEJORRAL | AH35: 22 | AJ35: TERRITORIAL | AK35: TERRITORIAL | AL35: ARAUCA - ALCALDIA MUNICIPIO DE SARAVENA | AM35: 51 | AO35: TERRITORIAL | AP35: TERRITORIAL | AQ35: AMAZONAS - GOBERNACION | AR35: 37.30769231 | AT35: NACIONAL | AU35: PRESIDENCIA DE LA REPUBLICA | AV35: AGENCIA PRESIDENCIAL DE COOPERACION INTERNACIONAL DE COLOMBIA (APC) | AW35: 34.44354839
A36: TERRITORIAL | B36: TERRITORIAL | C36: BOGOTA D.C. - SECRETARIA DE INTEGRACION SOCIAL | D36: 43.83333333 | F36: TERRITORIAL | G36: TERRITORIAL | H36: ANTIOQUIA - ALCALDIA MUNICIPIO DE ALEJANDRIA | I36: 35.5 | K36: TERRITORIAL | L36: TERRITORIAL | M36: AMAZONAS - ALCALDIA MUNICIPIO DE LETICIA | N36: 35.91954023 | P36: TERRITORIAL | Q36: TERRITORIAL | R36: AMAZONAS - GOBERNACION | S36: 71.33333333 | U36: TERRITORIAL | V36: TERRITORIAL | W36: ANTIOQUIA - ALCALDIA MUNICIPIO DE AMAGA | X36: 43.58333333 | Z36: TERRITORIAL | AA36: TERRITORIAL | AB36: AMAZONAS - ALCALDIA MUNICIPIO DE PUERTO NARIÑO | AC36: 11.59146341 | AE36: TERRITORIAL | AF36: TERRITORIAL | AG36: ANTIOQUIA - ALCALDIA MUNICIPIO DE ANZA | AH36: 50 | AJ36: NACIONAL | AK36: DEFENSA NACIONAL | AL36: ARMADA NACIONAL DE LA REPUBLICA DE COLOMBIA | AM36: 38.28571429 | AO36: TERRITORIAL | AP36: TERRITORIAL | AQ36: ANTIOQUIA - AGENCIA DE COOPERACION E INVERSION DE MEDELLIN Y EL AREA METROPOLITANA | AR36: 42.33333333 | AT36: TERRITORIAL | AU36: TERRITORIAL | AV36: AMAZONAS - ALCALDIA MUNICIPIO DE LETICIA | AW36: 29.47177419
A37: TERRITORIAL | B37: TERRITORIAL | C37: BOLIVAR - ESTABLECIMIENTO PUBLICO AMBIENTAL DE CARTAGENA DE INDIAS EPA | D37: 24 | F37: TERRITORIAL | G37: TERRITORIAL | H37: ANTIOQUIA - ALCALDIA MUNICIPIO DE AMAGA | I37: 39 | K37: TERRITORIAL | L37: TERRITORIAL | M37: AMAZONAS - ALCALDIA MUNICIPIO DE PUERTO NARIÑO | N37: 38.20689655 | P37: TERRITORIAL | Q37: TERRITORIAL | R37: ANTIOQUIA - AGENCIA DE COOPERACION E INVERSION DE MEDELLIN Y EL AREA METROPOLITANA | S37: 67 | U37: TERRITORIAL | V37: TERRITORIAL | W37: ANTIOQUIA - ALCALDIA MUNICIPIO DE AMALFI | X37: 40.625 | Z37: TERRITORIAL | AA37: TERRITORIAL | AB37: AMAZONAS - ASAMBLEA DEPARTAMENTAL DEL AMAZONAS | AC37: 10 | AE37: TERRITORIAL | AF37: TERRITORIAL | AG37: ANTIOQUIA - ALCALDIA MUNICIPIO DE BARBOSA | AH37: 45.66666667 | AJ37: TERRITORIAL | AK37: TERRITORIAL | AL37: ATLANTICO - ALCALDIA DISTRITO ESPECIAL, INDUSTRIAL Y PORTUARIO BARRANQUILLA | AM37: 21 | AO37: TERRITORIAL | AP37: TERRITORIAL | AQ37: ANTIOQUIA - AGENCIA DE EDUCACION SUPERIOR DE MEDELLIN SAPIENCIA | AR37: 30 | AT37: TERRITORIAL | AU37: TERRITORIAL | AV37: AMAZONAS - ALCALDIA MUNICIPIO DE PUERTO NARIÑO | AW37: 24.20322581
A38: TERRITORIAL | B38: TERRITORIAL | C38: BOYACA - ALCALDIA MUNICIPIO DE SAN PABLO BORBUR | D38: 51 | F38: TERRITORIAL | G38: TERRITORIAL | H38: ANTIOQUIA - ALCALDIA MUNICIPIO DE AMALFI | I38: 34.5 | K38: TERRITORIAL | L38: TERRITORIAL | M38: AMAZONAS - ASAMBLEA DEPARTAMENTAL DEL AMAZONAS | N38: 39.33333333 | P38: TERRITORIAL | Q38: TERRITORIAL | R38: ANTIOQUIA - ALCALDIA MUNICIPIO DE ABEJORRAL | S38: 73.5 | U38: TERRITORIAL | V38: TERRITORIAL | W38: ANTIOQUIA - ALCALDIA MUNICIPIO DE ANDES | X38: 37.13636364 | Z38: TERRITORIAL | AA38: TERRITORIAL | AB38: AMAZONAS - CONTRALORIA DEPARTAMENTAL DEL AMAZONAS | AC38: 11.85714286 | AE38: TERRITORIAL | AF38: TERRITORIAL | AG38: ANTIOQUIA - ALCALDIA MUNICIPIO DE DON MATIAS | AH38: 35.75925926 | AJ38: TERRITORIAL | AK38: TERRITORIAL | AL38: ATLANTICO - DEPARTAMENTO TECNICO ADMINISTRATIVO DEL MEDIO AMBIENTE DE BARRANQUILLA | AM38: 44 | AO38: TERRITORIAL | AP38: TERRITORIAL | AQ38: ANTIOQUIA - ALCALDIA MUNICIPIO DE ABEJORRAL | AR38: 44 | AT38: TERRITORIAL | AU38: TERRITORIAL | AV38: AMAZONAS - ASAMBLEA DEPARTAMENTAL DEL AMAZONAS | AW38: 36.7826087
A39: TERRITORIAL | B39: TERRITORIAL | C39: BOYACA - INSTITUTO DEPARTAMENTAL DEL DEPORTE DE BOYACA - INDEPORTES BOYACA | D39: 21 | F39: TERRITORIAL | G39: TERRITORIAL | H39: ANTIOQUIA - ALCALDIA MUNICIPIO DE ANGOSTURA | I39: 49 | K39: TERRITORIAL | L39: TERRITORIAL | M39: AMAZONAS - CONTRALORIA DEPARTAMENTAL DEL AMAZONAS | N39: 39.6 | P39: TERRITORIAL | Q39: TERRITORIAL | R39: ANTIOQUIA - ALCALDIA MUNICIPIO DE ALEJANDRIA | S39: 65.75 | U39: TERRITORIAL | V39: TERRITORIAL | W39: ANTIOQUIA - ALCALDIA MUNICIPIO DE ANGELOPOLIS | X39: 40.14285714 | Z39: TERRITORIAL | AA39: TERRITORIAL | AB39: AMAZONAS - ESCUELA NORMAL SUPERIOR MONSEÑOR MARCELIANO EDUARDO CANYES DE LETICIA | AC39: 12 | AE39: TERRITORIAL | AF39: TERRITORIAL | AG39: ANTIOQUIA - ALCALDIA MUNICIPIO DE EL BAGRE | AH39: 35.36363636 | AJ39: TERRITORIAL | AK39: TERRITORIAL | AL39: BOGOTA D.C. - E.S.E. HOSPITAL SANTA CLARA III NIVEL | AM39: 50 | AO39: TERRITORIAL | AP39: TERRITORIAL | AQ39: ANTIOQUIA - ALCALDIA MUNICIPIO DE AMAGA | AR39: 35.2 | AT39: TERRITORIAL | AU39: TERRITORIAL | AV39: AMAZONAS - CONTRALORIA DEPARTAMENTAL DEL AMAZONAS | AW39: 28.17647059
A40: TERRITORIAL | B40: TERRITORIAL | C40: CASANARE - E.S.E. HOSPITAL DE YOPAL | D40: 35 | F40: TERRITORIAL | G40: TERRITORIAL | H40: ANTIOQUIA - ALCALDIA MUNICIPIO DE ANZA | I40: 35 | K40: TERRITORIAL | L40: TERRITORIAL | M40: AMAZONAS - GOBERNACION | N40: 37.46782842 | P40: TERRITORIAL | Q40: TERRITORIAL | R40: ANTIOQUIA - ALCALDIA MUNICIPIO DE AMAGA | S40: 52.5 | U40: TERRITORIAL | V40: TERRITORIAL | W40: ANTIOQUIA - ALCALDIA MUNICIPIO DE ANZA | X40: 31 | Z40: TERRITORIAL | AA40: TERRITORIAL | AB40: AMAZONAS - GOBERNACION | AC40: 11.75714286 | AE40: TERRITORIAL | AF40: TERRITORIAL | AG40: ANTIOQUIA - ALCALDIA MUNICIPIO DE EL PEÑOL | AH40: 36.98148148 | AJ40: TERRITORIAL | AK40: TERRITORIAL | AL40: BOGOTA D.C. - INSTITUTO DISTRITAL DE LAS ARTES IDARTES | AM40: 45 | AO40: TERRITORIAL | AP40: TERRITORIAL | AQ40: ANTIOQUIA - ALCALDIA MUNICIPIO DE AMALFI | AR40: 34.8 | AT40: TERRITORIAL | AU40: TERRITORIAL | AV40: AMAZONAS - E.S.E. HOSPITAL SAN RAFAEL DE LETICIA | AW40: 24
A41: TERRITORIAL | B41: TERRITORIAL | C41: CAUCA - ALCALDIA MUNICIPIO DE PIENDAMO | D41: 44 | F41: TERRITORIAL | G41: TERRITORIAL | H41: ANTIOQUIA - ALCALDIA MUNICIPIO DE APARTADO | I41: 44.57142857 | K41: TERRITORIAL | L41: TERRITORIAL | M41: AMAZONAS - INSTITUTO DEPARTAMENTAL DEL DEPORTE Y RECREACION DEL AMAZONAS - LETICIA | N41: 38.5 | P41: TERRITORIAL | Q41: TERRITORIAL | R41: ANTIOQUIA - ALCALDIA MUNICIPIO DE AMALFI | S41: 47.75 | U41: TERRITORIAL | V41: TERRITORIAL | W41: ANTIOQUIA - ALCALDIA MUNICIPIO DE APARTADO | X41: 32.11764706 | Z41: TERRITORIAL | AA41: TERRITORIAL | AB41: AMAZONAS - INSTITUCION EDUCATIVA FRANCISCO DEL ROSARIO VELA GONZALEZ - LETICIA | AC41: 12 | AE41: TERRITORIAL | AF41: TERRITORIAL | AG41: ANTIOQUIA - ALCALDIA MUNICIPIO DE ENVIGADO | AH41: 22 | AJ41: TERRITORIAL | AK41: TERRITORIAL | AL41: BOGOTA D.C. - INSTITUTO PARA LA ECONOMIA SOCIAL - IPES | AM41: 24 | AO41: TERRITORIAL | AP41: TERRITORIAL | AQ41: ANTIOQUIA - ALCALDIA MUNICIPIO DE ANDES | AR41: 37.875 | AT41: TERRITORIAL | AU41: TERRITORIAL | AV41: AMAZONAS - ESCUELA NORMAL SUPERIOR MONSEÑOR MARCELIANO EDUARDO CANYES DE LETICIA | AW41: 12
A42: TERRITORIAL | B42: TERRITORIAL | C42: CESAR - ALCALDIA MUNICIPIO DE CURUMANI | D42: 28 | F42: TERRITORIAL | G42: TERRITORIAL | H42: ANTIOQUIA - ALCALDIA MUNICIPIO DE ARBOLETES | I42: 40 | K42: TERRITORIAL | L42: TERRITORIAL | M42: ANTIOQUIA - ADMINISTRADOR DEL PATRIMONIO ESCINDIDO DE EMPRESAS VARIAS DE MEDELLIN E.S.P. APEV | N42: 51 | P42: TERRITORIAL | Q42: TERRITORIAL | R42: ANTIOQUIA - ALCALDIA MUNICIPIO DE ANDES | S42: 54.42857143 | U42: TERRITORIAL | V42: TERRITORIAL | W42: ANTIOQUIA - ALCALDIA MUNICIPIO DE ARBOLETES | X42: 33 | Z42: TERRITORIAL | AA42: TERRITORIAL | AB42: AMAZONAS - INSTITUCION EDUCATIVA SAN FRANCISCO DE LORETOYACO - PUERTO NARIÑO | AC42: 13 | AE42: TERRITORIAL | AF42: TERRITORIAL | AG42: ANTIOQUIA - ALCALDIA MUNICIPIO DE GOMEZ PLATA | AH42: 37.75 | AJ42: TERRITORIAL | AK42: TERRITORIAL | AL42: BOGOTA D.C. - SECRETARIA DE GOBIERNO | AM42: 40 | AO42: TERRITORIAL | AP42: TERRITORIAL | AQ42: ANTIOQUIA - ALCALDIA MUNICIPIO DE ANGELOPOLIS | AR42: 37 | AT42: TERRITORIAL | AU42: TERRITORIAL | AV42: AMAZONAS - GOBERNACION | AW42: 35.4591716
A43: TERRITORIAL | B43: TERRITORIAL | C43: CORDOBA - GOBERNACION | D43: 56 | F43: TERRITORIAL | G43: TERRITORIAL | H43: ANTIOQUIA - ALCALDIA MUNICIPIO DE BARBOSA | I43: 40.16666667 | K43: TERRITORIAL | L43: TERRITORIAL | M43: ANTIOQUIA - AEROPUERTO OLAYA HERRERA DE MEDELLIN | N43: 40.44827586 | P43: TERRITORIAL | Q43: TERRITORIAL | R43: ANTIOQUIA - ALCALDIA MUNICIPIO DE ANGOSTURA | S43: 60 | U43: TERRITORIAL | V43: TERRITORIAL | W43: ANTIOQUIA - ALCALDIA MUNICIPIO DE ARMENIA | X43: 37 | Z43: TERRITORIAL | AA43: TERRITORIAL | AB43: AMAZONAS - INSTITUCION EDUCATIVA SAN JUAN BOSCO - LETICIA | AC43: 10 | AE43: TERRITORIAL | AF43: TERRITORIAL | AG43: ANTIOQUIA - ALCALDIA MUNICIPIO DE GUARNE | AH43: 36.33653846 | AJ43: TERRITORIAL | AK43: TERRITORIAL | AL43: BOGOTA D.C. - SECRETARIA DE HACIENDA DISTRITAL | AM43: 24 | AO43: TERRITORIAL | AP43: TERRITORIAL | AQ43: ANTIOQUIA - ALCALDIA MUNICIPIO DE ANGOSTURA | AR43: 35 | AT43: TERRITORIAL | AU43: TERRITORIAL | AV43: AMAZONAS - INSTITUCION EDUCATIVA FRANCISCO DEL ROSARIO VELA GONZALEZ - LETICIA | AW43: 12
A44: NACIONAL | B44: CORPORACION AUTONOMA REGIONAL - CAR | C44: CORMAGDALENA - CORPORACION AUTONOMA REGIONAL DEL RIO GRANDE DE LA MAGDALENA | D44: 33 | F44: TERRITORIAL | G44: TERRITORIAL | H44: ANTIOQUIA - ALCALDIA MUNICIPIO DE BELLO | I44: 35.625 | K44: TERRITORIAL | L44: TERRITORIAL | M44: ANTIOQUIA - AGENCIA DE COOPERACION E INVERSION DE MEDELLIN Y EL AREA METROPOLITANA | N44: 38.12280702 | P44: TERRITORIAL | Q44: TERRITORIAL | R44: ANTIOQUIA - ALCALDIA MUNICIPIO DE ANZA | S44: 52 | U44: TERRITORIAL | V44: TERRITORIAL | W44: ANTIOQUIA - ALCALDIA MUNICIPIO DE BARBOSA | X44: 46 | Z44: TERRITORIAL | AA44: TERRITORIAL | AB44: AMAZONAS - INSTITUCION EDUCATIVA VILLA CARMEN - TARAPACA | AC44: 12 | AE44: TERRITORIAL | AF44: TERRITORIAL | AG44: ANTIOQUIA - ALCALDIA MUNICIPIO DE HELICONIA | AH44: 28.33333333 | AJ44: TERRITORIAL | AK44: TERRITORIAL | AL44: BOGOTA D.C. - SECRETARIA DE INTEGRACION SOCIAL | AM44: 40 | AO44: TERRITORIAL | AP44: TERRITORIAL | AQ44: ANTIOQUIA - ALCALDIA MUNICIPIO DE ANZA | AR44: 33.66666667 | AT44: TERRITORIAL | AU44: TERRITORIAL | AV44: AMAZONAS - INSTITUCION EDUCATIVA SAN FRANCISCO DE LORETOYACO - PUERTO NARIÑO | AW44: 13
A45: TERRITORIAL | B45: TERRITORIAL | C45: CUNDINAMARCA - ALCALDIA MUNICIPIO DE APULO - RAFAEL REYES | D45: 51 | F45: TERRITORIAL | G45: TERRITORIAL | H45: ANTIOQUIA - ALCALDIA MUNICIPIO DE BELMIRA | I45: 42 | K45: TERRITORIAL | L45: TERRITORIAL | M45: ANTIOQUIA - AGENCIA DE EDUCACION SUPERIOR DE MEDELLIN SAPIENCIA | N45: 40.22727273 | P45: TERRITORIAL | Q45: TERRITORIAL | R45: ANTIOQUIA - ALCALDIA MUNICIPIO DE APARTADO | S45: 56.64 | U45: TERRITORIAL | V45: TERRITORIAL | W45: ANTIOQUIA - ALCALDIA MUNICIPIO DE BELLO | X45: 38.33333333 | Z45: TERRITORIAL | AA45: TERRITORIAL | AB45: AMAZONAS - INSTITUTO DEPARTAMENTAL DEL DEPORTE Y RECREACION DEL AMAZONAS - LETICIA | AC45: 11.33333333 | AE45: TERRITORIAL | AF45: TERRITORIAL | AG45: ANTIOQUIA - ALCALDIA MUNICIPIO DE ITAGÜI | AH45: 34.90909091 | AJ45: TERRITORIAL | AK45: TERRITORIAL | AL45: BOLIVAR - ALCALDIA DEL DISTRITO TURISTICO Y CULTURAL DE CARTAGENA DE INDIAS | AM45: 42 | AO45: TERRITORIAL | AP45: TERRITORIAL | AQ45: ANTIOQUIA - ALCALDIA MUNICIPIO DE APARTADO | AR45: 39.34615385 | AT45: TERRITORIAL | AU45: TERRITORIAL | AV45: AMAZONAS - INSTITUCION EDUCATIVA SAN JUAN BOSCO - LETICIA | AW45: 10
A46: TERRITORIAL | B46: TERRITORIAL | C46: CUNDINAMARCA - ALCALDIA MUNICIPIO DE FUNZA | D46: 50.66666667 | F46: TERRITORIAL | G46: TERRITORIAL | H46: ANTIOQUIA - ALCALDIA MUNICIPIO DE BETULIA | I46: 20 | K46: TERRITORIAL | L46: TERRITORIAL | M46: ANTIOQUIA - AGENCIA PARA LAS ALIANZAS PUBLICO PRIVADAS APP - MEDELLIN | N46: 38.52 | P46: TERRITORIAL | Q46: TERRITORIAL | R46: ANTIOQUIA - ALCALDIA MUNICIPIO DE ARBOLETES | S46: 49.5 | U46: TERRITORIAL | V46: TERRITORIAL | W46: ANTIOQUIA - ALCALDIA MUNICIPIO DE BETANIA | X46: 29 | Z46: TERRITORIAL | AA46: TERRITORIAL | AB46: ANTIOQUIA - ADMINISTRADOR DEL PATRIMONIO ESCINDIDO DE EMPRESAS VARIAS DE MEDELLIN E.S.P. APEV | AC46: 12 | AE46: TERRITORIAL | AF46: TERRITORIAL | AG46: ANTIOQUIA - ALCALDIA MUNICIPIO DE JARDIN | AH46: 34 | AJ46: TERRITORIAL | AK46: TERRITORIAL | AL46: BOLIVAR - ALCALDIA MUNICIPIO DE MARIA LA BAJA | AM46: 54 | AO46: TERRITORIAL | AP46: TERRITORIAL | AQ46: ANTIOQUIA - ALCALDIA MUNICIPIO DE ARBOLETES | AR46: 33.66666667 | AT46: TERRITORIAL | AU46: TERRITORIAL | AV46: AMAZONAS - INSTITUCION EDUCATIVA VILLA CARMEN - TARAPACA | AW46: 12
A47: TERRITORIAL | B47: TERRITORIAL | C47: CUNDINAMARCA - INSTITUTO MUNICIPAL DE RECREACION Y DEPORTES DE SOACHA | D47: 49 | F47: TERRITORIAL | G47: TERRITORIAL | H47: ANTIOQUIA - ALCALDIA MUNICIPIO DE BRICEÑO | I47: 35 | K47: TERRITORIAL | L47: TERRITORIAL | M47: ANTIOQUIA - AGUAS DE BAJO CAUCA S.A. E.S.P. - CAUCASIA | N47: 29.66666667 | P47: TERRITORIAL | Q47: TERRITORIAL | R47: ANTIOQUIA - ALCALDIA MUNICIPIO DE ARMENIA | S47: 67 | U47: TERRITORIAL | V47: TERRITORIAL | W47: ANTIOQUIA - ALCALDIA MUNICIPIO DE BETULIA | X47: 40 | Z47: TERRITORIAL | AA47: TERRITORIAL | AB47: ANTIOQUIA - AEROPUERTO OLAYA HERRERA DE MEDELLIN | AC47: 11.57142857 | AE47: TERRITORIAL | AF47: TERRITORIAL | AG47: ANTIOQUIA - ALCALDIA MUNICIPIO DE LIBORINA | AH47: 36 | AJ47: TERRITORIAL | AK47: TERRITORIAL | AL47: BOLIVAR - E.S.E. HOSPITAL SAN ANTONIO DE PADUA - SIMITI | AM47: 35 | AO47: TERRITORIAL | AP47: TERRITORIAL | AQ47: ANTIOQUIA - ALCALDIA MUNICIPIO DE BARBOSA | AR47: 37.38888889 | AT47: TERRITORIAL | AU47: TERRITORIAL | AV47: AMAZONAS - INSTITUTO DEPARTAMENTAL DEL DEPORTE Y RECREACION DEL AMAZONAS - LETICIA | AW47: 24.58536585
A48: NACIONAL | B48: CORPORACION AUTONOMA REGIONAL - CAR | C48: CVC - CORPORACION AUTONOMA REGIONAL DEL VALLE DEL CAUCA | D48: 26 | F48: TERRITORIAL | G48: TERRITORIAL | H48: ANTIOQUIA - ALCALDIA MUNICIPIO DE BURITICA | I48: 28.75 | K48: TERRITORIAL | L48: TERRITORIAL | M48: ANTIOQUIA - AGUAS DE EL BAGRE S.A. E.S.P. - EL BAGRE | N48: 36.75862069 | P48: TERRITORIAL | Q48: TERRITORIAL | R48: ANTIOQUIA - ALCALDIA MUNICIPIO DE BARBOSA | S48: 57.14285714 | U48: TERRITORIAL | V48: TERRITORIAL | W48: ANTIOQUIA - ALCALDIA MUNICIPIO DE BRICEÑO | X48: 41.2 | Z48: TERRITORIAL | AA48: TERRITORIAL | AB48: ANTIOQUIA - AGENCIA DE COOPERACION E INVERSION DE MEDELLIN Y EL AREA METROPOLITANA | AC48: 11.66666667 | AE48: TERRITORIAL | AF48: TERRITORIAL | AG48: ANTIOQUIA - ALCALDIA MUNICIPIO DE MARINILLA | AH48: 39 | AJ48: TERRITORIAL | AK48: TERRITORIAL | AL48: BOYACA - ALCALDIA MUNICIPIO DE BOYACA | AM48: 29 | AO48: TERRITORIAL | AP48: TERRITORIAL | AQ48: ANTIOQUIA - ALCALDIA MUNICIPIO DE BELLO | AR48: 39.25 | AT48: TERRITORIAL | AU48: TERRITORIAL | AV48: ANTIOQUIA - ADMINISTRADOR DEL PATRIMONIO ESCINDIDO DE EMPRESAS VARIAS DE MEDELLIN E.S.P. APEV | AW48: 31.5
A49: NACIONAL | B49: DEPORTE Y RECREACION | C49: DEPARTAMENTO ADMINISTRATIVO DEL DEPORTE, LA RECREACION, LA ACTIVIDAD FISICA Y EL APROVECHAMIENTO DEL TIEMPO LIBRE (COLDEPORTES) | D49: 30 | F49: TERRITORIAL | G49: TERRITORIAL | H49: ANTIOQUIA - ALCALDIA MUNICIPIO DE CACERES | I49: 37.66666667 | K49: TERRITORIAL | L49: TERRITORIAL | M49: ANTIOQUIA - AGUAS DEL NORTE ANTIOQUEÑO S.A. E.S.P. - YARUMAL | N49: 38.42857143 | P49: TERRITORIAL | Q49: TERRITORIAL | R49: ANTIOQUIA - ALCALDIA MUNICIPIO DE BELLO | S49: 60.66666667 | U49: TERRITORIAL | V49: TERRITORIAL | W49: ANTIOQUIA - ALCALDIA MUNICIPIO DE BURITICA | X49: 32.2 | Z49: TERRITORIAL | AA49: TERRITORIAL | AB49: ANTIOQUIA - AGENCIA DE EDUCACION SUPERIOR DE MEDELLIN SAPIENCIA | AC49: 11.33333333 | AE49: TERRITORIAL | AF49: TERRITORIAL | AG49: ANTIOQUIA - ALCALDIA MUNICIPIO DE MEDELLIN | AH49: 38.30731707 | AJ49: TERRITORIAL | AK49: TERRITORIAL | AL49: BOYACA - ALCALDIA MUNICIPIO DE CHIVATA | AM49: 45 | AO49: TERRITORIAL | AP49: TERRITORIAL | AQ49: ANTIOQUIA - ALCALDIA MUNICIPIO DE BRICEÑO | AR49: 25 | AT49: TERRITORIAL | AU49: TERRITORIAL | AV49: ANTIOQUIA - AEROPUERTO OLAYA HERRERA DE MEDELLIN | AW49: 28.32
A50: NACIONAL | B50: ESTADISTICA | C50: DEPARTAMENTO ADMINISTRATIVO NACIONAL DE ESTADISTICA (DANE) | D50: 33 | F50: TERRITORIAL | G50: TERRITORIAL | H50: ANTIOQUIA - ALCALDIA MUNICIPIO DE CALDAS | I50: 42.625 | K50: TERRITORIAL | L50: TERRITORIAL | M50: ANTIOQUIA - AGUAS Y ASEO DE EL PEÑOL E.S.P. - EL PEÑOL | N50: 36.66666667 | P50: TERRITORIAL | Q50: TERRITORIAL | R50: ANTIOQUIA - ALCALDIA MUNICIPIO DE BELMIRA | S50: 51 | U50: TERRITORIAL | V50: TERRITORIAL | W50: ANTIOQUIA - ALCALDIA MUNICIPIO DE CACERES | X50: 37.2 | Z50: TERRITORIAL | AA50: TERRITORIAL | AB50: ANTIOQUIA - AGENCIA PARA LAS ALIANZAS PUBLICO PRIVADAS APP - MEDELLIN | AC50: 11.53846154 | AE50: TERRITORIAL | AF50: TERRITORIAL | AG50: ANTIOQUIA - ALCALDIA MUNICIPIO DE SABANETA | AH50: 35.46428571 | AJ50: TERRITORIAL | AK50: TERRITORIAL | AL50: BOYACA - ALCALDIA MUNICIPIO DE RAQUIRA | AM50: 25 | AO50: TERRITORIAL | AP50: TERRITORIAL | AQ50: ANTIOQUIA - ALCALDIA MUNICIPIO DE BURITICA | AR50: 40 | AT50: TERRITORIAL | AU50: TERRITORIAL | AV50: ANTIOQUIA - AGENCIA DE COOPERACION E INVERSION DE MEDELLIN Y EL AREA METROPOLITANA | AW50: 30.24731183
A51: NACIONAL | B51: INCLUSION SOCIAL Y RECONCILIACION | C51: DEPARTAMENTO ADMINISTRATIVO PARA LA PROSPERIDAD SOCIAL (DPS) | D51: 22 | F51: TERRITORIAL | G51: TERRITORIAL | H51: ANTIOQUIA - ALCALDIA MUNICIPIO DE CAMPAMENTO | I51: 44.5 | K51: TERRITORIAL | L51: TERRITORIAL | M51: ANTIOQUIA - ALCALDIA MUNICIPIO DE ABEJORRAL | N51: 38.31818182 | P51: TERRITORIAL | Q51: TERRITORIAL | R51: ANTIOQUIA - ALCALDIA MUNICIPIO DE BETULIA | S51: 70.5 | U51: TERRITORIAL | V51: TERRITORIAL | W51: ANTIOQUIA - ALCALDIA MUNICIPIO DE CALDAS | X51: 38.81818182 | Z51: TERRITORIAL | AA51: TERRITORIAL | AB51: ANTIOQUIA - ALCALDIA MUNICIPIO DE ABEJORRAL | AC51: 11.68235294 | AE51: TERRITORIAL | AF51: TERRITORIAL | AG51: ANTIOQUIA - ALCALDIA MUNICIPIO DE SAN CARLOS | AH51: 37.18055556 | AJ51: TERRITORIAL | AK51: TERRITORIAL | AL51: BOYACA - ALCALDIA MUNICIPIO DE TIBASOSA | AM51: 38 | AO51: TERRITORIAL | AP51: TERRITORIAL | AQ51: ANTIOQUIA - ALCALDIA MUNICIPIO DE CACERES | AR51: 30.5 | AT51: TERRITORIAL | AU51: TERRITORIAL | AV51: ANTIOQUIA - AGENCIA DE EDUCACION SUPERIOR DE MEDELLIN SAPIENCIA | AW51: 37.48684211
A52: NACIONAL | B52: PLANEACION | C52: FONDO FINANCIERO DE PROYECTOS DE DESARROLLO (FONADE) | D52: 33 | F52: TERRITORIAL | G52: TERRITORIAL | H52: ANTIOQUIA - ALCALDIA MUNICIPIO DE CAÑASGORDAS | I52: 24 | K52: TERRITORIAL | L52: TERRITORIAL | M52: ANTIOQUIA - ALCALDIA MUNICIPIO DE ABRIAQUI | N52: 37.33333333 | P52: TERRITORIAL | Q52: TERRITORIAL | R52: ANTIOQUIA - ALCALDIA MUNICIPIO DE BRICEÑO | S52: 62.33333333 | U52: TERRITORIAL | V52: TERRITORIAL | W52: ANTIOQUIA - ALCALDIA MUNICIPIO DE CAMPAMENTO | X52: 34.3125 | Z52: TERRITORIAL | AA52: TERRITORIAL | AB52: ANTIOQUIA - ALCALDIA MUNICIPIO DE ABRIAQUI | AC52: 11.53846154 | AE52: TERRITORIAL | AF52: TERRITORIAL | AG52: ANTIOQUIA - ALCALDIA MUNICIPIO DE SANTA ROSA DE OSOS | AH52: 38.08823529 | AJ52: TERRITORIAL | AK52: TERRITORIAL | AL52: BOYACA - E.S.E. CENTRO DE SALUD DE SANTANA | AM52: 48.5 | AO52: TERRITORIAL | AP52: TERRITORIAL | AQ52: ANTIOQUIA - ALCALDIA MUNICIPIO DE CAICEDO | AR52: 48.5 | AT52: TERRITORIAL | AU52: TERRITORIAL | AV52: ANTIOQUIA - AGENCIA PARA LAS ALIANZAS PUBLICO PRIVADAS APP - MEDELLIN | AW52: 29.28947368
A53: TERRITORIAL | B53: TERRITORIAL | C53: GUAINIA - ALCALDIA MUNICIPIO DE INIRIDA | D53: 43 | F53: TERRITORIAL | G53: TERRITORIAL | H53: ANTIOQUIA - ALCALDIA MUNICIPIO DE CARAMANTA | I53: 48 | K53: TERRITORIAL | L53: TERRITORIAL | M53: ANTIOQUIA - ALCALDIA MUNICIPIO DE ALEJANDRIA | N53: 38.59541985 | P53: TERRITORIAL | Q53: TERRITORIAL | R53: ANTIOQUIA - ALCALDIA MUNICIPIO DE BURITICA | S53: 58 | U53: TERRITORIAL | V53: TERRITORIAL | W53: ANTIOQUIA - ALCALDIA MUNICIPIO DE CAÑASGORDAS | X53: 33.47826087 | Z53: TERRITORIAL | AA53: TERRITORIAL | AB53: ANTIOQUIA - ALCALDIA MUNICIPIO DE ALEJANDRIA | AC53: 11.53191489 | AE53: TERRITORIAL | AF53: TERRITORIAL | AG53: ANTIOQUIA - ALCALDIA MUNICIPIO DE SANTUARIO | AH53: 38.66666667 | AJ53: TERRITORIAL | AK53: TERRITORIAL | AL53: BOYACA - E.S.E. CENTRO DE SALUD NUESTRA SEÑORA DEL ROSARIO - TASCO | AM53: 50 | AO53: TERRITORIAL | AP53: TERRITORIAL | AQ53: ANTIOQUIA - ALCALDIA MUNICIPIO DE CALDAS | AR53: 27.88888889 | AT53: TERRITORIAL | AU53: TERRITORIAL | AV53: ANTIOQUIA - AGUAS DE BAJO CAUCA S.A. E.S.P. - CAUCASIA | AW53: 29.66666667
A54: NACIONAL | B54: MINAS Y ENERGIA | C54: INSTITUTO DE PLANIFICACION Y PROMOCION DE SOLUCIONES ENERGETICAS PARA LAS ZONAS NO INTERCONECTADAS (IPSE) | D54: 50 | F54: TERRITORIAL | G54: TERRITORIAL | H54: ANTIOQUIA - ALCALDIA MUNICIPIO DE CAREPA | I54: 43.16666667 | K54: TERRITORIAL | L54: TERRITORIAL | M54: ANTIOQUIA - ALCALDIA MUNICIPIO DE AMAGA | N54: 38.42056075 | P54: TERRITORIAL | Q54: TERRITORIAL | R54: ANTIOQUIA - ALCALDIA MUNICIPIO DE CACERES | S54: 46.66666667 | U54: TERRITORIAL | V54: TERRITORIAL | W54: ANTIOQUIA - ALCALDIA MUNICIPIO DE CARACOLI | X54: 32.5 | Z54: TERRITORIAL | AA54: TERRITORIAL | AB54: ANTIOQUIA - ALCALDIA MUNICIPIO DE AMAGA | AC54: 11.44444444 | AE54: TERRITORIAL | AF54: TERRITORIAL | AG54: ANTIOQUIA - ALCALDIA MUNICIPIO DE SONSON | AH54: 36.86956522 | AJ54: TERRITORIAL | AK54: TERRITORIAL | AL54: BOYACA - E.S.E. CENTRO DE SALUD RAFAEL SALGADO - MARIPI | AM54: 25 | AO54: TERRITORIAL | AP54: TERRITORIAL | AQ54: ANTIOQUIA - ALCALDIA MUNICIPIO DE CAMPAMENTO | AR54: 32 | AT54: TERRITORIAL | AU54: TERRITORIAL | AV54: ANTIOQUIA - AGUAS DE EL BAGRE S.A. E.S.P. - EL BAGRE | AW54: 36.75862069
A55: TERRITORIAL | B55: TERRITORIAL | C55: MAGDALENA - ALCALDIA DISTRITO TURISTICO CULTURAL E HISTORICO DE SANTA MARTA | D55: 37 | F55: TERRITORIAL | G55: TERRITORIAL | H55: ANTIOQUIA - ALCALDIA MUNICIPIO DE CARMEN DE VIBORAL | I55: 35.33333333 | K55: TERRITORIAL | L55: TERRITORIAL | M55: ANTIOQUIA - ALCALDIA MUNICIPIO DE AMALFI | N55: 38.06 | P55: TERRITORIAL | Q55: TERRITORIAL | R55: ANTIOQUIA - ALCALDIA MUNICIPIO DE CAICEDO | S55: 37 | U55: TERRITORIAL | V55: TERRITORIAL | W55: ANTIOQUIA - ALCALDIA MUNICIPIO DE CARAMANTA | X55: 40.75 | Z55: TERRITORIAL | AA55: TERRITORIAL | AB55: ANTIOQUIA - ALCALDIA MUNICIPIO DE AMALFI | AC55: 11.50248756 | AE55: TERRITORIAL | AF55: TERRITORIAL | AG55: ANTIOQUIA - ALCALDIA MUNICIPIO DE YARUMAL | AH55: 49 | AJ55: TERRITORIAL | AK55: TERRITORIAL | AL55: BOYACA - E.S.E. INES OCHOA PEREZ DE TIBASOSA | AM55: 30 | AO55: TERRITORIAL | AP55: TERRITORIAL | AQ55: ANTIOQUIA - ALCALDIA MUNICIPIO DE CAÑASGORDAS | AR55: 29 | AT55: TERRITORIAL | AU55: TERRITORIAL | AV55: ANTIOQUIA - AGUAS DE URABA S.A. E.S. - APARTADO | AW55: 35.64
A56: TERRITORIAL | B56: TERRITORIAL | C56: META - INSTITUTO DE TURISMO DEL META | D56: 53 | F56: TERRITORIAL | G56: TERRITORIAL | H56: ANTIOQUIA - ALCALDIA MUNICIPIO DE CAROLINA | I56: 35 | K56: TERRITORIAL | L56: TERRITORIAL | M56: ANTIOQUIA - ALCALDIA MUNICIPIO DE ANDES | N56: 37.98412698 | P56: TERRITORIAL | Q56: TERRITORIAL | R56: ANTIOQUIA - ALCALDIA MUNICIPIO DE CALDAS | S56: 52.33333333 | U56: TERRITORIAL | V56: TERRITORIAL | W56: ANTIOQUIA - ALCALDIA MUNICIPIO DE CAREPA | X56: 39.5 | Z56: TERRITORIAL | AA56: TERRITORIAL | AB56: ANTIOQUIA - ALCALDIA MUNICIPIO DE ANDES | AC56: 11.55214724 | AE56: TERRITORIAL | AF56: TERRITORIAL | AG56: ANTIOQUIA - ALCALDIA MUNICIPIO DE YOLOMBO | AH56: 35 | AJ56: TERRITORIAL | AK56: TERRITORIAL | AL56: BOYACA - E.S.E. SALUD DEL TUNDAMA - DUITAMA | AM56: 35.875 | AO56: TERRITORIAL | AP56: TERRITORIAL | AQ56: ANTIOQUIA - ALCALDIA MUNICIPIO DE CAREPA | AR56: 36.8 | AT56: TERRITORIAL | AU56: TERRITORIAL | AV56: ANTIOQUIA - AGUAS DEL NORTE ANTIOQUEÑO S.A. E.S.P. - YARUMAL | AW56: 38.42857143
A57: NACIONAL | B57: CULTURA | C57: MINISTERIO DE CULTURA (MINCULTURA) | D57: 37 | F57: TERRITORIAL | G57: TERRITORIAL | H57: ANTIOQUIA - ALCALDIA MUNICIPIO DE CAUCASIA | I57: 37.8 | K57: TERRITORIAL | L57: TERRITORIAL | M57: ANTIOQUIA - ALCALDIA MUNICIPIO DE ANGELOPOLIS | N57: 36.38 | P57: TERRITORIAL | Q57: TERRITORIAL | R57: ANTIOQUIA - ALCALDIA MUNICIPIO DE CAMPAMENTO | S57: 80 | U57: TERRITORIAL | V57: TERRITORIAL | W57: ANTIOQUIA - ALCALDIA MUNICIPIO DE CARMEN DE VIBORAL | X57: 36.11111111 | Z57: TERRITORIAL | AA57: TERRITORIAL | AB57: ANTIOQUIA - ALCALDIA MUNICIPIO DE ANGELOPOLIS | AC57: 11.55140187 | AE57: TERRITORIAL | AF57: TERRITORIAL | AG57: ANTIOQUIA - BENEFICENCIA DE ANTIOQUIA | AH57: 39.01470588 | AJ57: TERRITORIAL | AK57: TERRITORIAL | AL57: BOYACA - INSTITUTO DEPARTAMENTAL DEL DEPORTE DE BOYACA - INDEPORTES BOYACA | AM57: 20 | AO57: TERRITORIAL | AP57: TERRITORIAL | AQ57: ANTIOQUIA - ALCALDIA MUNICIPIO DE CARMEN DE VIBORAL | AR57: 42.33333333 | AT57: TERRITORIAL | AU57: TERRITORIAL | AV57: ANTIOQUIA - AGUAS DEL PARAMO S.A.S E.S.P - SONSON | AW57: 37.66666667
A58: NACIONAL | B58: INTERIOR | C58: MINISTERIO DEL INTERIOR (MININTERIOR) | D58: 33.5 | F58: TERRITORIAL | G58: TERRITORIAL | H58: ANTIOQUIA - ALCALDIA MUNICIPIO DE CHIGORODO | I58: 34.2 | K58: TERRITORIAL | L58: TERRITORIAL | M58: ANTIOQUIA - ALCALDIA MUNICIPIO DE ANGOSTURA | N58: 38.34854772 | P58: TERRITORIAL | Q58: TERRITORIAL | R58: ANTIOQUIA - ALCALDIA MUNICIPIO DE CAÑASGORDAS | S58: 61.83333333 | U58: TERRITORIAL | V58: TERRITORIAL | W58: ANTIOQUIA - ALCALDIA MUNICIPIO DE CAROLINA | X58: 38 | Z58: TERRITORIAL | AA58: TERRITORIAL | AB58: ANTIOQUIA - ALCALDIA MUNICIPIO DE ANGOSTURA | AC58: 11.55769231 | AE58: TERRITORIAL | AF58: TERRITORIAL | AG58: ANTIOQUIA - COMERCIALIZADORA LOTTIRED S.A.S. - MEDELLIN | AH58: 36.77777778 | AJ58: TERRITORIAL | AK58: TERRITORIAL | AL58: CALDAS - ALCALDIA MUNICIPIO DE MANIZALES | AM58: 42 | AO58: TERRITORIAL | AP58: TERRITORIAL | AQ58: ANTIOQUIA - ALCALDIA MUNICIPIO DE CAROLINA | AR58: 38.28571429 | AT58: TERRITORIAL | AU58: TERRITORIAL | AV58: ANTIOQUIA - AGUAS DEL PUERTO S.A. E.S.P. - PUERTO BERRIO | AW58: 36.66666667
A59: NACIONAL | B59: TECNOLOGIAS DE LA INFORMACION Y LAS COMUNICACIONES | C59: RTVC - RADIO TELEVISION NACIONAL DE COLOMBIA | D59: 20 | F59: TERRITORIAL | G59: TERRITORIAL | H59: ANTIOQUIA - ALCALDIA MUNICIPIO DE CISNEROS | I59: 37.5 | K59: TERRITORIAL | L59: TERRITORIAL | M59: ANTIOQUIA - ALCALDIA MUNICIPIO DE ANORI | N59: 35.66981132 | P59: TERRITORIAL | Q59: TERRITORIAL | R59: ANTIOQUIA - ALCALDIA MUNICIPIO DE CARACOLI | S59: 56 | U59: TERRITORIAL | V59: TERRITORIAL | W59: ANTIOQUIA - ALCALDIA MUNICIPIO DE CAUCASIA | X59: 36.8125 | Z59: TERRITORIAL | AA59: TERRITORIAL | AB59: ANTIOQUIA - ALCALDIA MUNICIPIO DE ANORI | AC59: 11.625 | AE59: TERRITORIAL | AF59: TERRITORIAL | AG59: ANTIOQUIA - CONCEJO MUNICIPIO DE DON MATIAS | AH59: 35 | AJ59: TERRITORIAL | AK59: TERRITORIAL | AL59: CALDAS - DIRECCION TERRITORIAL DE SALUD DE CALDAS | AM59: 42 | AO59: TERRITORIAL | AP59: TERRITORIAL | AQ59: ANTIOQUIA - ALCALDIA MUNICIPIO DE CAUCASIA | AR59: 35.73333333 | AT59: TERRITORIAL | AU59: TERRITORIAL | AV59: ANTIOQUIA - AGUAS Y ASEO DE EL PEÑOL E.S.P. - EL PEÑOL | AW59: 37.22807018
A60: TERRITORIAL | B60: TERRITORIAL | C60: SANTANDER - ALCALDIA MUNICIPIO DE BARRANCABERMEJA | D60: 43 | F60: TERRITORIAL | G60: TERRITORIAL | H60: ANTIOQUIA - ALCALDIA MUNICIPIO DE CIUDAD BOLIVAR | I60: 39 | K60: TERRITORIAL | L60: TERRITORIAL | M60: ANTIOQUIA - ALCALDIA MUNICIPIO DE ANZA | N60: 36.75 | P60: TERRITORIAL | Q60: TERRITORIAL | R60: ANTIOQUIA - ALCALDIA MUNICIPIO DE CARAMANTA | S60: 48 | U60: TERRITORIAL | V60: TERRITORIAL | W60: ANTIOQUIA - ALCALDIA MUNICIPIO DE CHIGORODO | X60: 32.55555556 | Z60: TERRITORIAL | AA60: TERRITORIAL | AB60: ANTIOQUIA - ALCALDIA MUNICIPIO DE ANZA | AC60: 11.45614035 | AE60: TERRITORIAL | AF60: TERRITORIAL | AG60: ANTIOQUIA - CONCEJO MUNICIPIO DE SONSON | AH60: 37 | AJ60: TERRITORIAL | AK60: TERRITORIAL | AL60: CALDAS - HOSPITAL SAN ANTONIO DE VILLAMARIA | AM60: 27 | AO60: TERRITORIAL | AP60: TERRITORIAL | AQ60: ANTIOQUIA - ALCALDIA MUNICIPIO DE CHIGORODO | AR60: 42.9 | AT60: TERRITORIAL | AU60: TERRITORIAL | AV60: ANTIOQUIA - ALCALDIA MUNICIPIO DE ABEJORRAL | AW60: 29.58634538
A61: TERRITORIAL | B61: TERRITORIAL | C61: SANTANDER - ALCALDIA MUNICIPIO DE BUCARAMANGA | D61: 23 | F61: TERRITORIAL | G61: TERRITORIAL | H61: ANTIOQUIA - ALCALDIA MUNICIPIO DE COCORNA | I61: 51 | K61: TERRITORIAL | L61: TERRITORIAL | M61: ANTIOQUIA - ALCALDIA MUNICIPIO DE APARTADO | N61: 35.80405405 | P61: TERRITORIAL | Q61: TERRITORIAL | R61: ANTIOQUIA - ALCALDIA MUNICIPIO DE CAREPA | S61: 61.9 | U61: TERRITORIAL | V61: TERRITORIAL | W61: ANTIOQUIA - ALCALDIA MUNICIPIO DE CISNEROS | X61: 49.5 | Z61: TERRITORIAL | AA61: TERRITORIAL | AB61: ANTIOQUIA - ALCALDIA MUNICIPIO DE APARTADO | AC61: 11.81012658 | AE61: TERRITORIAL | AF61: TERRITORIAL | AG61: ANTIOQUIA - CONTRALORIA GENERAL DE ANTIOQUIA | AH61: 24 | AJ61: NACIONAL | AK61: TERRITORIAL | AL61: CAM - CORPORACION AUTONOMA REGIONAL DEL ALTO MAGDALENA | AM61: 28 | AO61: TERRITORIAL | AP61: TERRITORIAL | AQ61: ANTIOQUIA - ALCALDIA MUNICIPIO DE CONCEPCION | AR61: 34.66666667 | AT61: TERRITORIAL | AU61: TERRITORIAL | AV61: ANTIOQUIA - ALCALDIA MUNICIPIO DE ABRIAQUI | AW61: 32.32835821
A62: TERRITORIAL | B62: TERRITORIAL | C62: SANTANDER - ALCALDIA MUNICIPIO DE LOS SANTOS | D62: 49 | F62: TERRITORIAL | G62: TERRITORIAL | H62: ANTIOQUIA - ALCALDIA MUNICIPIO DE CONCEPCION | I62: 38 | K62: TERRITORIAL | L62: TERRITORIAL | M62: ANTIOQUIA - ALCALDIA MUNICIPIO DE ARBOLETES | N62: 37.51145038 | P62: TERRITORIAL | Q62: TERRITORIAL | R62: ANTIOQUIA - ALCALDIA MUNICIPIO DE CARMEN DE VIBORAL | S62: 53.625 | U62: TERRITORIAL | V62: TERRITORIAL | W62: ANTIOQUIA - ALCALDIA MUNICIPIO DE CIUDAD BOLIVAR | X62: 34.375 | Z62: TERRITORIAL | AA62: TERRITORIAL | AB62: ANTIOQUIA - ALCALDIA MUNICIPIO DE ARBOLETES | AC62: 11.30769231 | AE62: TERRITORIAL | AF62: TERRITORIAL | AG62: ANTIOQUIA - CORPORACION RUTA N MEDELLIN | AH62: 36.54545455 | AJ62: TERRITORIAL | AK62: TERRITORIAL | AL62: CAQUETA - ALCALDIA MUNICIPIO DE BELEN DE LOS ANDAQUIES | AM62: 49 | AO62: TERRITORIAL | AP62: TERRITORIAL | AQ62: ANTIOQUIA - ALCALDIA MUNICIPIO DE CONCORDIA | AR62: 34.33333333 | AT62: TERRITORIAL | AU62: TERRITORIAL | AV62: ANTIOQUIA - ALCALDIA MUNICIPIO DE ALEJANDRIA | AW62: 28.08189655
A63: TERRITORIAL | B63: TERRITORIAL | C63: SANTANDER - ALCALDIA MUNICIPIO DE SABANA DE TORRES | D63: 41 | F63: TERRITORIAL | G63: TERRITORIAL | H63: ANTIOQUIA - ALCALDIA MUNICIPIO DE CONCORDIA | I63: 28.5 | K63: TERRITORIAL | L63: TERRITORIAL | M63: ANTIOQUIA - ALCALDIA MUNICIPIO DE ARGELIA | N63: 39.83333333 | P63: TERRITORIAL | Q63: TERRITORIAL | R63: ANTIOQUIA - ALCALDIA MUNICIPIO DE CAUCASIA | S63: 63 | U63: TERRITORIAL | V63: TERRITORIAL | W63: ANTIOQUIA - ALCALDIA MUNICIPIO DE COCORNA | X63: 36.125 | Z63: TERRITORIAL | AA63: TERRITORIAL | AB63: ANTIOQUIA - ALCALDIA MUNICIPIO DE ARMENIA | AC63: 11.32786885 | AE63: TERRITORIAL | AF63: TERRITORIAL | AG63: ANTIOQUIA - E.S.E. CENTRO DE ATENCION Y REHABILITACION INTEGRAL EN SALUD MENTAL DE CARISMA - MEDELLIN | AH63: 39.27848101 | AJ63: TERRITORIAL | AK63: TERRITORIAL | AL63: CAQUETA - ALCALDIA MUNICIPIO DE LA MONTAÑITA | AM63: 56 | AO63: TERRITORIAL | AP63: TERRITORIAL | AQ63: ANTIOQUIA - ALCALDIA MUNICIPIO DE COPACABANA | AR63: 37.83333333 | AT63: TERRITORIAL | AU63: TERRITORIAL | AV63: ANTIOQUIA - ALCALDIA MUNICIPIO DE AMAGA | AW63: 31.02185792
A64: TERRITORIAL | B64: TERRITORIAL | C64: SANTANDER - GOBERNACION | D64: 45 | F64: TERRITORIAL | G64: TERRITORIAL | H64: ANTIOQUIA - ALCALDIA MUNICIPIO DE COPACABANA | I64: 45.22222222 | K64: TERRITORIAL | L64: TERRITORIAL | M64: ANTIOQUIA - ALCALDIA MUNICIPIO DE BARBOSA | N64: 37.21132075 | P64: TERRITORIAL | Q64: TERRITORIAL | R64: ANTIOQUIA - ALCALDIA MUNICIPIO DE CHIGORODO | S64: 63.14285714 | U64: TERRITORIAL | V64: TERRITORIAL | W64: ANTIOQUIA - ALCALDIA MUNICIPIO DE CONCEPCION | X64: 38.125 | Z64: TERRITORIAL | AA64: TERRITORIAL | AB64: ANTIOQUIA - ALCALDIA MUNICIPIO DE BARBOSA | AC64: 11.18518519 | AE64: TERRITORIAL | AF64: TERRITORIAL | AG64: ANTIOQUIA - E.S.E. HOSPITAL ANTONIO ROLDAN BETANCUR - PINTADA | AH64: 36.65 | AJ64: TERRITORIAL | AK64: TERRITORIAL | AL64: CAQUETA - ALCALDIA MUNICIPIO DE SAN JOSE DE FRAGUA | AM64: 38 | AO64: TERRITORIAL | AP64: TERRITORIAL | AQ64: ANTIOQUIA - ALCALDIA MUNICIPIO DE DABEIBA | AR64: 34.5 | AT64: TERRITORIAL | AU64: TERRITORIAL | AV64: ANTIOQUIA - ALCALDIA MUNICIPIO DE AMALFI | AW64: 26.92693111
A65: NACIONAL | B65: TRABAJO | C65: SERVICIO PUBLICO DE EMPLEO (REDEMPLEO) | D65: 26 | F65: TERRITORIAL | G65: TERRITORIAL | H65: ANTIOQUIA - ALCALDIA MUNICIPIO DE DABEIBA | I65: 29 | K65: TERRITORIAL | L65: TERRITORIAL | M65: ANTIOQUIA - ALCALDIA MUNICIPIO DE BELLO | N65: 37.70259209 | P65: TERRITORIAL | Q65: TERRITORIAL | R65: ANTIOQUIA - ALCALDIA MUNICIPIO DE CISNEROS | S65: 58.33333333 | U65: TERRITORIAL | V65: TERRITORIAL | W65: ANTIOQUIA - ALCALDIA MUNICIPIO DE CONCORDIA | X65: 36 | Z65: TERRITORIAL | AA65: TERRITORIAL | AB65: ANTIOQUIA - ALCALDIA MUNICIPIO DE BELLO | AC65: 11.43529412 | AE65: TERRITORIAL | AF65: TERRITORIAL | AG65: ANTIOQUIA - E.S.E. HOSPITAL CESAR URIBE PIEDRAHITA - CAUCASIA | AH65: 36.86885246 | AJ65: TERRITORIAL | AK65: TERRITORIAL | AL65: CAQUETA - ALCALDIA MUNICIPIO DE SOLANO | AM65: 38.5 | AO65: TERRITORIAL | AP65: TERRITORIAL | AQ65: ANTIOQUIA - ALCALDIA MUNICIPIO DE EBEJICO | AR65: 22 | AT65: TERRITORIAL | AU65: TERRITORIAL | AV65: ANTIOQUIA - ALCALDIA MUNICIPIO DE ANDES | AW65: 27.15424165
A66: NACIONAL | B66: INCLUSION SOCIAL Y RECONCILIACION | C66: UNIDAD ADMINISTRATIVA PARA LA CONSOLIDACION TERRITORIAL (UACT) | D66: 30 | F66: TERRITORIAL | G66: TERRITORIAL | H66: ANTIOQUIA - ALCALDIA MUNICIPIO DE EL BAGRE | I66: 36.75 | K66: TERRITORIAL | L66: TERRITORIAL | M66: ANTIOQUIA - ALCALDIA MUNICIPIO DE BELMIRA | N66: 39.7037037 | P66: TERRITORIAL | Q66: TERRITORIAL | R66: ANTIOQUIA - ALCALDIA MUNICIPIO DE CIUDAD BOLIVAR | S66: 52 | U66: TERRITORIAL | V66: TERRITORIAL | W66: ANTIOQUIA - ALCALDIA MUNICIPIO DE COPACABANA | X66: 38.36363636 | Z66: TERRITORIAL | AA66: TERRITORIAL | AB66: ANTIOQUIA - ALCALDIA MUNICIPIO DE BELMIRA | AC66: 11.72941176 | AE66: TERRITORIAL | AF66: TERRITORIAL | AG66: ANTIOQUIA - E.S.E. HOSPITAL DEL SUR GABRIEL JARAMILLO PIEDRAHITA - ITAGÜI | AH66: 44.33333333 | AJ66: TERRITORIAL | AK66: TERRITORIAL | AL66: CASANARE - INSTITUTO DE VIVIENDA MUNICIPAL DE AGUAZUL | AM66: 28 | AO66: TERRITORIAL | AP66: TERRITORIAL | AQ66: ANTIOQUIA - ALCALDIA MUNICIPIO DE EL BAGRE | AR66: 39.15625 | AT66: TERRITORIAL | AU66: TERRITORIAL | AV66: ANTIOQUIA - ALCALDIA MUNICIPIO DE ANGELOPOLIS | AW66: 20.44242424
A67: TERRITORIAL | B67: TERRITORIAL | C67: VALLE DEL CAUCA - ALCALDIA MUNICIPIO DE CAICEDONIA | D67: 25 | F67: TERRITORIAL | G67: TERRITORIAL | H67: ANTIOQUIA - ALCALDIA MUNICIPIO DE EL RETIRO | I67: 39 | K67: TERRITORIAL | L67: TERRITORIAL | M67: ANTIOQUIA - ALCALDIA MUNICIPIO DE BETANIA | N67: 36.51351351 | P67: TERRITORIAL | Q67: TERRITORIAL | R67: ANTIOQUIA - ALCALDIA MUNICIPIO DE COCORNA | S67: 56.33333333 | U67: TERRITORIAL | V67: TERRITORIAL | W67: ANTIOQUIA - ALCALDIA MUNICIPIO DE DABEIBA | X67: 36.90909091 | Z67: TERRITORIAL | AA67: TERRITORIAL | AB67: ANTIOQUIA - ALCALDIA MUNICIPIO DE BETANIA | AC67: 11.41573034 | AE67: TERRITORIAL | AF67: TERRITORIAL | AG67: ANTIOQUIA - E.S.E. HOSPITAL GABRIEL PELAEZ MONTOYA - JARDIN | AH67: 38.17679558 | AJ67: TERRITORIAL | AK67: TERRITORIAL | AL67: CAUCA - ALCALDIA MUNICIPIO DE EL TAMBO | AM67: 37 | AO67: TERRITORIAL | AP67: TERRITORIAL | AQ67: ANTIOQUIA - ALCALDIA MUNICIPIO DE EL PEÑOL | AR67: 29.75 | AT67: TERRITORIAL | AU67: TERRITORIAL | AV67: ANTIOQUIA - ALCALDIA MUNICIPIO DE ANGOSTURA | AW67: 33.74410774
A68: TERRITORIAL | B68: TERRITORIAL | C68: VALLE DEL CAUCA - ALCALDIA MUNICIPIO DE CALI | D68: 56 | F68: TERRITORIAL | G68: TERRITORIAL | H68: ANTIOQUIA - ALCALDIA MUNICIPIO DE ENTRERRIOS | I68: 26.5 | K68: TERRITORIAL | L68: TERRITORIAL | M68: ANTIOQUIA - ALCALDIA MUNICIPIO DE BETULIA | N68: 38.21710526 | P68: TERRITORIAL | Q68: TERRITORIAL | R68: ANTIOQUIA - ALCALDIA MUNICIPIO DE CONCEPCION | S68: 56.75 | U68: TERRITORIAL | V68: TERRITORIAL | W68: ANTIOQUIA - ALCALDIA MUNICIPIO DE DON MATIAS | X68: 45 | Z68: TERRITORIAL | AA68: TERRITORIAL | AB68: ANTIOQUIA - ALCALDIA MUNICIPIO DE BETULIA | AC68: 11.67647059 | AE68: TERRITORIAL | AF68: TERRITORIAL | AG68: ANTIOQUIA - E.S.E. HOSPITAL HORACIO MUÑOZ SUESCUN - SOPETRAN | AH68: 37.20430108 | AJ68: TERRITORIAL | AK68: TERRITORIAL | AL68: CAUCA - ALCALDIA MUNICIPIO DE SAN SEBASTIAN | AM68: 45 | AO68: TERRITORIAL | AP68: TERRITORIAL | AQ68: ANTIOQUIA - ALCALDIA MUNICIPIO DE EL RETIRO | AR68: 38.45454545 | AT68: TERRITORIAL | AU68: TERRITORIAL | AV68: ANTIOQUIA - ALCALDIA MUNICIPIO DE ANORI | AW68: 32.51639344
A69: TERRITORIAL | B69: TERRITORIAL | C69: VALLE DEL CAUCA - ALCALDIA MUNICIPIO DE CARTAGO | D69: 41 | F69: TERRITORIAL | G69: TERRITORIAL | H69: ANTIOQUIA - ALCALDIA MUNICIPIO DE ENVIGADO | I69: 33.84615385 | K69: TERRITORIAL | L69: TERRITORIAL | M69: ANTIOQUIA - ALCALDIA MUNICIPIO DE BRICEÑO | N69: 38.20588235 | P69: TERRITORIAL | Q69: TERRITORIAL | R69: ANTIOQUIA - ALCALDIA MUNICIPIO DE CONCORDIA | S69: 76 | U69: TERRITORIAL | V69: TERRITORIAL | W69: ANTIOQUIA - ALCALDIA MUNICIPIO DE EBEJICO | X69: 31 | Z69: TERRITORIAL | AA69: TERRITORIAL | AB69: ANTIOQUIA - ALCALDIA MUNICIPIO DE BRICEÑO | AC69: 11.49122807 | AE69: TERRITORIAL | AF69: TERRITORIAL | AG69: ANTIOQUIA - E.S.E. HOSPITAL IVAN RESTREPO GOMEZ - URRAO | AH69: 36.39837398 | AJ69: TERRITORIAL | AK69: TERRITORIAL | AL69: CAUCA - ALCALDIA MUNICIPIO DE TOTORO | AM69: 23 | AO69: TERRITORIAL | AP69: TERRITORIAL | AQ69: ANTIOQUIA - ALCALDIA MUNICIPIO DE ENVIGADO | AR69: 36.66666667 | AT69: TERRITORIAL | AU69: TERRITORIAL | AV69: ANTIOQUIA - ALCALDIA MUNICIPIO DE ANZA | AW69: 29.90909091
C70: Total general | D70: 37.76119403 | F70: TERRITORIAL | G70: TERRITORIAL | H70: ANTIOQUIA - ALCALDIA MUNICIPIO DE GIRARDOTA | I70: 35.2 | K70: TERRITORIAL | L70: TERRITORIAL | M70: ANTIOQUIA - ALCALDIA MUNICIPIO DE BURITICA | N70: 37.27631579 | P70: TERRITORIAL | Q70: TERRITORIAL | R70: ANTIOQUIA - ALCALDIA MUNICIPIO DE COPACABANA | S70: 56.58823529 | U70: TERRITORIAL | V70: TERRITORIAL | W70: ANTIOQUIA - ALCALDIA MUNICIPIO DE EL BAGRE | X70: 40.95652174 | Z70: TERRITORIAL | AA70: TERRITORIAL | AB70: ANTIOQUIA - ALCALDIA MUNICIPIO DE BURITICA | AC70: 11.77108434 | AE70: TERRITORIAL | AF70: TERRITORIAL | AG70: ANTIOQUIA - E.S.E. HOSPITAL LA ANUNCIACION DE MUTATA | AH70: 38.5 | AJ70: TERRITORIAL | AK70: TERRITORIAL | AL70: CAUCA - GOBERNACION | AM70: 51 | AO70: TERRITORIAL | AP70: TERRITORIAL | AQ70: ANTIOQUIA - ALCALDIA MUNICIPIO DE FREDONIA | AR70: 48 | AT70: TERRITORIAL | AU70: TERRITORIAL | AV70: ANTIOQUIA - ALCALDIA MUNICIPIO DE APARTADO | AW70: 31.62376238
F71: TERRITORIAL | G71: TERRITORIAL | H71: ANTIOQUIA - ALCALDIA MUNICIPIO DE GRANADA | I71: 29 | K71: TERRITORIAL | L71: TERRITORIAL | M71: ANTIOQUIA - ALCALDIA MUNICIPIO DE CACERES | N71: 37.88888889 | P71: TERRITORIAL | Q71: TERRITORIAL | R71: ANTIOQUIA - ALCALDIA MUNICIPIO DE DABEIBA | S71: 62.66666667 | U71: TERRITORIAL | V71: TERRITORIAL | W71: ANTIOQUIA - ALCALDIA MUNICIPIO DE EL PEÑOL | X71: 54 | Z71: TERRITORIAL | AA71: TERRITORIAL | AB71: ANTIOQUIA - ALCALDIA MUNICIPIO DE CACERES | AC71: 11.45833333 | AE71: TERRITORIAL | AF71: TERRITORIAL | AG71: ANTIOQUIA - E.S.E. HOSPITAL LA ESTRELLA | AH71: 54.5 | AJ71: TERRITORIAL | AK71: TERRITORIAL | AL71: CHOCO - ALCALDIA MUNICIPIO DE ALTO BAUDO | AM71: 35.5 | AO71: TERRITORIAL | AP71: TERRITORIAL | AQ71: ANTIOQUIA - ALCALDIA MUNICIPIO DE GIRARDOTA | AR71: 29 | AT71: TERRITORIAL | AU71: TERRITORIAL | AV71: ANTIOQUIA - ALCALDIA MUNICIPIO DE ARBOLETES | AW71: 30.96568627
A72: Asociación Público Privada | F72: TERRITORIAL | G72: TERRITORIAL | H72: ANTIOQUIA - ALCALDIA MUNICIPIO DE GUADALUPE | I72: 39.5 | K72: TERRITORIAL | L72: TERRITORIAL | M72: ANTIOQUIA - ALCALDIA MUNICIPIO DE CAICEDO | N72: 38.21538462 | P72: TERRITORIAL | Q72: TERRITORIAL | R72: ANTIOQUIA - ALCALDIA MUNICIPIO DE DON MATIAS | S72: 58 | U72: TERRITORIAL | V72: TERRITORIAL | W72: ANTIOQUIA - ALCALDIA MUNICIPIO DE EL RETIRO | X72: 37.73333333 | Z72: TERRITORIAL | AA72: TERRITORIAL | AB72: ANTIOQUIA - ALCALDIA MUNICIPIO DE CAICEDO | AC72: 11.51764706 | AE72: TERRITORIAL | AF72: TERRITORIAL | AG72: ANTIOQUIA - E.S.E. HOSPITAL LA INMACULADA DE GUATAPE | AH72: 41 | AJ72: TERRITORIAL | AK72: TERRITORIAL | AL72: CHOCO - ALCALDIA MUNICIPIO DE BAHIA SOLANO | AM72: 22 | AO72: TERRITORIAL | AP72: TERRITORIAL | AQ72: ANTIOQUIA - ALCALDIA MUNICIPIO DE GUADALUPE | AR72: 40.66666667 | AT72: TERRITORIAL | AU72: TERRITORIAL | AV72: ANTIOQUIA - ALCALDIA MUNICIPIO DE ARGELIA | AW72: 39.83333333
A73: Row Labels | B73: Average of INDICADOR | C73: Row Labels | D73: Average of INDICADOR | F73: TERRITORIAL | G73: TERRITORIAL | H73: ANTIOQUIA - ALCALDIA MUNICIPIO DE GUARNE | I73: 44.25 | K73: TERRITORIAL | L73: TERRITORIAL | M73: ANTIOQUIA - ALCALDIA MUNICIPIO DE CALDAS | N73: 38.13968958 | P73: TERRITORIAL | Q73: TERRITORIAL | R73: ANTIOQUIA - ALCALDIA MUNICIPIO DE EBEJICO | S73: 54 | U73: TERRITORIAL | V73: TERRITORIAL | W73: ANTIOQUIA - ALCALDIA MUNICIPIO DE ENTRERRIOS | X73: 37.42857143 | Z73: TERRITORIAL | AA73: TERRITORIAL | AB73: ANTIOQUIA - ALCALDIA MUNICIPIO DE CALDAS | AC73: 11.42156863 | AE73: TERRITORIAL | AF73: TERRITORIAL | AG73: ANTIOQUIA - E.S.E. HOSPITAL LA MARIA - MEDELLIN | AH73: 37.91283487 | AJ73: TERRITORIAL | AK73: TERRITORIAL | AL73: CHOCO - ALCALDIA MUNICIPIO DE BOJAYA - BELLAVISTA | AM73: 27 | AO73: TERRITORIAL | AP73: TERRITORIAL | AQ73: ANTIOQUIA - ALCALDIA MUNICIPIO DE GUARNE | AR73: 39.875 | AT73: TERRITORIAL | AU73: TERRITORIAL | AV73: ANTIOQUIA - ALCALDIA MUNICIPIO DE ARMENIA | AW73: 13.36923077
A74: CORPORACION AUTONOMA REGIONAL - CAR | B74: 29.5 | C74: CORPORACION AUTONOMA REGIONAL - CAR | D74: 29.5 | F74: TERRITORIAL | G74: TERRITORIAL | H74: ANTIOQUIA - ALCALDIA MUNICIPIO DE HELICONIA | I74: 48 | K74: TERRITORIAL | L74: TERRITORIAL | M74: ANTIOQUIA - ALCALDIA MUNICIPIO DE CAMPAMENTO | N74: 39.42753623 | P74: TERRITORIAL | Q74: TERRITORIAL | R74: ANTIOQUIA - ALCALDIA MUNICIPIO DE EL BAGRE | S74: 54.7 | U74: TERRITORIAL | V74: TERRITORIAL | W74: ANTIOQUIA - ALCALDIA MUNICIPIO DE ENVIGADO | X74: 38.43181818 | Z74: TERRITORIAL | AA74: TERRITORIAL | AB74: ANTIOQUIA - ALCALDIA MUNICIPIO DE CAMPAMENTO | AC74: 11.50735294 | AE74: TERRITORIAL | AF74: TERRITORIAL | AG74: ANTIOQUIA - E.S.E. HOSPITAL LA MERCED - CIUDAD BOLIVAR | AH74: 37.86842105 | AJ74: TERRITORIAL | AK74: TERRITORIAL | AL74: CHOCO - ALCALDIA MUNICIPIO DE LLORO | AM74: 42 | AO74: TERRITORIAL | AP74: TERRITORIAL | AQ74: ANTIOQUIA - ALCALDIA MUNICIPIO DE HELICONIA | AR74: 29 | AT74: TERRITORIAL | AU74: TERRITORIAL | AV74: ANTIOQUIA - ALCALDIA MUNICIPIO DE BARBOSA | AW74: 35.65749235
A75: CULTURA | B75: 37 | C75: CULTURA | D75: 37 | F75: TERRITORIAL | G75: TERRITORIAL | H75: ANTIOQUIA - ALCALDIA MUNICIPIO DE HISPANIA | I75: 38 | K75: TERRITORIAL | L75: TERRITORIAL | M75: ANTIOQUIA - ALCALDIA MUNICIPIO DE CAÑASGORDAS | N75: 41.14851485 | P75: TERRITORIAL | Q75: TERRITORIAL | R75: ANTIOQUIA - ALCALDIA MUNICIPIO DE EL RETIRO | S75: 59.58333333 | U75: TERRITORIAL | V75: TERRITORIAL | W75: ANTIOQUIA - ALCALDIA MUNICIPIO DE FREDONIA | X75: 25 | Z75: TERRITORIAL | AA75: TERRITORIAL | AB75: ANTIOQUIA - ALCALDIA MUNICIPIO DE CAÑASGORDAS | AC75: 11.41111111 | AE75: TERRITORIAL | AF75: TERRITORIAL | AG75: ANTIOQUIA - E.S.E. HOSPITAL LA MISERICORDIA - ANGELOPOLIS | AH75: 38.71428571 | AJ75: TERRITORIAL | AK75: TERRITORIAL | AL75: CHOCO - ALCALDIA MUNICIPIO DE MEDIO SAN JUAN | AM75: 33 | AO75: TERRITORIAL | AP75: TERRITORIAL | AQ75: ANTIOQUIA - ALCALDIA MUNICIPIO DE HISPANIA | AR75: 37.5 | AT75: TERRITORIAL | AU75: TERRITORIAL | AV75: ANTIOQUIA - ALCALDIA MUNICIPIO DE BELLO | AW75: 35.70229885
A76: DEPORTE Y RECREACION | B76: 30 | C76: DEPORTE Y RECREACION | D76: 30 | F76: TERRITORIAL | G76: TERRITORIAL | H76: ANTIOQUIA - ALCALDIA MUNICIPIO DE ITAGÜI | I76: 35.6 | K76: TERRITORIAL | L76: TERRITORIAL | M76: ANTIOQUIA - ALCALDIA MUNICIPIO DE CARACOLI | N76: 37.47368421 | P76: TERRITORIAL | Q76: TERRITORIAL | R76: ANTIOQUIA - ALCALDIA MUNICIPIO DE ENTRERRIOS | S76: 60.28571429 | U76: TERRITORIAL | V76: TERRITORIAL | W76: ANTIOQUIA - ALCALDIA MUNICIPIO DE FRONTINO | X76: 32 | Z76: TERRITORIAL | AA76: TERRITORIAL | AB76: ANTIOQUIA - ALCALDIA MUNICIPIO DE CARACOLI | AC76: 11.40816327 | AE76: TERRITORIAL | AF76: TERRITORIAL | AG76: ANTIOQUIA - E.S.E. HOSPITAL LA MISERICORDIA DE YALI | AH76: 37.93121693 | AJ76: TERRITORIAL | AK76: TERRITORIAL | AL76: CHOCO - ALCALDIA MUNICIPIO DE QUIBDO | AM76: 45.83333333 | AO76: TERRITORIAL | AP76: TERRITORIAL | AQ76: ANTIOQUIA - ALCALDIA MUNICIPIO DE ITAGÜI | AR76: 38.90909091 | AT76: TERRITORIAL | AU76: TERRITORIAL | AV76: ANTIOQUIA - ALCALDIA MUNICIPIO DE BELMIRA | AW76: 19.43965517
A77: ESTADISTICA | B77: 33 | C77: ESTADISTICA | D77: 33 | F77: TERRITORIAL | G77: TERRITORIAL | H77: ANTIOQUIA - ALCALDIA MUNICIPIO DE ITUANGO | I77: 44.75 | K77: TERRITORIAL | L77: TERRITORIAL | M77: ANTIOQUIA - ALCALDIA MUNICIPIO DE CARAMANTA | N77: 38.14516129 | P77: TERRITORIAL | Q77: TERRITORIAL | R77: ANTIOQUIA - ALCALDIA MUNICIPIO DE ENVIGADO | S77: 63.35714286 | U77: TERRITORIAL | V77: TERRITORIAL | W77: ANTIOQUIA - ALCALDIA MUNICIPIO DE GIRARDOTA | X77: 27.5 | Z77: TERRITORIAL | AA77: TERRITORIAL | AB77: ANTIOQUIA - ALCALDIA MUNICIPIO DE CARAMANTA | AC77: 11.33333333 | AE77: TERRITORIAL | AF77: TERRITORIAL | AG77: ANTIOQUIA - E.S.E. HOSPITAL LA SAGRADA FAMILIA - CAMPAMENTO | AH77: 41.2244898 | AJ77: NACIONAL | AK77: TECNOLOGIAS DE LA INFORMACION Y LAS COMUNICACIONES | AL77: COMPUTADORES PARA EDUCAR | AM77: 42 | AO77: TERRITORIAL | AP77: TERRITORIAL | AQ77: ANTIOQUIA - ALCALDIA MUNICIPIO DE ITUANGO | AR77: 36.71428571 | AT77: TERRITORIAL | AU77: TERRITORIAL | AV77: ANTIOQUIA - ALCALDIA MUNICIPIO DE BETANIA | AW77: 22.88484848
A78: INCLUSION SOCIAL Y RECONCILIACION | B78: 26 | C78: INCLUSION SOCIAL Y RECONCILIACION | D78: 26 | F78: TERRITORIAL | G78: TERRITORIAL | H78: ANTIOQUIA - ALCALDIA MUNICIPIO DE JARDIN | I78: 48 | K78: TERRITORIAL | L78: TERRITORIAL | M78: ANTIOQUIA - ALCALDIA MUNICIPIO DE CAREPA | N78: 36.52325581 | P78: TERRITORIAL | Q78: TERRITORIAL | R78: ANTIOQUIA - ALCALDIA MUNICIPIO DE FREDONIA | S78: 65.4 | U78: TERRITORIAL | V78: TERRITORIAL | W78: ANTIOQUIA - ALCALDIA MUNICIPIO DE GOMEZ PLATA | X78: 24 | Z78: TERRITORIAL | AA78: TERRITORIAL | AB78: ANTIOQUIA - ALCALDIA MUNICIPIO DE CAREPA | AC78: 11.6097561 | AE78: TERRITORIAL | AF78: TERRITORIAL | AG78: ANTIOQUIA - E.S.E. HOSPITAL MARCO FIDEL SUAREZ - BELLO | AH78: 37.83338832 | AJ78: NACIONAL | AK78: CONTROL | AL78: CONTRALORIA GENERAL DE LA REPUBLICA (CGR) | AM78: 54 | AO78: TERRITORIAL | AP78: TERRITORIAL | AQ78: ANTIOQUIA - ALCALDIA MUNICIPIO DE JARDIN | AR78: 47 | AT78: TERRITORIAL | AU78: TERRITORIAL | AV78: ANTIOQUIA - ALCALDIA MUNICIPIO DE BETULIA | AW78: 30.85152838
A79: INTERIOR | B79: 33.5 | C79: INTERIOR | D79: 33.5 | F79: TERRITORIAL | G79: TERRITORIAL | H79: ANTIOQUIA - ALCALDIA MUNICIPIO DE JERICO | I79: 40.5 | K79: TERRITORIAL | L79: TERRITORIAL | M79: ANTIOQUIA - ALCALDIA MUNICIPIO DE CARMEN DE VIBORAL | N79: 37.1559633 | P79: TERRITORIAL | Q79: TERRITORIAL | R79: ANTIOQUIA - ALCALDIA MUNICIPIO DE FRONTINO | S79: 57 | U79: TERRITORIAL | V79: TERRITORIAL | W79: ANTIOQUIA - ALCALDIA MUNICIPIO DE GRANADA | X79: 38.85714286 | Z79: TERRITORIAL | AA79: TERRITORIAL | AB79: ANTIOQUIA - ALCALDIA MUNICIPIO DE CARMEN DE VIBORAL | AC79: 11.46153846 | AE79: TERRITORIAL | AF79: TERRITORIAL | AG79: ANTIOQUIA - E.S.E. HOSPITAL MARIA AUXILIADORA - CHIGORODO | AH79: 38.42307692 | AJ79: TERRITORIAL | AK79: TERRITORIAL | AL79: CORDOBA - ALCALDIA MUNICIPIO DE SAN ANTERO | AM79: 27 | AO79: TERRITORIAL | AP79: TERRITORIAL | AQ79: ANTIOQUIA - ALCALDIA MUNICIPIO DE LA CEJA | AR79: 43.875 | AT79: TERRITORIAL | AU79: TERRITORIAL | AV79: ANTIOQUIA - ALCALDIA MUNICIPIO DE BRICEÑO | AW79: 28.12457912
A80: MINAS Y ENERGIA | B80: 50 | C80: MINAS Y ENERGIA | D80: 50 | F80: TERRITORIAL | G80: TERRITORIAL | H80: ANTIOQUIA - ALCALDIA MUNICIPIO DE LA CEJA | I80: 38.75 | K80: TERRITORIAL | L80: TERRITORIAL | M80: ANTIOQUIA - ALCALDIA MUNICIPIO DE CAROLINA | N80: 37.3908046 | P80: TERRITORIAL | Q80: TERRITORIAL | R80: ANTIOQUIA - ALCALDIA MUNICIPIO DE GIRALDO | S80: 81 | U80: TERRITORIAL | V80: TERRITORIAL | W80: ANTIOQUIA - ALCALDIA MUNICIPIO DE GUADALUPE | X80: 37 | Z80: TERRITORIAL | AA80: TERRITORIAL | AB80: ANTIOQUIA - ALCALDIA MUNICIPIO DE CAROLINA | AC80: 11.58778626 | AE80: TERRITORIAL | AF80: TERRITORIAL | AG80: ANTIOQUIA - E.S.E. HOSPITAL MUNICIPAL SAN ROQUE | AH80: 39.76923077 | AJ80: TERRITORIAL | AK80: TERRITORIAL | AL80: CORDOBA - ALCALDIA MUNICIPIO DE SAN JOSE DE URE | AM80: 33.36363636 | AO80: TERRITORIAL | AP80: TERRITORIAL | AQ80: ANTIOQUIA - ALCALDIA MUNICIPIO DE LA ESTRELLA | AR80: 34.61111111 | AT80: TERRITORIAL | AU80: TERRITORIAL | AV80: ANTIOQUIA - ALCALDIA MUNICIPIO DE BURITICA | AW80: 26.30645161
A81: PLANEACION | B81: 33 | C81: PLANEACION | D81: 33 | F81: TERRITORIAL | G81: TERRITORIAL | H81: ANTIOQUIA - ALCALDIA MUNICIPIO DE LA ESTRELLA | I81: 31.5 | K81: TERRITORIAL | L81: TERRITORIAL | M81: ANTIOQUIA - ALCALDIA MUNICIPIO DE CAUCASIA | N81: 41.68421053 | P81: TERRITORIAL | Q81: TERRITORIAL | R81: ANTIOQUIA - ALCALDIA MUNICIPIO DE GIRARDOTA | S81: 54 | U81: TERRITORIAL | V81: TERRITORIAL | W81: ANTIOQUIA - ALCALDIA MUNICIPIO DE GUARNE | X81: 39.71428571 | Z81: TERRITORIAL | AA81: TERRITORIAL | AB81: ANTIOQUIA - ALCALDIA MUNICIPIO DE CAUCASIA | AC81: 11.56716418 | AE81: TERRITORIAL | AF81: TERRITORIAL | AG81: ANTIOQUIA - E.S.E. HOSPITAL NUESTRA SEÑORA DE GUADALUPE - GUADALUPE | AH81: 51 | AJ81: NACIONAL | AK81: TERRITORIAL | AL81: CORPOURABA - CORPORACION PARA EL DESARROLLO SOSTENIBLE DEL URABA | AM81: 44.66666667 | AO81: TERRITORIAL | AP81: TERRITORIAL | AQ81: ANTIOQUIA - ALCALDIA MUNICIPIO DE LA PINTADA | AR81: 22 | AT81: TERRITORIAL | AU81: TERRITORIAL | AV81: ANTIOQUIA - ALCALDIA MUNICIPIO DE CACERES | AW81: 33.27941176
A82: TECNOLOGIAS DE LA INFORMACION Y LAS COMUNICACIONES | B82: 20 | C82: TECNOLOGIAS DE LA INFORMACION Y LAS COMUNICACIONES | D82: 20 | F82: TERRITORIAL | G82: TERRITORIAL | H82: ANTIOQUIA - ALCALDIA MUNICIPIO DE LA PINTADA | I82: 41.5 | K82: TERRITORIAL | L82: TERRITORIAL | M82: ANTIOQUIA - ALCALDIA MUNICIPIO DE CHIGORODO | N82: 36.91304348 | P82: TERRITORIAL | Q82: TERRITORIAL | R82: ANTIOQUIA - ALCALDIA MUNICIPIO DE GOMEZ PLATA | S82: 72 | U82: TERRITORIAL | V82: TERRITORIAL | W82: ANTIOQUIA - ALCALDIA MUNICIPIO DE GUATAPE | X82: 55 | Z82: TERRITORIAL | AA82: TERRITORIAL | AB82: ANTIOQUIA - ALCALDIA MUNICIPIO DE CHIGORODO | AC82: 11.71641791 | AE82: TERRITORIAL | AF82: TERRITORIAL | AG82: ANTIOQUIA - E.S.E. HOSPITAL NUESTRA SEÑORA DEL PERPETUO SOCORRO | AH82: 38.04166667 | AJ82: TERRITORIAL | AK82: TERRITORIAL | AL82: CUNDINAMARCA - ALCALDIA MUNICIPIO DE CHIPAQUE | AM82: 33 | AO82: TERRITORIAL | AP82: TERRITORIAL | AQ82: ANTIOQUIA - ALCALDIA MUNICIPIO DE LA UNION | AR82: 23 | AT82: TERRITORIAL | AU82: TERRITORIAL | AV82: ANTIOQUIA - ALCALDIA MUNICIPIO DE CAICEDO | AW82: 27.89449541
A83: TERRITORIAL | B83: 39.34166667 | C83: TERRITORIAL | D83: 39.34166667 | F83: TERRITORIAL | G83: TERRITORIAL | H83: ANTIOQUIA - ALCALDIA MUNICIPIO DE LIBORINA | I83: 30.5 | K83: TERRITORIAL | L83: TERRITORIAL | M83: ANTIOQUIA - ALCALDIA MUNICIPIO DE CISNEROS | N83: 39.07638889 | P83: TERRITORIAL | Q83: TERRITORIAL | R83: ANTIOQUIA - ALCALDIA MUNICIPIO DE GRANADA | S83: 52.66666667 | U83: TERRITORIAL | V83: TERRITORIAL | W83: ANTIOQUIA - ALCALDIA MUNICIPIO DE HELICONIA | X83: 53 | Z83: TERRITORIAL | AA83: TERRITORIAL | AB83: ANTIOQUIA - ALCALDIA MUNICIPIO DE CISNEROS | AC83: 11.44444444 | AE83: TERRITORIAL | AF83: TERRITORIAL | AG83: ANTIOQUIA - E.S.E. HOSPITAL OCTAVIO OLIVARES - PUERTO NARE | AH83: 39.48484848 | AJ83: TERRITORIAL | AK83: TERRITORIAL | AL83: CUNDINAMARCA - ALCALDIA MUNICIPIO DE COTA | AM83: 20 | AO83: TERRITORIAL | AP83: TERRITORIAL | AQ83: ANTIOQUIA - ALCALDIA MUNICIPIO DE MACEO | AR83: 41 | AT83: TERRITORIAL | AU83: TERRITORIAL | AV83: ANTIOQUIA - ALCALDIA MUNICIPIO DE CALDAS | AW83: 33.46232877
A84: TRABAJO | B84: 26 | C84: TRABAJO | D84: 26 | F84: TERRITORIAL | G84: TERRITORIAL | H84: ANTIOQUIA - ALCALDIA MUNICIPIO DE MACEO | I84: 33 | K84: TERRITORIAL | L84: TERRITORIAL | M84: ANTIOQUIA - ALCALDIA MUNICIPIO DE CIUDAD BOLIVAR | N84: 38.46153846 | P84: TERRITORIAL | Q84: TERRITORIAL | R84: ANTIOQUIA - ALCALDIA MUNICIPIO DE GUADALUPE | S84: 66.5 | U84: TERRITORIAL | V84: TERRITORIAL | W84: ANTIOQUIA - ALCALDIA MUNICIPIO DE HISPANIA | X84: 37.2 | Z84: TERRITORIAL | AA84: TERRITORIAL | AB84: ANTIOQUIA - ALCALDIA MUNICIPIO DE CIUDAD BOLIVAR | AC84: 11.51515152 | AE84: TERRITORIAL | AF84: TERRITORIAL | AG84: ANTIOQUIA - E.S.E. HOSPITAL OSCAR EMIRO VERGARA CRUZ - SAN PEDRO DE URABA | AH84: 37.83333333 | AJ84: TERRITORIAL | AK84: TERRITORIAL | AL84: CUNDINAMARCA - ALCALDIA MUNICIPIO DE GUATAQUI | AM84: 37 | AO84: TERRITORIAL | AP84: TERRITORIAL | AQ84: ANTIOQUIA - ALCALDIA MUNICIPIO DE MARINILLA | AR84: 32 | AT84: TERRITORIAL | AU84: TERRITORIAL | AV84: ANTIOQUIA - ALCALDIA MUNICIPIO DE CAMPAMENTO | AW84: 26.38095238
A85: Grand Total | B85: 37.2875 | C85: Grand Total | D85: 37.2875 | F85: TERRITORIAL | G85: TERRITORIAL | H85: ANTIOQUIA - ALCALDIA MUNICIPIO DE MARINILLA | I85: 42.25 | K85: TERRITORIAL | L85: TERRITORIAL | M85: ANTIOQUIA - ALCALDIA MUNICIPIO DE COCORNA | N85: 38.27952756 | P85: TERRITORIAL | Q85: TERRITORIAL | R85: ANTIOQUIA - ALCALDIA MUNICIPIO DE GUARNE | S85: 52.16666667 | U85: TERRITORIAL | V85: TERRITORIAL | W85: ANTIOQUIA - ALCALDIA MUNICIPIO DE ITAGÜI | X85: 44.4 | Z85: TERRITORIAL | AA85: TERRITORIAL | AB85: ANTIOQUIA - ALCALDIA MUNICIPIO DE COCORNA | AC85: 11.54954955 | AE85: TERRITORIAL | AF85: TERRITORIAL | AG85: ANTIOQUIA - E.S.E. HOSPITAL PADRE CLEMENTE GIRALDO - GRANADA | AH85: 37.2704918 | AJ85: TERRITORIAL | AK85: TERRITORIAL | AL85: CUNDINAMARCA - ALCALDIA MUNICIPIO DE GUATAVITA | AM85: 20 | AO85: TERRITORIAL | AP85: TERRITORIAL | AQ85: ANTIOQUIA - ALCALDIA MUNICIPIO DE MEDELLIN | AR85: 37.26136364 | AT85: TERRITORIAL | AU85: TERRITORIAL | AV85: ANTIOQUIA - ALCALDIA MUNICIPIO DE CAÑASGORDAS | AW85: 28.72522523
F86: TERRITORIAL | G86: TERRITORIAL | H86: ANTIOQUIA - ALCALDIA MUNICIPIO DE MEDELLIN | I86: 37.36111111 | K86: TERRITORIAL | L86: TERRITORIAL | M86: ANTIOQUIA - ALCALDIA MUNICIPIO DE CONCEPCION | N86: 35.9875 | P86: TERRITORIAL | Q86: TERRITORIAL | R86: ANTIOQUIA - ALCALDIA MUNICIPIO DE HELICONIA | S86: 66 | U86: TERRITORIAL | V86: TERRITORIAL | W86: ANTIOQUIA - ALCALDIA MUNICIPIO DE ITUANGO | X86: 36.33333333 | Z86: TERRITORIAL | AA86: TERRITORIAL | AB86: ANTIOQUIA - ALCALDIA MUNICIPIO DE CONCEPCION | AC86: 11.46889952 | AE86: TERRITORIAL | AF86: TERRITORIAL | AG86: ANTIOQUIA - E.S.E. HOSPITAL PEDRO NEL CARDONA - ARBOLETES | AH86: 37.61204819 | AJ86: TERRITORIAL | AK86: TERRITORIAL | AL86: CUNDINAMARCA - ALCALDIA MUNICIPIO DE GUTIERREZ | AM86: 29 | AO86: TERRITORIAL | AP86: TERRITORIAL | AQ86: ANTIOQUIA - ALCALDIA MUNICIPIO DE MUTATA | AR86: 31 | AT86: TERRITORIAL | AU86: TERRITORIAL | AV86: ANTIOQUIA - ALCALDIA MUNICIPIO DE CARACOLI | AW86: 29.08759124
F87: TERRITORIAL | G87: TERRITORIAL | H87: ANTIOQUIA - ALCALDIA MUNICIPIO DE MONTEBELLO | I87: 53 | K87: TERRITORIAL | L87: TERRITORIAL | M87: ANTIOQUIA - ALCALDIA MUNICIPIO DE CONCORDIA | N87: 36.91549296 | P87: TERRITORIAL | Q87: TERRITORIAL | R87: ANTIOQUIA - ALCALDIA MUNICIPIO DE HISPANIA | S87: 54.5 | U87: TERRITORIAL | V87: TERRITORIAL | W87: ANTIOQUIA - ALCALDIA MUNICIPIO DE JARDIN | X87: 35.33333333 | Z87: TERRITORIAL | AA87: TERRITORIAL | AB87: ANTIOQUIA - ALCALDIA MUNICIPIO DE CONCORDIA | AC87: 11.31578947 | AE87: TERRITORIAL | AF87: TERRITORIAL | AG87: ANTIOQUIA - E.S.E. HOSPITAL SAN ANTONIO CISNEROS | AH87: 39.01785714 | AJ87: TERRITORIAL | AK87: TERRITORIAL | AL87: CUNDINAMARCA - ALCALDIA MUNICIPIO DE MEDINA | AM87: 38.33333333 | AO87: TERRITORIAL | AP87: TERRITORIAL | AQ87: ANTIOQUIA - ALCALDIA MUNICIPIO DE OLAYA | AR87: 20 | AT87: TERRITORIAL | AU87: TERRITORIAL | AV87: ANTIOQUIA - ALCALDIA MUNICIPIO DE CARAMANTA | AW87: 31.19587629
A88: Asociación Público Privada | F88: TERRITORIAL | G88: TERRITORIAL | H88: ANTIOQUIA - ALCALDIA MUNICIPIO DE NARIÑO | I88: 30.5 | K88: TERRITORIAL | L88: TERRITORIAL | M88: ANTIOQUIA - ALCALDIA MUNICIPIO DE COPACABANA | N88: 37.44936709 | P88: TERRITORIAL | Q88: TERRITORIAL | R88: ANTIOQUIA - ALCALDIA MUNICIPIO DE ITAGÜI | S88: 57.3 | U88: TERRITORIAL | V88: TERRITORIAL | W88: ANTIOQUIA - ALCALDIA MUNICIPIO DE JERICO | X88: 22 | Z88: TERRITORIAL | AA88: TERRITORIAL | AB88: ANTIOQUIA - ALCALDIA MUNICIPIO DE COPACABANA | AC88: 11.58 | AE88: TERRITORIAL | AF88: TERRITORIAL | AG88: ANTIOQUIA - E.S.E. HOSPITAL SAN FERNANDO - AMAGA | AH88: 37.77272727 | AJ88: TERRITORIAL | AK88: TERRITORIAL | AL88: CUNDINAMARCA - ALCALDIA MUNICIPIO DE TOCANCIPA | AM88: 48 | AO88: TERRITORIAL | AP88: TERRITORIAL | AQ88: ANTIOQUIA - ALCALDIA MUNICIPIO DE PEQUE | AR88: 38.33333333 | AT88: TERRITORIAL | AU88: TERRITORIAL | AV88: ANTIOQUIA - ALCALDIA MUNICIPIO DE CAREPA | AW88: 29.83263598
A89: Row Labels | B89: Average of INDICADOR | C89: Row Labels | D89: Average of INDICADOR | F89: TERRITORIAL | G89: TERRITORIAL | H89: ANTIOQUIA - ALCALDIA MUNICIPIO DE OLAYA | I89: 36 | K89: TERRITORIAL | L89: TERRITORIAL | M89: ANTIOQUIA - ALCALDIA MUNICIPIO DE DABEIBA | N89: 38.98086124 | P89: TERRITORIAL | Q89: TERRITORIAL | R89: ANTIOQUIA - ALCALDIA MUNICIPIO DE ITUANGO | S89: 56 | U89: TERRITORIAL | V89: TERRITORIAL | W89: ANTIOQUIA - ALCALDIA MUNICIPIO DE LA CEJA | X89: 36.44444444 | Z89: TERRITORIAL | AA89: TERRITORIAL | AB89: ANTIOQUIA - ALCALDIA MUNICIPIO DE DABEIBA | AC89: 11.30917874 | AE89: TERRITORIAL | AF89: TERRITORIAL | AG89: ANTIOQUIA - E.S.E. HOSPITAL SAN JUAN DE DIOS - CONCORDIA | AH89: 38.12698413 | AJ89: TERRITORIAL | AK89: TERRITORIAL | AL89: CUNDINAMARCA - ALCALDIA MUNICIPIO DE VERGARA | AM89: 51 | AO89: TERRITORIAL | AP89: TERRITORIAL | AQ89: ANTIOQUIA - ALCALDIA MUNICIPIO DE PUERTO BERRIO | AR89: 54 | AT89: TERRITORIAL | AU89: TERRITORIAL | AV89: ANTIOQUIA - ALCALDIA MUNICIPIO DE CARMEN DE VIBORAL | AW89: 33.94219653
A90: NACIONAL | B90: 31.125 | C90: NACIONAL | D90: 31.125 | F90: TERRITORIAL | G90: TERRITORIAL | H90: ANTIOQUIA - ALCALDIA MUNICIPIO DE PEQUE | I90: 42 | K90: TERRITORIAL | L90: TERRITORIAL | M90: ANTIOQUIA - ALCALDIA MUNICIPIO DE DON MATIAS | N90: 37.98837209 | P90: TERRITORIAL | Q90: TERRITORIAL | R90: ANTIOQUIA - ALCALDIA MUNICIPIO DE JARDIN | S90: 59.66666667 | U90: TERRITORIAL | V90: TERRITORIAL | W90: ANTIOQUIA - ALCALDIA MUNICIPIO DE LA ESTRELLA | X90: 34 | Z90: TERRITORIAL | AA90: TERRITORIAL | AB90: ANTIOQUIA - ALCALDIA MUNICIPIO DE DON MATIAS | AC90: 11.49640288 | AE90: TERRITORIAL | AF90: TERRITORIAL | AG90: ANTIOQUIA - E.S.E. HOSPITAL SAN JUAN DE DIOS - SONSON | AH90: 37.975 | AJ90: TERRITORIAL | AK90: TERRITORIAL | AL90: CUNDINAMARCA - ALCALDIA MUNICIPIO DE VILLAGOMEZ | AM90: 30 | AO90: TERRITORIAL | AP90: TERRITORIAL | AQ90: ANTIOQUIA - ALCALDIA MUNICIPIO DE PUERTO NARE | AR90: 25.5 | AT90: TERRITORIAL | AU90: TERRITORIAL | AV90: ANTIOQUIA - ALCALDIA MUNICIPIO DE CAROLINA | AW90: 26.74763407
A91: TERRITORIAL | B91: 39.34166667 | C91: TERRITORIAL | D91: 39.34166667 | F91: TERRITORIAL | G91: TERRITORIAL | H91: ANTIOQUIA - ALCALDIA MUNICIPIO DE PUERTO NARE | I91: 41 | K91: TERRITORIAL | L91: TERRITORIAL | M91: ANTIOQUIA - ALCALDIA MUNICIPIO DE EBEJICO | N91: 36.84269663 | P91: TERRITORIAL | Q91: TERRITORIAL | R91: ANTIOQUIA - ALCALDIA MUNICIPIO DE JERICO | S91: 62 | U91: TERRITORIAL | V91: TERRITORIAL | W91: ANTIOQUIA - ALCALDIA MUNICIPIO DE LA PINTADA | X91: 39 | Z91: TERRITORIAL | AA91: TERRITORIAL | AB91: ANTIOQUIA - ALCALDIA MUNICIPIO DE EBEJICO | AC91: 11.82 | AE91: TERRITORIAL | AF91: TERRITORIAL | AG91: ANTIOQUIA - E.S.E. HOSPITAL SAN JUAN DE DIOS DE EL PEÑOL | AH91: 38.47945205 | AJ91: TERRITORIAL | AK91: TERRITORIAL | AL91: CUNDINAMARCA - E.S.E. CENTRO DE SALUD DE RICAURTE | AM91: 33.5 | AO91: TERRITORIAL | AP91: TERRITORIAL | AQ91: ANTIOQUIA - ALCALDIA MUNICIPIO DE PUERTO TRIUNFO | AR91: 42.4 | AT91: TERRITORIAL | AU91: TERRITORIAL | AV91: ANTIOQUIA - ALCALDIA MUNICIPIO DE CAUCASIA | AW91: 20.33802817
A92: Grand Total | B92: 37.2875 | C92: Grand Total | D92: 37.2875 | F92: TERRITORIAL | G92: TERRITORIAL | H92: ANTIOQUIA - ALCALDIA MUNICIPIO DE PUERTO TRIUNFO | I92: 24 | K92: TERRITORIAL | L92: TERRITORIAL | M92: ANTIOQUIA - ALCALDIA MUNICIPIO DE EL BAGRE | N92: 38.11949686 | P92: TERRITORIAL | Q92: TERRITORIAL | R92: ANTIOQUIA - ALCALDIA MUNICIPIO DE LA CEJA | S92: 54.25 | U92: TERRITORIAL | V92: TERRITORIAL | W92: ANTIOQUIA - ALCALDIA MUNICIPIO DE LIBORINA | X92: 34.5 | Z92: TERRITORIAL | AA92: TERRITORIAL | AB92: ANTIOQUIA - ALCALDIA MUNICIPIO DE EL BAGRE | AC92: 11.69047619 | AE92: TERRITORIAL | AF92: TERRITORIAL | AG92: ANTIOQUIA - E.S.E. HOSPITAL SAN JUAN DE DIOS DE EL SANTUARIO | AH92: 37.62068966 | AJ92: TERRITORIAL | AK92: TERRITORIAL | AL92: CUNDINAMARCA - GOBERNACION | AM92: 33 | AO92: TERRITORIAL | AP92: TERRITORIAL | AQ92: ANTIOQUIA - ALCALDIA MUNICIPIO DE REMEDIOS | AR92: 35.2 | AT92: TERRITORIAL | AU92: TERRITORIAL | AV92: ANTIOQUIA - ALCALDIA MUNICIPIO DE CHIGORODO | AW92: 29.03157895
F93: TERRITORIAL | G93: TERRITORIAL | H93: ANTIOQUIA - ALCALDIA MUNICIPIO DE REMEDIOS | I93: 35.7 | K93: TERRITORIAL | L93: TERRITORIAL | M93: ANTIOQUIA - ALCALDIA MUNICIPIO DE EL PEÑOL | N93: 37.41452991 | P93: TERRITORIAL | Q93: TERRITORIAL | R93: ANTIOQUIA - ALCALDIA MUNICIPIO DE LA ESTRELLA | S93: 73 | U93: TERRITORIAL | V93: TERRITORIAL | W93: ANTIOQUIA - ALCALDIA MUNICIPIO DE MACEO | X93: 31 | Z93: TERRITORIAL | AA93: TERRITORIAL | AB93: ANTIOQUIA - ALCALDIA MUNICIPIO DE EL PEÑOL | AC93: 11.32307692 | AE93: TERRITORIAL | AF93: TERRITORIAL | AG93: ANTIOQUIA - E.S.E. HOSPITAL SAN JUAN DE DIOS DE VALDIVIA | AH93: 38.29411765 | AJ93: NACIONAL | AK93: PRESIDENCIA DE LA REPUBLICA | AL93: DEPARTAMENTO ADMINISTRATIVO DE LA PRESIDENCIA DE LA REPUBLICA (DAPRE) | AM93: 26 | AO93: TERRITORIAL | AP93: TERRITORIAL | AQ93: ANTIOQUIA - ALCALDIA MUNICIPIO DE RIONEGRO | AR93: 47 | AT93: TERRITORIAL | AU93: TERRITORIAL | AV93: ANTIOQUIA - ALCALDIA MUNICIPIO DE CISNEROS | AW93: 31.66820276
F94: TERRITORIAL | G94: TERRITORIAL | H94: ANTIOQUIA - ALCALDIA MUNICIPIO DE RIONEGRO | I94: 35.28571429 | K94: TERRITORIAL | L94: TERRITORIAL | M94: ANTIOQUIA - ALCALDIA MUNICIPIO DE EL RETIRO | N94: 37.75813953 | P94: TERRITORIAL | Q94: TERRITORIAL | R94: ANTIOQUIA - ALCALDIA MUNICIPIO DE LA PINTADA | S94: 62 | U94: TERRITORIAL | V94: TERRITORIAL | W94: ANTIOQUIA - ALCALDIA MUNICIPIO DE MARINILLA | X94: 42 | Z94: TERRITORIAL | AA94: TERRITORIAL | AB94: ANTIOQUIA - ALCALDIA MUNICIPIO DE EL RETIRO | AC94: 11.43396226 | AE94: TERRITORIAL | AF94: TERRITORIAL | AG94: ANTIOQUIA - E.S.E. HOSPITAL SAN JUAN DE DIOS DE YARUMAL | AH94: 31.66666667 | AJ94: NACIONAL | AK94: PLANEACION | AL94: DEPARTAMENTO NACIONAL DE PLANEACION (DNP) | AM94: 54 | AO94: TERRITORIAL | AP94: TERRITORIAL | AQ94: ANTIOQUIA - ALCALDIA MUNICIPIO DE SABANALARGA | AR94: 30.75 | AT94: TERRITORIAL | AU94: TERRITORIAL | AV94: ANTIOQUIA - ALCALDIA MUNICIPIO DE CIUDAD BOLIVAR | AW94: 27.97647059
F95: TERRITORIAL | G95: TERRITORIAL | H95: ANTIOQUIA - ALCALDIA MUNICIPIO DE SABANETA | I95: 33.66666667 | K95: TERRITORIAL | L95: TERRITORIAL | M95: ANTIOQUIA - ALCALDIA MUNICIPIO DE ENTRERRIOS | N95: 37.68316832 | P95: TERRITORIAL | Q95: TERRITORIAL | R95: ANTIOQUIA - ALCALDIA MUNICIPIO DE LIBORINA | S95: 55.83333333 | U95: TERRITORIAL | V95: TERRITORIAL | W95: ANTIOQUIA - ALCALDIA MUNICIPIO DE MEDELLIN | X95: 38.90977444 | Z95: TERRITORIAL | AA95: TERRITORIAL | AB95: ANTIOQUIA - ALCALDIA MUNICIPIO DE ENTRERRIOS | AC95: 11.4137931 | AE95: TERRITORIAL | AF95: TERRITORIAL | AG95: ANTIOQUIA - E.S.E. HOSPITAL SAN JUAN DEL SUROESTE - HISPANIA | AH95: 40.07142857 | AJ95: NACIONAL | AK95: DEFENSA NACIONAL | AL95: DIRECCION DE SANIDAD DE LA FUERZA AEREA COLOMBIANA | AM95: 46.11111111 | AO95: TERRITORIAL | AP95: TERRITORIAL | AQ95: ANTIOQUIA - ALCALDIA MUNICIPIO DE SABANETA | AR95: 36 | AT95: TERRITORIAL | AU95: TERRITORIAL | AV95: ANTIOQUIA - ALCALDIA MUNICIPIO DE COCORNA | AW95: 30.53968254
F96: TERRITORIAL | G96: TERRITORIAL | H96: ANTIOQUIA - ALCALDIA MUNICIPIO DE SAN ANDRES DE CUERQUIA | I96: 36 | K96: TERRITORIAL | L96: TERRITORIAL | M96: ANTIOQUIA - ALCALDIA MUNICIPIO DE ENVIGADO | N96: 38.22966507 | P96: TERRITORIAL | Q96: TERRITORIAL | R96: ANTIOQUIA - ALCALDIA MUNICIPIO DE MACEO | S96: 72.5 | U96: TERRITORIAL | V96: TERRITORIAL | W96: ANTIOQUIA - ALCALDIA MUNICIPIO DE NARIÑO | X96: 39.77777778 | Z96: TERRITORIAL | AA96: TERRITORIAL | AB96: ANTIOQUIA - ALCALDIA MUNICIPIO DE ENVIGADO | AC96: 11.51331719 | AE96: TERRITORIAL | AF96: TERRITORIAL | AG96: ANTIOQUIA - E.S.E. HOSPITAL SAN LORENZO DE LIBORINA - MEDELLIN | AH96: 51 | AJ96: NACIONAL | AK96: DEFENSA NACIONAL | AL96: DIRECCION GENERAL DE LA POLICIA NACIONAL (PONAL) | AM96: 39.01953125 | AO96: TERRITORIAL | AP96: TERRITORIAL | AQ96: ANTIOQUIA - ALCALDIA MUNICIPIO DE SALGAR | AR96: 27 | AT96: TERRITORIAL | AU96: TERRITORIAL | AV96: ANTIOQUIA - ALCALDIA MUNICIPIO DE CONCEPCION | AW96: 19.50819672
F97: TERRITORIAL | G97: TERRITORIAL | H97: ANTIOQUIA - ALCALDIA MUNICIPIO DE SAN CARLOS | I97: 41.8 | K97: TERRITORIAL | L97: TERRITORIAL | M97: ANTIOQUIA - ALCALDIA MUNICIPIO DE FREDONIA | N97: 39.98969072 | P97: TERRITORIAL | Q97: TERRITORIAL | R97: ANTIOQUIA - ALCALDIA MUNICIPIO DE MARINILLA | S97: 61 | U97: TERRITORIAL | V97: TERRITORIAL | W97: ANTIOQUIA - ALCALDIA MUNICIPIO DE OLAYA | X97: 37.66666667 | Z97: TERRITORIAL | AA97: TERRITORIAL | AB97: ANTIOQUIA - ALCALDIA MUNICIPIO DE FREDONIA | AC97: 11.71232877 | AE97: TERRITORIAL | AF97: TERRITORIAL | AG97: ANTIOQUIA - E.S.E. HOSPITAL SAN RAFAEL - CAROLINA DEL PRINCIPE | AH97: 38.28205128 | AJ97: NACIONAL | AK97: DEFENSA NACIONAL | AL97: DIRECCION GENERAL DE SANIDAD MILITAR | AM97: 40.66666667 | AO97: TERRITORIAL | AP97: TERRITORIAL | AQ97: ANTIOQUIA - ALCALDIA MUNICIPIO DE SAN FRANCISCO | AR97: 43.33333333 | AT97: TERRITORIAL | AU97: TERRITORIAL | AV97: ANTIOQUIA - ALCALDIA MUNICIPIO DE CONCORDIA | AW97: 23.59776536
F98: TERRITORIAL | G98: TERRITORIAL | H98: ANTIOQUIA - ALCALDIA MUNICIPIO DE SAN JERONIMO | I98: 39.75 | K98: TERRITORIAL | L98: TERRITORIAL | M98: ANTIOQUIA - ALCALDIA MUNICIPIO DE FRONTINO | N98: 35.2 | P98: TERRITORIAL | Q98: TERRITORIAL | R98: ANTIOQUIA - ALCALDIA MUNICIPIO DE MEDELLIN | S98: 56.41860465 | U98: TERRITORIAL | V98: TERRITORIAL | W98: ANTIOQUIA - ALCALDIA MUNICIPIO DE PEQUE | X98: 36.44444444 | Z98: TERRITORIAL | AA98: TERRITORIAL | AB98: ANTIOQUIA - ALCALDIA MUNICIPIO DE FRONTINO | AC98: 11.39583333 | AE98: TERRITORIAL | AF98: TERRITORIAL | AG98: ANTIOQUIA - E.S.E. HOSPITAL SAN RAFAEL - EBEJICO | AH98: 37 | AJ98: NACIONAL | AK98: DEFENSA NACIONAL | AL98: DIVISION DE SANIDAD DE LA POLICIA NACIONAL | AM98: 36.41666667 | AO98: TERRITORIAL | AP98: TERRITORIAL | AQ98: ANTIOQUIA - ALCALDIA MUNICIPIO DE SAN JERONIMO | AR98: 33.66666667 | AT98: TERRITORIAL | AU98: TERRITORIAL | AV98: ANTIOQUIA - ALCALDIA MUNICIPIO DE COPACABANA | AW98: 35.28361858
F99: TERRITORIAL | G99: TERRITORIAL | H99: ANTIOQUIA - ALCALDIA MUNICIPIO DE SAN JUAN DE URABA | I99: 48.5 | K99: TERRITORIAL | L99: TERRITORIAL | M99: ANTIOQUIA - ALCALDIA MUNICIPIO DE GIRALDO | N99: 37.96226415 | P99: TERRITORIAL | Q99: TERRITORIAL | R99: ANTIOQUIA - ALCALDIA MUNICIPIO DE MONTEBELLO | S99: 63.75 | U99: TERRITORIAL | V99: TERRITORIAL | W99: ANTIOQUIA - ALCALDIA MUNICIPIO DE PUEBLO RICO | X99: 20 | Z99: TERRITORIAL | AA99: TERRITORIAL | AB99: ANTIOQUIA - ALCALDIA MUNICIPIO DE GIRALDO | AC99: 11.33333333 | AE99: TERRITORIAL | AF99: TERRITORIAL | AG99: ANTIOQUIA - E.S.E. HOSPITAL SAN RAFAEL - JERICO | AH99: 43.25 | AJ99: NACIONAL | AK99: DEFENSA NACIONAL | AL99: EJERCITO NACIONAL | AM99: 38 | AO99: TERRITORIAL | AP99: TERRITORIAL | AQ99: ANTIOQUIA - ALCALDIA MUNICIPIO DE SAN JOSE LA MONTAÑA | AR99: 38 | AT99: TERRITORIAL | AU99: TERRITORIAL | AV99: ANTIOQUIA - ALCALDIA MUNICIPIO DE DABEIBA | AW99: 26.20666667
F100: TERRITORIAL | G100: TERRITORIAL | H100: ANTIOQUIA - ALCALDIA MUNICIPIO DE SAN PEDRO | I100: 32.5 | K100: TERRITORIAL | L100: TERRITORIAL | M100: ANTIOQUIA - ALCALDIA MUNICIPIO DE GIRARDOTA | N100: 38.01882353 | P100: TERRITORIAL | Q100: TERRITORIAL | R100: ANTIOQUIA - ALCALDIA MUNICIPIO DE MUTATA | S100: 29.5 | U100: TERRITORIAL | V100: TERRITORIAL | W100: ANTIOQUIA - ALCALDIA MUNICIPIO DE PUERTO NARE | X100: 40.14285714 | Z100: TERRITORIAL | AA100: TERRITORIAL | AB100: ANTIOQUIA - ALCALDIA MUNICIPIO DE GIRARDOTA | AC100: 11.44339623 | AE100: TERRITORIAL | AF100: TERRITORIAL | AG100: ANTIOQUIA - E.S.E. HOSPITAL SAN RAFAEL DE ITAGUI | AH100: 41.9047619 | AJ100: NACIONAL | AK100: SALUD Y PROTECCION SOCIAL | AL100: FONDO PASIVO SOCIAL DE FERROCARRILES NACIONALES DE COLOMBIA (FPS) | AM100: 40.16666667 | AO100: TERRITORIAL | AP100: TERRITORIAL | AQ100: ANTIOQUIA - ALCALDIA MUNICIPIO DE SAN JUAN DE URABA | AR100: 35.5 | AT100: TERRITORIAL | AU100: TERRITORIAL | AV100: ANTIOQUIA - ALCALDIA MUNICIPIO DE DON MATIAS | AW100: 24.55160142
F101: TERRITORIAL | G101: TERRITORIAL | H101: ANTIOQUIA - ALCALDIA MUNICIPIO DE SAN PEDRO DE URABA | I101: 45 | K101: TERRITORIAL | L101: TERRITORIAL | M101: ANTIOQUIA - ALCALDIA MUNICIPIO DE GOMEZ PLATA | N101: 35.38655462 | P101: TERRITORIAL | Q101: TERRITORIAL | R101: ANTIOQUIA - ALCALDIA MUNICIPIO DE NARIÑO | S101: 56 | U101: TERRITORIAL | V101: TERRITORIAL | W101: ANTIOQUIA - ALCALDIA MUNICIPIO DE PUERTO TRIUNFO | X101: 36.86666667 | Z101: TERRITORIAL | AA101: TERRITORIAL | AB101: ANTIOQUIA - ALCALDIA MUNICIPIO DE GOMEZ PLATA | AC101: 11.59574468 | AE101: TERRITORIAL | AF101: TERRITORIAL | AG101: ANTIOQUIA - E.S.E. HOSPITAL SAN ROQUE - LA UNION | AH101: 38.25247525 | AJ101: NACIONAL | AK101: DEFENSA NACIONAL | AL101: FUERZA AEREA COLOMBIANA | AM101: 36.75 | AO101: TERRITORIAL | AP101: TERRITORIAL | AQ101: ANTIOQUIA - ALCALDIA MUNICIPIO DE SAN PEDRO | AR101: 42.9 | AT101: TERRITORIAL | AU101: TERRITORIAL | AV101: ANTIOQUIA - ALCALDIA MUNICIPIO DE EBEJICO | AW101: 28.18881119
F102: TERRITORIAL | G102: TERRITORIAL | H102: ANTIOQUIA - ALCALDIA MUNICIPIO DE SAN RAFAEL | I102: 46.5 | K102: TERRITORIAL | L102: TERRITORIAL | M102: ANTIOQUIA - ALCALDIA MUNICIPIO DE GRANADA | N102: 39.83760684 | P102: TERRITORIAL | Q102: TERRITORIAL | R102: ANTIOQUIA - ALCALDIA MUNICIPIO DE OLAYA | S102: 62.33333333 | U102: TERRITORIAL | V102: TERRITORIAL | W102: ANTIOQUIA - ALCALDIA MUNICIPIO DE REMEDIOS | X102: 35.66666667 | Z102: TERRITORIAL | AA102: TERRITORIAL | AB102: ANTIOQUIA - ALCALDIA MUNICIPIO DE GRANADA | AC102: 11.33333333 | AE102: TERRITORIAL | AF102: TERRITORIAL | AG102: ANTIOQUIA - E.S.E. HOSPITAL SAN VICENTE DE PAUL - REMEDIOS | AH102: 37.34666667 | AJ102: NACIONAL | AK102: DEFENSA NACIONAL | AL102: HOSPITAL MILITAR CENTRAL (HOMIC) | AM102: 32.16666667 | AO102: TERRITORIAL | AP102: TERRITORIAL | AQ102: ANTIOQUIA - ALCALDIA MUNICIPIO DE SAN PEDRO DE URABA | AR102: 36 | AT102: TERRITORIAL | AU102: TERRITORIAL | AV102: ANTIOQUIA - ALCALDIA MUNICIPIO DE EL BAGRE | AW102: 29.69918699
F103: TERRITORIAL | G103: TERRITORIAL | H103: ANTIOQUIA - ALCALDIA MUNICIPIO DE SAN VICENTE | I103: 43.2 | K103: TERRITORIAL | L103: TERRITORIAL | M103: ANTIOQUIA - ALCALDIA MUNICIPIO DE GUADALUPE | N103: 38.11881188 | P103: TERRITORIAL | Q103: TERRITORIAL | R103: ANTIOQUIA - ALCALDIA MUNICIPIO DE PEQUE | S103: 63.14285714 | U103: TERRITORIAL | V103: TERRITORIAL | W103: ANTIOQUIA - ALCALDIA MUNICIPIO DE RIONEGRO | X103: 38.79069767 | Z103: TERRITORIAL | AA103: TERRITORIAL | AB103: ANTIOQUIA - ALCALDIA MUNICIPIO DE GUADALUPE | AC103: 11.4625 | AE103: TERRITORIAL | AF103: TERRITORIAL | AG103: ANTIOQUIA - E.S.E. HOSPITAL SAN VICENTE DE PAUL - SAN CARLOS | AH103: 38.4 | AJ103: NACIONAL | AK103: INCLUSION SOCIAL Y RECONCILIACION | AL103: INSTITUTO COLOMBIANO DE BIENESTAR FAMILIAR (ICBF) | AM103: 43 | AO103: TERRITORIAL | AP103: TERRITORIAL | AQ103: ANTIOQUIA - ALCALDIA MUNICIPIO DE SAN RAFAEL | AR103: 40.75 | AT103: TERRITORIAL | AU103: TERRITORIAL | AV103: ANTIOQUIA - ALCALDIA MUNICIPIO DE EL PEÑOL | AW103: 32.5726257
F104: TERRITORIAL | G104: TERRITORIAL | H104: ANTIOQUIA - ALCALDIA MUNICIPIO DE SANTA FE DE ANTIOQUIA | I104: 42.625 | K104: TERRITORIAL | L104: TERRITORIAL | M104: ANTIOQUIA - ALCALDIA MUNICIPIO DE GUARNE | N104: 39.14572864 | P104: TERRITORIAL | Q104: TERRITORIAL | R104: ANTIOQUIA - ALCALDIA MUNICIPIO DE PUERTO BERRIO | S104: 55 | U104: TERRITORIAL | V104: TERRITORIAL | W104: ANTIOQUIA - ALCALDIA MUNICIPIO DE SABANALARGA | X104: 28 | Z104: TERRITORIAL | AA104: TERRITORIAL | AB104: ANTIOQUIA - ALCALDIA MUNICIPIO DE GUARNE | AC104: 11.4173913 | AE104: TERRITORIAL | AF104: TERRITORIAL | AG104: ANTIOQUIA - E.S.E. HOSPITAL SANTA ISABEL - GOMEZ PLATA | AH104: 36.83673469 | AJ104: NACIONAL | AK104: AMBIENTE Y DESARROLLO SOSTENIBLE | AL104: INSTITUTO DE HIDROLOGIA, METEOROLOGIA Y ESTUDIOS AMBIENTALES (IDEAM) | AM104: 56 | AO104: TERRITORIAL | AP104: TERRITORIAL | AQ104: ANTIOQUIA - ALCALDIA MUNICIPIO DE SAN ROQUE | AR104: 40 | AT104: TERRITORIAL | AU104: TERRITORIAL | AV104: ANTIOQUIA - ALCALDIA MUNICIPIO DE EL RETIRO | AW104: 34.15755627
F105: TERRITORIAL | G105: TERRITORIAL | H105: ANTIOQUIA - ALCALDIA MUNICIPIO DE SANTA ROSA DE OSOS | I105: 49 | K105: TERRITORIAL | L105: TERRITORIAL | M105: ANTIOQUIA - ALCALDIA MUNICIPIO DE GUATAPE | N105: 39.02051282 | P105: TERRITORIAL | Q105: TERRITORIAL | R105: ANTIOQUIA - ALCALDIA MUNICIPIO DE PUERTO NARE | S105: 62.25 | U105: TERRITORIAL | V105: TERRITORIAL | W105: ANTIOQUIA - ALCALDIA MUNICIPIO DE SABANETA | X105: 44.625 | Z105: TERRITORIAL | AA105: TERRITORIAL | AB105: ANTIOQUIA - ALCALDIA MUNICIPIO DE GUATAPE | AC105: 11.56565657 | AE105: TERRITORIAL | AF105: TERRITORIAL | AG105: ANTIOQUIA - E.S.E. HOSPITAL SANTA MARGARITA - COPACABANA | AH105: 39.42592593 | AJ105: NACIONAL | AK105: TRANSPORTE | AL105: INSTITUTO NACIONAL DE VIAS (INVIAS) | AM105: 36.33333333 | AO105: TERRITORIAL | AP105: TERRITORIAL | AQ105: ANTIOQUIA - ALCALDIA MUNICIPIO DE SAN VICENTE | AR105: 25.5 | AT105: TERRITORIAL | AU105: TERRITORIAL | AV105: ANTIOQUIA - ALCALDIA MUNICIPIO DE ENTRERRIOS | AW105: 27.1372549
F106: TERRITORIAL | G106: TERRITORIAL | H106: ANTIOQUIA - ALCALDIA MUNICIPIO DE SANTO DOMINGO | I106: 36 | K106: TERRITORIAL | L106: TERRITORIAL | M106: ANTIOQUIA - ALCALDIA MUNICIPIO DE HELICONIA | N106: 37.92957746 | P106: TERRITORIAL | Q106: TERRITORIAL | R106: ANTIOQUIA - ALCALDIA MUNICIPIO DE PUERTO TRIUNFO | S106: 68 | U106: TERRITORIAL | V106: TERRITORIAL | W106: ANTIOQUIA - ALCALDIA MUNICIPIO DE SALGAR | X106: 46.5 | Z106: TERRITORIAL | AA106: TERRITORIAL | AB106: ANTIOQUIA - ALCALDIA MUNICIPIO DE HELICONIA | AC106: 11.62352941 | AE106: TERRITORIAL | AF106: TERRITORIAL | AG106: ANTIOQUIA - E.S.E. METROSALUD - MEDELLIN | AH106: 37.99275712 | AJ106: NACIONAL | AK106: SALUD Y PROTECCION SOCIAL | AL106: INSTITUTO NACIONAL DE VIGILANCIA DE MEDICAMENTOS Y ALIMENTOS (INVIMA) | AM106: 55 | AO106: TERRITORIAL | AP106: TERRITORIAL | AQ106: ANTIOQUIA - ALCALDIA MUNICIPIO DE SANTA FE DE ANTIOQUIA | AR106: 34.6 | AT106: TERRITORIAL | AU106: TERRITORIAL | AV106: ANTIOQUIA - ALCALDIA MUNICIPIO DE ENVIGADO | AW106: 29.25493562
F107: TERRITORIAL | G107: TERRITORIAL | H107: ANTIOQUIA - ALCALDIA MUNICIPIO DE SANTUARIO | I107: 35 | K107: TERRITORIAL | L107: TERRITORIAL | M107: ANTIOQUIA - ALCALDIA MUNICIPIO DE HISPANIA | N107: 39.56626506 | P107: TERRITORIAL | Q107: TERRITORIAL | R107: ANTIOQUIA - ALCALDIA MUNICIPIO DE REMEDIOS | S107: 58.28571429 | U107: TERRITORIAL | V107: TERRITORIAL | W107: ANTIOQUIA - ALCALDIA MUNICIPIO DE SAN ANDRES DE CUERQUIA | X107: 40 | Z107: TERRITORIAL | AA107: TERRITORIAL | AB107: ANTIOQUIA - ALCALDIA MUNICIPIO DE HISPANIA | AC107: 11.54285714 | AE107: TERRITORIAL | AF107: TERRITORIAL | AG107: ANTIOQUIA - E.S.E. SANTA GERTRUDIS - ENVIGADO | AH107: 39.24 | AJ107: TERRITORIAL | AK107: TERRITORIAL | AL107: LA GUAJIRA - ALCALDIA MUNICIPIO DE ALBANIA | AM107: 36 | AO107: TERRITORIAL | AP107: TERRITORIAL | AQ107: ANTIOQUIA - ALCALDIA MUNICIPIO DE SANTA ROSA DE OSOS | AR107: 33.66666667 | AT107: TERRITORIAL | AU107: TERRITORIAL | AV107: ANTIOQUIA - ALCALDIA MUNICIPIO DE FREDONIA | AW107: 29.00564972
F108: TERRITORIAL | G108: TERRITORIAL | H108: ANTIOQUIA - ALCALDIA MUNICIPIO DE SONSON | I108: 37.5 | K108: TERRITORIAL | L108: TERRITORIAL | M108: ANTIOQUIA - ALCALDIA MUNICIPIO DE ITAGÜI | N108: 35.65625 | P108: TERRITORIAL | Q108: TERRITORIAL | R108: ANTIOQUIA - ALCALDIA MUNICIPIO DE RIONEGRO | S108: 59.96551724 | U108: TERRITORIAL | V108: TERRITORIAL | W108: ANTIOQUIA - ALCALDIA MUNICIPIO DE SAN CARLOS | X108: 39.64516129 | Z108: TERRITORIAL | AA108: TERRITORIAL | AB108: ANTIOQUIA - ALCALDIA MUNICIPIO DE ITAGÜI | AC108: 11.35 | AE108: TERRITORIAL | AF108: TERRITORIAL | AG108: ANTIOQUIA - EMPRESA DE ASEO RETIRAR S.A. - RETIRO | AH108: 34.33333333 | AJ108: TERRITORIAL | AK108: TERRITORIAL | AL108: LA GUAJIRA - ALCALDIA MUNICIPIO DE DIBULLA | AM108: 27 | AO108: TERRITORIAL | AP108: TERRITORIAL | AQ108: ANTIOQUIA - ALCALDIA MUNICIPIO DE SANTO DOMINGO | AR108: 21.66666667 | AT108: TERRITORIAL | AU108: TERRITORIAL | AV108: ANTIOQUIA - ALCALDIA MUNICIPIO DE FRONTINO | AW108: 17.90769231
F109: TERRITORIAL | G109: TERRITORIAL | H109: ANTIOQUIA - ALCALDIA MUNICIPIO DE SOPETRAN | I109: 48 | K109: TERRITORIAL | L109: TERRITORIAL | M109: ANTIOQUIA - ALCALDIA MUNICIPIO DE ITUANGO | N109: 37.8034188 | P109: TERRITORIAL | Q109: TERRITORIAL | R109: ANTIOQUIA - ALCALDIA MUNICIPIO DE SABANALARGA | S109: 65 | U109: TERRITORIAL | V109: TERRITORIAL | W109: ANTIOQUIA - ALCALDIA MUNICIPIO DE SAN JERONIMO | X109: 34.85714286 | Z109: TERRITORIAL | AA109: TERRITORIAL | AB109: ANTIOQUIA - ALCALDIA MUNICIPIO DE ITUANGO | AC109: 11.39426523 | AE109: TERRITORIAL | AF109: TERRITORIAL | AG109: ANTIOQUIA - EMPRESA DE DESARROLLO URBANO DE MEDELLIN EDU - MEDELLIN | AH109: 38.03286385 | AJ109: TERRITORIAL | AK109: TERRITORIAL | AL109: LA GUAJIRA - ALCALDIA MUNICIPIO DE RIOHACHA | AM109: 48 | AO109: TERRITORIAL | AP109: TERRITORIAL | AQ109: ANTIOQUIA - ALCALDIA MUNICIPIO DE SANTUARIO | AR109: 36.77777778 | AT109: TERRITORIAL | AU109: TERRITORIAL | AV109: ANTIOQUIA - ALCALDIA MUNICIPIO DE GIRALDO | AW109: 37.31578947
F110: TERRITORIAL | G110: TERRITORIAL | H110: ANTIOQUIA - ALCALDIA MUNICIPIO DE TARSO | I110: 39 | K110: TERRITORIAL | L110: TERRITORIAL | M110: ANTIOQUIA - ALCALDIA MUNICIPIO DE JARDIN | N110: 38.96116505 | P110: TERRITORIAL | Q110: TERRITORIAL | R110: ANTIOQUIA - ALCALDIA MUNICIPIO DE SABANETA | S110: 68 | U110: TERRITORIAL | V110: TERRITORIAL | W110: ANTIOQUIA - ALCALDIA MUNICIPIO DE SAN JOSE LA MONTAÑA | X110: 31 | Z110: TERRITORIAL | AA110: TERRITORIAL | AB110: ANTIOQUIA - ALCALDIA MUNICIPIO DE JARDIN | AC110: 11.56 | AE110: TERRITORIAL | AF110: TERRITORIAL | AG110: ANTIOQUIA - EMPRESA DE SERVICIOS PUBLICOS DE COCORNA E.S.P. | AH110: 39 | AJ110: TERRITORIAL | AK110: TERRITORIAL | AL110: LA GUAJIRA - GOBERNACION | AM110: 37 | AO110: TERRITORIAL | AP110: TERRITORIAL | AQ110: ANTIOQUIA - ALCALDIA MUNICIPIO DE SONSON | AR110: 46.625 | AT110: TERRITORIAL | AU110: TERRITORIAL | AV110: ANTIOQUIA - ALCALDIA MUNICIPIO DE GIRARDOTA | AW110: 33.17422868
F111: TERRITORIAL | G111: TERRITORIAL | H111: ANTIOQUIA - ALCALDIA MUNICIPIO DE TITIRIBI | I111: 43 | K111: TERRITORIAL | L111: TERRITORIAL | M111: ANTIOQUIA - ALCALDIA MUNICIPIO DE JERICO | N111: 39.27748691 | P111: TERRITORIAL | Q111: TERRITORIAL | R111: ANTIOQUIA - ALCALDIA MUNICIPIO DE SALGAR | S111: 53 | U111: TERRITORIAL | V111: TERRITORIAL | W111: ANTIOQUIA - ALCALDIA MUNICIPIO DE SAN JUAN DE URABA | X111: 50 | Z111: TERRITORIAL | AA111: TERRITORIAL | AB111: ANTIOQUIA - ALCALDIA MUNICIPIO DE JERICO | AC111: 11.38983051 | AE111: TERRITORIAL | AF111: TERRITORIAL | AG111: ANTIOQUIA - EMPRESA DE SERVICIOS PUBLICOS DE GRANADA E.S.P.G. | AH111: 38.09615385 | AJ111: TERRITORIAL | AK111: TERRITORIAL | AL111: MAGDALENA - ALCALDIA MUNICIPIO DE SAN ZENON | AM111: 47 | AO111: TERRITORIAL | AP111: TERRITORIAL | AQ111: ANTIOQUIA - ALCALDIA MUNICIPIO DE SOPETRAN | AR111: 37.25 | AT111: TERRITORIAL | AU111: TERRITORIAL | AV111: ANTIOQUIA - ALCALDIA MUNICIPIO DE GOMEZ PLATA | AW111: 29.62162162
F112: TERRITORIAL | G112: TERRITORIAL | H112: ANTIOQUIA - ALCALDIA MUNICIPIO DE TURBO | I112: 34.38461538 | K112: TERRITORIAL | L112: TERRITORIAL | M112: ANTIOQUIA - ALCALDIA MUNICIPIO DE LA CEJA | N112: 37.78125 | P112: TERRITORIAL | Q112: TERRITORIAL | R112: ANTIOQUIA - ALCALDIA MUNICIPIO DE SAN ANDRES DE CUERQUIA | S112: 51.33333333 | U112: TERRITORIAL | V112: TERRITORIAL | W112: ANTIOQUIA - ALCALDIA MUNICIPIO DE SAN LUIS | X112: 33.66666667 | Z112: TERRITORIAL | AA112: TERRITORIAL | AB112: ANTIOQUIA - ALCALDIA MUNICIPIO DE LA CEJA | AC112: 11.4 | AE112: TERRITORIAL | AF112: TERRITORIAL | AG112: ANTIOQUIA - EMPRESA DE SERVICIOS PUBLICOS DE SAN JOSE DE LA MARINILLA E.S.P. | AH112: 40.27819549 | AJ112: TERRITORIAL | AK112: TERRITORIAL | AL112: META - ALCALDIA MUNICIPIO DE ACACIAS | AM112: 30 | AO112: TERRITORIAL | AP112: TERRITORIAL | AQ112: ANTIOQUIA - ALCALDIA MUNICIPIO DE TURBO | AR112: 33 | AT112: TERRITORIAL | AU112: TERRITORIAL | AV112: ANTIOQUIA - ALCALDIA MUNICIPIO DE GRANADA | AW112: 36.52597403
F113: TERRITORIAL | G113: TERRITORIAL | H113: ANTIOQUIA - ALCALDIA MUNICIPIO DE URRAO | I113: 39 | K113: TERRITORIAL | L113: TERRITORIAL | M113: ANTIOQUIA - ALCALDIA MUNICIPIO DE LA ESTRELLA | N113: 37.66533333 | P113: TERRITORIAL | Q113: TERRITORIAL | R113: ANTIOQUIA - ALCALDIA MUNICIPIO DE SAN CARLOS | S113: 44.16666667 | U113: TERRITORIAL | V113: TERRITORIAL | W113: ANTIOQUIA - ALCALDIA MUNICIPIO DE SAN PEDRO | X113: 38.57142857 | Z113: TERRITORIAL | AA113: TERRITORIAL | AB113: ANTIOQUIA - ALCALDIA MUNICIPIO DE LA ESTRELLA | AC113: 11.73333333 | AE113: TERRITORIAL | AF113: TERRITORIAL | AG113: ANTIOQUIA - EMPRESA DE SERVICIOS PUBLICOS DOMICILIARIOS AGUAS DE MACEO S.A.S. E.S.P. MACEO | AH113: 37.53571429 | AJ113: TERRITORIAL | AK113: TERRITORIAL | AL113: META - ALCALDIA MUNICIPIO DE CUBARRAL | AM113: 32 | AO113: TERRITORIAL | AP113: TERRITORIAL | AQ113: ANTIOQUIA - ALCALDIA MUNICIPIO DE URRAO | AR113: 43 | AT113: TERRITORIAL | AU113: TERRITORIAL | AV113: ANTIOQUIA - ALCALDIA MUNICIPIO DE GUADALUPE | AW113: 28.78817734
F114: TERRITORIAL | G114: TERRITORIAL | H114: ANTIOQUIA - ALCALDIA MUNICIPIO DE VALPARAISO | I114: 41.16666667 | K114: TERRITORIAL | L114: TERRITORIAL | M114: ANTIOQUIA - ALCALDIA MUNICIPIO DE LA PINTADA | N114: 39 | P114: TERRITORIAL | Q114: TERRITORIAL | R114: ANTIOQUIA - ALCALDIA MUNICIPIO DE SAN FRANCISCO | S114: 54 | U114: TERRITORIAL | V114: TERRITORIAL | W114: ANTIOQUIA - ALCALDIA MUNICIPIO DE SAN RAFAEL | X114: 41.5 | Z114: TERRITORIAL | AA114: TERRITORIAL | AB114: ANTIOQUIA - ALCALDIA MUNICIPIO DE LA PINTADA | AC114: 11.46808511 | AE114: TERRITORIAL | AF114: TERRITORIAL | AG114: ANTIOQUIA - EMPRESA DE SERVICIOS PUBLICOS DOMICILIARIOS DE ACUEDUCTO, ALCANTARILLADO Y ASEO DE YONDO E.S.P. | AH114: 39.03496503 | AJ114: TERRITORIAL | AK114: TERRITORIAL | AL114: META - ALCALDIA MUNICIPIO DE CUMARAL | AM114: 26 | AO114: TERRITORIAL | AP114: TERRITORIAL | AQ114: ANTIOQUIA - ALCALDIA MUNICIPIO DE VALPARAISO | AR114: 51 | AT114: TERRITORIAL | AU114: TERRITORIAL | AV114: ANTIOQUIA - ALCALDIA MUNICIPIO DE GUARNE | AW114: 31.53273138
F115: TERRITORIAL | G115: TERRITORIAL | H115: ANTIOQUIA - ALCALDIA MUNICIPIO DE VEGACHI | I115: 42 | K115: TERRITORIAL | L115: TERRITORIAL | M115: ANTIOQUIA - ALCALDIA MUNICIPIO DE LA UNION | N115: 38.390625 | P115: TERRITORIAL | Q115: TERRITORIAL | R115: ANTIOQUIA - ALCALDIA MUNICIPIO DE SAN JERONIMO | S115: 54.8 | U115: TERRITORIAL | V115: TERRITORIAL | W115: ANTIOQUIA - ALCALDIA MUNICIPIO DE SAN VICENTE | X115: 42.75 | Z115: TERRITORIAL | AA115: TERRITORIAL | AB115: ANTIOQUIA - ALCALDIA MUNICIPIO DE LA UNION | AC115: 11.26315789 | AE115: TERRITORIAL | AF115: TERRITORIAL | AG115: ANTIOQUIA - EMPRESA DE SERVICIOS PUBLICOS DOMICILIARIOS DE CISNEROS S.A E.S.P | AH115: 34.27777778 | AJ115: TERRITORIAL | AK115: TERRITORIAL | AL115: META - ALCALDIA MUNICIPIO DE PUERTO RICO | AM115: 42 | AO115: TERRITORIAL | AP115: TERRITORIAL | AQ115: ANTIOQUIA - ALCALDIA MUNICIPIO DE VEGACHI | AR115: 30 | AT115: TERRITORIAL | AU115: TERRITORIAL | AV115: ANTIOQUIA - ALCALDIA MUNICIPIO DE GUATAPE | AW115: 29.86101695
F116: TERRITORIAL | G116: TERRITORIAL | H116: ANTIOQUIA - ALCALDIA MUNICIPIO DE VENECIA | I116: 33.33333333 | K116: TERRITORIAL | L116: TERRITORIAL | M116: ANTIOQUIA - ALCALDIA MUNICIPIO DE LIBORINA | N116: 38.92857143 | P116: TERRITORIAL | Q116: TERRITORIAL | R116: ANTIOQUIA - ALCALDIA MUNICIPIO DE SAN JOSE LA MONTAÑA | S116: 55.33333333 | U116: TERRITORIAL | V116: TERRITORIAL | W116: ANTIOQUIA - ALCALDIA MUNICIPIO DE SANTA FE DE ANTIOQUIA | X116: 36.75 | Z116: TERRITORIAL | AA116: TERRITORIAL | AB116: ANTIOQUIA - ALCALDIA MUNICIPIO DE LIBORINA | AC116: 11.42553191 | AE116: TERRITORIAL | AF116: TERRITORIAL | AG116: ANTIOQUIA - EMPRESA DE SERVICIOS PUBLICOS DOMICILIARIOS DEL CARMEN DE VIBORAL | AH116: 37.56441718 | AJ116: TERRITORIAL | AK116: TERRITORIAL | AL116: META - ALCALDIA MUNICIPIO DE VILLAVICENCIO | AM116: 55 | AO116: TERRITORIAL | AP116: TERRITORIAL | AQ116: ANTIOQUIA - ALCALDIA MUNICIPIO DE VIGIA DEL FUERTE | AR116: 41 | AT116: TERRITORIAL | AU116: TERRITORIAL | AV116: ANTIOQUIA - ALCALDIA MUNICIPIO DE HELICONIA | AW116: 28.75847458
F117: TERRITORIAL | G117: TERRITORIAL | H117: ANTIOQUIA - ALCALDIA MUNICIPIO DE VIGIA DEL FUERTE | I117: 50 | K117: TERRITORIAL | L117: TERRITORIAL | M117: ANTIOQUIA - ALCALDIA MUNICIPIO DE MACEO | N117: 37.53658537 | P117: TERRITORIAL | Q117: TERRITORIAL | R117: ANTIOQUIA - ALCALDIA MUNICIPIO DE SAN JUAN DE URABA | S117: 73 | U117: TERRITORIAL | V117: TERRITORIAL | W117: ANTIOQUIA - ALCALDIA MUNICIPIO DE SANTA ROSA DE OSOS | X117: 23 | Z117: TERRITORIAL | AA117: TERRITORIAL | AB117: ANTIOQUIA - ALCALDIA MUNICIPIO DE MACEO | AC117: 11.58974359 | AE117: TERRITORIAL | AF117: TERRITORIAL | AG117: ANTIOQUIA - EMPRESA DE SERVICIOS PUBLICOS DOMICILIARIOS S.A. E.S.P. - LIBORINA | AH117: 38.49122807 | AJ117: TERRITORIAL | AK117: TERRITORIAL | AL117: META - ALCALDIA MUNICIPIO DE VISTA HERMOSA | AM117: 38 | AO117: TERRITORIAL | AP117: TERRITORIAL | AQ117: ANTIOQUIA - ALCALDIA MUNICIPIO DE YALI | AR117: 46 | AT117: TERRITORIAL | AU117: TERRITORIAL | AV117: ANTIOQUIA - ALCALDIA MUNICIPIO DE HISPANIA | AW117: 32.08461538
F118: TERRITORIAL | G118: TERRITORIAL | H118: ANTIOQUIA - ALCALDIA MUNICIPIO DE YALI | I118: 27.33333333 | K118: TERRITORIAL | L118: TERRITORIAL | M118: ANTIOQUIA - ALCALDIA MUNICIPIO DE MARINILLA | N118: 38.59895833 | P118: TERRITORIAL | Q118: TERRITORIAL | R118: ANTIOQUIA - ALCALDIA MUNICIPIO DE SAN PEDRO | S118: 26 | U118: TERRITORIAL | V118: TERRITORIAL | W118: ANTIOQUIA - ALCALDIA MUNICIPIO DE SANTO DOMINGO | X118: 39.83333333 | Z118: TERRITORIAL | AA118: TERRITORIAL | AB118: ANTIOQUIA - ALCALDIA MUNICIPIO DE MARINILLA | AC118: 11.89130435 | AE118: TERRITORIAL | AF118: TERRITORIAL | AG118: ANTIOQUIA - EMPRESA DE SERVICIOS PUBLICOS LA UNION E.S.P. | AH118: 39.79069767 | AJ118: NACIONAL | AK118: TERRITORIAL | AL118: META - E.S.E. HOSPITAL DEPARTAMENTAL DE GRANADA | AM118: 34.8 | AO118: TERRITORIAL | AP118: TERRITORIAL | AQ118: ANTIOQUIA - ALCALDIA MUNICIPIO DE YARUMAL | AR118: 39.83333333 | AT118: TERRITORIAL | AU118: TERRITORIAL | AV118: ANTIOQUIA - ALCALDIA MUNICIPIO DE ITAGÜI | AW118: 34.77973568
F119: TERRITORIAL | G119: TERRITORIAL | H119: ANTIOQUIA - ALCALDIA MUNICIPIO DE YARUMAL | I119: 43 | K119: TERRITORIAL | L119: TERRITORIAL | M119: ANTIOQUIA - ALCALDIA MUNICIPIO DE MEDELLIN | N119: 38.45735393 | P119: TERRITORIAL | Q119: TERRITORIAL | R119: ANTIOQUIA - ALCALDIA MUNICIPIO DE SAN PEDRO DE URABA | S119: 56 | U119: TERRITORIAL | V119: TERRITORIAL | W119: ANTIOQUIA - ALCALDIA MUNICIPIO DE SANTUARIO | X119: 43.625 | Z119: TERRITORIAL | AA119: TERRITORIAL | AB119: ANTIOQUIA - ALCALDIA MUNICIPIO DE MEDELLIN | AC119: 11.48022599 | AE119: TERRITORIAL | AF119: TERRITORIAL | AG119: ANTIOQUIA - EMPRESA DE SERVICIOS PUBLICOS S.A. E.S.P DE PUERTO TRIUNFO S.A. E.S.P. | AH119: 37.68518519 | AJ119: TERRITORIAL | AK119: TERRITORIAL | AL119: META - GOBERNACION | AM119: 40.35714286 | AO119: TERRITORIAL | AP119: TERRITORIAL | AQ119: ANTIOQUIA - ALCALDIA MUNICIPIO DE YOLOMBO | AR119: 39.16666667 | AT119: TERRITORIAL | AU119: TERRITORIAL | AV119: ANTIOQUIA - ALCALDIA MUNICIPIO DE ITUANGO | AW119: 20.52245863
F120: TERRITORIAL | G120: TERRITORIAL | H120: ANTIOQUIA - ALCALDIA MUNICIPIO DE YOLOMBO | I120: 55 | K120: TERRITORIAL | L120: TERRITORIAL | M120: ANTIOQUIA - ALCALDIA MUNICIPIO DE MONTEBELLO | N120: 37.63225806 | P120: TERRITORIAL | Q120: TERRITORIAL | R120: ANTIOQUIA - ALCALDIA MUNICIPIO DE SAN RAFAEL | S120: 56.28571429 | U120: TERRITORIAL | V120: TERRITORIAL | W120: ANTIOQUIA - ALCALDIA MUNICIPIO DE SONSON | X120: 40.14285714 | Z120: TERRITORIAL | AA120: TERRITORIAL | AB120: ANTIOQUIA - ALCALDIA MUNICIPIO DE MONTEBELLO | AC120: 11.53571429 | AE120: TERRITORIAL | AF120: TERRITORIAL | AG120: ANTIOQUIA - EMPRESA DE TRANSPORTE MASIVO DEL VALLE DE ABURRA LTDA | AH120: 38.09137056 | AJ120: TERRITORIAL | AK120: TERRITORIAL | AL120: META - LOTERIA DEL META | AM120: 36 | AO120: TERRITORIAL | AP120: TERRITORIAL | AQ120: ANTIOQUIA - ALCALDIA MUNICIPIO DE YONDO | AR120: 34.61538462 | AT120: TERRITORIAL | AU120: TERRITORIAL | AV120: ANTIOQUIA - ALCALDIA MUNICIPIO DE JARDIN | AW120: 28.62371134
F121: TERRITORIAL | G121: TERRITORIAL | H121: ANTIOQUIA - ALCALDIA MUNICIPIO DE YONDO | I121: 33.5 | K121: TERRITORIAL | L121: TERRITORIAL | M121: ANTIOQUIA - ALCALDIA MUNICIPIO DE MURINDO | N121: 37.29545455 | P121: TERRITORIAL | Q121: TERRITORIAL | R121: ANTIOQUIA - ALCALDIA MUNICIPIO DE SAN ROQUE | S121: 52.33333333 | U121: TERRITORIAL | V121: TERRITORIAL | W121: ANTIOQUIA - ALCALDIA MUNICIPIO DE SOPETRAN | X121: 35.41666667 | Z121: TERRITORIAL | AA121: TERRITORIAL | AB121: ANTIOQUIA - ALCALDIA MUNICIPIO DE MUTATA | AC121: 11.50588235 | AE121: TERRITORIAL | AF121: TERRITORIAL | AG121: ANTIOQUIA - EMPRESA INDUSTRIAL Y COMERCIAL DEL ESTADO - AGENCIA DE DESARROLLO LOCAL DE ITAGÜI - | AH121: 55 | AJ121: TERRITORIAL | AK121: TERRITORIAL | AL121: META - PERSONERIA MUNICIPIO DE VILLAVICENCIO | AM121: 32 | AO121: TERRITORIAL | AP121: TERRITORIAL | AQ121: ANTIOQUIA - ALCALDIA MUNICIPIO DE ZARAGOZA | AR121: 37.28571429 | AT121: TERRITORIAL | AU121: TERRITORIAL | AV121: ANTIOQUIA - ALCALDIA MUNICIPIO DE JERICO | AW121: 33.28294574
F122: TERRITORIAL | G122: TERRITORIAL | H122: ANTIOQUIA - ALCALDIA MUNICIPIO DE ZARAGOZA | I122: 50 | K122: TERRITORIAL | L122: TERRITORIAL | M122: ANTIOQUIA - ALCALDIA MUNICIPIO DE MUTATA | N122: 37.8525641 | P122: TERRITORIAL | Q122: TERRITORIAL | R122: ANTIOQUIA - ALCALDIA MUNICIPIO DE SAN VICENTE | S122: 57.33333333 | U122: TERRITORIAL | V122: TERRITORIAL | W122: ANTIOQUIA - ALCALDIA MUNICIPIO DE TARSO | X122: 38.75 | Z122: TERRITORIAL | AA122: TERRITORIAL | AB122: ANTIOQUIA - ALCALDIA MUNICIPIO DE NARIÑO | AC122: 11.53333333 | AE122: TERRITORIAL | AF122: TERRITORIAL | AG122: ANTIOQUIA - EMPRESA PARA LA SEGURIDAD URBANA - ESU | AH122: 37.53493834 | AJ122: NACIONAL | AK122: SALUD Y PROTECCION SOCIAL | AL122: MINISTERIO DE SALUD Y PROTECCION SOCIAL (MINSALUD) | AM122: 44.5 | AO122: TERRITORIAL | AP122: TERRITORIAL | AQ122: ANTIOQUIA - AREA METROPOLITANA DEL VALLE DE ABURRA - MEDELLIN | AR122: 36.85714286 | AT122: TERRITORIAL | AU122: TERRITORIAL | AV122: ANTIOQUIA - ALCALDIA MUNICIPIO DE LA CEJA | AW122: 28.83241758
F123: TERRITORIAL | G123: TERRITORIAL | H123: ANTIOQUIA - AREA METROPOLITANA DEL VALLE DE ABURRA - MEDELLIN | I123: 38.15 | K123: TERRITORIAL | L123: TERRITORIAL | M123: ANTIOQUIA - ALCALDIA MUNICIPIO DE NARIÑO | N123: 39.51612903 | P123: TERRITORIAL | Q123: TERRITORIAL | R123: ANTIOQUIA - ALCALDIA MUNICIPIO DE SANTA FE DE ANTIOQUIA | S123: 62.875 | U123: TERRITORIAL | V123: TERRITORIAL | W123: ANTIOQUIA - ALCALDIA MUNICIPIO DE TITIRIBI | X123: 42.625 | Z123: TERRITORIAL | AA123: TERRITORIAL | AB123: ANTIOQUIA - ALCALDIA MUNICIPIO DE NECHI | AC123: 11.74193548 | AE123: TERRITORIAL | AF123: TERRITORIAL | AG123: ANTIOQUIA - EMPRESAS PUBLICAS DE ABEJORRAL E.P.A. E.S.P. - ABEJORRAL | AH123: 40.13043478 | AJ123: NACIONAL | AK123: TECNOLOGIAS DE LA INFORMACION Y LAS COMUNICACIONES | AL123: MINISTERIO DE TECNOLOGIAS DE LA INFORMACON Y LAS COMUNICACIONES (MINTIC) | AM123: 34 | AO123: TERRITORIAL | AP123: TERRITORIAL | AQ123: ANTIOQUIA - ASOCIACION CANAL LOCAL DE TELEVISION DE MEDELLIN - TELEMEDELLIN - | AR123: 32.5 | AT123: TERRITORIAL | AU123: TERRITORIAL | AV123: ANTIOQUIA - ALCALDIA MUNICIPIO DE LA ESTRELLA | AW123: 37.11787072
F124: TERRITORIAL | G124: TERRITORIAL | H124: ANTIOQUIA - E.S.E. HOSPITAL LA MARIA - MEDELLIN | I124: 31.5 | K124: TERRITORIAL | L124: TERRITORIAL | M124: ANTIOQUIA - ALCALDIA MUNICIPIO DE NECOCLI | N124: 40.61111111 | P124: TERRITORIAL | Q124: TERRITORIAL | R124: ANTIOQUIA - ALCALDIA MUNICIPIO DE SANTA ROSA DE OSOS | S124: 50 | U124: TERRITORIAL | V124: TERRITORIAL | W124: ANTIOQUIA - ALCALDIA MUNICIPIO DE TOLEDO | X124: 28.5 | Z124: TERRITORIAL | AA124: TERRITORIAL | AB124: ANTIOQUIA - ALCALDIA MUNICIPIO DE NECOCLI | AC124: 11.64285714 | AE124: TERRITORIAL | AF124: TERRITORIAL | AG124: ANTIOQUIA - EMPRESAS PUBLICAS DE AMAGA S.A. E.S.P. - AMAGA | AH124: 36.47435897 | AJ124: TERRITORIAL | AK124: TERRITORIAL | AL124: NARIÑO - ALCALDIA MUNICIPIO DE ARBOLEDA (BERRUECOS) | AM124: 39.55555556 | AO124: TERRITORIAL | AP124: TERRITORIAL | AQ124: ANTIOQUIA - BIBLIOTECA PUBLICA PILOTO DE MEDELLIN PARA AMERICA LATINA - MEDELLIN | AR124: 36.90909091 | AT124: TERRITORIAL | AU124: TERRITORIAL | AV124: ANTIOQUIA - ALCALDIA MUNICIPIO DE LA PINTADA | AW124: 27.01395349
F125: TERRITORIAL | G125: TERRITORIAL | H125: ANTIOQUIA - EMPRESA DE SERVICIOS PUBLICOS DOMICILIARIOS DEL CARMEN DE VIBORAL | I125: 34.5 | K125: TERRITORIAL | L125: TERRITORIAL | M125: ANTIOQUIA - ALCALDIA MUNICIPIO DE OLAYA | N125: 38.44117647 | P125: TERRITORIAL | Q125: TERRITORIAL | R125: ANTIOQUIA - ALCALDIA MUNICIPIO DE SANTO DOMINGO | S125: 69.25 | U125: TERRITORIAL | V125: TERRITORIAL | W125: ANTIOQUIA - ALCALDIA MUNICIPIO DE TURBO | X125: 40.78125 | Z125: TERRITORIAL | AA125: TERRITORIAL | AB125: ANTIOQUIA - ALCALDIA MUNICIPIO DE OLAYA | AC125: 11.53846154 | AE125: TERRITORIAL | AF125: TERRITORIAL | AG125: ANTIOQUIA - EMPRESAS PUBLICAS DE CAÑASGORDAS S.A. E.S.P. | AH125: 33.5 | AJ125: TERRITORIAL | AK125: TERRITORIAL | AL125: NARIÑO - ALCALDIA MUNICIPIO DE BELEN | AM125: 32.75 | AO125: TERRITORIAL | AP125: TERRITORIAL | AQ125: ANTIOQUIA - CONCEJO MUNICIPIO DE MEDELLIN | AR125: 32.28571429 | AT125: TERRITORIAL | AU125: TERRITORIAL | AV125: ANTIOQUIA - ALCALDIA MUNICIPIO DE LA UNION | AW125: 29.99462366
F126: TERRITORIAL | G126: TERRITORIAL | H126: ANTIOQUIA - EMPRESA DE VIVIENDA DE ANTIOQUIA - VIVA | I126: 38.64383562 | K126: TERRITORIAL | L126: TERRITORIAL | M126: ANTIOQUIA - ALCALDIA MUNICIPIO DE PEQUE | N126: 38.35789474 | P126: TERRITORIAL | Q126: TERRITORIAL | R126: ANTIOQUIA - ALCALDIA MUNICIPIO DE SANTUARIO | S126: 58.33333333 | U126: TERRITORIAL | V126: TERRITORIAL | W126: ANTIOQUIA - ALCALDIA MUNICIPIO DE URRAO | X126: 39 | Z126: TERRITORIAL | AA126: TERRITORIAL | AB126: ANTIOQUIA - ALCALDIA MUNICIPIO DE PEQUE | AC126: 11.51807229 | AE126: TERRITORIAL | AF126: TERRITORIAL | AG126: ANTIOQUIA - EMPRESAS PUBLICAS DE DABEIBA S.A.S. E.S.P. | AH126: 41.05555556 | AJ126: TERRITORIAL | AK126: TERRITORIAL | AL126: NARIÑO - ALCALDIA MUNICIPIO DE MALLAMA | AM126: 27.5 | AO126: TERRITORIAL | AP126: TERRITORIAL | AQ126: ANTIOQUIA - CONTRALORIA GENERAL DE ANTIOQUIA | AR126: 36.83333333 | AT126: TERRITORIAL | AU126: TERRITORIAL | AV126: ANTIOQUIA - ALCALDIA MUNICIPIO DE LIBORINA | AW126: 26.0704698
F127: TERRITORIAL | G127: TERRITORIAL | H127: ANTIOQUIA - FONDO DE VALORIZACION DEL MUNICIPIO DE MEDELLIN - FONVAL | I127: 32.5 | K127: TERRITORIAL | L127: TERRITORIAL | M127: ANTIOQUIA - ALCALDIA MUNICIPIO DE PUEBLO RICO | N127: 37.57352941 | P127: TERRITORIAL | Q127: TERRITORIAL | R127: ANTIOQUIA - ALCALDIA MUNICIPIO DE SONSON | S127: 53.42857143 | U127: TERRITORIAL | V127: TERRITORIAL | W127: ANTIOQUIA - ALCALDIA MUNICIPIO DE VALPARAISO | X127: 32 | Z127: TERRITORIAL | AA127: TERRITORIAL | AB127: ANTIOQUIA - ALCALDIA MUNICIPIO DE PUEBLO RICO | AC127: 11.51282051 | AE127: TERRITORIAL | AF127: TERRITORIAL | AG127: ANTIOQUIA - EMPRESAS PUBLICAS DE EL SANTUARIO E.S.P. | AH127: 40.33333333 | AJ127: TERRITORIAL | AK127: TERRITORIAL | AL127: NARIÑO - ALCALDIA MUNICIPIO DE SANDONA | AM127: 34 | AO127: TERRITORIAL | AP127: TERRITORIAL | AQ127: ANTIOQUIA - CONTRALORIA GENERAL DE MEDELLIN | AR127: 38.16666667 | AT127: TERRITORIAL | AU127: TERRITORIAL | AV127: ANTIOQUIA - ALCALDIA MUNICIPIO DE MACEO | AW127: 26.49425287
F128: TERRITORIAL | G128: TERRITORIAL | H128: ANTIOQUIA - GOBERNACION | I128: 39.17647059 | K128: TERRITORIAL | L128: TERRITORIAL | M128: ANTIOQUIA - ALCALDIA MUNICIPIO DE PUERTO BERRIO | N128: 39.00613497 | P128: TERRITORIAL | Q128: TERRITORIAL | R128: ANTIOQUIA - ALCALDIA MUNICIPIO DE SOPETRAN | S128: 55.44444444 | U128: TERRITORIAL | V128: TERRITORIAL | W128: ANTIOQUIA - ALCALDIA MUNICIPIO DE VEGACHI | X128: 38.5 | Z128: TERRITORIAL | AA128: TERRITORIAL | AB128: ANTIOQUIA - ALCALDIA MUNICIPIO DE PUERTO BERRIO | AC128: 11.68055556 | AE128: TERRITORIAL | AF128: TERRITORIAL | AG128: ANTIOQUIA - EMPRESAS PUBLICAS DE HISPANIA S.A. E.S.P. | AH128: 37.84090909 | AJ128: TERRITORIAL | AK128: TERRITORIAL | AL128: NARIÑO - ALCALDIA MUNICIPIO DE TUQUERRES | AM128: 33.33333333 | AO128: TERRITORIAL | AP128: TERRITORIAL | AQ128: ANTIOQUIA - EMPRESA AUTONOMA DEL MUNICIPIO DE GUATAPE | AR128: 48 | AT128: TERRITORIAL | AU128: TERRITORIAL | AV128: ANTIOQUIA - ALCALDIA MUNICIPIO DE MARINILLA | AW128: 34.79245283
F129: TERRITORIAL | G129: TERRITORIAL | H129: ANTIOQUIA - INSTITUTO DE CULTURA Y PATRIMONIO DE ANTIOQUIA - MEDELLIN | I129: 32.25 | K129: TERRITORIAL | L129: TERRITORIAL | M129: ANTIOQUIA - ALCALDIA MUNICIPIO DE PUERTO NARE | N129: 38.32044199 | P129: TERRITORIAL | Q129: TERRITORIAL | R129: ANTIOQUIA - ALCALDIA MUNICIPIO DE TAMESIS | S129: 51 | U129: TERRITORIAL | V129: TERRITORIAL | W129: ANTIOQUIA - ALCALDIA MUNICIPIO DE VENECIA | X129: 46.75 | Z129: TERRITORIAL | AA129: TERRITORIAL | AB129: ANTIOQUIA - ALCALDIA MUNICIPIO DE PUERTO NARE | AC129: 11.52631579 | AE129: TERRITORIAL | AF129: TERRITORIAL | AG129: ANTIOQUIA - EMPRESAS PUBLICAS DE JARDIN S.A. E.S.P. | AH129: 40.72 | AJ129: TERRITORIAL | AK129: TERRITORIAL | AL129: NARIÑO - INSTITUTO DEPARTAMENTAL DE SALUD | AM129: 36 | AO129: TERRITORIAL | AP129: TERRITORIAL | AQ129: ANTIOQUIA - EMPRESA DE VIVIENDA DE ANTIOQUIA - VIVA | AR129: 37.47368421 | AT129: TERRITORIAL | AU129: TERRITORIAL | AV129: ANTIOQUIA - ALCALDIA MUNICIPIO DE MEDELLIN | AW129: 36.51876676
F130: TERRITORIAL | G130: TERRITORIAL | H130: ANTIOQUIA - INSTITUTO DE DEPORTES Y RECREACION DE MEDELLIN - INDER MEDELLIN | I130: 38.5 | K130: TERRITORIAL | L130: TERRITORIAL | M130: ANTIOQUIA - ALCALDIA MUNICIPIO DE PUERTO TRIUNFO | N130: 39.03529412 | P130: TERRITORIAL | Q130: TERRITORIAL | R130: ANTIOQUIA - ALCALDIA MUNICIPIO DE TARSO | S130: 44.66666667 | U130: TERRITORIAL | V130: TERRITORIAL | W130: ANTIOQUIA - ALCALDIA MUNICIPIO DE VIGIA DEL FUERTE | X130: 37.5 | Z130: TERRITORIAL | AA130: TERRITORIAL | AB130: ANTIOQUIA - ALCALDIA MUNICIPIO DE PUERTO TRIUNFO | AC130: 11.53968254 | AE130: TERRITORIAL | AF130: TERRITORIAL | AG130: ANTIOQUIA - EMPRESAS PUBLICAS DE LA CEJA DEL TAMBO E.S.P. | AH130: 38.37419355 | AJ130: TERRITORIAL | AK130: TERRITORIAL | AL130: NORTE DE SANTANDER - AREA METROPOLITANA DE CUCUTA | AM130: 43 | AO130: TERRITORIAL | AP130: TERRITORIAL | AQ130: ANTIOQUIA - FONDO DE VALORIZACION DEL MUNICIPIO DE MEDELLIN - FONVAL | AR130: 38 | AT130: TERRITORIAL | AU130: TERRITORIAL | AV130: ANTIOQUIA - ALCALDIA MUNICIPIO DE MONTEBELLO | AW130: 27.32720588
F131: TERRITORIAL | G131: TERRITORIAL | H131: ANTIOQUIA - INSTITUTO DEPARTAMENTAL DE DEPORTES DE ANTIOQUIA - MEDELLIN | I131: 30.85714286 | K131: TERRITORIAL | L131: TERRITORIAL | M131: ANTIOQUIA - ALCALDIA MUNICIPIO DE REMEDIOS | N131: 39 | P131: TERRITORIAL | Q131: TERRITORIAL | R131: ANTIOQUIA - ALCALDIA MUNICIPIO DE TITIRIBI | S131: 52.5 | U131: TERRITORIAL | V131: TERRITORIAL | W131: ANTIOQUIA - ALCALDIA MUNICIPIO DE YALI | X131: 31.16666667 | Z131: TERRITORIAL | AA131: TERRITORIAL | AB131: ANTIOQUIA - ALCALDIA MUNICIPIO DE REMEDIOS | AC131: 11.44537815 | AE131: TERRITORIAL | AF131: TERRITORIAL | AG131: ANTIOQUIA - EMPRESAS PUBLICAS DE SALGAR S.A. E.S.P. | AH131: 36.5 | AJ131: TERRITORIAL | AK131: TERRITORIAL | AL131: NORTE DE SANTANDER - INSTITUTO DEPARTAMENTAL DE SALUD DE NORTE DE SANTANDER | AM131: 46 | AO131: TERRITORIAL | AP131: TERRITORIAL | AQ131: ANTIOQUIA - GOBERNACION | AR131: 38.07142857 | AT131: TERRITORIAL | AU131: TERRITORIAL | AV131: ANTIOQUIA - ALCALDIA MUNICIPIO DE MURINDO | AW131: 37.29545455
F132: TERRITORIAL | G132: TERRITORIAL | H132: ANTIOQUIA - INSTITUTO PARA EL DESARROLLO DE ANTIOQUIA - MEDELLIN | I132: 37 | K132: TERRITORIAL | L132: TERRITORIAL | M132: ANTIOQUIA - ALCALDIA MUNICIPIO DE RIONEGRO | N132: 36.80357143 | P132: TERRITORIAL | Q132: TERRITORIAL | R132: ANTIOQUIA - ALCALDIA MUNICIPIO DE TURBO | S132: 58.47368421 | U132: TERRITORIAL | V132: TERRITORIAL | W132: ANTIOQUIA - ALCALDIA MUNICIPIO DE YARUMAL | X132: 35 | Z132: TERRITORIAL | AA132: TERRITORIAL | AB132: ANTIOQUIA - ALCALDIA MUNICIPIO DE RIONEGRO | AC132: 11.25806452 | AE132: TERRITORIAL | AF132: TERRITORIAL | AG132: ANTIOQUIA - EMPRESAS PUBLICAS DE SAN LUIS S.A.S. E.S.P | AH132: 38.43421053 | AJ132: TERRITORIAL | AK132: TERRITORIAL | AL132: QUINDIO - ALCALDIA MUNICIPIO DE SALENTO | AM132: 31 | AO132: TERRITORIAL | AP132: TERRITORIAL | AQ132: ANTIOQUIA - INSTITUCION EDUCATIVA FEDERICO CARRASQUILLA - MEDELLIN | AR132: 54 | AT132: TERRITORIAL | AU132: TERRITORIAL | AV132: ANTIOQUIA - ALCALDIA MUNICIPIO DE MUTATA | AW132: 28.57786885
F133: TERRITORIAL | G133: TERRITORIAL | H133: ANTIOQUIA - INSTITUTO SOCIAL DE VIVIENDA Y HABITAT DEL MUNICIPIO DE MEDELLIN ISVIMED | I133: 55 | K133: TERRITORIAL | L133: TERRITORIAL | M133: ANTIOQUIA - ALCALDIA MUNICIPIO DE SABANALARGA | N133: 38.56097561 | P133: TERRITORIAL | Q133: TERRITORIAL | R133: ANTIOQUIA - ALCALDIA MUNICIPIO DE URRAO | S133: 63.16666667 | U133: TERRITORIAL | V133: TERRITORIAL | W133: ANTIOQUIA - ALCALDIA MUNICIPIO DE YOLOMBO | X133: 36.66666667 | Z133: TERRITORIAL | AA133: TERRITORIAL | AB133: ANTIOQUIA - ALCALDIA MUNICIPIO DE SABANALARGA | AC133: 11.63541667 | AE133: TERRITORIAL | AF133: TERRITORIAL | AG133: ANTIOQUIA - EMPRESAS PUBLICAS DE URRAO E.S.P. | AH133: 38.73913043 | AJ133: TERRITORIAL | AK133: TERRITORIAL | AL133: QUINDIO - E.S.E. HOSPITAL SAN VICENTE - MONTENEGRO | AM133: 23 | AO133: TERRITORIAL | AP133: TERRITORIAL | AQ133: ANTIOQUIA - INSTITUCION EDUCATIVA JOSE MANUEL RESTREPO VELEZ JOMAR - ENVIGADO | AR133: 32.5 | AT133: TERRITORIAL | AU133: TERRITORIAL | AV133: ANTIOQUIA - ALCALDIA MUNICIPIO DE NARIÑO | AW133: 29.82142857
F134: TERRITORIAL | G134: TERRITORIAL | H134: ANTIOQUIA - INSTITUTO TECNOLOGICO METROPOLITANO - MEDELLIN | I134: 33.5 | K134: TERRITORIAL | L134: TERRITORIAL | M134: ANTIOQUIA - ALCALDIA MUNICIPIO DE SABANETA | N134: 38.22035677 | P134: TERRITORIAL | Q134: TERRITORIAL | R134: ANTIOQUIA - ALCALDIA MUNICIPIO DE VALPARAISO | S134: 55.5 | U134: TERRITORIAL | V134: TERRITORIAL | W134: ANTIOQUIA - ALCALDIA MUNICIPIO DE YONDO | X134: 36.47368421 | Z134: TERRITORIAL | AA134: TERRITORIAL | AB134: ANTIOQUIA - ALCALDIA MUNICIPIO DE SABANETA | AC134: 11.59574468 | AE134: TERRITORIAL | AF134: TERRITORIAL | AG134: ANTIOQUIA - EMPRESAS PUBLICAS MUNICIPALES DE BETANIA S.A. E.S.P. | AH134: 35.16666667 | AJ134: NACIONAL | AK134: RAMA JUDICIAL | AL134: RAMA JUDICIAL | AM134: 26 | AO134: TERRITORIAL | AP134: TERRITORIAL | AQ134: ANTIOQUIA - INSTITUCION EDUCATIVA LA ESMERALDA - EL BAGRE | AR134: 43 | AT134: TERRITORIAL | AU134: TERRITORIAL | AV134: ANTIOQUIA - ALCALDIA MUNICIPIO DE NECHI | AW134: 11.74193548
F135: TERRITORIAL | G135: TERRITORIAL | H135: ANTIOQUIA - TECNOLOGICO DE ANTIOQUIA - MEDELLIN | I135: 27.5 | K135: TERRITORIAL | L135: TERRITORIAL | M135: ANTIOQUIA - ALCALDIA MUNICIPIO DE SALGAR | N135: 39.05172414 | P135: TERRITORIAL | Q135: TERRITORIAL | R135: ANTIOQUIA - ALCALDIA MUNICIPIO DE VENECIA | S135: 59.57142857 | U135: TERRITORIAL | V135: TERRITORIAL | W135: ANTIOQUIA - ALCALDIA MUNICIPIO DE ZARAGOZA | X135: 39.88888889 | Z135: TERRITORIAL | AA135: TERRITORIAL | AB135: ANTIOQUIA - ALCALDIA MUNICIPIO DE SALGAR | AC135: 11.44736842 | AE135: TERRITORIAL | AF135: TERRITORIAL | AG135: ANTIOQUIA - ENVICARNICOS | AH135: 39.16666667 | AJ135: NACIONAL | AK135: REGISTRADURIA | AL135: REGISTRADURIA NACIONAL DEL ESTADO CIVIL (RNEC) | AM135: 35.25 | AO135: TERRITORIAL | AP135: TERRITORIAL | AQ135: ANTIOQUIA - INSTITUCION EDUCATIVA LAS PALMAS - ENVIGADO | AR135: 34 | AT135: TERRITORIAL | AU135: TERRITORIAL | AV135: ANTIOQUIA - ALCALDIA MUNICIPIO DE NECOCLI | AW135: 27.9375
F136: TERRITORIAL | G136: TERRITORIAL | H136: ARAUCA - ALCALDIA MUNICIPIO DE ARAUCA | I136: 37.80952381 | K136: TERRITORIAL | L136: TERRITORIAL | M136: ANTIOQUIA - ALCALDIA MUNICIPIO DE SAN CARLOS | N136: 38.61290323 | P136: TERRITORIAL | Q136: TERRITORIAL | R136: ANTIOQUIA - ALCALDIA MUNICIPIO DE VIGIA DEL FUERTE | S136: 92 | U136: TERRITORIAL | V136: TERRITORIAL | W136: ANTIOQUIA - AREA METROPOLITANA DEL VALLE DE ABURRA - MEDELLIN | X136: 41.42105263 | Z136: TERRITORIAL | AA136: TERRITORIAL | AB136: ANTIOQUIA - ALCALDIA MUNICIPIO DE SAN ANDRES DE CUERQUIA | AC136: 12.5 | AE136: TERRITORIAL | AF136: TERRITORIAL | AG136: ANTIOQUIA - GOBERNACION | AH136: 38.2754491 | AJ136: TERRITORIAL | AK136: TRANSPORTE | AL136: RISARALDA - AEROPUERTO INTERNACIONAL MATECAÑA DE PEREIRA | AM136: 50 | AO136: TERRITORIAL | AP136: TERRITORIAL | AQ136: ANTIOQUIA - INSTITUCION UNIVERSITARIA COLEGIO MAYOR DE ANTIOQUIA - MEDELLIN | AR136: 38.10344828 | AT136: TERRITORIAL | AU136: TERRITORIAL | AV136: ANTIOQUIA - ALCALDIA MUNICIPIO DE OLAYA | AW136: 26.72093023
F137: TERRITORIAL | G137: TERRITORIAL | H137: ARAUCA - ALCALDIA MUNICIPIO DE ARAUQUITA | I137: 43 | K137: TERRITORIAL | L137: TERRITORIAL | M137: ANTIOQUIA - ALCALDIA MUNICIPIO DE SAN FRANCISCO | N137: 37.23684211 | P137: TERRITORIAL | Q137: TERRITORIAL | R137: ANTIOQUIA - ALCALDIA MUNICIPIO DE YALI | S137: 60.66666667 | U137: TERRITORIAL | V137: TERRITORIAL | W137: ANTIOQUIA - ASOCIACION CANAL LOCAL DE TELEVISION DE MEDELLIN - TELEMEDELLIN - | X137: 39.5 | Z137: TERRITORIAL | AA137: TERRITORIAL | AB137: ANTIOQUIA - ALCALDIA MUNICIPIO DE SAN CARLOS | AC137: 11.60747664 | AE137: TERRITORIAL | AF137: TERRITORIAL | AG137: ANTIOQUIA - HIDROELECTRICA ITUANGO S.A. E.S.P. - MEDELLIN | AH137: 38.4893617 | AJ137: TERRITORIAL | AK137: TERRITORIAL | AL137: SANTANDER - ALCALDIA MUNICIPIO DE OCAMONTE | AM137: 46 | AO137: TERRITORIAL | AP137: TERRITORIAL | AQ137: ANTIOQUIA - INSTITUTO DE CULTURA Y PATRIMONIO DE ANTIOQUIA - MEDELLIN | AR137: 29.33333333 | AT137: TERRITORIAL | AU137: TERRITORIAL | AV137: ANTIOQUIA - ALCALDIA MUNICIPIO DE PEQUE | AW137: 28.57345972
F138: TERRITORIAL | G138: TERRITORIAL | H138: ARAUCA - ALCALDIA MUNICIPIO DE CRAVO NORTE | I138: 34.33333333 | K138: TERRITORIAL | L138: TERRITORIAL | M138: ANTIOQUIA - ALCALDIA MUNICIPIO DE SAN JERONIMO | N138: 39.26315789 | P138: TERRITORIAL | Q138: TERRITORIAL | R138: ANTIOQUIA - ALCALDIA MUNICIPIO DE YARUMAL | S138: 60.42857143 | U138: TERRITORIAL | V138: TERRITORIAL | W138: ANTIOQUIA - BIBLIOTECA PUBLICA PILOTO DE MEDELLIN PARA AMERICA LATINA - MEDELLIN | X138: 36 | Z138: TERRITORIAL | AA138: TERRITORIAL | AB138: ANTIOQUIA - ALCALDIA MUNICIPIO DE SAN FRANCISCO | AC138: 11.35294118 | AE138: TERRITORIAL | AF138: TERRITORIAL | AG138: ANTIOQUIA - HIDROELECTRICAS DEL RIO ARMA S.A.S. E.S.P. HIDROARMA - MEDELLIN | AH138: 38.95652174 | AJ138: TERRITORIAL | AK138: TERRITORIAL | AL138: SANTANDER - ALCALDIA MUNICIPIO DE SANTA BARBARA | AM138: 31 | AO138: TERRITORIAL | AP138: TERRITORIAL | AQ138: ANTIOQUIA - INSTITUTO DE DEPORTES Y RECREACION DE MEDELLIN - INDER MEDELLIN | AR138: 35.05405405 | AT138: TERRITORIAL | AU138: TERRITORIAL | AV138: ANTIOQUIA - ALCALDIA MUNICIPIO DE PUEBLO RICO | AW138: 23.62585034
F139: TERRITORIAL | G139: TERRITORIAL | H139: ARAUCA - ALCALDIA MUNICIPIO DE FORTUL | I139: 26 | K139: TERRITORIAL | L139: TERRITORIAL | M139: ANTIOQUIA - ALCALDIA MUNICIPIO DE SAN JOSE LA MONTAÑA | N139: 39.08247423 | P139: TERRITORIAL | Q139: TERRITORIAL | R139: ANTIOQUIA - ALCALDIA MUNICIPIO DE YOLOMBO | S139: 67.5 | U139: TERRITORIAL | V139: TERRITORIAL | W139: ANTIOQUIA - CENTRO PROVINCIAL DE GESTION MINERO AGROEMPRESARIAL DEL ALTO NORDESTE - SEGOVIA | X139: 29 | Z139: TERRITORIAL | AA139: TERRITORIAL | AB139: ANTIOQUIA - ALCALDIA MUNICIPIO DE SAN JERONIMO | AC139: 11.59763314 | AE139: TERRITORIAL | AF139: TERRITORIAL | AG139: ANTIOQUIA - HOSPITAL DE LA CEJA | AH139: 37.47368421 | AJ139: TERRITORIAL | AK139: TERRITORIAL | AL139: SANTANDER - E.S.E. CENTRO DE SALUD JAIME MICHEL - SANTA HELENA DEL OPON | AM139: 48 | AO139: TERRITORIAL | AP139: TERRITORIAL | AQ139: ANTIOQUIA - INSTITUTO DEPARTAMENTAL DE DEPORTES DE ANTIOQUIA - MEDELLIN | AR139: 39.4375 | AT139: TERRITORIAL | AU139: TERRITORIAL | AV139: ANTIOQUIA - ALCALDIA MUNICIPIO DE PUERTO BERRIO | AW139: 30.83544304
F140: TERRITORIAL | G140: TERRITORIAL | H140: ARAUCA - ALCALDIA MUNICIPIO DE SARAVENA | I140: 40.5 | K140: TERRITORIAL | L140: TERRITORIAL | M140: ANTIOQUIA - ALCALDIA MUNICIPIO DE SAN JUAN DE URABA | N140: 37.26190476 | P140: TERRITORIAL | Q140: TERRITORIAL | R140: ANTIOQUIA - ALCALDIA MUNICIPIO DE YONDO | S140: 54.6 | U140: TERRITORIAL | V140: TERRITORIAL | W140: ANTIOQUIA - CONCEJO MUNICIPIO DE RIONEGRO | X140: 25 | Z140: TERRITORIAL | AA140: TERRITORIAL | AB140: ANTIOQUIA - ALCALDIA MUNICIPIO DE SAN JOSE LA MONTAÑA | AC140: 11.5 | AE140: TERRITORIAL | AF140: TERRITORIAL | AG140: ANTIOQUIA - HOSPITAL GENERAL DE MEDELLIN | AH140: 37.29965157 | AJ140: TERRITORIAL | AK140: TERRITORIAL | AL140: SANTANDER - E.S.E. HOSPITAL INTEGRADO SAN ROQUE DE CURITI | AM140: 46 | AO140: TERRITORIAL | AP140: TERRITORIAL | AQ140: ANTIOQUIA - INSTITUTO MUNICIPAL DE EDUCACION FISICA, DEPORTE Y RECREACION DE RIONEGRO - IMER | AR140: 28 | AT140: TERRITORIAL | AU140: TERRITORIAL | AV140: ANTIOQUIA - ALCALDIA MUNICIPIO DE PUERTO NARE | AW140: 28.41764706
F141: TERRITORIAL | G141: TERRITORIAL | H141: ARAUCA - ALCALDIA MUNICIPIO DE TAME | I141: 38.2 | K141: TERRITORIAL | L141: TERRITORIAL | M141: ANTIOQUIA - ALCALDIA MUNICIPIO DE SAN LUIS | N141: 37.21387283 | P141: TERRITORIAL | Q141: TERRITORIAL | R141: ANTIOQUIA - ALCALDIA MUNICIPIO DE ZARAGOZA | S141: 59 | U141: TERRITORIAL | V141: TERRITORIAL | W141: ANTIOQUIA - CONCEJO MUNICIPIO DE SABANETA | X141: 46 | Z141: TERRITORIAL | AA141: TERRITORIAL | AB141: ANTIOQUIA - ALCALDIA MUNICIPIO DE SAN JUAN DE URABA | AC141: 11.5877193 | AE141: TERRITORIAL | AF141: TERRITORIAL | AG141: ANTIOQUIA - HOSPITAL HECTOR ABAD GOMEZ DE YONDO | AH141: 37.61146497 | AJ141: TERRITORIAL | AK141: TERRITORIAL | AL141: SANTANDER - E.S.E. SAN CAYETANO HOSPITAL GUAPOTA | AM141: 44 | AO141: TERRITORIAL | AP141: TERRITORIAL | AQ141: ANTIOQUIA - INSTITUTO MUNICIPAL DEL DEPORTE Y LA RECREACION DE LA ESTRELLA - INDERE | AR141: 40 | AT141: TERRITORIAL | AU141: TERRITORIAL | AV141: ANTIOQUIA - ALCALDIA MUNICIPIO DE PUERTO TRIUNFO | AW141: 17.88729508
F142: TERRITORIAL | G142: TERRITORIAL | H142: ARAUCA - CUMARE S.A. E.S.P - ARAUCA | I142: 38 | K142: TERRITORIAL | L142: TERRITORIAL | M142: ANTIOQUIA - ALCALDIA MUNICIPIO DE SAN PEDRO | N142: 38.38528139 | P142: TERRITORIAL | Q142: TERRITORIAL | R142: ANTIOQUIA - AREA METROPOLITANA DEL VALLE DE ABURRA - MEDELLIN | S142: 58.5625 | U142: TERRITORIAL | V142: TERRITORIAL | W142: ANTIOQUIA - CONTRALORIA GENERAL DE ANTIOQUIA | X142: 39.25 | Z142: TERRITORIAL | AA142: TERRITORIAL | AB142: ANTIOQUIA - ALCALDIA MUNICIPIO DE SAN LUIS | AC142: 11.44897959 | AE142: TERRITORIAL | AF142: TERRITORIAL | AG142: ANTIOQUIA - HOSPITAL MANUEL URIBE ANGEL DE ENVIGADO | AH142: 37.88617886 | AJ142: TERRITORIAL | AK142: TERRITORIAL | AL142: SANTANDER - GOBERNACION | AM142: 37.75 | AO142: TERRITORIAL | AP142: TERRITORIAL | AQ142: ANTIOQUIA - INSTITUTO PARA EL DESARROLLO DE ANTIOQUIA - MEDELLIN | AR142: 40.11111111 | AT142: TERRITORIAL | AU142: TERRITORIAL | AV142: ANTIOQUIA - ALCALDIA MUNICIPIO DE REMEDIOS | AW142: 27.96441281
F143: TERRITORIAL | G143: TERRITORIAL | H143: ARAUCA - GOBERNACION | I143: 38.88235294 | K143: TERRITORIAL | L143: TERRITORIAL | M143: ANTIOQUIA - ALCALDIA MUNICIPIO DE SAN PEDRO DE URABA | N143: 37.95333333 | P143: TERRITORIAL | Q143: TERRITORIAL | R143: ANTIOQUIA - ASOCIACION CANAL LOCAL DE TELEVISION DE MEDELLIN - TELEMEDELLIN - | S143: 46 | U143: TERRITORIAL | V143: TERRITORIAL | W143: ANTIOQUIA - CONTRALORIA GENERAL DE MEDELLIN | X143: 36 | Z143: TERRITORIAL | AA143: TERRITORIAL | AB143: ANTIOQUIA - ALCALDIA MUNICIPIO DE SAN PEDRO | AC143: 11.52173913 | AE143: TERRITORIAL | AF143: TERRITORIAL | AG143: ANTIOQUIA - HOSPITAL SAN RAFAEL DE ANDES | AH143: 37.81104294 | AJ143: NACIONAL | AK143: TRABAJO | AL143: SERVICIO NACIONAL DE APRENDIZAJE (SENA) | AM143: 40 | AO143: TERRITORIAL | AP143: TERRITORIAL | AQ143: ANTIOQUIA - INSTITUTO SOCIAL DE VIVIENDA Y HABITAT DEL MUNICIPIO DE MEDELLIN ISVIMED | AR143: 47.8 | AT143: TERRITORIAL | AU143: TERRITORIAL | AV143: ANTIOQUIA - ALCALDIA MUNICIPIO DE RIONEGRO | AW143: 29.73362445
F144: TERRITORIAL | G144: TERRITORIAL | H144: ARAUCA - UNIDAD ADMINISTRATIVA ESPECIAL DE SALUD DE ARAUCA | I144: 41 | K144: TERRITORIAL | L144: TERRITORIAL | M144: ANTIOQUIA - ALCALDIA MUNICIPIO DE SAN RAFAEL | N144: 38.82941176 | P144: TERRITORIAL | Q144: TERRITORIAL | R144: ANTIOQUIA - BIBLIOTECA PUBLICA PILOTO DE MEDELLIN PARA AMERICA LATINA - MEDELLIN | S144: 89 | U144: TERRITORIAL | V144: TERRITORIAL | W144: ANTIOQUIA - CONTRALORIA MUNICIPAL DE ENVIGADO | X144: 48 | Z144: TERRITORIAL | AA144: TERRITORIAL | AB144: ANTIOQUIA - ALCALDIA MUNICIPIO DE SAN PEDRO DE URABA | AC144: 11.75454545 | AE144: TERRITORIAL | AF144: TERRITORIAL | AG144: ANTIOQUIA - HOSPITAL SAN VICENTE DE PAUL DE CALDAS | AH144: 34 | AJ144: TERRITORIAL | AK144: TERRITORIAL | AL144: SUCRE - ALCALDIA MUNICIPIO DE BUENAVISTA | AM144: 39 | AO144: TERRITORIAL | AP144: TERRITORIAL | AQ144: ANTIOQUIA - INSTITUTO TECNICO INDUSTRIAL PASCUAL BRAVO - MEDELLIN | AR144: 22 | AT144: TERRITORIAL | AU144: TERRITORIAL | AV144: ANTIOQUIA - ALCALDIA MUNICIPIO DE SABANALARGA | AW144: 28.92134831
F145: NACIONAL | G145: INTERIOR | H145: ARCHIVO GENERAL DE LA NACION (AGN) | I145: 41.5 | K145: TERRITORIAL | L145: TERRITORIAL | M145: ANTIOQUIA - ALCALDIA MUNICIPIO DE SAN ROQUE | N145: 37.19191919 | P145: TERRITORIAL | Q145: TERRITORIAL | R145: ANTIOQUIA - CONTRALORIA GENERAL DE ANTIOQUIA | S145: 85 | U145: TERRITORIAL | V145: TERRITORIAL | W145: ANTIOQUIA - E.S.E. HOSPITAL MARCO FIDEL SUAREZ - BELLO | X145: 24 | Z145: TERRITORIAL | AA145: TERRITORIAL | AB145: ANTIOQUIA - ALCALDIA MUNICIPIO DE SAN RAFAEL | AC145: 11.3125 | AE145: TERRITORIAL | AF145: TERRITORIAL | AG145: ANTIOQUIA - I.E. MATER DEI - MEDELLIN | AH145: 39.5 | AJ145: NACIONAL | AK145: AMBIENTE Y DESARROLLO SOSTENIBLE | AL145: UNIDAD ADMINISTRATIVA ESPECIAL DEL SISTEMA DE PARQUES NACIONALES NATURALES | AM145: 25 | AO145: TERRITORIAL | AP145: TERRITORIAL | AQ145: ANTIOQUIA - INSTITUTO TECNOLOGICO METROPOLITANO - MEDELLIN | AR145: 36.40322581 | AT145: TERRITORIAL | AU145: TERRITORIAL | AV145: ANTIOQUIA - ALCALDIA MUNICIPIO DE SABANETA | AW145: 37.21258341
F146: NACIONAL | G146: DEFENSA NACIONAL | H146: ARMADA NACIONAL DE LA REPUBLICA DE COLOMBIA | I146: 30 | K146: TERRITORIAL | L146: TERRITORIAL | M146: ANTIOQUIA - ALCALDIA MUNICIPIO DE SAN VICENTE | N146: 38.01298701 | P146: TERRITORIAL | Q146: TERRITORIAL | R146: ANTIOQUIA - CONTRALORIA GENERAL DE MEDELLIN | S146: 83 | U146: TERRITORIAL | V146: TERRITORIAL | W146: ANTIOQUIA - E.S.E. HOSPITAL OCTAVIO OLIVARES - PUERTO NARE | X146: 26 | Z146: TERRITORIAL | AA146: TERRITORIAL | AB146: ANTIOQUIA - ALCALDIA MUNICIPIO DE SAN ROQUE | AC146: 11.54867257 | AE146: TERRITORIAL | AF146: TERRITORIAL | AG146: ANTIOQUIA - I.E. TRICENTENARIO - MEDELLIN | AH146: 51 | AJ146: NACIONAL | AK146: INTERIOR | AL146: UNIDAD NACIONAL DE PROTECCION (UNP) | AM146: 42.4 | AO146: TERRITORIAL | AP146: TERRITORIAL | AQ146: ANTIOQUIA - PENSIONES DE ANTIOQUIA | AR146: 24.5 | AT146: TERRITORIAL | AU146: TERRITORIAL | AV146: ANTIOQUIA - ALCALDIA MUNICIPIO DE SALGAR | AW146: 31.18532819
F147: TERRITORIAL | G147: TERRITORIAL | H147: ATLANTICO - ALCALDIA DISTRITO ESPECIAL, INDUSTRIAL Y PORTUARIO BARRANQUILLA | I147: 34 | K147: TERRITORIAL | L147: TERRITORIAL | M147: ANTIOQUIA - ALCALDIA MUNICIPIO DE SANTA BARBARA | N147: 38.22340426 | P147: TERRITORIAL | Q147: TERRITORIAL | R147: ANTIOQUIA - E.S.E. HOSPITAL CESAR URIBE PIEDRAHITA - CAUCASIA | S147: 59 | U147: TERRITORIAL | V147: TERRITORIAL | W147: ANTIOQUIA - E.S.E. HOSPITAL SAN MARTIN DE PORRES | X147: 36 | Z147: TERRITORIAL | AA147: TERRITORIAL | AB147: ANTIOQUIA - ALCALDIA MUNICIPIO DE SAN VICENTE | AC147: 11.6835443 | AE147: TERRITORIAL | AF147: TERRITORIAL | AG147: ANTIOQUIA - INSTITUCION EDUCATIVA ALCALDIA DE MEDELLIN | AH147: 40.22222222 | AJ147: NACIONAL | AK147: INCLUSION SOCIAL Y RECONCILIACION | AL147: UNIDAD PARA LA ATENCION Y REPARACION INTEGRAL A LAS VICTIMAS | AM147: 31 | AO147: TERRITORIAL | AP147: TERRITORIAL | AQ147: ANTIOQUIA - PERSONERIA MUNICIPIO DE MEDELLIN | AR147: 31.14285714 | AT147: TERRITORIAL | AU147: TERRITORIAL | AV147: ANTIOQUIA - ALCALDIA MUNICIPIO DE SAN ANDRES DE CUERQUIA | AW147: 36.42857143
F148: TERRITORIAL | G148: TERRITORIAL | H148: ATLANTICO - ALCALDIA MUNICIPIO DE BARANOA | I148: 48 | K148: TERRITORIAL | L148: TERRITORIAL | M148: ANTIOQUIA - ALCALDIA MUNICIPIO DE SANTA FE DE ANTIOQUIA | N148: 37.55614973 | P148: TERRITORIAL | Q148: TERRITORIAL | R148: ANTIOQUIA - E.S.E. HOSPITAL MARCO A. CARDONA - MACEO | S148: 43 | U148: TERRITORIAL | V148: TERRITORIAL | W148: ANTIOQUIA - EMPRESA DE SERVICIOS PUBLICOS DOMICILIARIOS DEL CARMEN DE VIBORAL | X148: 41.5 | Z148: TERRITORIAL | AA148: TERRITORIAL | AB148: ANTIOQUIA - ALCALDIA MUNICIPIO DE SANTA BARBARA | AC148: 11.55263158 | AE148: TERRITORIAL | AF148: TERRITORIAL | AG148: ANTIOQUIA - INSTITUCION EDUCATIVA ANGELA RESTREPO MORENO - MEDELLIN | AH148: 40.34615385 | AJ148: TERRITORIAL | AK148: TERRITORIAL | AL148: VALLE DEL CAUCA - ALCALDIA MUNICIPIO DE BUENAVENTURA | AM148: 28 | AO148: TERRITORIAL | AP148: TERRITORIAL | AQ148: ANTIOQUIA - POLITECNICO COLOMBIANO JAIME ISAZA CADAVID - MEDELLIN | AR148: 33 | AT148: TERRITORIAL | AU148: TERRITORIAL | AV148: ANTIOQUIA - ALCALDIA MUNICIPIO DE SAN CARLOS | AW148: 32.79
F149: TERRITORIAL | G149: TERRITORIAL | H149: ATLANTICO - ALCALDIA MUNICIPIO DE CAMPO DE LA CRUZ | I149: 40 | K149: TERRITORIAL | L149: TERRITORIAL | M149: ANTIOQUIA - ALCALDIA MUNICIPIO DE SANTA ROSA DE OSOS | N149: 37.63257576 | P149: TERRITORIAL | Q149: TERRITORIAL | R149: ANTIOQUIA - E.S.E. HOSPITAL MUNICIPAL SAN ROQUE | S149: 68.5 | U149: TERRITORIAL | V149: TERRITORIAL | W149: ANTIOQUIA - EMPRESA DE VIVIENDA DE ANTIOQUIA - VIVA | X149: 34 | Z149: TERRITORIAL | AA149: TERRITORIAL | AB149: ANTIOQUIA - ALCALDIA MUNICIPIO DE SANTA FE DE ANTIOQUIA | AC149: 11.31343284 | AE149: TERRITORIAL | AF149: TERRITORIAL | AG149: ANTIOQUIA - INSTITUCION EDUCATIVA ANTONIO DERKA SANTO DOMINGO - MEDELLIN | AH149: 40.07894737 | AJ149: TERRITORIAL | AK149: TERRITORIAL | AL149: VALLE DEL CAUCA - ALCALDIA MUNICIPIO DE BUGA | AM149: 54 | AO149: TERRITORIAL | AP149: TERRITORIAL | AQ149: ANTIOQUIA - TECNOLOGICO DE ANTIOQUIA - MEDELLIN | AR149: 36.82758621 | AT149: TERRITORIAL | AU149: TERRITORIAL | AV149: ANTIOQUIA - ALCALDIA MUNICIPIO DE SAN FRANCISCO | AW149: 28.60738255
F150: TERRITORIAL | G150: TERRITORIAL | H150: ATLANTICO - ALCALDIA MUNICIPIO DE GALAPA | I150: 36 | K150: TERRITORIAL | L150: TERRITORIAL | M150: ANTIOQUIA - ALCALDIA MUNICIPIO DE SANTO DOMINGO | N150: 38.06730769 | P150: TERRITORIAL | Q150: TERRITORIAL | R150: ANTIOQUIA - E.S.E. HOSPITAL SAN JUAN DE DIOS - ITUANGO | S150: 80 | U150: TERRITORIAL | V150: TERRITORIAL | W150: ANTIOQUIA - ESCUELA SUPERIOR TECNOLOGICA DE ARTES DEBORA ARANGO - MEDELLIN | X150: 25 | Z150: TERRITORIAL | AA150: TERRITORIAL | AB150: ANTIOQUIA - ALCALDIA MUNICIPIO DE SANTA ROSA DE OSOS | AC150: 11.44897959 | AE150: TERRITORIAL | AF150: TERRITORIAL | AG150: ANTIOQUIA - INSTITUCION EDUCATIVA AURES - MEDELLIN | AH150: 39.15 | AJ150: TERRITORIAL | AK150: TERRITORIAL | AL150: VALLE DEL CAUCA - ALCALDIA MUNICIPIO DE CALI | AM150: 37 | AO150: TERRITORIAL | AP150: TERRITORIAL | AQ150: ANTIOQUIA- CENTRO DE FORMACION INTEGRAL PARA EL TRABAJO CEFIT- ENVIGADO | AR150: 46 | AT150: TERRITORIAL | AU150: TERRITORIAL | AV150: ANTIOQUIA - ALCALDIA MUNICIPIO DE SAN JERONIMO | AW150: 19.38559322
F151: TERRITORIAL | G151: TERRITORIAL | H151: ATLANTICO - ALCALDIA MUNICIPIO DE JUAN DE ACOSTA | I151: 24 | K151: TERRITORIAL | L151: TERRITORIAL | M151: ANTIOQUIA - ALCALDIA MUNICIPIO DE SANTUARIO | N151: 36.36 | P151: TERRITORIAL | Q151: TERRITORIAL | R151: ANTIOQUIA - E.S.E. HOSPITAL SAN JUAN DE DIOS ANORI | S151: 68 | U151: TERRITORIAL | V151: TERRITORIAL | W151: ANTIOQUIA - FONDO DE VIVIENDA DE INTERES SOCIAL Y REFORMA URBANA DE SABANETA | X151: 20 | Z151: TERRITORIAL | AA151: TERRITORIAL | AB151: ANTIOQUIA - ALCALDIA MUNICIPIO DE SANTO DOMINGO | AC151: 11.49438202 | AE151: TERRITORIAL | AF151: TERRITORIAL | AG151: ANTIOQUIA - INSTITUCION EDUCATIVA BARRIO SANTANDER - MEDELLIN | AH151: 35.16666667 | AJ151: TERRITORIAL | AK151: TERRITORIAL | AL151: VALLE DEL CAUCA - ALCALDIA MUNICIPIO DE EL CERRITO | AM151: 35 | AO151: TERRITORIAL | AP151: TERRITORIAL | AQ151: ARAUCA - ALCALDIA MUNICIPIO DE ARAUCA | AR151: 39.2173913 | AT151: TERRITORIAL | AU151: TERRITORIAL | AV151: ANTIOQUIA - ALCALDIA MUNICIPIO DE SAN JOSE LA MONTAÑA | AW151: 31.58741259
F152: TERRITORIAL | G152: TERRITORIAL | H152: ATLANTICO - ALCALDIA MUNICIPIO DE LURUACO | I152: 47.75 | K152: TERRITORIAL | L152: TERRITORIAL | M152: ANTIOQUIA - ALCALDIA MUNICIPIO DE SEGOVIA | N152: 37.21359223 | P152: TERRITORIAL | Q152: TERRITORIAL | R152: ANTIOQUIA - EMPRESA DE SERVICIOS PUBLICOS DOMICILIARIOS DEL CARMEN DE VIBORAL | S152: 71 | U152: TERRITORIAL | V152: TERRITORIAL | W152: ANTIOQUIA - GOBERNACION | X152: 39.20491803 | Z152: TERRITORIAL | AA152: TERRITORIAL | AB152: ANTIOQUIA - ALCALDIA MUNICIPIO DE SANTUARIO | AC152: 11.4691358 | AE152: TERRITORIAL | AF152: TERRITORIAL | AG152: ANTIOQUIA - INSTITUCION EDUCATIVA CAMILO MORA CARRASQUILLA - MEDELLIN | AH152: 38.25 | AJ152: TERRITORIAL | AK152: TERRITORIAL | AL152: VALLE DEL CAUCA - ALCALDIA MUNICIPIO DE GUACARI | AM152: 22 | AO152: TERRITORIAL | AP152: TERRITORIAL | AQ152: ARAUCA - ALCALDIA MUNICIPIO DE ARAUQUITA | AR152: 37.5 | AT152: TERRITORIAL | AU152: TERRITORIAL | AV152: ANTIOQUIA - ALCALDIA MUNICIPIO DE SAN JUAN DE URABA | AW152: 25.90763052
F153: TERRITORIAL | G153: TERRITORIAL | H153: ATLANTICO - ALCALDIA MUNICIPIO DE MALAMBO | I153: 31.25 | K153: TERRITORIAL | L153: TERRITORIAL | M153: ANTIOQUIA - ALCALDIA MUNICIPIO DE SONSON | N153: 38.4469914 | P153: TERRITORIAL | Q153: TERRITORIAL | R153: ANTIOQUIA - EMPRESA DE VIVIENDA DE ANTIOQUIA - VIVA | S153: 60.93333333 | U153: TERRITORIAL | V153: TERRITORIAL | W153: ANTIOQUIA - INSTITUCION EDUCATIVA KENNEDY - MEDELLIN | X153: 52 | Z153: TERRITORIAL | AA153: TERRITORIAL | AB153: ANTIOQUIA - ALCALDIA MUNICIPIO DE SEGOVIA | AC153: 11.325 | AE153: TERRITORIAL | AF153: TERRITORIAL | AG153: ANTIOQUIA - INSTITUCION EDUCATIVA CIRO MENDIA - MEDELLIN | AH153: 37.3125 | AJ153: TERRITORIAL | AK153: TERRITORIAL | AL153: VALLE DEL CAUCA - ALCALDIA MUNICIPIO DE SAN PEDRO | AM153: 46 | AO153: TERRITORIAL | AP153: TERRITORIAL | AQ153: ARAUCA - ALCALDIA MUNICIPIO DE CRAVO NORTE | AR153: 32 | AT153: TERRITORIAL | AU153: TERRITORIAL | AV153: ANTIOQUIA - ALCALDIA MUNICIPIO DE SAN LUIS | AW153: 27.98181818
F154: TERRITORIAL | G154: TERRITORIAL | H154: ATLANTICO - ALCALDIA MUNICIPIO DE MANATI | I154: 35 | K154: TERRITORIAL | L154: TERRITORIAL | M154: ANTIOQUIA - ALCALDIA MUNICIPIO DE SOPETRAN | N154: 39.68253968 | P154: TERRITORIAL | Q154: TERRITORIAL | R154: ANTIOQUIA - FONDO DE VALORIZACION DEL MUNICIPIO DE MEDELLIN - FONVAL | S154: 73.85714286 | U154: TERRITORIAL | V154: TERRITORIAL | W154: ANTIOQUIA - INSTITUCION EDUCATIVA LOLA GONZALEZ - MEDELLIN | X154: 25 | Z154: TERRITORIAL | AA154: TERRITORIAL | AB154: ANTIOQUIA - ALCALDIA MUNICIPIO DE SONSON | AC154: 11.31147541 | AE154: TERRITORIAL | AF154: TERRITORIAL | AG154: ANTIOQUIA - INSTITUCION EDUCATIVA CIUDADELA NUEVO OCCIDENTE - MEDELLIN | AH154: 29.66666667 | AJ154: TERRITORIAL | AK154: TERRITORIAL | AL154: VAUPES - ALCALDIA MUNICIPIO DE MITU | AM154: 52 | AO154: TERRITORIAL | AP154: TERRITORIAL | AQ154: ARAUCA - ALCALDIA MUNICIPIO DE FORTUL | AR154: 37.88888889 | AT154: TERRITORIAL | AU154: TERRITORIAL | AV154: ANTIOQUIA - ALCALDIA MUNICIPIO DE SAN PEDRO | AW154: 31.24489796
F155: TERRITORIAL | G155: TERRITORIAL | H155: ATLANTICO - ALCALDIA MUNICIPIO DE PALMAR DE VARELA | I155: 42 | K155: TERRITORIAL | L155: TERRITORIAL | M155: ANTIOQUIA - ALCALDIA MUNICIPIO DE TAMESIS | N155: 37.24576271 | P155: TERRITORIAL | Q155: TERRITORIAL | R155: ANTIOQUIA - GOBERNACION | S155: 61.09722222 | U155: TERRITORIAL | V155: TERRITORIAL | W155: ANTIOQUIA - INSTITUCION UNIVERSITARIA COLEGIO MAYOR DE ANTIOQUIA - MEDELLIN | X155: 40.57142857 | Z155: TERRITORIAL | AA155: TERRITORIAL | AB155: ANTIOQUIA - ALCALDIA MUNICIPIO DE SOPETRAN | AC155: 11.32183908 | AE155: TERRITORIAL | AF155: TERRITORIAL | AG155: ANTIOQUIA - INSTITUCION EDUCATIVA CRISTOBAL COLON - MEDELLIN | AH155: 36.04347826 | AJ155: TERRITORIAL | AK155: TERRITORIAL | AL155: VAUPES - ALCALDIA MUNICIPIO DE TARAIRA | AM155: 37 | AO155: TERRITORIAL | AP155: TERRITORIAL | AQ155: ARAUCA - ALCALDIA MUNICIPIO DE SARAVENA | AR155: 36.41666667 | AT155: TERRITORIAL | AU155: TERRITORIAL | AV155: ANTIOQUIA - ALCALDIA MUNICIPIO DE SAN PEDRO DE URABA | AW155: 27.40977444
F156: TERRITORIAL | G156: TERRITORIAL | H156: ATLANTICO - ALCALDIA MUNICIPIO DE PONEDERA | I156: 25 | K156: TERRITORIAL | L156: TERRITORIAL | M156: ANTIOQUIA - ALCALDIA MUNICIPIO DE TARAZA | N156: 38.3956044 | P156: TERRITORIAL | Q156: TERRITORIAL | R156: ANTIOQUIA - INSTITUCION EDUCATIVA MARIA DE LOS ANGELES CANO - MEDELLIN | S156: 52 | U156: TERRITORIAL | V156: TERRITORIAL | W156: ANTIOQUIA - INSTITUTO DE CULTURA Y PATRIMONIO DE ANTIOQUIA - MEDELLIN | X156: 45.5 | Z156: TERRITORIAL | AA156: TERRITORIAL | AB156: ANTIOQUIA - ALCALDIA MUNICIPIO DE TAMESIS | AC156: 12.22222222 | AE156: TERRITORIAL | AF156: TERRITORIAL | AG156: ANTIOQUIA - INSTITUCION EDUCATIVA DIEGO ECHAVARRIA MISAS - ITAGÜI | AH156: 37.63829787 | AJ156: TERRITORIAL | AK156: TERRITORIAL | AL156: VICHADA - ALCALDIA MUNICIPIO DE CUMARIBO | AM156: 54 | AO156: TERRITORIAL | AP156: TERRITORIAL | AQ156: ARAUCA - ALCALDIA MUNICIPIO DE TAME | AR156: 45.28571429 | AT156: TERRITORIAL | AU156: TERRITORIAL | AV156: ANTIOQUIA - ALCALDIA MUNICIPIO DE SAN RAFAEL | AW156: 31.09056604
F157: TERRITORIAL | G157: TERRITORIAL | H157: ATLANTICO - ALCALDIA MUNICIPIO DE PUERTO COLOMBIA | I157: 52.5 | K157: TERRITORIAL | L157: TERRITORIAL | M157: ANTIOQUIA - ALCALDIA MUNICIPIO DE TARSO | N157: 37.33333333 | P157: TERRITORIAL | Q157: TERRITORIAL | R157: ANTIOQUIA - INSTITUTO DE CULTURA Y PATRIMONIO DE ANTIOQUIA - MEDELLIN | S157: 66.5 | U157: TERRITORIAL | V157: TERRITORIAL | W157: ANTIOQUIA - INSTITUTO DE DEPORTES Y RECREACION DE MEDELLIN - INDER MEDELLIN | X157: 39.52 | Z157: TERRITORIAL | AA157: TERRITORIAL | AB157: ANTIOQUIA - ALCALDIA MUNICIPIO DE TARAZA | AC157: 11.44444444 | AE157: TERRITORIAL | AF157: TERRITORIAL | AG157: ANTIOQUIA - INSTITUCION EDUCATIVA EL CORAZON - MEDELLIN | AH157: 43.42857143 | AJ157: TERRITORIAL | AK157: TERRITORIAL | AL157: VICHADA - ALCALDIA MUNICIPIO DE LA PRIMAVERA | AM157: 31 | AO157: TERRITORIAL | AP157: TERRITORIAL | AQ157: ARAUCA - CONTRALORIA DEPARTAMENTAL DE ARAUCA | AR157: 33 | AT157: TERRITORIAL | AU157: TERRITORIAL | AV157: ANTIOQUIA - ALCALDIA MUNICIPIO DE SAN ROQUE | AW157: 24
F158: TERRITORIAL | G158: TERRITORIAL | H158: ATLANTICO - ALCALDIA MUNICIPIO DE SABANAGRANDE | I158: 28 | K158: TERRITORIAL | L158: TERRITORIAL | M158: ANTIOQUIA - ALCALDIA MUNICIPIO DE TITIRIBI | N158: 39.25510204 | P158: TERRITORIAL | Q158: TERRITORIAL | R158: ANTIOQUIA - INSTITUTO DE DEPORTES Y RECREACION DE MEDELLIN - INDER MEDELLIN | S158: 57.375 | U158: TERRITORIAL | V158: TERRITORIAL | W158: ANTIOQUIA - INSTITUTO DEPARTAMENTAL DE DEPORTES DE ANTIOQUIA - MEDELLIN | X158: 52 | Z158: TERRITORIAL | AA158: TERRITORIAL | AB158: ANTIOQUIA - ALCALDIA MUNICIPIO DE TARSO | AC158: 11.48529412 | AE158: TERRITORIAL | AF158: TERRITORIAL | AG158: ANTIOQUIA - INSTITUCION EDUCATIVA EL PEDREGAL - MEDELLIN | AH158: 37.25 | AL158: Total general | AM158: 38.30169492 | AO158: TERRITORIAL | AP158: TERRITORIAL | AQ158: ARAUCA - GOBERNACION | AR158: 34.56410256 | AT158: TERRITORIAL | AU158: TERRITORIAL | AV158: ANTIOQUIA - ALCALDIA MUNICIPIO DE SAN VICENTE | AW158: 27.29545455
F159: TERRITORIAL | G159: TERRITORIAL | H159: ATLANTICO - ALCALDIA MUNICIPIO DE SABANALARGA | I159: 49 | K159: TERRITORIAL | L159: TERRITORIAL | M159: ANTIOQUIA - ALCALDIA MUNICIPIO DE TOLEDO | N159: 37.23529412 | P159: TERRITORIAL | Q159: TERRITORIAL | R159: ANTIOQUIA - INSTITUTO DEPARTAMENTAL DE DEPORTES DE ANTIOQUIA - MEDELLIN | S159: 49 | U159: TERRITORIAL | V159: TERRITORIAL | W159: ANTIOQUIA - INSTITUTO MUNICIPAL DE EDUCACION FISICA, DEPORTE Y RECREACION DE RIONEGRO - IMER | X159: 44.5 | Z159: TERRITORIAL | AA159: TERRITORIAL | AB159: ANTIOQUIA - ALCALDIA MUNICIPIO DE TITIRIBI | AC159: 11.31067961 | AE159: TERRITORIAL | AF159: TERRITORIAL | AG159: ANTIOQUIA - INSTITUCION EDUCATIVA FE Y ALEGRIA JOSE MARIA VELAZ - MEDELLIN | AH159: 38.53846154 | AO159: TERRITORIAL | AP159: TERRITORIAL | AQ159: ARAUCA - INSTITUTO DE DESARROLLO DE ARAUCA - IDEAR | AR159: 48.5 | AT159: TERRITORIAL | AU159: TERRITORIAL | AV159: ANTIOQUIA - ALCALDIA MUNICIPIO DE SANTA BARBARA | AW159: 33.73893805
F160: TERRITORIAL | G160: TERRITORIAL | H160: ATLANTICO - ALCALDIA MUNICIPIO DE SANTA LUCIA | I160: 30.5 | K160: TERRITORIAL | L160: TERRITORIAL | M160: ANTIOQUIA - ALCALDIA MUNICIPIO DE TURBO | N160: 37.99689441 | P160: TERRITORIAL | Q160: TERRITORIAL | R160: ANTIOQUIA - INSTITUTO PARA EL DESARROLLO DE ANTIOQUIA - MEDELLIN | S160: 73 | U160: TERRITORIAL | V160: TERRITORIAL | W160: ANTIOQUIA - INSTITUTO PARA EL DEPORTE Y LA RECREACION DE SABANETA | X160: 50 | Z160: TERRITORIAL | AA160: TERRITORIAL | AB160: ANTIOQUIA - ALCALDIA MUNICIPIO DE TOLEDO | AC160: 11.49425287 | AE160: NACIONAL | AF160: TERRITORIAL | AG160: ANTIOQUIA - INSTITUCION EDUCATIVA FE Y ALEGRIA SAN JOSE - MEDELLIN | AH160: 39.6 | AO160: TERRITORIAL | AP160: TERRITORIAL | AQ160: ARAUCA - INSTITUTO DE TRANSITO Y TRANSPORTE DEL DEPARTAMENTO DE ARAUCA | AR160: 29 | AT160: TERRITORIAL | AU160: TERRITORIAL | AV160: ANTIOQUIA - ALCALDIA MUNICIPIO DE SANTA FE DE ANTIOQUIA | AW160: 25.65258216
F161: TERRITORIAL | G161: TERRITORIAL | H161: ATLANTICO - ALCALDIA MUNICIPIO DE SANTO TOMAS | I161: 36.5 | K161: TERRITORIAL | L161: TERRITORIAL | M161: ANTIOQUIA - ALCALDIA MUNICIPIO DE URRAO | N161: 38.85135135 | P161: TERRITORIAL | Q161: TERRITORIAL | R161: ANTIOQUIA - INSTITUTO SOCIAL DE VIVIENDA Y HABITAT DEL MUNICIPIO DE MEDELLIN ISVIMED | S161: 87 | U161: TERRITORIAL | V161: TERRITORIAL | W161: ANTIOQUIA - INSTITUTO PARA EL DESARROLLO DE ANTIOQUIA - MEDELLIN | X161: 37.77777778 | Z161: TERRITORIAL | AA161: TERRITORIAL | AB161: ANTIOQUIA - ALCALDIA MUNICIPIO DE TURBO | AC161: 11.63131313 | AE161: TERRITORIAL | AF161: TERRITORIAL | AG161: ANTIOQUIA - INSTITUCION EDUCATIVA FE Y ALEGRIA SANTO DOMINGO SAVIO - MEDELLIN | AH161: 32.22222222 | AJ161: Selección Abreviada | AO161: NACIONAL | AP161: INTERIOR | AQ161: ARCHIVO GENERAL DE LA NACION (AGN) | AR161: 42.6 | AT161: TERRITORIAL | AU161: TERRITORIAL | AV161: ANTIOQUIA - ALCALDIA MUNICIPIO DE SANTA ROSA DE OSOS | AW161: 31.35061728
F162: TERRITORIAL | G162: TERRITORIAL | H162: ATLANTICO - ALCALDIA MUNICIPIO DE SUAN | I162: 51 | K162: TERRITORIAL | L162: TERRITORIAL | M162: ANTIOQUIA - ALCALDIA MUNICIPIO DE VALDIVIA | N162: 38.86407767 | P162: TERRITORIAL | Q162: TERRITORIAL | R162: ANTIOQUIA - INSTITUTO TECNOLOGICO METROPOLITANO - MEDELLIN | S162: 61 | U162: TERRITORIAL | V162: TERRITORIAL | W162: ANTIOQUIA - INSTITUTO TECNOLOGICO METROPOLITANO - MEDELLIN | X162: 29.33333333 | Z162: TERRITORIAL | AA162: TERRITORIAL | AB162: ANTIOQUIA - ALCALDIA MUNICIPIO DE URRAO | AC162: 11.48113208 | AE162: TERRITORIAL | AF162: TERRITORIAL | AG162: ANTIOQUIA - INSTITUCION EDUCATIVA FELIX HENAO BOTERO - MEDELLIN | AH162: 41.90909091 | AJ162: Row Labels | AK162: Average of INDICADOR | AO162: NACIONAL | AP162: DEFENSA NACIONAL | AQ162: ARMADA NACIONAL DE LA REPUBLICA DE COLOMBIA | AR162: 37.79310345 | AT162: TERRITORIAL | AU162: TERRITORIAL | AV162: ANTIOQUIA - ALCALDIA MUNICIPIO DE SANTO DOMINGO | AW162: 27.04830918
F163: TERRITORIAL | G163: TERRITORIAL | H163: ATLANTICO - ALCALDIA MUNICIPIO DE USIACURI | I163: 22 | K163: TERRITORIAL | L163: TERRITORIAL | M163: ANTIOQUIA - ALCALDIA MUNICIPIO DE VALPARAISO | N163: 38.92929293 | P163: TERRITORIAL | Q163: TERRITORIAL | R163: ANTIOQUIA - MUNICIPIOS ASOCIADOS DE LA SUBREGION DE EMBALSES RIO NEGRO NARE MASER - GUATAPE | S163: 62 | U163: TERRITORIAL | V163: TERRITORIAL | W163: ANTIOQUIA - METROPLUS S.A. - MEDELLIN | X163: 25.66666667 | Z163: TERRITORIAL | AA163: TERRITORIAL | AB163: ANTIOQUIA - ALCALDIA MUNICIPIO DE VALDIVIA | AC163: 13 | AE163: TERRITORIAL | AF163: TERRITORIAL | AG163: ANTIOQUIA - INSTITUCION EDUCATIVA FINCA LA MESA - MEDELLIN | AH163: 38.6779661 | AJ163: AMBIENTE Y DESARROLLO SOSTENIBLE | AK163: 40.5 | AO163: TERRITORIAL | AP163: TERRITORIAL | AQ163: ATLANTICO - ALCALDIA DISTRITO ESPECIAL, INDUSTRIAL Y PORTUARIO BARRANQUILLA | AR163: 34.57142857 | AT163: TERRITORIAL | AU163: TERRITORIAL | AV163: ANTIOQUIA - ALCALDIA MUNICIPIO DE SANTUARIO | AW163: 29.87889273
F164: TERRITORIAL | G164: TERRITORIAL | H164: ATLANTICO - AREA METROPOLITANA DE BARRANQUILLA | I164: 50 | K164: TERRITORIAL | L164: TERRITORIAL | M164: ANTIOQUIA - ALCALDIA MUNICIPIO DE VEGACHI | N164: 37.8 | P164: TERRITORIAL | Q164: TERRITORIAL | R164: ANTIOQUIA - PARQUE MANANTIALES S.A.S. EN LIQUIDACION - ENVIGADO | S164: 46 | U164: TERRITORIAL | V164: TERRITORIAL | W164: ANTIOQUIA - PENSIONES DE ANTIOQUIA | X164: 34 | Z164: TERRITORIAL | AA164: TERRITORIAL | AB164: ANTIOQUIA - ALCALDIA MUNICIPIO DE VALPARAISO | AC164: 11.40816327 | AE164: TERRITORIAL | AF164: TERRITORIAL | AG164: ANTIOQUIA - INSTITUCION EDUCATIVA GILBERTO ALZATE AVENDAÑO - MEDELLIN | AH164: 41.63636364 | AJ164: CONTROL | AK164: 54 | AO164: TERRITORIAL | AP164: TERRITORIAL | AQ164: ATLANTICO - ALCALDIA MUNICIPIO DE GALAPA | AR164: 32 | AT164: TERRITORIAL | AU164: TERRITORIAL | AV164: ANTIOQUIA - ALCALDIA MUNICIPIO DE SEGOVIA | AW164: 29.97202797
F165: TERRITORIAL | G165: TERRITORIAL | H165: ATLANTICO - EDUMAS - EMPRESA DE DESARROLLO URBANO Y MEDIO AMBIENTE DE SOLEDAD | I165: 20 | K165: TERRITORIAL | L165: TERRITORIAL | M165: ANTIOQUIA - ALCALDIA MUNICIPIO DE VENECIA | N165: 36.85416667 | P165: TERRITORIAL | Q165: TERRITORIAL | R165: ANTIOQUIA - POLITECNICO COLOMBIANO JAIME ISAZA CADAVID - MEDELLIN | S165: 53.25 | U165: TERRITORIAL | V165: TERRITORIAL | W165: ANTIOQUIA - PERSONERIA MUNICIPIO DE ENVIGADO | X165: 29 | Z165: TERRITORIAL | AA165: TERRITORIAL | AB165: ANTIOQUIA - ALCALDIA MUNICIPIO DE VEGACHI | AC165: 11.44444444 | AE165: TERRITORIAL | AF165: TERRITORIAL | AG165: ANTIOQUIA - INSTITUCION EDUCATIVA HECTOR ABAD GOMEZ - MEDELLIN | AH165: 36 | AJ165: DEFENSA NACIONAL | AK165: 38.21292852 | AO165: TERRITORIAL | AP165: TERRITORIAL | AQ165: ATLANTICO - ALCALDIA MUNICIPIO DE PALMAR DE VARELA | AR165: 55 | AT165: TERRITORIAL | AU165: TERRITORIAL | AV165: ANTIOQUIA - ALCALDIA MUNICIPIO DE SONSON | AW165: 30.11917098
F166: TERRITORIAL | G166: TERRITORIAL | H166: ATLANTICO - FORO HIDRICO - FONDO DE RESTAURACION OBRAS E INVERSION HIDRICA DISTRITAL | I166: 56 | K166: TERRITORIAL | L166: TERRITORIAL | M166: ANTIOQUIA - ALCALDIA MUNICIPIO DE VIGIA DEL FUERTE | N166: 38.05263158 | P166: TERRITORIAL | Q166: TERRITORIAL | R166: ANTIOQUIA - REFORESTADORA INDUSTRIAL DE ANTIOQUIA | S166: 58.15909091 | U166: TERRITORIAL | V166: TERRITORIAL | W166: ANTIOQUIA - PERSONERIA MUNICIPIO DE MEDELLIN | X166: 54 | Z166: TERRITORIAL | AA166: TERRITORIAL | AB166: ANTIOQUIA - ALCALDIA MUNICIPIO DE VENECIA | AC166: 11.61832061 | AE166: TERRITORIAL | AF166: TERRITORIAL | AG166: ANTIOQUIA - INSTITUCION EDUCATIVA JOSE ACEVEDO Y GOMEZ - MEDELLIN | AH166: 36.73076923 | AJ166: INCLUSION SOCIAL Y RECONCILIACION | AK166: 37 | AO166: TERRITORIAL | AP166: TERRITORIAL | AQ166: ATLANTICO - ALCALDIA MUNICIPIO DE SUAN | AR166: 25 | AT166: TERRITORIAL | AU166: TERRITORIAL | AV166: ANTIOQUIA - ALCALDIA MUNICIPIO DE SOPETRAN | AW166: 26.29378531
F167: TERRITORIAL | G167: TERRITORIAL | H167: ATLANTICO - GOBERNACION | I167: 38.08333333 | K167: TERRITORIAL | L167: TERRITORIAL | M167: ANTIOQUIA - ALCALDIA MUNICIPIO DE YALI | N167: 36.87640449 | P167: TERRITORIAL | Q167: TERRITORIAL | R167: ANTIOQUIA - TECNOLOGICO DE ANTIOQUIA - MEDELLIN | S167: 40.25 | U167: TERRITORIAL | V167: TERRITORIAL | W167: ANTIOQUIA - PERSONERIA MUNICIPIO DE RIONEGRO MEDELLIN | X167: 40 | Z167: TERRITORIAL | AA167: TERRITORIAL | AB167: ANTIOQUIA - ALCALDIA MUNICIPIO DE VIGIA DEL FUERTE | AC167: 11.75 | AE167: TERRITORIAL | AF167: TERRITORIAL | AG167: ANTIOQUIA - INSTITUCION EDUCATIVA JOSE ASUNCION SILVA - MEDELLIN | AH167: 35.36842105 | AJ167: INTERIOR | AK167: 42.4 | AO167: TERRITORIAL | AP167: TERRITORIAL | AQ167: ATLANTICO - GOBERNACION | AR167: 31.33333333 | AT167: TERRITORIAL | AU167: TERRITORIAL | AV167: ANTIOQUIA - ALCALDIA MUNICIPIO DE TAMESIS | AW167: 35.59375
F168: TERRITORIAL | G168: TERRITORIAL | H168: ATLANTICO - JUNTA MUNICIPAL DE DEPORTES PUERTO COLOMBIA | I168: 42 | K168: TERRITORIAL | L168: TERRITORIAL | M168: ANTIOQUIA - ALCALDIA MUNICIPIO DE YARUMAL | N168: 36.95454545 | P168: TERRITORIAL | Q168: TERRITORIAL | R168: ARAUCA - ALCALDIA MUNICIPIO DE ARAUCA | S168: 63.3 | U168: TERRITORIAL | V168: TERRITORIAL | W168: ANTIOQUIA - POLITECNICO COLOMBIANO JAIME ISAZA CADAVID - MEDELLIN | X168: 36.04347826 | Z168: TERRITORIAL | AA168: TERRITORIAL | AB168: ANTIOQUIA - ALCALDIA MUNICIPIO DE YALI | AC168: 11.26515152 | AE168: TERRITORIAL | AF168: TERRITORIAL | AG168: ANTIOQUIA - INSTITUCION EDUCATIVA JOSE FELIX RESTREPO VELEZ - SABANETA | AH168: 36.71052632 | AJ168: MINAS Y ENERGIA | AK168: 51 | AO168: TERRITORIAL | AP168: TERRITORIAL | AQ168: ATLANTICO - INSTITUTO TECNOLOGICO DE SOLEDAD ATLANTICO - SOLEDAD | AR168: 47 | AT168: TERRITORIAL | AU168: TERRITORIAL | AV168: ANTIOQUIA - ALCALDIA MUNICIPIO DE TARAZA | AW168: 29.5620438
F169: TERRITORIAL | G169: TERRITORIAL | H169: ATLANTICO - TRANSMETRO S.A. | I169: 35.5 | K169: TERRITORIAL | L169: TERRITORIAL | M169: ANTIOQUIA - ALCALDIA MUNICIPIO DE YOLOMBO | N169: 36.17647059 | P169: TERRITORIAL | Q169: TERRITORIAL | R169: ARAUCA - ALCALDIA MUNICIPIO DE ARAUQUITA | S169: 58.75 | U169: TERRITORIAL | V169: TERRITORIAL | W169: ANTIOQUIA - TECNOLOGICO DE ANTIOQUIA - MEDELLIN | X169: 35 | Z169: TERRITORIAL | AA169: TERRITORIAL | AB169: ANTIOQUIA - ALCALDIA MUNICIPIO DE YARUMAL | AC169: 11.63043478 | AE169: TERRITORIAL | AF169: TERRITORIAL | AG169: ANTIOQUIA - INSTITUCION EDUCATIVA JOSE HORACIO BETANCUR - MEDELLIN | AH169: 41 | AJ169: PLANEACION | AK169: 54 | AO169: TERRITORIAL | AP169: TERRITORIAL | AQ169: ATLANTICO - TRANSMETRO S.A. | AR169: 24 | AT169: TERRITORIAL | AU169: TERRITORIAL | AV169: ANTIOQUIA - ALCALDIA MUNICIPIO DE TARSO | AW169: 28.29319372
F170: NACIONAL | G170: CONTROL | H170: AUDITORIA GENERAL DE LA REPUBLICA (AGR) | I170: 49 | K170: TERRITORIAL | L170: TERRITORIAL | M170: ANTIOQUIA - ALCALDIA MUNICIPIO DE YONDO | N170: 38.25284091 | P170: TERRITORIAL | Q170: TERRITORIAL | R170: ARAUCA - ALCALDIA MUNICIPIO DE CRAVO NORTE | S170: 70.5 | U170: TERRITORIAL | V170: TERRITORIAL | W170: ANTIOQUIA - TERMINAL DE TRANSPORTES DE APARTADO E.I.C.E. | X170: 33 | Z170: TERRITORIAL | AA170: TERRITORIAL | AB170: ANTIOQUIA - ALCALDIA MUNICIPIO DE YOLOMBO | AC170: 11.48427673 | AE170: TERRITORIAL | AF170: TERRITORIAL | AG170: ANTIOQUIA - INSTITUCION EDUCATIVA JUAN DE LA CRUZ POSADA - MEDELLIN | AH170: 33.33333333 | AJ170: PRESIDENCIA DE LA REPUBLICA | AK170: 34 | AO170: NACIONAL | AP170: CONTROL | AQ170: AUDITORIA GENERAL DE LA REPUBLICA (AGR) | AR170: 33.8 | AT170: TERRITORIAL | AU170: TERRITORIAL | AV170: ANTIOQUIA - ALCALDIA MUNICIPIO DE TITIRIBI | AW170: 26.19626168
F171: NACIONAL | G171: AMBIENTE Y DESARROLLO SOSTENIBLE | H171: AUTORIDAD NACIONAL DE LICENCIAS AMBIENTALES (ANLA) | I171: 37.33333333 | K171: TERRITORIAL | L171: TERRITORIAL | M171: ANTIOQUIA - ALCALDIA MUNICIPIO DE ZARAGOZA | N171: 37.84033613 | P171: TERRITORIAL | Q171: TERRITORIAL | R171: ARAUCA - ALCALDIA MUNICIPIO DE FORTUL | S171: 59.375 | U171: TERRITORIAL | V171: TERRITORIAL | W171: ANTIOQUIA- CENTRO DE FORMACION INTEGRAL PARA EL TRABAJO CEFIT- ENVIGADO | X171: 25.5 | Z171: TERRITORIAL | AA171: TERRITORIAL | AB171: ANTIOQUIA - ALCALDIA MUNICIPIO DE YONDO | AC171: 11.66666667 | AE171: TERRITORIAL | AF171: TERRITORIAL | AG171: ANTIOQUIA - INSTITUCION EDUCATIVA LA INDEPENDENCIA - MEDELLIN | AH171: 51 | AJ171: RAMA JUDICIAL | AK171: 26 | AO171: NACIONAL | AP171: AMBIENTE Y DESARROLLO SOSTENIBLE | AQ171: AUTORIDAD NACIONAL DE LICENCIAS AMBIENTALES (ANLA) | AR171: 36.28571429 | AT171: TERRITORIAL | AU171: TERRITORIAL | AV171: ANTIOQUIA - ALCALDIA MUNICIPIO DE TOLEDO | AW171: 25.42708333
F172: NACIONAL | G172: TECNOLOGIAS DE LA INFORMACION Y LAS COMUNICACIONES | H172: AUTORIDAD NACIONAL DE TELEVISION (ANTV) | I172: 44.5 | K172: TERRITORIAL | L172: TERRITORIAL | M172: ANTIOQUIA - AREA METROPOLITANA DEL VALLE DE ABURRA - MEDELLIN | N172: 37.95707472 | P172: TERRITORIAL | Q172: TERRITORIAL | R172: ARAUCA - ALCALDIA MUNICIPIO DE PUERTO RONDON | S172: 49 | U172: TERRITORIAL | V172: TERRITORIAL | W172: ARAUCA - ALCALDIA MUNICIPIO DE ARAUCA | X172: 39.02941176 | Z172: TERRITORIAL | AA172: TERRITORIAL | AB172: ANTIOQUIA - ALCALDIA MUNICIPIO DE ZARAGOZA | AC172: 11.63063063 | AE172: TERRITORIAL | AF172: TERRITORIAL | AG172: ANTIOQUIA - INSTITUCION EDUCATIVA LA MILAGROSA - MEDELLIN | AH172: 49 | AJ172: REGISTRADURIA | AK172: 35.25 | AO172: TERRITORIAL | AP172: TERRITORIAL | AQ172: BOGOTA D.C. - ALCALDIA LOCAL ANTONIO NARIÑO | AR172: 36.11111111 | AT172: TERRITORIAL | AU172: TERRITORIAL | AV172: ANTIOQUIA - ALCALDIA MUNICIPIO DE TURBO | AW172: 29.82342954
F173: TERRITORIAL | G173: TERRITORIAL | H173: BOGOTA D.C. - ALCALDIA LOCAL ANTONIO NARIÑO | I173: 27.5 | K173: TERRITORIAL | L173: TERRITORIAL | M173: ANTIOQUIA - ASAMBLEA DEPARTAMENTAL DE ANTIOQUIA | N173: 40.57522124 | P173: TERRITORIAL | Q173: TERRITORIAL | R173: ARAUCA - ALCALDIA MUNICIPIO DE SARAVENA | S173: 50.85714286 | U173: TERRITORIAL | V173: TERRITORIAL | W173: ARAUCA - ALCALDIA MUNICIPIO DE ARAUQUITA | X173: 38.55 | Z173: TERRITORIAL | AA173: TERRITORIAL | AB173: ANTIOQUIA - AREA METROPOLITANA DEL VALLE DE ABURRA - MEDELLIN | AC173: 11.14285714 | AE173: TERRITORIAL | AF173: TERRITORIAL | AG173: ANTIOQUIA - INSTITUCION EDUCATIVA LA PRESENTACION - MEDELLIN | AH173: 36.83333333 | AJ173: SALUD Y PROTECCION SOCIAL | AK173: 46.55555556 | AO173: TERRITORIAL | AP173: TERRITORIAL | AQ173: BOGOTA D.C. - ALCALDIA LOCAL CIUDAD BOLIVAR | AR173: 35.5 | AT173: TERRITORIAL | AU173: TERRITORIAL | AV173: ANTIOQUIA - ALCALDIA MUNICIPIO DE URRAO | AW173: 24.76923077
F174: TERRITORIAL | G174: TERRITORIAL | H174: BOGOTA D.C. - ALCALDIA LOCAL CIUDAD BOLIVAR | I174: 38.4 | K174: TERRITORIAL | L174: TERRITORIAL | M174: ANTIOQUIA - ASOCIACION CANAL LOCAL DE TELEVISION DE MEDELLIN - TELEMEDELLIN - | N174: 38.26871401 | P174: TERRITORIAL | Q174: TERRITORIAL | R174: ARAUCA - ALCALDIA MUNICIPIO DE TAME | S174: 59.2 | U174: TERRITORIAL | V174: TERRITORIAL | W174: ARAUCA - ALCALDIA MUNICIPIO DE CRAVO NORTE | X174: 36 | Z174: TERRITORIAL | AA174: TERRITORIAL | AB174: ANTIOQUIA - ASOCIACION CANAL LOCAL DE TELEVISION DE MEDELLIN - TELEMEDELLIN - | AC174: 11.54545455 | AE174: TERRITORIAL | AF174: TERRITORIAL | AG174: ANTIOQUIA - INSTITUCION EDUCATIVA LORENZA VILLEGAS DE SANTOS - MEDELLIN | AH174: 38 | AJ174: TECNOLOGIAS DE LA INFORMACION Y LAS COMUNICACIONES | AK174: 38 | AO174: TERRITORIAL | AP174: TERRITORIAL | AQ174: BOGOTA D.C. - ALCALDIA LOCAL DE BARRIOS UNIDOS | AR174: 20 | AT174: TERRITORIAL | AU174: TERRITORIAL | AV174: ANTIOQUIA - ALCALDIA MUNICIPIO DE VALDIVIA | AW174: 38.37142857
F175: TERRITORIAL | G175: TERRITORIAL | H175: BOGOTA D.C. - ALCALDIA LOCAL DE BARRIOS UNIDOS | I175: 46.33333333 | K175: TERRITORIAL | L175: TERRITORIAL | M175: ANTIOQUIA - ASOCIACION DE AREAS METROPOLITANAS DE COLOMBIA - MEDELLIN | N175: 26.5 | P175: TERRITORIAL | Q175: TERRITORIAL | R175: ARAUCA - EMPRESA DE ENERGIA DE ARAUCA ENELAR E.S.P. | S175: 82 | U175: TERRITORIAL | V175: TERRITORIAL | W175: ARAUCA - ALCALDIA MUNICIPIO DE FORTUL | X175: 37.41509434 | Z175: TERRITORIAL | AA175: TERRITORIAL | AB175: ANTIOQUIA - ASOCIACION DE MUNICIPIOS UNIDOS DEL SUR DE ANTIOQUIA MUSA - SONSON | AC175: 10 | AE175: TERRITORIAL | AF175: TERRITORIAL | AG175: ANTIOQUIA - INSTITUCION EDUCATIVA LUCRECIO JARAMILLO VELEZ - MEDELLIN | AH175: 37.92307692 | AJ175: TERRITORIAL | AK175: 37.15387061 | AO175: TERRITORIAL | AP175: TERRITORIAL | AQ175: BOGOTA D.C. - ALCALDIA LOCAL DE CHAPINERO | AR175: 31 | AT175: TERRITORIAL | AU175: TERRITORIAL | AV175: ANTIOQUIA - ALCALDIA MUNICIPIO DE VALPARAISO | AW175: 31.35714286
F176: TERRITORIAL | G176: TERRITORIAL | H176: BOGOTA D.C. - ALCALDIA LOCAL DE CHAPINERO | I176: 28.25 | K176: TERRITORIAL | L176: TERRITORIAL | M176: ANTIOQUIA - ASOCIACION DE MUNICIPIOS CORPORACION AGENCIA PARA EL DESARROLLO DE LOS MUNICIPIOS DE LA SUBREGION DE BOSQUES CORPOBOSQUES - RIONEGRO | N176: 51 | P176: TERRITORIAL | Q176: TERRITORIAL | R176: ARAUCA - GOBERNACION | S176: 63.015625 | U176: TERRITORIAL | V176: TERRITORIAL | W176: ARAUCA - ALCALDIA MUNICIPIO DE PUERTO RONDON | X176: 32.85714286 | Z176: TERRITORIAL | AA176: TERRITORIAL | AB176: ANTIOQUIA - BIBLIOTECA PUBLICA PILOTO DE MEDELLIN PARA AMERICA LATINA - MEDELLIN | AC176: 11.97560976 | AE176: TERRITORIAL | AF176: TERRITORIAL | AG176: ANTIOQUIA - INSTITUCION EDUCATIVA MAESTRO FERNANDO BOTERO - MEDELLIN | AH176: 34.14285714 | AJ176: TRABAJO | AK176: 40 | AO176: TERRITORIAL | AP176: TERRITORIAL | AQ176: BOGOTA D.C. - ALCALDIA LOCAL DE ENGATIVA | AR176: 30 | AT176: TERRITORIAL | AU176: TERRITORIAL | AV176: ANTIOQUIA - ALCALDIA MUNICIPIO DE VEGACHI | AW176: 29.79213483
F177: TERRITORIAL | G177: TERRITORIAL | H177: BOGOTA D.C. - ALCALDIA LOCAL DE ENGATIVA | I177: 46 | K177: TERRITORIAL | L177: TERRITORIAL | M177: ANTIOQUIA - ASOCIACION DE MUNICIPIOS DEL BAJO CAUCA Y DEL BAJO NECHI AMBACAN - CAUCASIA | N177: 50.5 | P177: TERRITORIAL | Q177: TERRITORIAL | R177: ARAUCA - INSTITUTO DE DESARROLLO DE ARAUCA - IDEAR | S177: 89 | U177: TERRITORIAL | V177: TERRITORIAL | W177: ARAUCA - ALCALDIA MUNICIPIO DE SARAVENA | X177: 38 | Z177: TERRITORIAL | AA177: TERRITORIAL | AB177: ANTIOQUIA - CASA MUNICIPAL DE LA CULTURA CALDAS | AC177: 11.33333333 | AE177: TERRITORIAL | AF177: TERRITORIAL | AG177: ANTIOQUIA - INSTITUCION EDUCATIVA MAESTRO PEDRO NEL GOMEZ - MEDELLIN | AH177: 51 | AJ177: TRANSPORTE | AK177: 43.16666667 | AO177: TERRITORIAL | AP177: TERRITORIAL | AQ177: BOGOTA D.C. - ALCALDIA LOCAL DE FONTIBON | AR177: 41.375 | AT177: TERRITORIAL | AU177: TERRITORIAL | AV177: ANTIOQUIA - ALCALDIA MUNICIPIO DE VENECIA | AW177: 27.60237389
F178: TERRITORIAL | G178: TERRITORIAL | H178: BOGOTA D.C. - ALCALDIA LOCAL DE FONTIBON | I178: 31 | K178: TERRITORIAL | L178: TERRITORIAL | M178: ANTIOQUIA - ASOCIACION DE MUNICIPIOS UNIDOS DEL SUR DE ANTIOQUIA MUSA - SONSON | N178: 37.11111111 | P178: TERRITORIAL | Q178: TERRITORIAL | R178: ARAUCA - INSTITUTO DEPARTAMENTAL DEL DEPORTE Y LA RECREACION DE ARAUCA COLDEPORTES | S178: 74 | U178: TERRITORIAL | V178: TERRITORIAL | W178: ARAUCA - ALCALDIA MUNICIPIO DE TAME | X178: 41.45 | Z178: TERRITORIAL | AA178: TERRITORIAL | AB178: ANTIOQUIA - CENTRO DE BIENESTAR DEL ANCIANO SAN ANTONIO - SONSON | AC178: 12.75 | AE178: TERRITORIAL | AF178: TERRITORIAL | AG178: ANTIOQUIA - INSTITUCION EDUCATIVA MANUELA BELTRAN - MEDELLIN | AH178: 32.42857143 | AJ178: Grand Total | AK178: 37.84581259 | AO178: TERRITORIAL | AP178: TERRITORIAL | AQ178: BOGOTA D.C. - ALCALDIA LOCAL DE KENEDDY | AR178: 43.2 | AT178: TERRITORIAL | AU178: TERRITORIAL | AV178: ANTIOQUIA - ALCALDIA MUNICIPIO DE VIGIA DEL FUERTE | AW178: 33
F179: TERRITORIAL | G179: TERRITORIAL | H179: BOGOTA D.C. - ALCALDIA LOCAL DE KENEDDY | I179: 51 | K179: TERRITORIAL | L179: TERRITORIAL | M179: ANTIOQUIA - ASOCIACION PROMOTORA DE TELEVISION PISISI - TURBO | N179: 35.4 | P179: TERRITORIAL | Q179: TERRITORIAL | R179: ARAUCA - UNIDAD ADMINISTRATIVA ESPECIAL DE SALUD DE ARAUCA | S179: 58.66666667 | U179: TERRITORIAL | V179: TERRITORIAL | W179: ARAUCA - CONTRALORIA DEPARTAMENTAL DE ARAUCA | X179: 39 | Z179: TERRITORIAL | AA179: TERRITORIAL | AB179: ANTIOQUIA - CENTRO EDUCATICO EL MANZANILLO - MEDELLIN | AC179: 11.88888889 | AE179: TERRITORIAL | AF179: TERRITORIAL | AG179: ANTIOQUIA - INSTITUCION EDUCATIVA MARIA DE LOS ANGELES CANO - MEDELLIN | AH179: 41.8 | AO179: TERRITORIAL | AP179: TERRITORIAL | AQ179: BOGOTA D.C. - ALCALDIA LOCAL DE PUENTE ARANDA | AR179: 36.72727273 | AT179: TERRITORIAL | AU179: TERRITORIAL | AV179: ANTIOQUIA - ALCALDIA MUNICIPIO DE YALI | AW179: 22.60425532
F180: TERRITORIAL | G180: TERRITORIAL | H180: BOGOTA D.C. - ALCALDIA LOCAL DE PUENTE ARANDA | I180: 42.33333333 | K180: TERRITORIAL | L180: TERRITORIAL | M180: ANTIOQUIA - BENEFICENCIA DE ANTIOQUIA | N180: 37 | P180: NACIONAL | Q180: DEFENSA NACIONAL | R180: ARMADA NACIONAL DE LA REPUBLICA DE COLOMBIA | S180: 59 | U180: TERRITORIAL | V180: TERRITORIAL | W180: ARAUCA - GOBERNACION | X180: 38.3960396 | Z180: TERRITORIAL | AA180: TERRITORIAL | AB180: ANTIOQUIA - CENTRO EDUCATIVO EL SALADO - MEDELLIN | AC180: 11.5 | AE180: TERRITORIAL | AF180: TERRITORIAL | AG180: ANTIOQUIA - INSTITUCION EDUCATIVA MARIA MEDIADORA - SABANETA | AH180: 35.41666667 | AJ180: Selección Abreviada | AO180: TERRITORIAL | AP180: TERRITORIAL | AQ180: BOGOTA D.C. - ALCALDIA LOCAL DE SAN CRISTOBAL | AR180: 38.9 | AT180: TERRITORIAL | AU180: TERRITORIAL | AV180: ANTIOQUIA - ALCALDIA MUNICIPIO DE YARUMAL | AW180: 25.03351955
F181: TERRITORIAL | G181: TERRITORIAL | H181: BOGOTA D.C. - ALCALDIA LOCAL DE SAN CRISTOBAL | I181: 42.33333333 | K181: TERRITORIAL | L181: TERRITORIAL | M181: ANTIOQUIA - BIBLIOTECA PUBLICA PILOTO DE MEDELLIN PARA AMERICA LATINA - MEDELLIN | N181: 38.01435407 | P181: TERRITORIAL | Q181: TERRITORIAL | R181: ASOCIACION DE MUNICIPIOS DE LA PROVINCIA DE OCAÑA, SUR DEL CESAR Y BOLIVAR | S181: 63 | U181: TERRITORIAL | V181: TERRITORIAL | W181: ARAUCA - INSTITUTO DE DESARROLLO DE ARAUCA - IDEAR | X181: 43.2 | Z181: TERRITORIAL | AA181: TERRITORIAL | AB181: ANTIOQUIA - CENTRO EDUCATIVO LAS PLAYAS - MEDELLIN | AC181: 11.9 | AE181: TERRITORIAL | AF181: TERRITORIAL | AG181: ANTIOQUIA - INSTITUCION EDUCATIVA MARINA ORTH - MEDELLIN | AH181: 40 | AJ181: Row Labels | AK181: Average of INDICADOR | AL181: Row Labels | AM181: Average of INDICADOR | AO181: TERRITORIAL | AP181: TERRITORIAL | AQ181: BOGOTA D.C. - ALCALDIA LOCAL DE SANTA FE | AR181: 40.75 | AT181: TERRITORIAL | AU181: TERRITORIAL | AV181: ANTIOQUIA - ALCALDIA MUNICIPIO DE YOLOMBO | AW181: 24.40307692
F182: TERRITORIAL | G182: TERRITORIAL | H182: BOGOTA D.C. - ALCALDIA LOCAL DE SANTA FE | I182: 40.25 | K182: TERRITORIAL | L182: TERRITORIAL | M182: ANTIOQUIA - CASA MUNICIPAL DE LA CULTURA CALDAS | N182: 38.88333333 | P182: TERRITORIAL | Q182: TERRITORIAL | R182: ATLANTICO - ALCALDIA DISTRITO ESPECIAL, INDUSTRIAL Y PORTUARIO BARRANQUILLA | S182: 58.4 | U182: TERRITORIAL | V182: TERRITORIAL | W182: ARAUCA - INSTITUTO DE TRANSITO Y TRANSPORTE DEL DEPARTAMENTO DE ARAUCA | X182: 39.4 | Z182: TERRITORIAL | AA182: TERRITORIAL | AB182: ANTIOQUIA - CENTRO EDUCATIVO MEDIA LUNA - MEDELLIN | AC182: 11.09090909 | AE182: TERRITORIAL | AF182: TERRITORIAL | AG182: ANTIOQUIA - INSTITUCION EDUCATIVA MIRAFLORES LUIS EDUARDO VALENCIA GARCIA - MEDELLIN | AH182: 37.47826087 | AJ182: NACIONAL | AK182: 39.64622656 | AL182: NACIONAL | AM182: 39.64622656 | AO182: TERRITORIAL | AP182: TERRITORIAL | AQ182: BOGOTA D.C. - ALCALDIA LOCAL DE SUBA | AR182: 43 | AT182: TERRITORIAL | AU182: TERRITORIAL | AV182: ANTIOQUIA - ALCALDIA MUNICIPIO DE YONDO | AW182: 36.50925926
F183: TERRITORIAL | G183: TERRITORIAL | H183: BOGOTA D.C. - ALCALDIA LOCAL DE SUBA | I183: 40.25 | K183: TERRITORIAL | L183: TERRITORIAL | M183: ANTIOQUIA - CENTRO DE BIENESTAR DEL ANCIANO SAN ANTONIO - SONSON | N183: 34.5 | P183: TERRITORIAL | Q183: TERRITORIAL | R183: ATLANTICO - ALCALDIA MUNICIPIO DE BARANOA | S183: 53 | U183: TERRITORIAL | V183: TERRITORIAL | W183: ARAUCA - INSTITUTO DEPARTAMENTAL DEL DEPORTE Y LA RECREACION DE ARAUCA COLDEPORTES | X183: 34.5 | Z183: TERRITORIAL | AA183: TERRITORIAL | AB183: ANTIOQUIA - CENTRO EDUCATIVO PEDREGAL ALTO - MEDELLIN | AC183: 11.25 | AE183: TERRITORIAL | AF183: TERRITORIAL | AG183: ANTIOQUIA - INSTITUCION EDUCATIVA PABLO NERUDA - MEDELLIN | AH183: 35 | AJ183: TERRITORIAL | AK183: 37.3142618 | AL183: TERRITORIAL | AM183: 37.3142618 | AO183: TERRITORIAL | AP183: TERRITORIAL | AQ183: BOGOTA D.C. - ALCALDIA LOCAL DE SUMAPAZ | AR183: 36.2 | AT183: TERRITORIAL | AU183: TERRITORIAL | AV183: ANTIOQUIA - ALCALDIA MUNICIPIO DE ZARAGOZA | AW183: 27.07480315
F184: TERRITORIAL | G184: TERRITORIAL | H184: BOGOTA D.C. - ALCALDIA LOCAL DE SUMAPAZ | I184: 37 | K184: TERRITORIAL | L184: TERRITORIAL | M184: ANTIOQUIA - CENTRO EDUCATIVO PERMANENTE MAZO - MEDELLIN | N184: 24 | P184: TERRITORIAL | Q184: TERRITORIAL | R184: ATLANTICO - ALCALDIA MUNICIPIO DE CAMPO DE LA CRUZ | S184: 65 | U184: TERRITORIAL | V184: TERRITORIAL | W184: ARAUCA - UNIDAD ADMINISTRATIVA ESPECIAL DE SALUD DE ARAUCA | X184: 43.18181818 | Z184: TERRITORIAL | AA184: TERRITORIAL | AB184: ANTIOQUIA - CENTRO EDUCATIVO PERMANENTE MAZO - MEDELLIN | AC184: 11.28571429 | AE184: TERRITORIAL | AF184: TERRITORIAL | AG184: ANTIOQUIA - INSTITUCION EDUCATIVA PEDRO LUIS VILLA - MEDELLIN | AH184: 34.75 | AJ184: Grand Total | AK184: 37.84581259 | AL184: Grand Total | AM184: 37.84581259 | AO184: TERRITORIAL | AP184: TERRITORIAL | AQ184: BOGOTA D.C. - ALCALDIA LOCAL DE TUNJUELITO | AR184: 32.33333333 | AT184: TERRITORIAL | AU184: TERRITORIAL | AV184: ANTIOQUIA - AREA METROPOLITANA DEL VALLE DE ABURRA - MEDELLIN | AW184: 37.97167139
F185: TERRITORIAL | G185: TERRITORIAL | H185: BOGOTA D.C. - ALCALDIA LOCAL DE USAQUEN | I185: 40 | K185: TERRITORIAL | L185: TERRITORIAL | M185: ANTIOQUIA - CENTRO PROVINCIAL DE GESTION MINERO AGROEMPRESARIAL DEL ALTO NORDESTE - SEGOVIA | N185: 38.19387755 | P185: TERRITORIAL | Q185: TERRITORIAL | R185: ATLANTICO - ALCALDIA MUNICIPIO DE GALAPA | S185: 55.85714286 | U185: NACIONAL | V185: INTERIOR | W185: ARCHIVO GENERAL DE LA NACION (AGN) | X185: 39.42857143 | Z185: TERRITORIAL | AA185: TERRITORIAL | AB185: ANTIOQUIA - CENTRO EDUCATIVO TRAVESIAS EL MORRO - MEDELLIN | AC185: 12 | AE185: TERRITORIAL | AF185: TERRITORIAL | AG185: ANTIOQUIA - INSTITUCION EDUCATIVA PRESBITERO JUAN J ESCOBAR - MEDELLIN | AH185: 35.23529412 | AO185: TERRITORIAL | AP185: TERRITORIAL | AQ185: BOGOTA D.C. - ALCALDIA LOCAL DE USME | AR185: 32.6 | AT185: TERRITORIAL | AU185: TERRITORIAL | AV185: ANTIOQUIA - ASAMBLEA DEPARTAMENTAL DE ANTIOQUIA | AW185: 40.57522124
F186: TERRITORIAL | G186: TERRITORIAL | H186: BOGOTA D.C. - ALCALDIA LOCAL DE USME | I186: 47 | K186: TERRITORIAL | L186: TERRITORIAL | M186: ANTIOQUIA - CONCEJO MUNICIPAL CALDAS | N186: 40.4375 | P186: TERRITORIAL | Q186: TERRITORIAL | R186: ATLANTICO - ALCALDIA MUNICIPIO DE JUAN DE ACOSTA | S186: 61.75 | U186: NACIONAL | V186: DEFENSA NACIONAL | W186: ARMADA NACIONAL DE LA REPUBLICA DE COLOMBIA | X186: 39.1409396 | Z186: TERRITORIAL | AA186: TERRITORIAL | AB186: ANTIOQUIA - CENTRO PROVINCIAL DE GESTION MINERO AGROEMPRESARIAL DEL ALTO NORDESTE - SEGOVIA | AC186: 11.11111111 | AE186: TERRITORIAL | AF186: TERRITORIAL | AG186: ANTIOQUIA - INSTITUCION EDUCATIVA PRESBITERO LIBARDO AGUIRRE CONCEPCION - MEDELLIN | AH186: 38 | AO186: TERRITORIAL | AP186: TERRITORIAL | AQ186: BOGOTA D.C. - ALCALDIA LOCAL LA CANDELARIA | AR186: 36.75 | AT186: TERRITORIAL | AU186: TERRITORIAL | AV186: ANTIOQUIA - ASOCIACION CANAL LOCAL DE TELEVISION DE MEDELLIN - TELEMEDELLIN - | AW186: 37.45092593
F187: TERRITORIAL | G187: TERRITORIAL | H187: BOGOTA D.C. - ALCALDIA LOCAL RAFAEL URIBE URIBE | I187: 37 | K187: TERRITORIAL | L187: TERRITORIAL | M187: ANTIOQUIA - CONCEJO MUNICIPAL EL CARMEN DE VIBORAL | N187: 45.90909091 | P187: TERRITORIAL | Q187: TERRITORIAL | R187: ATLANTICO - ALCALDIA MUNICIPIO DE LURUACO | S187: 57.16666667 | U187: TERRITORIAL | V187: TERRITORIAL | W187: ATLANTICO - ALCALDIA DISTRITO ESPECIAL, INDUSTRIAL Y PORTUARIO BARRANQUILLA | X187: 39.42307692 | Z187: TERRITORIAL | AA187: TERRITORIAL | AB187: ANTIOQUIA - CONCEJO MUNICIPAL CALDAS | AC187: 11.66666667 | AE187: TERRITORIAL | AF187: TERRITORIAL | AG187: ANTIOQUIA - INSTITUCION EDUCATIVA RAFAEL GARCIA HERREROS - MEDELLIN | AH187: 27 | AO187: TERRITORIAL | AP187: TERRITORIAL | AQ187: BOGOTA D.C. - ALCALDIA LOCAL RAFAEL URIBE URIBE | AR187: 32 | AT187: TERRITORIAL | AU187: TERRITORIAL | AV187: ANTIOQUIA - ASOCIACION DE AREAS METROPOLITANAS DE COLOMBIA - MEDELLIN | AW187: 26.5
F188: TERRITORIAL | G188: TERRITORIAL | H188: BOGOTA D.C. - CAJA DE VIVIENDA POPULAR | I188: 41.83333333 | K188: TERRITORIAL | L188: TERRITORIAL | M188: ANTIOQUIA - CONCEJO MUNICIPAL EL SANTUARIO | N188: 45.83333333 | P188: TERRITORIAL | Q188: TERRITORIAL | R188: ATLANTICO - ALCALDIA MUNICIPIO DE MALAMBO | S188: 59.85714286 | U188: TERRITORIAL | V188: TERRITORIAL | W188: ATLANTICO - ALCALDIA MUNICIPIO DE BARANOA | X188: 31.5 | Z188: TERRITORIAL | AA188: TERRITORIAL | AB188: ANTIOQUIA - CONCEJO MUNICIPAL DE FRONTINO | AC188: 13 | AE188: TERRITORIAL | AF188: TERRITORIAL | AG188: ANTIOQUIA - INSTITUCION EDUCATIVA RAFAEL J. MEJIA - SABANETA | AH188: 37.35294118 | AO188: TERRITORIAL | AP188: TERRITORIAL | AQ188: BOGOTA D.C. - CAJA DE VIVIENDA POPULAR | AR188: 41.93333333 | AT188: TERRITORIAL | AU188: TERRITORIAL | AV188: ANTIOQUIA - ASOCIACION DE MUNICIPIOS CORPORACION AGENCIA PARA EL DESARROLLO DE LOS MUNICIPIOS DE LA SUBREGION DE BOSQUES CORPOBOSQUES - RIONEGRO | AW188: 51
F189: TERRITORIAL | G189: TERRITORIAL | H189: BOGOTA D.C. - CONTRALORIA DE BOGOTA D.C. | I189: 31.6 | K189: TERRITORIAL | L189: TERRITORIAL | M189: ANTIOQUIA - CONCEJO MUNICIPIO DE ABEJORRAL | N189: 24.5 | P189: TERRITORIAL | Q189: TERRITORIAL | R189: ATLANTICO - ALCALDIA MUNICIPIO DE PIOJO | S189: 62 | U189: TERRITORIAL | V189: TERRITORIAL | W189: ATLANTICO - ALCALDIA MUNICIPIO DE GALAPA | X189: 39.625 | Z189: TERRITORIAL | AA189: TERRITORIAL | AB189: ANTIOQUIA - CONCEJO MUNICIPAL EL CARMEN DE VIBORAL | AC189: 11.2 | AE189: TERRITORIAL | AF189: TERRITORIAL | AG189: ANTIOQUIA - INSTITUCION EDUCATIVA RAFAEL URIBE URIBE - MEDELLIN | AH189: 47 | AO189: TERRITORIAL | AP189: TERRITORIAL | AQ189: BOGOTA D.C. - CONTRALORIA DE BOGOTA D.C. | AR189: 40.5625 | AT189: TERRITORIAL | AU189: TERRITORIAL | AV189: ANTIOQUIA - ASOCIACION DE MUNICIPIOS DEL BAJO CAUCA Y DEL BAJO NECHI AMBACAN - CAUCASIA | AW189: 50.5
F190: TERRITORIAL | G190: TERRITORIAL | H190: BOGOTA D.C. - DEFENSORIA DEL ESPACIO PUBLICO | I190: 32.5 | K190: TERRITORIAL | L190: TERRITORIAL | M190: ANTIOQUIA - CONCEJO MUNICIPIO DE ALEJANDRIA | N190: 44 | P190: TERRITORIAL | Q190: TERRITORIAL | R190: ATLANTICO - ALCALDIA MUNICIPIO DE POLONUEVO | S190: 73 | U190: TERRITORIAL | V190: TERRITORIAL | W190: ATLANTICO - ALCALDIA MUNICIPIO DE LURUACO | X190: 34.33333333 | Z190: TERRITORIAL | AA190: TERRITORIAL | AB190: ANTIOQUIA - CONCEJO MUNICIPAL EL SANTUARIO | AC190: 11.5 | AE190: TERRITORIAL | AF190: TERRITORIAL | AG190: ANTIOQUIA - INSTITUCION EDUCATIVA SAMUEL BARRIENTOS RESTREPO - MEDELLIN | AH190: 37.51851852 | AO190: TERRITORIAL | AP190: TERRITORIAL | AQ190: BOGOTA D.C. - DTO ADTIVO DEL SERVICIO CIVIL | AR190: 48 | AT190: TERRITORIAL | AU190: TERRITORIAL | AV190: ANTIOQUIA - ASOCIACION DE MUNICIPIOS UNIDOS DEL SUR DE ANTIOQUIA MUSA - SONSON | AW190: 34.4
F191: TERRITORIAL | G191: TERRITORIAL | H191: BOGOTA D.C. - EMPRESA DE RENOVACION URBANA | I191: 43.66666667 | K191: TERRITORIAL | L191: TERRITORIAL | M191: ANTIOQUIA - CONCEJO MUNICIPIO DE AMAGA | N191: 50 | P191: TERRITORIAL | Q191: TERRITORIAL | R191: ATLANTICO - ALCALDIA MUNICIPIO DE PONEDERA | S191: 49.14285714 | U191: TERRITORIAL | V191: TERRITORIAL | W191: ATLANTICO - ALCALDIA MUNICIPIO DE MALAMBO | X191: 40.55555556 | Z191: TERRITORIAL | AA191: TERRITORIAL | AB191: ANTIOQUIA - CONCEJO MUNICIPIO DE ALEJANDRIA | AC191: 10.5 | AE191: TERRITORIAL | AF191: TERRITORIAL | AG191: ANTIOQUIA - INSTITUCION EDUCATIVA SAN ANTONIO DE PRADO - MEDELLIN | AH191: 39.37037037 | AO191: TERRITORIAL | AP191: TERRITORIAL | AQ191: BOGOTA D.C. - EMPRESA DE RENOVACION URBANA | AR191: 42 | AT191: TERRITORIAL | AU191: TERRITORIAL | AV191: ANTIOQUIA - ASOCIACION PROMOTORA DE TELEVISION PISISI - TURBO | AW191: 35.4
F192: TERRITORIAL | G192: TERRITORIAL | H192: BOGOTA D.C. - FONDO DE VIGILANCIA Y SEGURIDAD DE BOGOTA | I192: 40.83333333 | K192: TERRITORIAL | L192: TERRITORIAL | M192: ANTIOQUIA - CONCEJO MUNICIPIO DE ANGOSTURA | N192: 29 | P192: TERRITORIAL | Q192: TERRITORIAL | R192: ATLANTICO - ALCALDIA MUNICIPIO DE REPELON | S192: 52 | U192: TERRITORIAL | V192: TERRITORIAL | W192: ATLANTICO - ALCALDIA MUNICIPIO DE PALMAR DE VARELA | X192: 50 | Z192: TERRITORIAL | AA192: TERRITORIAL | AB192: ANTIOQUIA - CONCEJO MUNICIPIO DE AMAGA | AC192: 11.71428571 | AE192: TERRITORIAL | AF192: TERRITORIAL | AG192: ANTIOQUIA - INSTITUCION EDUCATIVA SAN PABLO - MEDELLIN | AH192: 41 | AO192: TERRITORIAL | AP192: TERRITORIAL | AQ192: BOGOTA D.C. - FONDO DE VIGILANCIA Y SEGURIDAD DE BOGOTA | AR192: 40.6 | AT192: TERRITORIAL | AU192: TERRITORIAL | AV192: ANTIOQUIA - BENEFICENCIA DE ANTIOQUIA | AW192: 39
F193: TERRITORIAL | G193: TERRITORIAL | H193: BOGOTA D.C. - FONDO FINANCIERO DISTRITAL DE SALUD | I193: 34 | K193: TERRITORIAL | L193: TERRITORIAL | M193: ANTIOQUIA - CONCEJO MUNICIPIO DE APARTADO | N193: 39.33333333 | P193: TERRITORIAL | Q193: TERRITORIAL | R193: ATLANTICO - ALCALDIA MUNICIPIO DE SABANAGRANDE | S193: 61.625 | U193: TERRITORIAL | V193: TERRITORIAL | W193: ATLANTICO - ALCALDIA MUNICIPIO DE PONEDERA | X193: 38 | Z193: TERRITORIAL | AA193: TERRITORIAL | AB193: ANTIOQUIA - CONCEJO MUNICIPIO DE ANGELOPOLIS | AC193: 10 | AE193: TERRITORIAL | AF193: TERRITORIAL | AG193: ANTIOQUIA - INSTITUCION EDUCATIVA SANTA ELENA - MEDELLIN | AH193: 46 | AO193: TERRITORIAL | AP193: TERRITORIAL | AQ193: BOGOTA D.C. - FONDO FINANCIERO DISTRITAL DE SALUD | AR193: 39.55555556 | AT193: TERRITORIAL | AU193: TERRITORIAL | AV193: ANTIOQUIA - BIBLIOTECA PUBLICA PILOTO DE MEDELLIN PARA AMERICA LATINA - MEDELLIN | AW193: 36.85521886
F194: TERRITORIAL | G194: TERRITORIAL | H194: BOGOTA D.C. - FOPAE | I194: 35.92307692 | K194: TERRITORIAL | L194: TERRITORIAL | M194: ANTIOQUIA - CONCEJO MUNICIPIO DE ARMENIA | N194: 38 | P194: TERRITORIAL | Q194: TERRITORIAL | R194: ATLANTICO - ALCALDIA MUNICIPIO DE SABANALARGA | S194: 72 | U194: TERRITORIAL | V194: TERRITORIAL | W194: ATLANTICO - ALCALDIA MUNICIPIO DE REPELON | X194: 44.66666667 | Z194: TERRITORIAL | AA194: TERRITORIAL | AB194: ANTIOQUIA - CONCEJO MUNICIPIO DE ANGOSTURA | AC194: 10.5 | AE194: TERRITORIAL | AF194: TERRITORIAL | AG194: ANTIOQUIA - INSTITUCION EDUCATIVA SANTA ROSA DE LIMA MEDELLIN | AH194: 37.1875 | AO194: TERRITORIAL | AP194: TERRITORIAL | AQ194: BOGOTA D.C. - FOPAE | AR194: 40 | AT194: TERRITORIAL | AU194: TERRITORIAL | AV194: ANTIOQUIA - CASA MUNICIPAL DE LA CULTURA CALDAS | AW194: 34.29166667
F195: TERRITORIAL | G195: TERRITORIAL | H195: BOGOTA D.C. - IDEP | I195: 46 | K195: TERRITORIAL | L195: TERRITORIAL | M195: ANTIOQUIA - CONCEJO MUNICIPIO DE BELLO | N195: 37.40909091 | P195: TERRITORIAL | Q195: TERRITORIAL | R195: ATLANTICO - ALCALDIA MUNICIPIO DE SANTA LUCIA | S195: 32 | U195: TERRITORIAL | V195: TERRITORIAL | W195: ATLANTICO - ALCALDIA MUNICIPIO DE SABANAGRANDE | X195: 37.66666667 | Z195: TERRITORIAL | AA195: TERRITORIAL | AB195: ANTIOQUIA - CONCEJO MUNICIPIO DE APARTADO | AC195: 11.44444444 | AE195: TERRITORIAL | AF195: TERRITORIAL | AG195: ANTIOQUIA - INSTITUCION EDUCATIVA SANTO ANGEL - MEDELLIN | AH195: 38.15384615 | AO195: TERRITORIAL | AP195: TERRITORIAL | AQ195: BOGOTA D.C. - IDEP | AR195: 37.33333333 | AT195: TERRITORIAL | AU195: TERRITORIAL | AV195: ANTIOQUIA - CENTRO DE BIENESTAR DEL ANCIANO SAN ANTONIO - SONSON | AW195: 28.28571429
F196: TERRITORIAL | G196: TERRITORIAL | H196: BOGOTA D.C. - IDIPRON | I196: 55 | K196: TERRITORIAL | L196: TERRITORIAL | M196: ANTIOQUIA - CONCEJO MUNICIPIO DE COPACABANA | N196: 37.3 | P196: TERRITORIAL | Q196: TERRITORIAL | R196: ATLANTICO - ALCALDIA MUNICIPIO DE SANTO TOMAS | S196: 50.8 | U196: TERRITORIAL | V196: TERRITORIAL | W196: ATLANTICO - ALCALDIA MUNICIPIO DE SANTO TOMAS | X196: 36.5 | Z196: TERRITORIAL | AA196: TERRITORIAL | AB196: ANTIOQUIA - CONCEJO MUNICIPIO DE ARMENIA | AC196: 12.5 | AE196: TERRITORIAL | AF196: TERRITORIAL | AG196: ANTIOQUIA - INSTITUCION EDUCATIVA TOMAS CARRASQUILLA N° 2 - SANTA ROSA DE OSOS | AH196: 36.96428571 | AO196: TERRITORIAL | AP196: TERRITORIAL | AQ196: BOGOTA D.C. - IDIPRON | AR196: 33 | AT196: TERRITORIAL | AU196: TERRITORIAL | AV196: ANTIOQUIA - CENTRO EDUCATICO EL MANZANILLO - MEDELLIN | AW196: 11.88888889
F197: TERRITORIAL | G197: TERRITORIAL | H197: BOGOTA D.C. - IDU | I197: 37.40740741 | K197: TERRITORIAL | L197: TERRITORIAL | M197: ANTIOQUIA - CONCEJO MUNICIPIO DE DON MATIAS | N197: 24.5 | P197: TERRITORIAL | Q197: TERRITORIAL | R197: ATLANTICO - ALCALDIA MUNICIPIO DE SUAN | S197: 63.5 | U197: TERRITORIAL | V197: TERRITORIAL | W197: ATLANTICO - ALCALDIA MUNICIPIO DE SUAN | X197: 31 | Z197: TERRITORIAL | AA197: TERRITORIAL | AB197: ANTIOQUIA - CONCEJO MUNICIPIO DE BURITICA | AC197: 13 | AE197: TERRITORIAL | AF197: TERRITORIAL | AG197: ANTIOQUIA - INSTITUCION EDUCATIVA VILLAFLORA - MEDELLIN | AH197: 41.75 | AO197: TERRITORIAL | AP197: TERRITORIAL | AQ197: BOGOTA D.C. - IDU | AR197: 40.58823529 | AT197: TERRITORIAL | AU197: TERRITORIAL | AV197: ANTIOQUIA - CENTRO EDUCATIVO EL SALADO - MEDELLIN | AW197: 11.5
F198: TERRITORIAL | G198: TERRITORIAL | H198: BOGOTA D.C. - INSTITUTO DISTRITAL DE PARTICIPACION Y ACCION COMUNAL | I198: 51 | K198: TERRITORIAL | L198: TERRITORIAL | M198: ANTIOQUIA - CONCEJO MUNICIPIO DE EL BAGRE | N198: 33.6 | P198: TERRITORIAL | Q198: TERRITORIAL | R198: ATLANTICO - AREA METROPOLITANA DE BARRANQUILLA | S198: 66 | U198: TERRITORIAL | V198: TERRITORIAL | W198: ATLANTICO - AREA METROPOLITANA DE BARRANQUILLA | X198: 52 | Z198: TERRITORIAL | AA198: TERRITORIAL | AB198: ANTIOQUIA - CONCEJO MUNICIPIO DE CAUCASIA | AC198: 11.25 | AE198: TERRITORIAL | AF198: TERRITORIAL | AG198: ANTIOQUIA - INSTITUCION EDUCATIVA YERMO Y PARRES - MEDELLIN | AH198: 39.03508772 | AO198: TERRITORIAL | AP198: TERRITORIAL | AQ198: BOGOTA D.C. - IED. INEM SANTIAGO PEREZ | AR198: 32 | AT198: TERRITORIAL | AU198: TERRITORIAL | AV198: ANTIOQUIA - CENTRO EDUCATIVO LAS PLAYAS - MEDELLIN | AW198: 11.9
